{"text_format":"3","workbook":"xlsx","n_sheets":1,"sheets":["Kalkulator Pinjaman"],"not_rendered":{"defined_names":24},"read":"whole","date_system":"1900"}

{"sheet":"Kalkulator Pinjaman","index":0,"n_rows":372,"n_cols":8,"rows_kept":372,"merged":[[2,1,2,3],[3,1,3,3],[4,1,4,3],[5,1,5,3],[7,1,7,3],[8,1,8,3],[9,1,9,3],[10,1,10,3]]}
[null,"Kalkulator Pinjaman Sederhana"]
[{"$nulls":4},"Masukkan nilai"]
[null,"Jumlah pinjaman",null,null,{"v":5000,"d":"Rp5,000.00"}]
[null,"Suku bunga tahunan",null,null,{"v":0.055,"d":"5.50%"}]
[null,"Periode pinjaman (tahun)",null,null,5]
[null,"Tanggal mulai pinjaman",null,null,{"$f":"TODAY()","v":"2022-01-14"}]
[]
[null,"Angsuran bulanan",null,null,{"$f":"IFERROR(IF(Nilai_Dimasukkan,Pembayaran_Bulanan,\"\"), \"\")","v":{"v":95.5058108589112,"d":"Rp95.51"}}]
[null,"Jumlah pembayaran",null,null,{"$f":"IFERROR(IF(Nilai_Dimasukkan,Tahun_Pinjaman*12,\"\"), \"\")","v":60}]
[null,"Total bunga",null,null,{"$f":"IFERROR(IF(Nilai_Dimasukkan,Total_Biaya-Jumlah_Pinjaman,\"\"), \"\")","v":{"v":730.3486515346722,"d":"Rp730.35"}}]
[null,"Total biaya pinjaman",null,null,{"$f":"IFERROR(IF(_xlfn.SINGLE(Nilai_Dimasukkan),_xlfn.SINGLE(Pembayaran_Bulanan)*_xlfn.SINGLE(Jumlah_Pembayaran),\"\"), \"\")","v":{"v":5730.348651534672,"d":"Rp5,730.35"}}]
[null,"No.","Tanggal\nPembayaran","Saldo\nSaldo","Pembayaran","Pinjaman Pokok","Bunga","Saldo\nAkhir"]
[null,{"$f":"IFERROR(IF(Pinjaman_Belum_Dibayar*Nilai_Dimasukkan,Jumlah_Pembayaran1,\"\"), \"\")","v":1},{"$f":"IFERROR(IF(Pinjaman_Belum_Dibayar*Nilai_Dimasukkan,Tanggal_Pembayaran,\"\"), \"\")","v":"2022-02-14"},{"$f":"IFERROR(IF(Pinjaman_Belum_Dibayar*Nilai_Dimasukkan,Saldo_Awal,\"\"), \"\")","v":{"v":5000,"d":"Rp5,000.00"}},{"$f":"IFERROR(IF(Pinjaman_Belum_Dibayar*Nilai_Dimasukkan,Pembayaran_Bulanan,\"\"), \"\")","v":{"v":95.5058108589112,"d":"Rp95.51"}},{"$f":"IFERROR(IF(Pinjaman_Belum_Dibayar*Nilai_Dimasukkan,Pinjaman_Pokok,\"\"), \"\")","v":{"v":72.58914419224453,"d":"Rp72.59"}},{"$f":"IFERROR(IF(Pinjaman_Belum_Dibayar*Nilai_Dimasukkan,Bunga,\"\"), \"\")","v":{"v":22.916666666666668,"d":"Rp22.92"}},{"$f":"IFERROR(IF(Pinjaman_Belum_Dibayar*Nilai_Dimasukkan,Saldo_Akhir,\"\"), \"\")","v":{"v":4927.410855807755,"d":"Rp4,927.41"}}]
[null,{"$f":"IFERROR(IF(Pinjaman_Belum_Dibayar*Nilai_Dimasukkan,Jumlah_Pembayaran1,\"\"), \"\")","v":2},{"$f":"IFERROR(IF(Pinjaman_Belum_Dibayar*Nilai_Dimasukkan,Tanggal_Pembayaran,\"\"), \"\")","v":"2022-03-14"},{"$f":"IFERROR(IF(Pinjaman_Belum_Dibayar*Nilai_Dimasukkan,Saldo_Awal,\"\"), \"\")","v":{"v":4927.410855807755,"d":"Rp4,927.41"}},{"$f":"IFERROR(IF(Pinjaman_Belum_Dibayar*Nilai_Dimasukkan,Pembayaran_Bulanan,\"\"), \"\")","v":{"v":95.5058108589112,"d":"Rp95.51"}},{"$f":"IFERROR(IF(Pinjaman_Belum_Dibayar*Nilai_Dimasukkan,Pinjaman_Pokok,\"\"), \"\")","v":{"v":72.921844436459,"d":"Rp72.92"}},{"$f":"IFERROR(IF(Pinjaman_Belum_Dibayar*Nilai_Dimasukkan,Bunga,\"\"), \"\")","v":{"v":11.484531975334306,"d":"Rp11.48"}},{"$f":"IFERROR(IF(Pinjaman_Belum_Dibayar*Nilai_Dimasukkan,Saldo_Akhir,\"\"), \"\")","v":{"v":4854.489011371295,"d":"Rp4,854.49"}}]
[null,{"$f":"IFERROR(IF(Pinjaman_Belum_Dibayar*Nilai_Dimasukkan,Jumlah_Pembayaran1,\"\"), \"\")","v":3},{"$f":"IFERROR(IF(Pinjaman_Belum_Dibayar*Nilai_Dimasukkan,Tanggal_Pembayaran,\"\"), \"\")","v":"2022-04-14"},{"$f":"IFERROR(IF(Pinjaman_Belum_Dibayar*Nilai_Dimasukkan,Saldo_Awal,\"\"), \"\")","v":{"v":4854.489011371295,"d":"Rp4,854.49"}},{"$f":"IFERROR(IF(Pinjaman_Belum_Dibayar*Nilai_Dimasukkan,Pembayaran_Bulanan,\"\"), \"\")","v":{"v":95.5058108589112,"d":"Rp95.51"}},{"$f":"IFERROR(IF(Pinjaman_Belum_Dibayar*Nilai_Dimasukkan,Pinjaman_Pokok,\"\"), \"\")","v":{"v":73.25606955679277,"d":"Rp73.26"}},{"$f":"IFERROR(IF(Pinjaman_Belum_Dibayar*Nilai_Dimasukkan,Bunga,\"\"), \"\")","v":{"v":7.673846973430969,"d":"Rp7.67"}},{"$f":"IFERROR(IF(Pinjaman_Belum_Dibayar*Nilai_Dimasukkan,Saldo_Akhir,\"\"), \"\")","v":{"v":4781.232941814503,"d":"Rp4,781.23"}}]
[null,{"$f":"IFERROR(IF(Pinjaman_Belum_Dibayar*Nilai_Dimasukkan,Jumlah_Pembayaran1,\"\"), \"\")","v":4},{"$f":"IFERROR(IF(Pinjaman_Belum_Dibayar*Nilai_Dimasukkan,Tanggal_Pembayaran,\"\"), \"\")","v":"2022-05-14"},{"$f":"IFERROR(IF(Pinjaman_Belum_Dibayar*Nilai_Dimasukkan,Saldo_Awal,\"\"), \"\")","v":{"v":4781.232941814503,"d":"Rp4,781.23"}},{"$f":"IFERROR(IF(Pinjaman_Belum_Dibayar*Nilai_Dimasukkan,Pembayaran_Bulanan,\"\"), \"\")","v":{"v":95.5058108589112,"d":"Rp95.51"}},{"$f":"IFERROR(IF(Pinjaman_Belum_Dibayar*Nilai_Dimasukkan,Pinjaman_Pokok,\"\"), \"\")","v":{"v":73.5918265422614,"d":"Rp73.59"}},{"$f":"IFERROR(IF(Pinjaman_Belum_Dibayar*Nilai_Dimasukkan,Bunga,\"\"), \"\")","v":{"v":5.768524393676605,"d":"Rp5.77"}},{"$f":"IFERROR(IF(Pinjaman_Belum_Dibayar*Nilai_Dimasukkan,Saldo_Akhir,\"\"), \"\")","v":{"v":4707.641115272242,"d":"Rp4,707.64"}}]
[null,{"$f":"IFERROR(IF(Pinjaman_Belum_Dibayar*Nilai_Dimasukkan,Jumlah_Pembayaran1,\"\"), \"\")","v":5},{"$f":"IFERROR(IF(Pinjaman_Belum_Dibayar*Nilai_Dimasukkan,Tanggal_Pembayaran,\"\"), \"\")","v":"2022-06-14"},{"$f":"IFERROR(IF(Pinjaman_Belum_Dibayar*Nilai_Dimasukkan,Saldo_Awal,\"\"), \"\")","v":{"v":4707.641115272242,"d":"Rp4,707.64"}},{"$f":"IFERROR(IF(Pinjaman_Belum_Dibayar*Nilai_Dimasukkan,Pembayaran_Bulanan,\"\"), \"\")","v":{"v":95.5058108589112,"d":"Rp95.51"}},{"$f":"IFERROR(IF(Pinjaman_Belum_Dibayar*Nilai_Dimasukkan,Pinjaman_Pokok,\"\"), \"\")","v":{"v":73.92912241391343,"d":"Rp73.93"}},{"$f":"IFERROR(IF(Pinjaman_Belum_Dibayar*Nilai_Dimasukkan,Bunga,\"\"), \"\")","v":{"v":4.625346782548552,"d":"Rp4.63"}},{"$f":"IFERROR(IF(Pinjaman_Belum_Dibayar*Nilai_Dimasukkan,Saldo_Akhir,\"\"), \"\")","v":{"v":4633.711992858327,"d":"Rp4,633.71"}}]
[null,{"$f":"IFERROR(IF(Pinjaman_Belum_Dibayar*Nilai_Dimasukkan,Jumlah_Pembayaran1,\"\"), \"\")","v":6},{"$f":"IFERROR(IF(Pinjaman_Belum_Dibayar*Nilai_Dimasukkan,Tanggal_Pembayaran,\"\"), \"\")","v":"2022-07-14"},{"$f":"IFERROR(IF(Pinjaman_Belum_Dibayar*Nilai_Dimasukkan,Saldo_Awal,\"\"), \"\")","v":{"v":4633.711992858327,"d":"Rp4,633.71"}},{"$f":"IFERROR(IF(Pinjaman_Belum_Dibayar*Nilai_Dimasukkan,Pembayaran_Bulanan,\"\"), \"\")","v":{"v":95.5058108589112,"d":"Rp95.51"}},{"$f":"IFERROR(IF(Pinjaman_Belum_Dibayar*Nilai_Dimasukkan,Pinjaman_Pokok,\"\"), \"\")","v":{"v":74.2679642249772,"d":"Rp74.27"}},{"$f":"IFERROR(IF(Pinjaman_Belum_Dibayar*Nilai_Dimasukkan,Bunga,\"\"), \"\")","v":{"v":3.8632416554837166,"d":"Rp3.86"}},{"$f":"IFERROR(IF(Pinjaman_Belum_Dibayar*Nilai_Dimasukkan,Saldo_Akhir,\"\"), \"\")","v":{"v":4559.444028633349,"d":"Rp4,559.44"}}]
[null,{"$f":"IFERROR(IF(Pinjaman_Belum_Dibayar*Nilai_Dimasukkan,Jumlah_Pembayaran1,\"\"), \"\")","v":7},{"$f":"IFERROR(IF(Pinjaman_Belum_Dibayar*Nilai_Dimasukkan,Tanggal_Pembayaran,\"\"), \"\")","v":"2022-08-14"},{"$f":"IFERROR(IF(Pinjaman_Belum_Dibayar*Nilai_Dimasukkan,Saldo_Awal,\"\"), \"\")","v":{"v":4559.444028633349,"d":"Rp4,559.44"}},{"$f":"IFERROR(IF(Pinjaman_Belum_Dibayar*Nilai_Dimasukkan,Pembayaran_Bulanan,\"\"), \"\")","v":{"v":95.5058108589112,"d":"Rp95.51"}},{"$f":"IFERROR(IF(Pinjaman_Belum_Dibayar*Nilai_Dimasukkan,Pinjaman_Pokok,\"\"), \"\")","v":{"v":74.60835906100834,"d":"Rp74.61"}},{"$f":"IFERROR(IF(Pinjaman_Belum_Dibayar*Nilai_Dimasukkan,Bunga,\"\"), \"\")","v":{"v":3.3188922333360344,"d":"Rp3.32"}},{"$f":"IFERROR(IF(Pinjaman_Belum_Dibayar*Nilai_Dimasukkan,Saldo_Akhir,\"\"), \"\")","v":{"v":4484.835669572343,"d":"Rp4,484.84"}}]
[null,{"$f":"IFERROR(IF(Pinjaman_Belum_Dibayar*Nilai_Dimasukkan,Jumlah_Pembayaran1,\"\"), \"\")","v":8},{"$f":"IFERROR(IF(Pinjaman_Belum_Dibayar*Nilai_Dimasukkan,Tanggal_Pembayaran,\"\"), \"\")","v":"2022-09-14"},{"$f":"IFERROR(IF(Pinjaman_Belum_Dibayar*Nilai_Dimasukkan,Saldo_Awal,\"\"), \"\")","v":{"v":4484.835669572343,"d":"Rp4,484.84"}},{"$f":"IFERROR(IF(Pinjaman_Belum_Dibayar*Nilai_Dimasukkan,Pembayaran_Bulanan,\"\"), \"\")","v":{"v":95.5058108589112,"d":"Rp95.51"}},{"$f":"IFERROR(IF(Pinjaman_Belum_Dibayar*Nilai_Dimasukkan,Pinjaman_Pokok,\"\"), \"\")","v":{"v":74.95031404003797,"d":"Rp74.95"}},{"$f":"IFERROR(IF(Pinjaman_Belum_Dibayar*Nilai_Dimasukkan,Bunga,\"\"), \"\")","v":{"v":2.9106401264908213,"d":"Rp2.91"}},{"$f":"IFERROR(IF(Pinjaman_Belum_Dibayar*Nilai_Dimasukkan,Saldo_Akhir,\"\"), \"\")","v":{"v":4409.885355532304,"d":"Rp4,409.89"}}]
[null,{"$f":"IFERROR(IF(Pinjaman_Belum_Dibayar*Nilai_Dimasukkan,Jumlah_Pembayaran1,\"\"), \"\")","v":9},{"$f":"IFERROR(IF(Pinjaman_Belum_Dibayar*Nilai_Dimasukkan,Tanggal_Pembayaran,\"\"), \"\")","v":"2022-10-14"},{"$f":"IFERROR(IF(Pinjaman_Belum_Dibayar*Nilai_Dimasukkan,Saldo_Awal,\"\"), \"\")","v":{"v":4409.885355532304,"d":"Rp4,409.89"}},{"$f":"IFERROR(IF(Pinjaman_Belum_Dibayar*Nilai_Dimasukkan,Pembayaran_Bulanan,\"\"), \"\")","v":{"v":95.5058108589112,"d":"Rp95.51"}},{"$f":"IFERROR(IF(Pinjaman_Belum_Dibayar*Nilai_Dimasukkan,Pinjaman_Pokok,\"\"), \"\")","v":{"v":75.29383631272148,"d":"Rp75.29"}},{"$f":"IFERROR(IF(Pinjaman_Belum_Dibayar*Nilai_Dimasukkan,Bunga,\"\"), \"\")","v":{"v":2.5931195629029076,"d":"Rp2.59"}},{"$f":"IFERROR(IF(Pinjaman_Belum_Dibayar*Nilai_Dimasukkan,Saldo_Akhir,\"\"), \"\")","v":{"v":4334.5915192195835,"d":"Rp4,334.59"}}]
[null,{"$f":"IFERROR(IF(Pinjaman_Belum_Dibayar*Nilai_Dimasukkan,Jumlah_Pembayaran1,\"\"), \"\")","v":10},{"$f":"IFERROR(IF(Pinjaman_Belum_Dibayar*Nilai_Dimasukkan,Tanggal_Pembayaran,\"\"), \"\")","v":"2022-11-14"},{"$f":"IFERROR(IF(Pinjaman_Belum_Dibayar*Nilai_Dimasukkan,Saldo_Awal,\"\"), \"\")","v":{"v":4334.5915192195835,"d":"Rp4,334.59"}},{"$f":"IFERROR(IF(Pinjaman_Belum_Dibayar*Nilai_Dimasukkan,Pembayaran_Bulanan,\"\"), \"\")","v":{"v":95.5058108589112,"d":"Rp95.51"}},{"$f":"IFERROR(IF(Pinjaman_Belum_Dibayar*Nilai_Dimasukkan,Pinjaman_Pokok,\"\"), \"\")","v":{"v":75.63893306248812,"d":"Rp75.64"}},{"$f":"IFERROR(IF(Pinjaman_Belum_Dibayar*Nilai_Dimasukkan,Bunga,\"\"), \"\")","v":{"v":2.3391110793118792,"d":"Rp2.34"}},{"$f":"IFERROR(IF(Pinjaman_Belum_Dibayar*Nilai_Dimasukkan,Saldo_Akhir,\"\"), \"\")","v":{"v":4258.952586157094,"d":"Rp4,258.95"}}]
[null,{"$f":"IFERROR(IF(Pinjaman_Belum_Dibayar*Nilai_Dimasukkan,Jumlah_Pembayaran1,\"\"), \"\")","v":11},{"$f":"IFERROR(IF(Pinjaman_Belum_Dibayar*Nilai_Dimasukkan,Tanggal_Pembayaran,\"\"), \"\")","v":"2022-12-14"},{"$f":"IFERROR(IF(Pinjaman_Belum_Dibayar*Nilai_Dimasukkan,Saldo_Awal,\"\"), \"\")","v":{"v":4258.952586157094,"d":"Rp4,258.95"}},{"$f":"IFERROR(IF(Pinjaman_Belum_Dibayar*Nilai_Dimasukkan,Pembayaran_Bulanan,\"\"), \"\")","v":{"v":95.5058108589112,"d":"Rp95.51"}},{"$f":"IFERROR(IF(Pinjaman_Belum_Dibayar*Nilai_Dimasukkan,Pinjaman_Pokok,\"\"), \"\")","v":{"v":75.9856115056912,"d":"Rp75.99"}},{"$f":"IFERROR(IF(Pinjaman_Belum_Dibayar*Nilai_Dimasukkan,Bunga,\"\"), \"\")","v":{"v":2.1312931990671946,"d":"Rp2.13"}},{"$f":"IFERROR(IF(Pinjaman_Belum_Dibayar*Nilai_Dimasukkan,Saldo_Akhir,\"\"), \"\")","v":{"v":4182.966974651403,"d":"Rp4,182.97"}}]
[null,{"$f":"IFERROR(IF(Pinjaman_Belum_Dibayar*Nilai_Dimasukkan,Jumlah_Pembayaran1,\"\"), \"\")","v":12},{"$f":"IFERROR(IF(Pinjaman_Belum_Dibayar*Nilai_Dimasukkan,Tanggal_Pembayaran,\"\"), \"\")","v":"2023-01-14"},{"$f":"IFERROR(IF(Pinjaman_Belum_Dibayar*Nilai_Dimasukkan,Saldo_Awal,\"\"), \"\")","v":{"v":4182.966974651403,"d":"Rp4,182.97"}},{"$f":"IFERROR(IF(Pinjaman_Belum_Dibayar*Nilai_Dimasukkan,Pembayaran_Bulanan,\"\"), \"\")","v":{"v":95.5058108589112,"d":"Rp95.51"}},{"$f":"IFERROR(IF(Pinjaman_Belum_Dibayar*Nilai_Dimasukkan,Pinjaman_Pokok,\"\"), \"\")","v":{"v":76.33387889175894,"d":"Rp76.33"}},{"$f":"IFERROR(IF(Pinjaman_Belum_Dibayar*Nilai_Dimasukkan,Bunga,\"\"), \"\")","v":{"v":1.9581182710407412,"d":"Rp1.96"}},{"$f":"IFERROR(IF(Pinjaman_Belum_Dibayar*Nilai_Dimasukkan,Saldo_Akhir,\"\"), \"\")","v":{"v":4106.633095759646,"d":"Rp4,106.63"}}]
[null,{"$f":"IFERROR(IF(Pinjaman_Belum_Dibayar*Nilai_Dimasukkan,Jumlah_Pembayaran1,\"\"), \"\")","v":13},{"$f":"IFERROR(IF(Pinjaman_Belum_Dibayar*Nilai_Dimasukkan,Tanggal_Pembayaran,\"\"), \"\")","v":"2023-02-14"},{"$f":"IFERROR(IF(Pinjaman_Belum_Dibayar*Nilai_Dimasukkan,Saldo_Awal,\"\"), \"\")","v":{"v":4106.633095759646,"d":"Rp4,106.63"}},{"$f":"IFERROR(IF(Pinjaman_Belum_Dibayar*Nilai_Dimasukkan,Pembayaran_Bulanan,\"\"), \"\")","v":{"v":95.5058108589112,"d":"Rp95.51"}},{"$f":"IFERROR(IF(Pinjaman_Belum_Dibayar*Nilai_Dimasukkan,Pinjaman_Pokok,\"\"), \"\")","v":{"v":76.68374250334618,"d":"Rp76.68"}},{"$f":"IFERROR(IF(Pinjaman_Belum_Dibayar*Nilai_Dimasukkan,Bunga,\"\"), \"\")","v":{"v":1.8115917675028295,"d":"Rp1.81"}},{"$f":"IFERROR(IF(Pinjaman_Belum_Dibayar*Nilai_Dimasukkan,Saldo_Akhir,\"\"), \"\")","v":{"v":4029.9493532562983,"d":"Rp4,029.95"}}]
[null,{"$f":"IFERROR(IF(Pinjaman_Belum_Dibayar*Nilai_Dimasukkan,Jumlah_Pembayaran1,\"\"), \"\")","v":14},{"$f":"IFERROR(IF(Pinjaman_Belum_Dibayar*Nilai_Dimasukkan,Tanggal_Pembayaran,\"\"), \"\")","v":"2023-03-14"},{"$f":"IFERROR(IF(Pinjaman_Belum_Dibayar*Nilai_Dimasukkan,Saldo_Awal,\"\"), \"\")","v":{"v":4029.9493532562983,"d":"Rp4,029.95"}},{"$f":"IFERROR(IF(Pinjaman_Belum_Dibayar*Nilai_Dimasukkan,Pembayaran_Bulanan,\"\"), \"\")","v":{"v":95.5058108589112,"d":"Rp95.51"}},{"$f":"IFERROR(IF(Pinjaman_Belum_Dibayar*Nilai_Dimasukkan,Pinjaman_Pokok,\"\"), \"\")","v":{"v":77.0352096564865,"d":"Rp77.04"}},{"$f":"IFERROR(IF(Pinjaman_Belum_Dibayar*Nilai_Dimasukkan,Bunga,\"\"), \"\")","v":{"v":1.6860033114799002,"d":"Rp1.69"}},{"$f":"IFERROR(IF(Pinjaman_Belum_Dibayar*Nilai_Dimasukkan,Saldo_Akhir,\"\"), \"\")","v":{"v":3952.914143599811,"d":"Rp3,952.91"}}]
[null,{"$f":"IFERROR(IF(Pinjaman_Belum_Dibayar*Nilai_Dimasukkan,Jumlah_Pembayaran1,\"\"), \"\")","v":15},{"$f":"IFERROR(IF(Pinjaman_Belum_Dibayar*Nilai_Dimasukkan,Tanggal_Pembayaran,\"\"), \"\")","v":"2023-04-14"},{"$f":"IFERROR(IF(Pinjaman_Belum_Dibayar*Nilai_Dimasukkan,Saldo_Awal,\"\"), \"\")","v":{"v":3952.914143599811,"d":"Rp3,952.91"}},{"$f":"IFERROR(IF(Pinjaman_Belum_Dibayar*Nilai_Dimasukkan,Pembayaran_Bulanan,\"\"), \"\")","v":{"v":95.5058108589112,"d":"Rp95.51"}},{"$f":"IFERROR(IF(Pinjaman_Belum_Dibayar*Nilai_Dimasukkan,Pinjaman_Pokok,\"\"), \"\")","v":{"v":77.3882877007454,"d":"Rp77.39"}},{"$f":"IFERROR(IF(Pinjaman_Belum_Dibayar*Nilai_Dimasukkan,Bunga,\"\"), \"\")","v":{"v":1.5771652931691553,"d":"Rp1.58"}},{"$f":"IFERROR(IF(Pinjaman_Belum_Dibayar*Nilai_Dimasukkan,Saldo_Akhir,\"\"), \"\")","v":{"v":3875.5258558990663,"d":"Rp3,875.53"}}]
[null,{"$f":"IFERROR(IF(Pinjaman_Belum_Dibayar*Nilai_Dimasukkan,Jumlah_Pembayaran1,\"\"), \"\")","v":16},{"$f":"IFERROR(IF(Pinjaman_Belum_Dibayar*Nilai_Dimasukkan,Tanggal_Pembayaran,\"\"), \"\")","v":"2023-05-14"},{"$f":"IFERROR(IF(Pinjaman_Belum_Dibayar*Nilai_Dimasukkan,Saldo_Awal,\"\"), \"\")","v":{"v":3875.5258558990663,"d":"Rp3,875.53"}},{"$f":"IFERROR(IF(Pinjaman_Belum_Dibayar*Nilai_Dimasukkan,Pembayaran_Bulanan,\"\"), \"\")","v":{"v":95.5058108589112,"d":"Rp95.51"}},{"$f":"IFERROR(IF(Pinjaman_Belum_Dibayar*Nilai_Dimasukkan,Pinjaman_Pokok,\"\"), \"\")","v":{"v":77.74298401937381,"d":"Rp77.74"}},{"$f":"IFERROR(IF(Pinjaman_Belum_Dibayar*Nilai_Dimasukkan,Bunga,\"\"), \"\")","v":{"v":1.4819370051976974,"d":"Rp1.48"}},{"$f":"IFERROR(IF(Pinjaman_Belum_Dibayar*Nilai_Dimasukkan,Saldo_Akhir,\"\"), \"\")","v":{"v":3797.782871879692,"d":"Rp3,797.78"}}]
[null,{"$f":"IFERROR(IF(Pinjaman_Belum_Dibayar*Nilai_Dimasukkan,Jumlah_Pembayaran1,\"\"), \"\")","v":17},{"$f":"IFERROR(IF(Pinjaman_Belum_Dibayar*Nilai_Dimasukkan,Tanggal_Pembayaran,\"\"), \"\")","v":"2023-06-14"},{"$f":"IFERROR(IF(Pinjaman_Belum_Dibayar*Nilai_Dimasukkan,Saldo_Awal,\"\"), \"\")","v":{"v":3797.782871879692,"d":"Rp3,797.78"}},{"$f":"IFERROR(IF(Pinjaman_Belum_Dibayar*Nilai_Dimasukkan,Pembayaran_Bulanan,\"\"), \"\")","v":{"v":95.5058108589112,"d":"Rp95.51"}},{"$f":"IFERROR(IF(Pinjaman_Belum_Dibayar*Nilai_Dimasukkan,Pinjaman_Pokok,\"\"), \"\")","v":{"v":78.09930602946262,"d":"Rp78.10"}},{"$f":"IFERROR(IF(Pinjaman_Belum_Dibayar*Nilai_Dimasukkan,Bunga,\"\"), \"\")","v":{"v":1.397916730143152,"d":"Rp1.40"}},{"$f":"IFERROR(IF(Pinjaman_Belum_Dibayar*Nilai_Dimasukkan,Saldo_Akhir,\"\"), \"\")","v":{"v":3719.683565850227,"d":"Rp3,719.68"}}]
[null,{"$f":"IFERROR(IF(Pinjaman_Belum_Dibayar*Nilai_Dimasukkan,Jumlah_Pembayaran1,\"\"), \"\")","v":18},{"$f":"IFERROR(IF(Pinjaman_Belum_Dibayar*Nilai_Dimasukkan,Tanggal_Pembayaran,\"\"), \"\")","v":"2023-07-14"},{"$f":"IFERROR(IF(Pinjaman_Belum_Dibayar*Nilai_Dimasukkan,Saldo_Awal,\"\"), \"\")","v":{"v":3719.683565850227,"d":"Rp3,719.68"}},{"$f":"IFERROR(IF(Pinjaman_Belum_Dibayar*Nilai_Dimasukkan,Pembayaran_Bulanan,\"\"), \"\")","v":{"v":95.5058108589112,"d":"Rp95.51"}},{"$f":"IFERROR(IF(Pinjaman_Belum_Dibayar*Nilai_Dimasukkan,Pinjaman_Pokok,\"\"), \"\")","v":{"v":78.45726118209765,"d":"Rp78.46"}},{"$f":"IFERROR(IF(Pinjaman_Belum_Dibayar*Nilai_Dimasukkan,Bunga,\"\"), \"\")","v":{"v":1.323236465547414,"d":"Rp1.32"}},{"$f":"IFERROR(IF(Pinjaman_Belum_Dibayar*Nilai_Dimasukkan,Saldo_Akhir,\"\"), \"\")","v":{"v":3641.2263046681296,"d":"Rp3,641.23"}}]
[null,{"$f":"IFERROR(IF(Pinjaman_Belum_Dibayar*Nilai_Dimasukkan,Jumlah_Pembayaran1,\"\"), \"\")","v":19},{"$f":"IFERROR(IF(Pinjaman_Belum_Dibayar*Nilai_Dimasukkan,Tanggal_Pembayaran,\"\"), \"\")","v":"2023-08-14"},{"$f":"IFERROR(IF(Pinjaman_Belum_Dibayar*Nilai_Dimasukkan,Saldo_Awal,\"\"), \"\")","v":{"v":3641.2263046681296,"d":"Rp3,641.23"}},{"$f":"IFERROR(IF(Pinjaman_Belum_Dibayar*Nilai_Dimasukkan,Pembayaran_Bulanan,\"\"), \"\")","v":{"v":95.5058108589112,"d":"Rp95.51"}},{"$f":"IFERROR(IF(Pinjaman_Belum_Dibayar*Nilai_Dimasukkan,Pinjaman_Pokok,\"\"), \"\")","v":{"v":78.8168569625156,"d":"Rp78.82"}},{"$f":"IFERROR(IF(Pinjaman_Belum_Dibayar*Nilai_Dimasukkan,Bunga,\"\"), \"\")","v":{"v":1.2564214726102678,"d":"Rp1.26"}},{"$f":"IFERROR(IF(Pinjaman_Belum_Dibayar*Nilai_Dimasukkan,Saldo_Akhir,\"\"), \"\")","v":{"v":3562.409447705617,"d":"Rp3,562.41"}}]
[null,{"$f":"IFERROR(IF(Pinjaman_Belum_Dibayar*Nilai_Dimasukkan,Jumlah_Pembayaran1,\"\"), \"\")","v":20},{"$f":"IFERROR(IF(Pinjaman_Belum_Dibayar*Nilai_Dimasukkan,Tanggal_Pembayaran,\"\"), \"\")","v":"2023-09-14"},{"$f":"IFERROR(IF(Pinjaman_Belum_Dibayar*Nilai_Dimasukkan,Saldo_Awal,\"\"), \"\")","v":{"v":3562.409447705617,"d":"Rp3,562.41"}},{"$f":"IFERROR(IF(Pinjaman_Belum_Dibayar*Nilai_Dimasukkan,Pembayaran_Bulanan,\"\"), \"\")","v":{"v":95.5058108589112,"d":"Rp95.51"}},{"$f":"IFERROR(IF(Pinjaman_Belum_Dibayar*Nilai_Dimasukkan,Pinjaman_Pokok,\"\"), \"\")","v":{"v":79.17810089026047,"d":"Rp79.18"}},{"$f":"IFERROR(IF(Pinjaman_Belum_Dibayar*Nilai_Dimasukkan,Bunga,\"\"), \"\")","v":{"v":1.1962919602749171,"d":"Rp1.20"}},{"$f":"IFERROR(IF(Pinjaman_Belum_Dibayar*Nilai_Dimasukkan,Saldo_Akhir,\"\"), \"\")","v":{"v":3483.231346815355,"d":"Rp3,483.23"}}]
[null,{"$f":"IFERROR(IF(Pinjaman_Belum_Dibayar*Nilai_Dimasukkan,Jumlah_Pembayaran1,\"\"), \"\")","v":21},{"$f":"IFERROR(IF(Pinjaman_Belum_Dibayar*Nilai_Dimasukkan,Tanggal_Pembayaran,\"\"), \"\")","v":"2023-10-14"},{"$f":"IFERROR(IF(Pinjaman_Belum_Dibayar*Nilai_Dimasukkan,Saldo_Awal,\"\"), \"\")","v":{"v":3483.231346815355,"d":"Rp3,483.23"}},{"$f":"IFERROR(IF(Pinjaman_Belum_Dibayar*Nilai_Dimasukkan,Pembayaran_Bulanan,\"\"), \"\")","v":{"v":95.5058108589112,"d":"Rp95.51"}},{"$f":"IFERROR(IF(Pinjaman_Belum_Dibayar*Nilai_Dimasukkan,Pinjaman_Pokok,\"\"), \"\")","v":{"v":79.54100051934081,"d":"Rp79.54"}},{"$f":"IFERROR(IF(Pinjaman_Belum_Dibayar*Nilai_Dimasukkan,Bunga,\"\"), \"\")","v":{"v":1.141892859574796,"d":"Rp1.14"}},{"$f":"IFERROR(IF(Pinjaman_Belum_Dibayar*Nilai_Dimasukkan,Saldo_Akhir,\"\"), \"\")","v":{"v":3403.6903462960136,"d":"Rp3,403.69"}}]
[null,{"$f":"IFERROR(IF(Pinjaman_Belum_Dibayar*Nilai_Dimasukkan,Jumlah_Pembayaran1,\"\"), \"\")","v":22},{"$f":"IFERROR(IF(Pinjaman_Belum_Dibayar*Nilai_Dimasukkan,Tanggal_Pembayaran,\"\"), \"\")","v":"2023-11-14"},{"$f":"IFERROR(IF(Pinjaman_Belum_Dibayar*Nilai_Dimasukkan,Saldo_Awal,\"\"), \"\")","v":{"v":3403.6903462960136,"d":"Rp3,403.69"}},{"$f":"IFERROR(IF(Pinjaman_Belum_Dibayar*Nilai_Dimasukkan,Pembayaran_Bulanan,\"\"), \"\")","v":{"v":95.5058108589112,"d":"Rp95.51"}},{"$f":"IFERROR(IF(Pinjaman_Belum_Dibayar*Nilai_Dimasukkan,Pinjaman_Pokok,\"\"), \"\")","v":{"v":79.90556343838782,"d":"Rp79.91"}},{"$f":"IFERROR(IF(Pinjaman_Belum_Dibayar*Nilai_Dimasukkan,Bunga,\"\"), \"\")","v":{"v":1.0924427504312462,"d":"Rp1.09"}},{"$f":"IFERROR(IF(Pinjaman_Belum_Dibayar*Nilai_Dimasukkan,Saldo_Akhir,\"\"), \"\")","v":{"v":3323.7847828576223,"d":"Rp3,323.78"}}]
[null,{"$f":"IFERROR(IF(Pinjaman_Belum_Dibayar*Nilai_Dimasukkan,Jumlah_Pembayaran1,\"\"), \"\")","v":23},{"$f":"IFERROR(IF(Pinjaman_Belum_Dibayar*Nilai_Dimasukkan,Tanggal_Pembayaran,\"\"), \"\")","v":"2023-12-14"},{"$f":"IFERROR(IF(Pinjaman_Belum_Dibayar*Nilai_Dimasukkan,Saldo_Awal,\"\"), \"\")","v":{"v":3323.7847828576223,"d":"Rp3,323.78"}},{"$f":"IFERROR(IF(Pinjaman_Belum_Dibayar*Nilai_Dimasukkan,Pembayaran_Bulanan,\"\"), \"\")","v":{"v":95.5058108589112,"d":"Rp95.51"}},{"$f":"IFERROR(IF(Pinjaman_Belum_Dibayar*Nilai_Dimasukkan,Pinjaman_Pokok,\"\"), \"\")","v":{"v":80.27179727081375,"d":"Rp80.27"}},{"$f":"IFERROR(IF(Pinjaman_Belum_Dibayar*Nilai_Dimasukkan,Bunga,\"\"), \"\")","v":{"v":1.0472961118952824,"d":"Rp1.05"}},{"$f":"IFERROR(IF(Pinjaman_Belum_Dibayar*Nilai_Dimasukkan,Saldo_Akhir,\"\"), \"\")","v":{"v":3243.5129855868117,"d":"Rp3,243.51"}}]
[null,{"$f":"IFERROR(IF(Pinjaman_Belum_Dibayar*Nilai_Dimasukkan,Jumlah_Pembayaran1,\"\"), \"\")","v":24},{"$f":"IFERROR(IF(Pinjaman_Belum_Dibayar*Nilai_Dimasukkan,Tanggal_Pembayaran,\"\"), \"\")","v":"2024-01-14"},{"$f":"IFERROR(IF(Pinjaman_Belum_Dibayar*Nilai_Dimasukkan,Saldo_Awal,\"\"), \"\")","v":{"v":3243.5129855868117,"d":"Rp3,243.51"}},{"$f":"IFERROR(IF(Pinjaman_Belum_Dibayar*Nilai_Dimasukkan,Pembayaran_Bulanan,\"\"), \"\")","v":{"v":95.5058108589112,"d":"Rp95.51"}},{"$f":"IFERROR(IF(Pinjaman_Belum_Dibayar*Nilai_Dimasukkan,Pinjaman_Pokok,\"\"), \"\")","v":{"v":80.63970967497164,"d":"Rp80.64"}},{"$f":"IFERROR(IF(Pinjaman_Belum_Dibayar*Nilai_Dimasukkan,Bunga,\"\"), \"\")","v":{"v":1.005915009828915,"d":"Rp1.01"}},{"$f":"IFERROR(IF(Pinjaman_Belum_Dibayar*Nilai_Dimasukkan,Saldo_Akhir,\"\"), \"\")","v":{"v":3162.87327591184,"d":"Rp3,162.87"}}]
[null,{"$f":"IFERROR(IF(Pinjaman_Belum_Dibayar*Nilai_Dimasukkan,Jumlah_Pembayaran1,\"\"), \"\")","v":25},{"$f":"IFERROR(IF(Pinjaman_Belum_Dibayar*Nilai_Dimasukkan,Tanggal_Pembayaran,\"\"), \"\")","v":"2024-02-14"},{"$f":"IFERROR(IF(Pinjaman_Belum_Dibayar*Nilai_Dimasukkan,Saldo_Awal,\"\"), \"\")","v":{"v":3162.87327591184,"d":"Rp3,162.87"}},{"$f":"IFERROR(IF(Pinjaman_Belum_Dibayar*Nilai_Dimasukkan,Pembayaran_Bulanan,\"\"), \"\")","v":{"v":95.5058108589112,"d":"Rp95.51"}},{"$f":"IFERROR(IF(Pinjaman_Belum_Dibayar*Nilai_Dimasukkan,Pinjaman_Pokok,\"\"), \"\")","v":{"v":81.00930834431526,"d":"Rp81.01"}},{"$f":"IFERROR(IF(Pinjaman_Belum_Dibayar*Nilai_Dimasukkan,Bunga,\"\"), \"\")","v":{"v":0.9678475795429533,"d":"Rp0.97"}},{"$f":"IFERROR(IF(Pinjaman_Belum_Dibayar*Nilai_Dimasukkan,Saldo_Akhir,\"\"), \"\")","v":{"v":3081.8639675675254,"d":"Rp3,081.86"}}]
[null,{"$f":"IFERROR(IF(Pinjaman_Belum_Dibayar*Nilai_Dimasukkan,Jumlah_Pembayaran1,\"\"), \"\")","v":26},{"$f":"IFERROR(IF(Pinjaman_Belum_Dibayar*Nilai_Dimasukkan,Tanggal_Pembayaran,\"\"), \"\")","v":"2024-03-14"},{"$f":"IFERROR(IF(Pinjaman_Belum_Dibayar*Nilai_Dimasukkan,Saldo_Awal,\"\"), \"\")","v":{"v":3081.8639675675254,"d":"Rp3,081.86"}},{"$f":"IFERROR(IF(Pinjaman_Belum_Dibayar*Nilai_Dimasukkan,Pembayaran_Bulanan,\"\"), \"\")","v":{"v":95.5058108589112,"d":"Rp95.51"}},{"$f":"IFERROR(IF(Pinjaman_Belum_Dibayar*Nilai_Dimasukkan,Pinjaman_Pokok,\"\"), \"\")","v":{"v":81.38060100756003,"d":"Rp81.38"}},{"$f":"IFERROR(IF(Pinjaman_Belum_Dibayar*Nilai_Dimasukkan,Bunga,\"\"), \"\")","v":{"v":0.9327114739799356,"d":"Rp0.93"}},{"$f":"IFERROR(IF(Pinjaman_Belum_Dibayar*Nilai_Dimasukkan,Saldo_Akhir,\"\"), \"\")","v":{"v":3000.483366559965,"d":"Rp3,000.48"}}]
[null,{"$f":"IFERROR(IF(Pinjaman_Belum_Dibayar*Nilai_Dimasukkan,Jumlah_Pembayaran1,\"\"), \"\")","v":27},{"$f":"IFERROR(IF(Pinjaman_Belum_Dibayar*Nilai_Dimasukkan,Tanggal_Pembayaran,\"\"), \"\")","v":"2024-04-14"},{"$f":"IFERROR(IF(Pinjaman_Belum_Dibayar*Nilai_Dimasukkan,Saldo_Awal,\"\"), \"\")","v":{"v":3000.483366559965,"d":"Rp3,000.48"}},{"$f":"IFERROR(IF(Pinjaman_Belum_Dibayar*Nilai_Dimasukkan,Pembayaran_Bulanan,\"\"), \"\")","v":{"v":95.5058108589112,"d":"Rp95.51"}},{"$f":"IFERROR(IF(Pinjaman_Belum_Dibayar*Nilai_Dimasukkan,Pinjaman_Pokok,\"\"), \"\")","v":{"v":81.75359542884469,"d":"Rp81.75"}},{"$f":"IFERROR(IF(Pinjaman_Belum_Dibayar*Nilai_Dimasukkan,Bunga,\"\"), \"\")","v":{"v":0.9001809900786278,"d":"Rp0.90"}},{"$f":"IFERROR(IF(Pinjaman_Belum_Dibayar*Nilai_Dimasukkan,Saldo_Akhir,\"\"), \"\")","v":{"v":2918.729771131121,"d":"Rp2,918.73"}}]
[null,{"$f":"IFERROR(IF(Pinjaman_Belum_Dibayar*Nilai_Dimasukkan,Jumlah_Pembayaran1,\"\"), \"\")","v":28},{"$f":"IFERROR(IF(Pinjaman_Belum_Dibayar*Nilai_Dimasukkan,Tanggal_Pembayaran,\"\"), \"\")","v":"2024-05-14"},{"$f":"IFERROR(IF(Pinjaman_Belum_Dibayar*Nilai_Dimasukkan,Saldo_Awal,\"\"), \"\")","v":{"v":2918.729771131121,"d":"Rp2,918.73"}},{"$f":"IFERROR(IF(Pinjaman_Belum_Dibayar*Nilai_Dimasukkan,Pembayaran_Bulanan,\"\"), \"\")","v":{"v":95.5058108589112,"d":"Rp95.51"}},{"$f":"IFERROR(IF(Pinjaman_Belum_Dibayar*Nilai_Dimasukkan,Pinjaman_Pokok,\"\"), \"\")","v":{"v":82.12829940789356,"d":"Rp82.13"}},{"$f":"IFERROR(IF(Pinjaman_Belum_Dibayar*Nilai_Dimasukkan,Bunga,\"\"), \"\")","v":{"v":0.8699769537747003,"d":"Rp0.87"}},{"$f":"IFERROR(IF(Pinjaman_Belum_Dibayar*Nilai_Dimasukkan,Saldo_Akhir,\"\"), \"\")","v":{"v":2836.601471723228,"d":"Rp2,836.60"}}]
[null,{"$f":"IFERROR(IF(Pinjaman_Belum_Dibayar*Nilai_Dimasukkan,Jumlah_Pembayaran1,\"\"), \"\")","v":29},{"$f":"IFERROR(IF(Pinjaman_Belum_Dibayar*Nilai_Dimasukkan,Tanggal_Pembayaran,\"\"), \"\")","v":"2024-06-14"},{"$f":"IFERROR(IF(Pinjaman_Belum_Dibayar*Nilai_Dimasukkan,Saldo_Awal,\"\"), \"\")","v":{"v":2836.601471723228,"d":"Rp2,836.60"}},{"$f":"IFERROR(IF(Pinjaman_Belum_Dibayar*Nilai_Dimasukkan,Pembayaran_Bulanan,\"\"), \"\")","v":{"v":95.5058108589112,"d":"Rp95.51"}},{"$f":"IFERROR(IF(Pinjaman_Belum_Dibayar*Nilai_Dimasukkan,Pinjaman_Pokok,\"\"), \"\")","v":{"v":82.50472078017975,"d":"Rp82.50"}},{"$f":"IFERROR(IF(Pinjaman_Belum_Dibayar*Nilai_Dimasukkan,Bunga,\"\"), \"\")","v":{"v":0.8418586977598883,"d":"Rp0.84"}},{"$f":"IFERROR(IF(Pinjaman_Belum_Dibayar*Nilai_Dimasukkan,Saldo_Akhir,\"\"), \"\")","v":{"v":2754.0967509430457,"d":"Rp2,754.10"}}]
[null,{"$f":"IFERROR(IF(Pinjaman_Belum_Dibayar*Nilai_Dimasukkan,Jumlah_Pembayaran1,\"\"), \"\")","v":30},{"$f":"IFERROR(IF(Pinjaman_Belum_Dibayar*Nilai_Dimasukkan,Tanggal_Pembayaran,\"\"), \"\")","v":"2024-07-14"},{"$f":"IFERROR(IF(Pinjaman_Belum_Dibayar*Nilai_Dimasukkan,Saldo_Awal,\"\"), \"\")","v":{"v":2754.0967509430457,"d":"Rp2,754.10"}},{"$f":"IFERROR(IF(Pinjaman_Belum_Dibayar*Nilai_Dimasukkan,Pembayaran_Bulanan,\"\"), \"\")","v":{"v":95.5058108589112,"d":"Rp95.51"}},{"$f":"IFERROR(IF(Pinjaman_Belum_Dibayar*Nilai_Dimasukkan,Pinjaman_Pokok,\"\"), \"\")","v":{"v":82.8828674170889,"d":"Rp82.88"}},{"$f":"IFERROR(IF(Pinjaman_Belum_Dibayar*Nilai_Dimasukkan,Bunga,\"\"), \"\")","v":{"v":0.8156176436893182,"d":"Rp0.82"}},{"$f":"IFERROR(IF(Pinjaman_Belum_Dibayar*Nilai_Dimasukkan,Saldo_Akhir,\"\"), \"\")","v":{"v":2671.213883525958,"d":"Rp2,671.21"}}]
[null,{"$f":"IFERROR(IF(Pinjaman_Belum_Dibayar*Nilai_Dimasukkan,Jumlah_Pembayaran1,\"\"), \"\")","v":31},{"$f":"IFERROR(IF(Pinjaman_Belum_Dibayar*Nilai_Dimasukkan,Tanggal_Pembayaran,\"\"), \"\")","v":"2024-08-14"},{"$f":"IFERROR(IF(Pinjaman_Belum_Dibayar*Nilai_Dimasukkan,Saldo_Awal,\"\"), \"\")","v":{"v":2671.213883525958,"d":"Rp2,671.21"}},{"$f":"IFERROR(IF(Pinjaman_Belum_Dibayar*Nilai_Dimasukkan,Pembayaran_Bulanan,\"\"), \"\")","v":{"v":95.5058108589112,"d":"Rp95.51"}},{"$f":"IFERROR(IF(Pinjaman_Belum_Dibayar*Nilai_Dimasukkan,Pinjaman_Pokok,\"\"), \"\")","v":{"v":83.26274722608389,"d":"Rp83.26"}},{"$f":"IFERROR(IF(Pinjaman_Belum_Dibayar*Nilai_Dimasukkan,Bunga,\"\"), \"\")","v":{"v":0.7910721265422562,"d":"Rp0.79"}},{"$f":"IFERROR(IF(Pinjaman_Belum_Dibayar*Nilai_Dimasukkan,Saldo_Akhir,\"\"), \"\")","v":{"v":2587.951136299874,"d":"Rp2,587.95"}}]
[null,{"$f":"IFERROR(IF(Pinjaman_Belum_Dibayar*Nilai_Dimasukkan,Jumlah_Pembayaran1,\"\"), \"\")","v":32},{"$f":"IFERROR(IF(Pinjaman_Belum_Dibayar*Nilai_Dimasukkan,Tanggal_Pembayaran,\"\"), \"\")","v":"2024-09-14"},{"$f":"IFERROR(IF(Pinjaman_Belum_Dibayar*Nilai_Dimasukkan,Saldo_Awal,\"\"), \"\")","v":{"v":2587.951136299874,"d":"Rp2,587.95"}},{"$f":"IFERROR(IF(Pinjaman_Belum_Dibayar*Nilai_Dimasukkan,Pembayaran_Bulanan,\"\"), \"\")","v":{"v":95.5058108589112,"d":"Rp95.51"}},{"$f":"IFERROR(IF(Pinjaman_Belum_Dibayar*Nilai_Dimasukkan,Pinjaman_Pokok,\"\"), \"\")","v":{"v":83.64436815087011,"d":"Rp83.64"}},{"$f":"IFERROR(IF(Pinjaman_Belum_Dibayar*Nilai_Dimasukkan,Bunga,\"\"), \"\")","v":{"v":0.7680631894152155,"d":"Rp0.77"}},{"$f":"IFERROR(IF(Pinjaman_Belum_Dibayar*Nilai_Dimasukkan,Saldo_Akhir,\"\"), \"\")","v":{"v":2504.3067681490024,"d":"Rp2,504.31"}}]
[null,{"$f":"IFERROR(IF(Pinjaman_Belum_Dibayar*Nilai_Dimasukkan,Jumlah_Pembayaran1,\"\"), \"\")","v":33},{"$f":"IFERROR(IF(Pinjaman_Belum_Dibayar*Nilai_Dimasukkan,Tanggal_Pembayaran,\"\"), \"\")","v":"2024-10-14"},{"$f":"IFERROR(IF(Pinjaman_Belum_Dibayar*Nilai_Dimasukkan,Saldo_Awal,\"\"), \"\")","v":{"v":2504.3067681490024,"d":"Rp2,504.31"}},{"$f":"IFERROR(IF(Pinjaman_Belum_Dibayar*Nilai_Dimasukkan,Pembayaran_Bulanan,\"\"), \"\")","v":{"v":95.5058108589112,"d":"Rp95.51"}},{"$f":"IFERROR(IF(Pinjaman_Belum_Dibayar*Nilai_Dimasukkan,Pinjaman_Pokok,\"\"), \"\")","v":{"v":84.0277381715616,"d":"Rp84.03"}},{"$f":"IFERROR(IF(Pinjaman_Belum_Dibayar*Nilai_Dimasukkan,Bunga,\"\"), \"\")","v":{"v":0.7464511428981346,"d":"Rp0.75"}},{"$f":"IFERROR(IF(Pinjaman_Belum_Dibayar*Nilai_Dimasukkan,Saldo_Akhir,\"\"), \"\")","v":{"v":2420.279029977438,"d":"Rp2,420.28"}}]
[null,{"$f":"IFERROR(IF(Pinjaman_Belum_Dibayar*Nilai_Dimasukkan,Jumlah_Pembayaran1,\"\"), \"\")","v":34},{"$f":"IFERROR(IF(Pinjaman_Belum_Dibayar*Nilai_Dimasukkan,Tanggal_Pembayaran,\"\"), \"\")","v":"2024-11-14"},{"$f":"IFERROR(IF(Pinjaman_Belum_Dibayar*Nilai_Dimasukkan,Saldo_Awal,\"\"), \"\")","v":{"v":2420.279029977438,"d":"Rp2,420.28"}},{"$f":"IFERROR(IF(Pinjaman_Belum_Dibayar*Nilai_Dimasukkan,Pembayaran_Bulanan,\"\"), \"\")","v":{"v":95.5058108589112,"d":"Rp95.51"}},{"$f":"IFERROR(IF(Pinjaman_Belum_Dibayar*Nilai_Dimasukkan,Pinjaman_Pokok,\"\"), \"\")","v":{"v":84.41286530484791,"d":"Rp84.41"}},{"$f":"IFERROR(IF(Pinjaman_Belum_Dibayar*Nilai_Dimasukkan,Bunga,\"\"), \"\")","v":{"v":0.7261127316194687,"d":"Rp0.73"}},{"$f":"IFERROR(IF(Pinjaman_Belum_Dibayar*Nilai_Dimasukkan,Saldo_Akhir,\"\"), \"\")","v":{"v":2335.8661646725905,"d":"Rp2,335.87"}}]
[null,{"$f":"IFERROR(IF(Pinjaman_Belum_Dibayar*Nilai_Dimasukkan,Jumlah_Pembayaran1,\"\"), \"\")","v":35},{"$f":"IFERROR(IF(Pinjaman_Belum_Dibayar*Nilai_Dimasukkan,Tanggal_Pembayaran,\"\"), \"\")","v":"2024-12-14"},{"$f":"IFERROR(IF(Pinjaman_Belum_Dibayar*Nilai_Dimasukkan,Saldo_Awal,\"\"), \"\")","v":{"v":2335.8661646725905,"d":"Rp2,335.87"}},{"$f":"IFERROR(IF(Pinjaman_Belum_Dibayar*Nilai_Dimasukkan,Pembayaran_Bulanan,\"\"), \"\")","v":{"v":95.5058108589112,"d":"Rp95.51"}},{"$f":"IFERROR(IF(Pinjaman_Belum_Dibayar*Nilai_Dimasukkan,Pinjaman_Pokok,\"\"), \"\")","v":{"v":84.79975760416181,"d":"Rp84.80"}},{"$f":"IFERROR(IF(Pinjaman_Belum_Dibayar*Nilai_Dimasukkan,Bunga,\"\"), \"\")","v":{"v":0.7069387865264042,"d":"Rp0.71"}},{"$f":"IFERROR(IF(Pinjaman_Belum_Dibayar*Nilai_Dimasukkan,Saldo_Akhir,\"\"), \"\")","v":{"v":2251.0664070684293,"d":"Rp2,251.07"}}]
[null,{"$f":"IFERROR(IF(Pinjaman_Belum_Dibayar*Nilai_Dimasukkan,Jumlah_Pembayaran1,\"\"), \"\")","v":36},{"$f":"IFERROR(IF(Pinjaman_Belum_Dibayar*Nilai_Dimasukkan,Tanggal_Pembayaran,\"\"), \"\")","v":"2025-01-14"},{"$f":"IFERROR(IF(Pinjaman_Belum_Dibayar*Nilai_Dimasukkan,Saldo_Awal,\"\"), \"\")","v":{"v":2251.0664070684293,"d":"Rp2,251.07"}},{"$f":"IFERROR(IF(Pinjaman_Belum_Dibayar*Nilai_Dimasukkan,Pembayaran_Bulanan,\"\"), \"\")","v":{"v":95.5058108589112,"d":"Rp95.51"}},{"$f":"IFERROR(IF(Pinjaman_Belum_Dibayar*Nilai_Dimasukkan,Pinjaman_Pokok,\"\"), \"\")","v":{"v":85.18842315984755,"d":"Rp85.19"}},{"$f":"IFERROR(IF(Pinjaman_Belum_Dibayar*Nilai_Dimasukkan,Bunga,\"\"), \"\")","v":{"v":0.6888322684517071,"d":"Rp0.69"}},{"$f":"IFERROR(IF(Pinjaman_Belum_Dibayar*Nilai_Dimasukkan,Saldo_Akhir,\"\"), \"\")","v":{"v":2165.877983908582,"d":"Rp2,165.88"}}]
[null,{"$f":"IFERROR(IF(Pinjaman_Belum_Dibayar*Nilai_Dimasukkan,Jumlah_Pembayaran1,\"\"), \"\")","v":37},{"$f":"IFERROR(IF(Pinjaman_Belum_Dibayar*Nilai_Dimasukkan,Tanggal_Pembayaran,\"\"), \"\")","v":"2025-02-14"},{"$f":"IFERROR(IF(Pinjaman_Belum_Dibayar*Nilai_Dimasukkan,Saldo_Awal,\"\"), \"\")","v":{"v":2165.877983908582,"d":"Rp2,165.88"}},{"$f":"IFERROR(IF(Pinjaman_Belum_Dibayar*Nilai_Dimasukkan,Pembayaran_Bulanan,\"\"), \"\")","v":{"v":95.5058108589112,"d":"Rp95.51"}},{"$f":"IFERROR(IF(Pinjaman_Belum_Dibayar*Nilai_Dimasukkan,Pinjaman_Pokok,\"\"), \"\")","v":{"v":85.57887009933019,"d":"Rp85.58"}},{"$f":"IFERROR(IF(Pinjaman_Belum_Dibayar*Nilai_Dimasukkan,Bunga,\"\"), \"\")","v":{"v":0.671706628940001,"d":"Rp0.67"}},{"$f":"IFERROR(IF(Pinjaman_Belum_Dibayar*Nilai_Dimasukkan,Saldo_Akhir,\"\"), \"\")","v":{"v":2080.2991138092493,"d":"Rp2,080.30"}}]
[null,{"$f":"IFERROR(IF(Pinjaman_Belum_Dibayar*Nilai_Dimasukkan,Jumlah_Pembayaran1,\"\"), \"\")","v":38},{"$f":"IFERROR(IF(Pinjaman_Belum_Dibayar*Nilai_Dimasukkan,Tanggal_Pembayaran,\"\"), \"\")","v":"2025-03-14"},{"$f":"IFERROR(IF(Pinjaman_Belum_Dibayar*Nilai_Dimasukkan,Saldo_Awal,\"\"), \"\")","v":{"v":2080.2991138092493,"d":"Rp2,080.30"}},{"$f":"IFERROR(IF(Pinjaman_Belum_Dibayar*Nilai_Dimasukkan,Pembayaran_Bulanan,\"\"), \"\")","v":{"v":95.5058108589112,"d":"Rp95.51"}},{"$f":"IFERROR(IF(Pinjaman_Belum_Dibayar*Nilai_Dimasukkan,Pinjaman_Pokok,\"\"), \"\")","v":{"v":85.97110658728545,"d":"Rp85.97"}},{"$f":"IFERROR(IF(Pinjaman_Belum_Dibayar*Nilai_Dimasukkan,Bunga,\"\"), \"\")","v":{"v":0.6554844298909469,"d":"Rp0.66"}},{"$f":"IFERROR(IF(Pinjaman_Belum_Dibayar*Nilai_Dimasukkan,Saldo_Akhir,\"\"), \"\")","v":{"v":1994.3280072219636,"d":"Rp1,994.33"}}]
[null,{"$f":"IFERROR(IF(Pinjaman_Belum_Dibayar*Nilai_Dimasukkan,Jumlah_Pembayaran1,\"\"), \"\")","v":39},{"$f":"IFERROR(IF(Pinjaman_Belum_Dibayar*Nilai_Dimasukkan,Tanggal_Pembayaran,\"\"), \"\")","v":"2025-04-14"},{"$f":"IFERROR(IF(Pinjaman_Belum_Dibayar*Nilai_Dimasukkan,Saldo_Awal,\"\"), \"\")","v":{"v":1994.3280072219636,"d":"Rp1,994.33"}},{"$f":"IFERROR(IF(Pinjaman_Belum_Dibayar*Nilai_Dimasukkan,Pembayaran_Bulanan,\"\"), \"\")","v":{"v":95.5058108589112,"d":"Rp95.51"}},{"$f":"IFERROR(IF(Pinjaman_Belum_Dibayar*Nilai_Dimasukkan,Pinjaman_Pokok,\"\"), \"\")","v":{"v":86.36514082581051,"d":"Rp86.37"}},{"$f":"IFERROR(IF(Pinjaman_Belum_Dibayar*Nilai_Dimasukkan,Bunga,\"\"), \"\")","v":{"v":0.6400961755650137,"d":"Rp0.64"}},{"$f":"IFERROR(IF(Pinjaman_Belum_Dibayar*Nilai_Dimasukkan,Saldo_Akhir,\"\"), \"\")","v":{"v":1907.9628663961566,"d":"Rp1,907.96"}}]
[null,{"$f":"IFERROR(IF(Pinjaman_Belum_Dibayar*Nilai_Dimasukkan,Jumlah_Pembayaran1,\"\"), \"\")","v":40},{"$f":"IFERROR(IF(Pinjaman_Belum_Dibayar*Nilai_Dimasukkan,Tanggal_Pembayaran,\"\"), \"\")","v":"2025-05-14"},{"$f":"IFERROR(IF(Pinjaman_Belum_Dibayar*Nilai_Dimasukkan,Saldo_Awal,\"\"), \"\")","v":{"v":1907.9628663961566,"d":"Rp1,907.96"}},{"$f":"IFERROR(IF(Pinjaman_Belum_Dibayar*Nilai_Dimasukkan,Pembayaran_Bulanan,\"\"), \"\")","v":{"v":95.5058108589112,"d":"Rp95.51"}},{"$f":"IFERROR(IF(Pinjaman_Belum_Dibayar*Nilai_Dimasukkan,Pinjaman_Pokok,\"\"), \"\")","v":{"v":86.76098105459546,"d":"Rp86.76"}},{"$f":"IFERROR(IF(Pinjaman_Belum_Dibayar*Nilai_Dimasukkan,Bunga,\"\"), \"\")","v":{"v":0.6254793197883814,"d":"Rp0.63"}},{"$f":"IFERROR(IF(Pinjaman_Belum_Dibayar*Nilai_Dimasukkan,Saldo_Akhir,\"\"), \"\")","v":{"v":1821.2018853415611,"d":"Rp1,821.20"}}]
[null,{"$f":"IFERROR(IF(Pinjaman_Belum_Dibayar*Nilai_Dimasukkan,Jumlah_Pembayaran1,\"\"), \"\")","v":41},{"$f":"IFERROR(IF(Pinjaman_Belum_Dibayar*Nilai_Dimasukkan,Tanggal_Pembayaran,\"\"), \"\")","v":"2025-06-14"},{"$f":"IFERROR(IF(Pinjaman_Belum_Dibayar*Nilai_Dimasukkan,Saldo_Awal,\"\"), \"\")","v":{"v":1821.2018853415611,"d":"Rp1,821.20"}},{"$f":"IFERROR(IF(Pinjaman_Belum_Dibayar*Nilai_Dimasukkan,Pembayaran_Bulanan,\"\"), \"\")","v":{"v":95.5058108589112,"d":"Rp95.51"}},{"$f":"IFERROR(IF(Pinjaman_Belum_Dibayar*Nilai_Dimasukkan,Pinjaman_Pokok,\"\"), \"\")","v":{"v":87.1586355510957,"d":"Rp87.16"}},{"$f":"IFERROR(IF(Pinjaman_Belum_Dibayar*Nilai_Dimasukkan,Bunga,\"\"), \"\")","v":{"v":0.611577418444932,"d":"Rp0.61"}},{"$f":"IFERROR(IF(Pinjaman_Belum_Dibayar*Nilai_Dimasukkan,Saldo_Akhir,\"\"), \"\")","v":{"v":1734.0432497904649,"d":"Rp1,734.04"}}]
[null,{"$f":"IFERROR(IF(Pinjaman_Belum_Dibayar*Nilai_Dimasukkan,Jumlah_Pembayaran1,\"\"), \"\")","v":42},{"$f":"IFERROR(IF(Pinjaman_Belum_Dibayar*Nilai_Dimasukkan,Tanggal_Pembayaran,\"\"), \"\")","v":"2025-07-14"},{"$f":"IFERROR(IF(Pinjaman_Belum_Dibayar*Nilai_Dimasukkan,Saldo_Awal,\"\"), \"\")","v":{"v":1734.0432497904649,"d":"Rp1,734.04"}},{"$f":"IFERROR(IF(Pinjaman_Belum_Dibayar*Nilai_Dimasukkan,Pembayaran_Bulanan,\"\"), \"\")","v":{"v":95.5058108589112,"d":"Rp95.51"}},{"$f":"IFERROR(IF(Pinjaman_Belum_Dibayar*Nilai_Dimasukkan,Pinjaman_Pokok,\"\"), \"\")","v":{"v":87.5581126307049,"d":"Rp87.56"}},{"$f":"IFERROR(IF(Pinjaman_Belum_Dibayar*Nilai_Dimasukkan,Bunga,\"\"), \"\")","v":{"v":0.5983394030408132,"d":"Rp0.60"}},{"$f":"IFERROR(IF(Pinjaman_Belum_Dibayar*Nilai_Dimasukkan,Saldo_Akhir,\"\"), \"\")","v":{"v":1646.4851371597597,"d":"Rp1,646.49"}}]
[null,{"$f":"IFERROR(IF(Pinjaman_Belum_Dibayar*Nilai_Dimasukkan,Jumlah_Pembayaran1,\"\"), \"\")","v":43},{"$f":"IFERROR(IF(Pinjaman_Belum_Dibayar*Nilai_Dimasukkan,Tanggal_Pembayaran,\"\"), \"\")","v":"2025-08-14"},{"$f":"IFERROR(IF(Pinjaman_Belum_Dibayar*Nilai_Dimasukkan,Saldo_Awal,\"\"), \"\")","v":{"v":1646.4851371597597,"d":"Rp1,646.49"}},{"$f":"IFERROR(IF(Pinjaman_Belum_Dibayar*Nilai_Dimasukkan,Pembayaran_Bulanan,\"\"), \"\")","v":{"v":95.5058108589112,"d":"Rp95.51"}},{"$f":"IFERROR(IF(Pinjaman_Belum_Dibayar*Nilai_Dimasukkan,Pinjaman_Pokok,\"\"), \"\")","v":{"v":87.95942064692895,"d":"Rp87.96"}},{"$f":"IFERROR(IF(Pinjaman_Belum_Dibayar*Nilai_Dimasukkan,Bunga,\"\"), \"\")","v":{"v":0.5857189556320878,"d":"Rp0.59"}},{"$f":"IFERROR(IF(Pinjaman_Belum_Dibayar*Nilai_Dimasukkan,Saldo_Akhir,\"\"), \"\")","v":{"v":1558.5257165128278,"d":"Rp1,558.53"}}]
[null,{"$f":"IFERROR(IF(Pinjaman_Belum_Dibayar*Nilai_Dimasukkan,Jumlah_Pembayaran1,\"\"), \"\")","v":44},{"$f":"IFERROR(IF(Pinjaman_Belum_Dibayar*Nilai_Dimasukkan,Tanggal_Pembayaran,\"\"), \"\")","v":"2025-09-14"},{"$f":"IFERROR(IF(Pinjaman_Belum_Dibayar*Nilai_Dimasukkan,Saldo_Awal,\"\"), \"\")","v":{"v":1558.5257165128278,"d":"Rp1,558.53"}},{"$f":"IFERROR(IF(Pinjaman_Belum_Dibayar*Nilai_Dimasukkan,Pembayaran_Bulanan,\"\"), \"\")","v":{"v":95.5058108589112,"d":"Rp95.51"}},{"$f":"IFERROR(IF(Pinjaman_Belum_Dibayar*Nilai_Dimasukkan,Pinjaman_Pokok,\"\"), \"\")","v":{"v":88.3625679915607,"d":"Rp88.36"}},{"$f":"IFERROR(IF(Pinjaman_Belum_Dibayar*Nilai_Dimasukkan,Bunga,\"\"), \"\")","v":{"v":0.5736739689895188,"d":"Rp0.57"}},{"$f":"IFERROR(IF(Pinjaman_Belum_Dibayar*Nilai_Dimasukkan,Saldo_Akhir,\"\"), \"\")","v":{"v":1470.163148521272,"d":"Rp1,470.16"}}]
[null,{"$f":"IFERROR(IF(Pinjaman_Belum_Dibayar*Nilai_Dimasukkan,Jumlah_Pembayaran1,\"\"), \"\")","v":45},{"$f":"IFERROR(IF(Pinjaman_Belum_Dibayar*Nilai_Dimasukkan,Tanggal_Pembayaran,\"\"), \"\")","v":"2025-10-14"},{"$f":"IFERROR(IF(Pinjaman_Belum_Dibayar*Nilai_Dimasukkan,Saldo_Awal,\"\"), \"\")","v":{"v":1470.163148521272,"d":"Rp1,470.16"}},{"$f":"IFERROR(IF(Pinjaman_Belum_Dibayar*Nilai_Dimasukkan,Pembayaran_Bulanan,\"\"), \"\")","v":{"v":95.5058108589112,"d":"Rp95.51"}},{"$f":"IFERROR(IF(Pinjaman_Belum_Dibayar*Nilai_Dimasukkan,Pinjaman_Pokok,\"\"), \"\")","v":{"v":88.76756309485536,"d":"Rp88.77"}},{"$f":"IFERROR(IF(Pinjaman_Belum_Dibayar*Nilai_Dimasukkan,Bunga,\"\"), \"\")","v":{"v":0.5621660787413872,"d":"Rp0.56"}},{"$f":"IFERROR(IF(Pinjaman_Belum_Dibayar*Nilai_Dimasukkan,Saldo_Akhir,\"\"), \"\")","v":{"v":1381.395585426415,"d":"Rp1,381.40"}}]
[null,{"$f":"IFERROR(IF(Pinjaman_Belum_Dibayar*Nilai_Dimasukkan,Jumlah_Pembayaran1,\"\"), \"\")","v":46},{"$f":"IFERROR(IF(Pinjaman_Belum_Dibayar*Nilai_Dimasukkan,Tanggal_Pembayaran,\"\"), \"\")","v":"2025-11-14"},{"$f":"IFERROR(IF(Pinjaman_Belum_Dibayar*Nilai_Dimasukkan,Saldo_Awal,\"\"), \"\")","v":{"v":1381.395585426415,"d":"Rp1,381.40"}},{"$f":"IFERROR(IF(Pinjaman_Belum_Dibayar*Nilai_Dimasukkan,Pembayaran_Bulanan,\"\"), \"\")","v":{"v":95.5058108589112,"d":"Rp95.51"}},{"$f":"IFERROR(IF(Pinjaman_Belum_Dibayar*Nilai_Dimasukkan,Pinjaman_Pokok,\"\"), \"\")","v":{"v":89.17441442570679,"d":"Rp89.17"}},{"$f":"IFERROR(IF(Pinjaman_Belum_Dibayar*Nilai_Dimasukkan,Bunga,\"\"), \"\")","v":{"v":0.5511602565411561,"d":"Rp0.55"}},{"$f":"IFERROR(IF(Pinjaman_Belum_Dibayar*Nilai_Dimasukkan,Saldo_Akhir,\"\"), \"\")","v":{"v":1292.221171000705,"d":"Rp1,292.22"}}]
[null,{"$f":"IFERROR(IF(Pinjaman_Belum_Dibayar*Nilai_Dimasukkan,Jumlah_Pembayaran1,\"\"), \"\")","v":47},{"$f":"IFERROR(IF(Pinjaman_Belum_Dibayar*Nilai_Dimasukkan,Tanggal_Pembayaran,\"\"), \"\")","v":"2025-12-14"},{"$f":"IFERROR(IF(Pinjaman_Belum_Dibayar*Nilai_Dimasukkan,Saldo_Awal,\"\"), \"\")","v":{"v":1292.221171000705,"d":"Rp1,292.22"}},{"$f":"IFERROR(IF(Pinjaman_Belum_Dibayar*Nilai_Dimasukkan,Pembayaran_Bulanan,\"\"), \"\")","v":{"v":95.5058108589112,"d":"Rp95.51"}},{"$f":"IFERROR(IF(Pinjaman_Belum_Dibayar*Nilai_Dimasukkan,Pinjaman_Pokok,\"\"), \"\")","v":{"v":89.5831304918246,"d":"Rp89.58"}},{"$f":"IFERROR(IF(Pinjaman_Belum_Dibayar*Nilai_Dimasukkan,Bunga,\"\"), \"\")","v":{"v":0.5406244551711803,"d":"Rp0.54"}},{"$f":"IFERROR(IF(Pinjaman_Belum_Dibayar*Nilai_Dimasukkan,Saldo_Akhir,\"\"), \"\")","v":{"v":1202.6380405088848,"d":"Rp1,202.64"}}]
[null,{"$f":"IFERROR(IF(Pinjaman_Belum_Dibayar*Nilai_Dimasukkan,Jumlah_Pembayaran1,\"\"), \"\")","v":48},{"$f":"IFERROR(IF(Pinjaman_Belum_Dibayar*Nilai_Dimasukkan,Tanggal_Pembayaran,\"\"), \"\")","v":"2026-01-14"},{"$f":"IFERROR(IF(Pinjaman_Belum_Dibayar*Nilai_Dimasukkan,Saldo_Awal,\"\"), \"\")","v":{"v":1202.6380405088848,"d":"Rp1,202.64"}},{"$f":"IFERROR(IF(Pinjaman_Belum_Dibayar*Nilai_Dimasukkan,Pembayaran_Bulanan,\"\"), \"\")","v":{"v":95.5058108589112,"d":"Rp95.51"}},{"$f":"IFERROR(IF(Pinjaman_Belum_Dibayar*Nilai_Dimasukkan,Pinjaman_Pokok,\"\"), \"\")","v":{"v":89.99371983991213,"d":"Rp89.99"}},{"$f":"IFERROR(IF(Pinjaman_Belum_Dibayar*Nilai_Dimasukkan,Bunga,\"\"), \"\")","v":{"v":0.5305292980084513,"d":"Rp0.53"}},{"$f":"IFERROR(IF(Pinjaman_Belum_Dibayar*Nilai_Dimasukkan,Saldo_Akhir,\"\"), \"\")","v":{"v":1112.64432066897,"d":"Rp1,112.64"}}]
[null,{"$f":"IFERROR(IF(Pinjaman_Belum_Dibayar*Nilai_Dimasukkan,Jumlah_Pembayaran1,\"\"), \"\")","v":49},{"$f":"IFERROR(IF(Pinjaman_Belum_Dibayar*Nilai_Dimasukkan,Tanggal_Pembayaran,\"\"), \"\")","v":"2026-02-14"},{"$f":"IFERROR(IF(Pinjaman_Belum_Dibayar*Nilai_Dimasukkan,Saldo_Awal,\"\"), \"\")","v":{"v":1112.64432066897,"d":"Rp1,112.64"}},{"$f":"IFERROR(IF(Pinjaman_Belum_Dibayar*Nilai_Dimasukkan,Pembayaran_Bulanan,\"\"), \"\")","v":{"v":95.5058108589112,"d":"Rp95.51"}},{"$f":"IFERROR(IF(Pinjaman_Belum_Dibayar*Nilai_Dimasukkan,Pinjaman_Pokok,\"\"), \"\")","v":{"v":90.40619105584507,"d":"Rp90.41"}},{"$f":"IFERROR(IF(Pinjaman_Belum_Dibayar*Nilai_Dimasukkan,Bunga,\"\"), \"\")","v":{"v":0.5208478065149446,"d":"Rp0.52"}},{"$f":"IFERROR(IF(Pinjaman_Belum_Dibayar*Nilai_Dimasukkan,Saldo_Akhir,\"\"), \"\")","v":{"v":1022.2381296131243,"d":"Rp1,022.24"}}]
[null,{"$f":"IFERROR(IF(Pinjaman_Belum_Dibayar*Nilai_Dimasukkan,Jumlah_Pembayaran1,\"\"), \"\")","v":50},{"$f":"IFERROR(IF(Pinjaman_Belum_Dibayar*Nilai_Dimasukkan,Tanggal_Pembayaran,\"\"), \"\")","v":"2026-03-14"},{"$f":"IFERROR(IF(Pinjaman_Belum_Dibayar*Nilai_Dimasukkan,Saldo_Awal,\"\"), \"\")","v":{"v":1022.2381296131243,"d":"Rp1,022.24"}},{"$f":"IFERROR(IF(Pinjaman_Belum_Dibayar*Nilai_Dimasukkan,Pembayaran_Bulanan,\"\"), \"\")","v":{"v":95.5058108589112,"d":"Rp95.51"}},{"$f":"IFERROR(IF(Pinjaman_Belum_Dibayar*Nilai_Dimasukkan,Pinjaman_Pokok,\"\"), \"\")","v":{"v":90.82055276485103,"d":"Rp90.82"}},{"$f":"IFERROR(IF(Pinjaman_Belum_Dibayar*Nilai_Dimasukkan,Bunga,\"\"), \"\")","v":{"v":0.5115551604291267,"d":"Rp0.51"}},{"$f":"IFERROR(IF(Pinjaman_Belum_Dibayar*Nilai_Dimasukkan,Saldo_Akhir,\"\"), \"\")","v":{"v":931.4175768482728,"d":"Rp931.42"}}]
[null,{"$f":"IFERROR(IF(Pinjaman_Belum_Dibayar*Nilai_Dimasukkan,Jumlah_Pembayaran1,\"\"), \"\")","v":51},{"$f":"IFERROR(IF(Pinjaman_Belum_Dibayar*Nilai_Dimasukkan,Tanggal_Pembayaran,\"\"), \"\")","v":"2026-04-14"},{"$f":"IFERROR(IF(Pinjaman_Belum_Dibayar*Nilai_Dimasukkan,Saldo_Awal,\"\"), \"\")","v":{"v":931.4175768482728,"d":"Rp931.42"}},{"$f":"IFERROR(IF(Pinjaman_Belum_Dibayar*Nilai_Dimasukkan,Pembayaran_Bulanan,\"\"), \"\")","v":{"v":95.5058108589112,"d":"Rp95.51"}},{"$f":"IFERROR(IF(Pinjaman_Belum_Dibayar*Nilai_Dimasukkan,Pinjaman_Pokok,\"\"), \"\")","v":{"v":91.23681363168991,"d":"Rp91.24"}},{"$f":"IFERROR(IF(Pinjaman_Belum_Dibayar*Nilai_Dimasukkan,Bunga,\"\"), \"\")","v":{"v":0.5026284861702255,"d":"Rp0.50"}},{"$f":"IFERROR(IF(Pinjaman_Belum_Dibayar*Nilai_Dimasukkan,Saldo_Akhir,\"\"), \"\")","v":{"v":840.1807632165828,"d":"Rp840.18"}}]
[null,{"$f":"IFERROR(IF(Pinjaman_Belum_Dibayar*Nilai_Dimasukkan,Jumlah_Pembayaran1,\"\"), \"\")","v":52},{"$f":"IFERROR(IF(Pinjaman_Belum_Dibayar*Nilai_Dimasukkan,Tanggal_Pembayaran,\"\"), \"\")","v":"2026-05-14"},{"$f":"IFERROR(IF(Pinjaman_Belum_Dibayar*Nilai_Dimasukkan,Saldo_Awal,\"\"), \"\")","v":{"v":840.1807632165828,"d":"Rp840.18"}},{"$f":"IFERROR(IF(Pinjaman_Belum_Dibayar*Nilai_Dimasukkan,Pembayaran_Bulanan,\"\"), \"\")","v":{"v":95.5058108589112,"d":"Rp95.51"}},{"$f":"IFERROR(IF(Pinjaman_Belum_Dibayar*Nilai_Dimasukkan,Pinjaman_Pokok,\"\"), \"\")","v":{"v":91.65498236083516,"d":"Rp91.65"}},{"$f":"IFERROR(IF(Pinjaman_Belum_Dibayar*Nilai_Dimasukkan,Bunga,\"\"), \"\")","v":{"v":0.4940466696573916,"d":"Rp0.49"}},{"$f":"IFERROR(IF(Pinjaman_Belum_Dibayar*Nilai_Dimasukkan,Saldo_Akhir,\"\"), \"\")","v":{"v":748.5257808557471,"d":"Rp748.53"}}]
[null,{"$f":"IFERROR(IF(Pinjaman_Belum_Dibayar*Nilai_Dimasukkan,Jumlah_Pembayaran1,\"\"), \"\")","v":53},{"$f":"IFERROR(IF(Pinjaman_Belum_Dibayar*Nilai_Dimasukkan,Tanggal_Pembayaran,\"\"), \"\")","v":"2026-06-14"},{"$f":"IFERROR(IF(Pinjaman_Belum_Dibayar*Nilai_Dimasukkan,Saldo_Awal,\"\"), \"\")","v":{"v":748.5257808557471,"d":"Rp748.53"}},{"$f":"IFERROR(IF(Pinjaman_Belum_Dibayar*Nilai_Dimasukkan,Pembayaran_Bulanan,\"\"), \"\")","v":{"v":95.5058108589112,"d":"Rp95.51"}},{"$f":"IFERROR(IF(Pinjaman_Belum_Dibayar*Nilai_Dimasukkan,Pinjaman_Pokok,\"\"), \"\")","v":{"v":92.07506769665567,"d":"Rp92.08"}},{"$f":"IFERROR(IF(Pinjaman_Belum_Dibayar*Nilai_Dimasukkan,Bunga,\"\"), \"\")","v":{"v":0.48579019031914467,"d":"Rp0.49"}},{"$f":"IFERROR(IF(Pinjaman_Belum_Dibayar*Nilai_Dimasukkan,Saldo_Akhir,\"\"), \"\")","v":{"v":656.450713159089,"d":"Rp656.45"}}]
[null,{"$f":"IFERROR(IF(Pinjaman_Belum_Dibayar*Nilai_Dimasukkan,Jumlah_Pembayaran1,\"\"), \"\")","v":54},{"$f":"IFERROR(IF(Pinjaman_Belum_Dibayar*Nilai_Dimasukkan,Tanggal_Pembayaran,\"\"), \"\")","v":"2026-07-14"},{"$f":"IFERROR(IF(Pinjaman_Belum_Dibayar*Nilai_Dimasukkan,Saldo_Awal,\"\"), \"\")","v":{"v":656.450713159089,"d":"Rp656.45"}},{"$f":"IFERROR(IF(Pinjaman_Belum_Dibayar*Nilai_Dimasukkan,Pembayaran_Bulanan,\"\"), \"\")","v":{"v":95.5058108589112,"d":"Rp95.51"}},{"$f":"IFERROR(IF(Pinjaman_Belum_Dibayar*Nilai_Dimasukkan,Pinjaman_Pokok,\"\"), \"\")","v":{"v":92.49707842359867,"d":"Rp92.50"}},{"$f":"IFERROR(IF(Pinjaman_Belum_Dibayar*Nilai_Dimasukkan,Bunga,\"\"), \"\")","v":{"v":0.477840973546215,"d":"Rp0.48"}},{"$f":"IFERROR(IF(Pinjaman_Belum_Dibayar*Nilai_Dimasukkan,Saldo_Akhir,\"\"), \"\")","v":{"v":563.9536347354906,"d":"Rp563.95"}}]
[null,{"$f":"IFERROR(IF(Pinjaman_Belum_Dibayar*Nilai_Dimasukkan,Jumlah_Pembayaran1,\"\"), \"\")","v":55},{"$f":"IFERROR(IF(Pinjaman_Belum_Dibayar*Nilai_Dimasukkan,Tanggal_Pembayaran,\"\"), \"\")","v":"2026-08-14"},{"$f":"IFERROR(IF(Pinjaman_Belum_Dibayar*Nilai_Dimasukkan,Saldo_Awal,\"\"), \"\")","v":{"v":563.9536347354906,"d":"Rp563.95"}},{"$f":"IFERROR(IF(Pinjaman_Belum_Dibayar*Nilai_Dimasukkan,Pembayaran_Bulanan,\"\"), \"\")","v":{"v":95.5058108589112,"d":"Rp95.51"}},{"$f":"IFERROR(IF(Pinjaman_Belum_Dibayar*Nilai_Dimasukkan,Pinjaman_Pokok,\"\"), \"\")","v":{"v":92.92102336637349,"d":"Rp92.92"}},{"$f":"IFERROR(IF(Pinjaman_Belum_Dibayar*Nilai_Dimasukkan,Bunga,\"\"), \"\")","v":{"v":0.4701822592404372,"d":"Rp0.47"}},{"$f":"IFERROR(IF(Pinjaman_Belum_Dibayar*Nilai_Dimasukkan,Saldo_Akhir,\"\"), \"\")","v":{"v":471.03261136911897,"d":"Rp471.03"}}]
[null,{"$f":"IFERROR(IF(Pinjaman_Belum_Dibayar*Nilai_Dimasukkan,Jumlah_Pembayaran1,\"\"), \"\")","v":56},{"$f":"IFERROR(IF(Pinjaman_Belum_Dibayar*Nilai_Dimasukkan,Tanggal_Pembayaran,\"\"), \"\")","v":"2026-09-14"},{"$f":"IFERROR(IF(Pinjaman_Belum_Dibayar*Nilai_Dimasukkan,Saldo_Awal,\"\"), \"\")","v":{"v":471.03261136911897,"d":"Rp471.03"}},{"$f":"IFERROR(IF(Pinjaman_Belum_Dibayar*Nilai_Dimasukkan,Pembayaran_Bulanan,\"\"), \"\")","v":{"v":95.5058108589112,"d":"Rp95.51"}},{"$f":"IFERROR(IF(Pinjaman_Belum_Dibayar*Nilai_Dimasukkan,Pinjaman_Pokok,\"\"), \"\")","v":{"v":93.34691139013603,"d":"Rp93.35"}},{"$f":"IFERROR(IF(Pinjaman_Belum_Dibayar*Nilai_Dimasukkan,Bunga,\"\"), \"\")","v":{"v":0.4627984844476923,"d":"Rp0.46"}},{"$f":"IFERROR(IF(Pinjaman_Belum_Dibayar*Nilai_Dimasukkan,Saldo_Akhir,\"\"), \"\")","v":{"v":377.6856999789834,"d":"Rp377.69"}}]
[null,{"$f":"IFERROR(IF(Pinjaman_Belum_Dibayar*Nilai_Dimasukkan,Jumlah_Pembayaran1,\"\"), \"\")","v":57},{"$f":"IFERROR(IF(Pinjaman_Belum_Dibayar*Nilai_Dimasukkan,Tanggal_Pembayaran,\"\"), \"\")","v":"2026-10-14"},{"$f":"IFERROR(IF(Pinjaman_Belum_Dibayar*Nilai_Dimasukkan,Saldo_Awal,\"\"), \"\")","v":{"v":377.6856999789834,"d":"Rp377.69"}},{"$f":"IFERROR(IF(Pinjaman_Belum_Dibayar*Nilai_Dimasukkan,Pembayaran_Bulanan,\"\"), \"\")","v":{"v":95.5058108589112,"d":"Rp95.51"}},{"$f":"IFERROR(IF(Pinjaman_Belum_Dibayar*Nilai_Dimasukkan,Pinjaman_Pokok,\"\"), \"\")","v":{"v":93.77475140067416,"d":"Rp93.77"}},{"$f":"IFERROR(IF(Pinjaman_Belum_Dibayar*Nilai_Dimasukkan,Bunga,\"\"), \"\")","v":{"v":0.45567517834527704,"d":"Rp0.46"}},{"$f":"IFERROR(IF(Pinjaman_Belum_Dibayar*Nilai_Dimasukkan,Saldo_Akhir,\"\"), \"\")","v":{"v":283.9109485783083,"d":"Rp283.91"}}]
[null,{"$f":"IFERROR(IF(Pinjaman_Belum_Dibayar*Nilai_Dimasukkan,Jumlah_Pembayaran1,\"\"), \"\")","v":58},{"$f":"IFERROR(IF(Pinjaman_Belum_Dibayar*Nilai_Dimasukkan,Tanggal_Pembayaran,\"\"), \"\")","v":"2026-11-14"},{"$f":"IFERROR(IF(Pinjaman_Belum_Dibayar*Nilai_Dimasukkan,Saldo_Awal,\"\"), \"\")","v":{"v":283.9109485783083,"d":"Rp283.91"}},{"$f":"IFERROR(IF(Pinjaman_Belum_Dibayar*Nilai_Dimasukkan,Pembayaran_Bulanan,\"\"), \"\")","v":{"v":95.5058108589112,"d":"Rp95.51"}},{"$f":"IFERROR(IF(Pinjaman_Belum_Dibayar*Nilai_Dimasukkan,Pinjaman_Pokok,\"\"), \"\")","v":{"v":94.20455234459394,"d":"Rp94.20"}},{"$f":"IFERROR(IF(Pinjaman_Belum_Dibayar*Nilai_Dimasukkan,Bunga,\"\"), \"\")","v":{"v":0.44879886809264846,"d":"Rp0.45"}},{"$f":"IFERROR(IF(Pinjaman_Belum_Dibayar*Nilai_Dimasukkan,Saldo_Akhir,\"\"), \"\")","v":{"v":189.70639623371517,"d":"Rp189.71"}}]
[null,{"$f":"IFERROR(IF(Pinjaman_Belum_Dibayar*Nilai_Dimasukkan,Jumlah_Pembayaran1,\"\"), \"\")","v":59},{"$f":"IFERROR(IF(Pinjaman_Belum_Dibayar*Nilai_Dimasukkan,Tanggal_Pembayaran,\"\"), \"\")","v":"2026-12-14"},{"$f":"IFERROR(IF(Pinjaman_Belum_Dibayar*Nilai_Dimasukkan,Saldo_Awal,\"\"), \"\")","v":{"v":189.70639623371517,"d":"Rp189.71"}},{"$f":"IFERROR(IF(Pinjaman_Belum_Dibayar*Nilai_Dimasukkan,Pembayaran_Bulanan,\"\"), \"\")","v":{"v":95.5058108589112,"d":"Rp95.51"}},{"$f":"IFERROR(IF(Pinjaman_Belum_Dibayar*Nilai_Dimasukkan,Pinjaman_Pokok,\"\"), \"\")","v":{"v":94.63632320950664,"d":"Rp94.64"}},{"$f":"IFERROR(IF(Pinjaman_Belum_Dibayar*Nilai_Dimasukkan,Bunga,\"\"), \"\")","v":{"v":0.44215699425666877,"d":"Rp0.44"}},{"$f":"IFERROR(IF(Pinjaman_Belum_Dibayar*Nilai_Dimasukkan,Saldo_Akhir,\"\"), \"\")","v":{"v":95.07007302420698,"d":"Rp95.07"}}]
[null,{"$f":"IFERROR(IF(Pinjaman_Belum_Dibayar*Nilai_Dimasukkan,Jumlah_Pembayaran1,\"\"), \"\")","v":60},{"$f":"IFERROR(IF(Pinjaman_Belum_Dibayar*Nilai_Dimasukkan,Tanggal_Pembayaran,\"\"), \"\")","v":"2027-01-14"},{"$f":"IFERROR(IF(Pinjaman_Belum_Dibayar*Nilai_Dimasukkan,Saldo_Awal,\"\"), \"\")","v":{"v":95.07007302420698,"d":"Rp95.07"}},{"$f":"IFERROR(IF(Pinjaman_Belum_Dibayar*Nilai_Dimasukkan,Pembayaran_Bulanan,\"\"), \"\")","v":{"v":95.5058108589112,"d":"Rp95.51"}},{"$f":"IFERROR(IF(Pinjaman_Belum_Dibayar*Nilai_Dimasukkan,Pinjaman_Pokok,\"\"), \"\")","v":{"v":95.07007302421688,"d":"Rp95.07"}},{"$f":"IFERROR(IF(Pinjaman_Belum_Dibayar*Nilai_Dimasukkan,Bunga,\"\"), \"\")","v":{"v":0.4357378346943274,"d":"Rp0.44"}},{"$f":"IFERROR(IF(Pinjaman_Belum_Dibayar*Nilai_Dimasukkan,Saldo_Akhir,\"\"), \"\")","v":{"v":-9.094947017729282e-12,"d":"-Rp0.00"}}]
[null,{"$f":"IFERROR(IF(Pinjaman_Belum_Dibayar*Nilai_Dimasukkan,Jumlah_Pembayaran1,\"\"), \"\")","v":""},{"$f":"IFERROR(IF(Pinjaman_Belum_Dibayar*Nilai_Dimasukkan,Tanggal_Pembayaran,\"\"), \"\")","v":""},{"$f":"IFERROR(IF(Pinjaman_Belum_Dibayar*Nilai_Dimasukkan,Saldo_Awal,\"\"), \"\")","v":""},{"$f":"IFERROR(IF(Pinjaman_Belum_Dibayar*Nilai_Dimasukkan,Pembayaran_Bulanan,\"\"), \"\")","v":""},{"$f":"IFERROR(IF(Pinjaman_Belum_Dibayar*Nilai_Dimasukkan,Pinjaman_Pokok,\"\"), \"\")","v":""},{"$f":"IFERROR(IF(Pinjaman_Belum_Dibayar*Nilai_Dimasukkan,Bunga,\"\"), \"\")","v":""},{"$f":"IFERROR(IF(Pinjaman_Belum_Dibayar*Nilai_Dimasukkan,Saldo_Akhir,\"\"), \"\")","v":""}]
[null,{"$f":"IFERROR(IF(Pinjaman_Belum_Dibayar*Nilai_Dimasukkan,Jumlah_Pembayaran1,\"\"), \"\")","v":""},{"$f":"IFERROR(IF(Pinjaman_Belum_Dibayar*Nilai_Dimasukkan,Tanggal_Pembayaran,\"\"), \"\")","v":""},{"$f":"IFERROR(IF(Pinjaman_Belum_Dibayar*Nilai_Dimasukkan,Saldo_Awal,\"\"), \"\")","v":""},{"$f":"IFERROR(IF(Pinjaman_Belum_Dibayar*Nilai_Dimasukkan,Pembayaran_Bulanan,\"\"), \"\")","v":""},{"$f":"IFERROR(IF(Pinjaman_Belum_Dibayar*Nilai_Dimasukkan,Pinjaman_Pokok,\"\"), \"\")","v":""},{"$f":"IFERROR(IF(Pinjaman_Belum_Dibayar*Nilai_Dimasukkan,Bunga,\"\"), \"\")","v":""},{"$f":"IFERROR(IF(Pinjaman_Belum_Dibayar*Nilai_Dimasukkan,Saldo_Akhir,\"\"), \"\")","v":""}]
[null,{"$f":"IFERROR(IF(Pinjaman_Belum_Dibayar*Nilai_Dimasukkan,Jumlah_Pembayaran1,\"\"), \"\")","v":""},{"$f":"IFERROR(IF(Pinjaman_Belum_Dibayar*Nilai_Dimasukkan,Tanggal_Pembayaran,\"\"), \"\")","v":""},{"$f":"IFERROR(IF(Pinjaman_Belum_Dibayar*Nilai_Dimasukkan,Saldo_Awal,\"\"), \"\")","v":""},{"$f":"IFERROR(IF(Pinjaman_Belum_Dibayar*Nilai_Dimasukkan,Pembayaran_Bulanan,\"\"), \"\")","v":""},{"$f":"IFERROR(IF(Pinjaman_Belum_Dibayar*Nilai_Dimasukkan,Pinjaman_Pokok,\"\"), \"\")","v":""},{"$f":"IFERROR(IF(Pinjaman_Belum_Dibayar*Nilai_Dimasukkan,Bunga,\"\"), \"\")","v":""},{"$f":"IFERROR(IF(Pinjaman_Belum_Dibayar*Nilai_Dimasukkan,Saldo_Akhir,\"\"), \"\")","v":""}]
[null,{"$f":"IFERROR(IF(Pinjaman_Belum_Dibayar*Nilai_Dimasukkan,Jumlah_Pembayaran1,\"\"), \"\")","v":""},{"$f":"IFERROR(IF(Pinjaman_Belum_Dibayar*Nilai_Dimasukkan,Tanggal_Pembayaran,\"\"), \"\")","v":""},{"$f":"IFERROR(IF(Pinjaman_Belum_Dibayar*Nilai_Dimasukkan,Saldo_Awal,\"\"), \"\")","v":""},{"$f":"IFERROR(IF(Pinjaman_Belum_Dibayar*Nilai_Dimasukkan,Pembayaran_Bulanan,\"\"), \"\")","v":""},{"$f":"IFERROR(IF(Pinjaman_Belum_Dibayar*Nilai_Dimasukkan,Pinjaman_Pokok,\"\"), \"\")","v":""},{"$f":"IFERROR(IF(Pinjaman_Belum_Dibayar*Nilai_Dimasukkan,Bunga,\"\"), \"\")","v":""},{"$f":"IFERROR(IF(Pinjaman_Belum_Dibayar*Nilai_Dimasukkan,Saldo_Akhir,\"\"), \"\")","v":""}]
[null,{"$f":"IFERROR(IF(Pinjaman_Belum_Dibayar*Nilai_Dimasukkan,Jumlah_Pembayaran1,\"\"), \"\")","v":""},{"$f":"IFERROR(IF(Pinjaman_Belum_Dibayar*Nilai_Dimasukkan,Tanggal_Pembayaran,\"\"), \"\")","v":""},{"$f":"IFERROR(IF(Pinjaman_Belum_Dibayar*Nilai_Dimasukkan,Saldo_Awal,\"\"), \"\")","v":""},{"$f":"IFERROR(IF(Pinjaman_Belum_Dibayar*Nilai_Dimasukkan,Pembayaran_Bulanan,\"\"), \"\")","v":""},{"$f":"IFERROR(IF(Pinjaman_Belum_Dibayar*Nilai_Dimasukkan,Pinjaman_Pokok,\"\"), \"\")","v":""},{"$f":"IFERROR(IF(Pinjaman_Belum_Dibayar*Nilai_Dimasukkan,Bunga,\"\"), \"\")","v":""},{"$f":"IFERROR(IF(Pinjaman_Belum_Dibayar*Nilai_Dimasukkan,Saldo_Akhir,\"\"), \"\")","v":""}]
[null,{"$f":"IFERROR(IF(Pinjaman_Belum_Dibayar*Nilai_Dimasukkan,Jumlah_Pembayaran1,\"\"), \"\")","v":""},{"$f":"IFERROR(IF(Pinjaman_Belum_Dibayar*Nilai_Dimasukkan,Tanggal_Pembayaran,\"\"), \"\")","v":""},{"$f":"IFERROR(IF(Pinjaman_Belum_Dibayar*Nilai_Dimasukkan,Saldo_Awal,\"\"), \"\")","v":""},{"$f":"IFERROR(IF(Pinjaman_Belum_Dibayar*Nilai_Dimasukkan,Pembayaran_Bulanan,\"\"), \"\")","v":""},{"$f":"IFERROR(IF(Pinjaman_Belum_Dibayar*Nilai_Dimasukkan,Pinjaman_Pokok,\"\"), \"\")","v":""},{"$f":"IFERROR(IF(Pinjaman_Belum_Dibayar*Nilai_Dimasukkan,Bunga,\"\"), \"\")","v":""},{"$f":"IFERROR(IF(Pinjaman_Belum_Dibayar*Nilai_Dimasukkan,Saldo_Akhir,\"\"), \"\")","v":""}]
[null,{"$f":"IFERROR(IF(Pinjaman_Belum_Dibayar*Nilai_Dimasukkan,Jumlah_Pembayaran1,\"\"), \"\")","v":""},{"$f":"IFERROR(IF(Pinjaman_Belum_Dibayar*Nilai_Dimasukkan,Tanggal_Pembayaran,\"\"), \"\")","v":""},{"$f":"IFERROR(IF(Pinjaman_Belum_Dibayar*Nilai_Dimasukkan,Saldo_Awal,\"\"), \"\")","v":""},{"$f":"IFERROR(IF(Pinjaman_Belum_Dibayar*Nilai_Dimasukkan,Pembayaran_Bulanan,\"\"), \"\")","v":""},{"$f":"IFERROR(IF(Pinjaman_Belum_Dibayar*Nilai_Dimasukkan,Pinjaman_Pokok,\"\"), \"\")","v":""},{"$f":"IFERROR(IF(Pinjaman_Belum_Dibayar*Nilai_Dimasukkan,Bunga,\"\"), \"\")","v":""},{"$f":"IFERROR(IF(Pinjaman_Belum_Dibayar*Nilai_Dimasukkan,Saldo_Akhir,\"\"), \"\")","v":""}]
[null,{"$f":"IFERROR(IF(Pinjaman_Belum_Dibayar*Nilai_Dimasukkan,Jumlah_Pembayaran1,\"\"), \"\")","v":""},{"$f":"IFERROR(IF(Pinjaman_Belum_Dibayar*Nilai_Dimasukkan,Tanggal_Pembayaran,\"\"), \"\")","v":""},{"$f":"IFERROR(IF(Pinjaman_Belum_Dibayar*Nilai_Dimasukkan,Saldo_Awal,\"\"), \"\")","v":""},{"$f":"IFERROR(IF(Pinjaman_Belum_Dibayar*Nilai_Dimasukkan,Pembayaran_Bulanan,\"\"), \"\")","v":""},{"$f":"IFERROR(IF(Pinjaman_Belum_Dibayar*Nilai_Dimasukkan,Pinjaman_Pokok,\"\"), \"\")","v":""},{"$f":"IFERROR(IF(Pinjaman_Belum_Dibayar*Nilai_Dimasukkan,Bunga,\"\"), \"\")","v":""},{"$f":"IFERROR(IF(Pinjaman_Belum_Dibayar*Nilai_Dimasukkan,Saldo_Akhir,\"\"), \"\")","v":""}]
[null,{"$f":"IFERROR(IF(Pinjaman_Belum_Dibayar*Nilai_Dimasukkan,Jumlah_Pembayaran1,\"\"), \"\")","v":""},{"$f":"IFERROR(IF(Pinjaman_Belum_Dibayar*Nilai_Dimasukkan,Tanggal_Pembayaran,\"\"), \"\")","v":""},{"$f":"IFERROR(IF(Pinjaman_Belum_Dibayar*Nilai_Dimasukkan,Saldo_Awal,\"\"), \"\")","v":""},{"$f":"IFERROR(IF(Pinjaman_Belum_Dibayar*Nilai_Dimasukkan,Pembayaran_Bulanan,\"\"), \"\")","v":""},{"$f":"IFERROR(IF(Pinjaman_Belum_Dibayar*Nilai_Dimasukkan,Pinjaman_Pokok,\"\"), \"\")","v":""},{"$f":"IFERROR(IF(Pinjaman_Belum_Dibayar*Nilai_Dimasukkan,Bunga,\"\"), \"\")","v":""},{"$f":"IFERROR(IF(Pinjaman_Belum_Dibayar*Nilai_Dimasukkan,Saldo_Akhir,\"\"), \"\")","v":""}]
[null,{"$f":"IFERROR(IF(Pinjaman_Belum_Dibayar*Nilai_Dimasukkan,Jumlah_Pembayaran1,\"\"), \"\")","v":""},{"$f":"IFERROR(IF(Pinjaman_Belum_Dibayar*Nilai_Dimasukkan,Tanggal_Pembayaran,\"\"), \"\")","v":""},{"$f":"IFERROR(IF(Pinjaman_Belum_Dibayar*Nilai_Dimasukkan,Saldo_Awal,\"\"), \"\")","v":""},{"$f":"IFERROR(IF(Pinjaman_Belum_Dibayar*Nilai_Dimasukkan,Pembayaran_Bulanan,\"\"), \"\")","v":""},{"$f":"IFERROR(IF(Pinjaman_Belum_Dibayar*Nilai_Dimasukkan,Pinjaman_Pokok,\"\"), \"\")","v":""},{"$f":"IFERROR(IF(Pinjaman_Belum_Dibayar*Nilai_Dimasukkan,Bunga,\"\"), \"\")","v":""},{"$f":"IFERROR(IF(Pinjaman_Belum_Dibayar*Nilai_Dimasukkan,Saldo_Akhir,\"\"), \"\")","v":""}]
[null,{"$f":"IFERROR(IF(Pinjaman_Belum_Dibayar*Nilai_Dimasukkan,Jumlah_Pembayaran1,\"\"), \"\")","v":""},{"$f":"IFERROR(IF(Pinjaman_Belum_Dibayar*Nilai_Dimasukkan,Tanggal_Pembayaran,\"\"), \"\")","v":""},{"$f":"IFERROR(IF(Pinjaman_Belum_Dibayar*Nilai_Dimasukkan,Saldo_Awal,\"\"), \"\")","v":""},{"$f":"IFERROR(IF(Pinjaman_Belum_Dibayar*Nilai_Dimasukkan,Pembayaran_Bulanan,\"\"), \"\")","v":""},{"$f":"IFERROR(IF(Pinjaman_Belum_Dibayar*Nilai_Dimasukkan,Pinjaman_Pokok,\"\"), \"\")","v":""},{"$f":"IFERROR(IF(Pinjaman_Belum_Dibayar*Nilai_Dimasukkan,Bunga,\"\"), \"\")","v":""},{"$f":"IFERROR(IF(Pinjaman_Belum_Dibayar*Nilai_Dimasukkan,Saldo_Akhir,\"\"), \"\")","v":""}]
[null,{"$f":"IFERROR(IF(Pinjaman_Belum_Dibayar*Nilai_Dimasukkan,Jumlah_Pembayaran1,\"\"), \"\")","v":""},{"$f":"IFERROR(IF(Pinjaman_Belum_Dibayar*Nilai_Dimasukkan,Tanggal_Pembayaran,\"\"), \"\")","v":""},{"$f":"IFERROR(IF(Pinjaman_Belum_Dibayar*Nilai_Dimasukkan,Saldo_Awal,\"\"), \"\")","v":""},{"$f":"IFERROR(IF(Pinjaman_Belum_Dibayar*Nilai_Dimasukkan,Pembayaran_Bulanan,\"\"), \"\")","v":""},{"$f":"IFERROR(IF(Pinjaman_Belum_Dibayar*Nilai_Dimasukkan,Pinjaman_Pokok,\"\"), \"\")","v":""},{"$f":"IFERROR(IF(Pinjaman_Belum_Dibayar*Nilai_Dimasukkan,Bunga,\"\"), \"\")","v":""},{"$f":"IFERROR(IF(Pinjaman_Belum_Dibayar*Nilai_Dimasukkan,Saldo_Akhir,\"\"), \"\")","v":""}]
[null,{"$f":"IFERROR(IF(Pinjaman_Belum_Dibayar*Nilai_Dimasukkan,Jumlah_Pembayaran1,\"\"), \"\")","v":""},{"$f":"IFERROR(IF(Pinjaman_Belum_Dibayar*Nilai_Dimasukkan,Tanggal_Pembayaran,\"\"), \"\")","v":""},{"$f":"IFERROR(IF(Pinjaman_Belum_Dibayar*Nilai_Dimasukkan,Saldo_Awal,\"\"), \"\")","v":""},{"$f":"IFERROR(IF(Pinjaman_Belum_Dibayar*Nilai_Dimasukkan,Pembayaran_Bulanan,\"\"), \"\")","v":""},{"$f":"IFERROR(IF(Pinjaman_Belum_Dibayar*Nilai_Dimasukkan,Pinjaman_Pokok,\"\"), \"\")","v":""},{"$f":"IFERROR(IF(Pinjaman_Belum_Dibayar*Nilai_Dimasukkan,Bunga,\"\"), \"\")","v":""},{"$f":"IFERROR(IF(Pinjaman_Belum_Dibayar*Nilai_Dimasukkan,Saldo_Akhir,\"\"), \"\")","v":""}]
[null,{"$f":"IFERROR(IF(Pinjaman_Belum_Dibayar*Nilai_Dimasukkan,Jumlah_Pembayaran1,\"\"), \"\")","v":""},{"$f":"IFERROR(IF(Pinjaman_Belum_Dibayar*Nilai_Dimasukkan,Tanggal_Pembayaran,\"\"), \"\")","v":""},{"$f":"IFERROR(IF(Pinjaman_Belum_Dibayar*Nilai_Dimasukkan,Saldo_Awal,\"\"), \"\")","v":""},{"$f":"IFERROR(IF(Pinjaman_Belum_Dibayar*Nilai_Dimasukkan,Pembayaran_Bulanan,\"\"), \"\")","v":""},{"$f":"IFERROR(IF(Pinjaman_Belum_Dibayar*Nilai_Dimasukkan,Pinjaman_Pokok,\"\"), \"\")","v":""},{"$f":"IFERROR(IF(Pinjaman_Belum_Dibayar*Nilai_Dimasukkan,Bunga,\"\"), \"\")","v":""},{"$f":"IFERROR(IF(Pinjaman_Belum_Dibayar*Nilai_Dimasukkan,Saldo_Akhir,\"\"), \"\")","v":""}]
[null,{"$f":"IFERROR(IF(Pinjaman_Belum_Dibayar*Nilai_Dimasukkan,Jumlah_Pembayaran1,\"\"), \"\")","v":""},{"$f":"IFERROR(IF(Pinjaman_Belum_Dibayar*Nilai_Dimasukkan,Tanggal_Pembayaran,\"\"), \"\")","v":""},{"$f":"IFERROR(IF(Pinjaman_Belum_Dibayar*Nilai_Dimasukkan,Saldo_Awal,\"\"), \"\")","v":""},{"$f":"IFERROR(IF(Pinjaman_Belum_Dibayar*Nilai_Dimasukkan,Pembayaran_Bulanan,\"\"), \"\")","v":""},{"$f":"IFERROR(IF(Pinjaman_Belum_Dibayar*Nilai_Dimasukkan,Pinjaman_Pokok,\"\"), \"\")","v":""},{"$f":"IFERROR(IF(Pinjaman_Belum_Dibayar*Nilai_Dimasukkan,Bunga,\"\"), \"\")","v":""},{"$f":"IFERROR(IF(Pinjaman_Belum_Dibayar*Nilai_Dimasukkan,Saldo_Akhir,\"\"), \"\")","v":""}]
[null,{"$f":"IFERROR(IF(Pinjaman_Belum_Dibayar*Nilai_Dimasukkan,Jumlah_Pembayaran1,\"\"), \"\")","v":""},{"$f":"IFERROR(IF(Pinjaman_Belum_Dibayar*Nilai_Dimasukkan,Tanggal_Pembayaran,\"\"), \"\")","v":""},{"$f":"IFERROR(IF(Pinjaman_Belum_Dibayar*Nilai_Dimasukkan,Saldo_Awal,\"\"), \"\")","v":""},{"$f":"IFERROR(IF(Pinjaman_Belum_Dibayar*Nilai_Dimasukkan,Pembayaran_Bulanan,\"\"), \"\")","v":""},{"$f":"IFERROR(IF(Pinjaman_Belum_Dibayar*Nilai_Dimasukkan,Pinjaman_Pokok,\"\"), \"\")","v":""},{"$f":"IFERROR(IF(Pinjaman_Belum_Dibayar*Nilai_Dimasukkan,Bunga,\"\"), \"\")","v":""},{"$f":"IFERROR(IF(Pinjaman_Belum_Dibayar*Nilai_Dimasukkan,Saldo_Akhir,\"\"), \"\")","v":""}]
[null,{"$f":"IFERROR(IF(Pinjaman_Belum_Dibayar*Nilai_Dimasukkan,Jumlah_Pembayaran1,\"\"), \"\")","v":""},{"$f":"IFERROR(IF(Pinjaman_Belum_Dibayar*Nilai_Dimasukkan,Tanggal_Pembayaran,\"\"), \"\")","v":""},{"$f":"IFERROR(IF(Pinjaman_Belum_Dibayar*Nilai_Dimasukkan,Saldo_Awal,\"\"), \"\")","v":""},{"$f":"IFERROR(IF(Pinjaman_Belum_Dibayar*Nilai_Dimasukkan,Pembayaran_Bulanan,\"\"), \"\")","v":""},{"$f":"IFERROR(IF(Pinjaman_Belum_Dibayar*Nilai_Dimasukkan,Pinjaman_Pokok,\"\"), \"\")","v":""},{"$f":"IFERROR(IF(Pinjaman_Belum_Dibayar*Nilai_Dimasukkan,Bunga,\"\"), \"\")","v":""},{"$f":"IFERROR(IF(Pinjaman_Belum_Dibayar*Nilai_Dimasukkan,Saldo_Akhir,\"\"), \"\")","v":""}]
[null,{"$f":"IFERROR(IF(Pinjaman_Belum_Dibayar*Nilai_Dimasukkan,Jumlah_Pembayaran1,\"\"), \"\")","v":""},{"$f":"IFERROR(IF(Pinjaman_Belum_Dibayar*Nilai_Dimasukkan,Tanggal_Pembayaran,\"\"), \"\")","v":""},{"$f":"IFERROR(IF(Pinjaman_Belum_Dibayar*Nilai_Dimasukkan,Saldo_Awal,\"\"), \"\")","v":""},{"$f":"IFERROR(IF(Pinjaman_Belum_Dibayar*Nilai_Dimasukkan,Pembayaran_Bulanan,\"\"), \"\")","v":""},{"$f":"IFERROR(IF(Pinjaman_Belum_Dibayar*Nilai_Dimasukkan,Pinjaman_Pokok,\"\"), \"\")","v":""},{"$f":"IFERROR(IF(Pinjaman_Belum_Dibayar*Nilai_Dimasukkan,Bunga,\"\"), \"\")","v":""},{"$f":"IFERROR(IF(Pinjaman_Belum_Dibayar*Nilai_Dimasukkan,Saldo_Akhir,\"\"), \"\")","v":""}]
[null,{"$f":"IFERROR(IF(Pinjaman_Belum_Dibayar*Nilai_Dimasukkan,Jumlah_Pembayaran1,\"\"), \"\")","v":""},{"$f":"IFERROR(IF(Pinjaman_Belum_Dibayar*Nilai_Dimasukkan,Tanggal_Pembayaran,\"\"), \"\")","v":""},{"$f":"IFERROR(IF(Pinjaman_Belum_Dibayar*Nilai_Dimasukkan,Saldo_Awal,\"\"), \"\")","v":""},{"$f":"IFERROR(IF(Pinjaman_Belum_Dibayar*Nilai_Dimasukkan,Pembayaran_Bulanan,\"\"), \"\")","v":""},{"$f":"IFERROR(IF(Pinjaman_Belum_Dibayar*Nilai_Dimasukkan,Pinjaman_Pokok,\"\"), \"\")","v":""},{"$f":"IFERROR(IF(Pinjaman_Belum_Dibayar*Nilai_Dimasukkan,Bunga,\"\"), \"\")","v":""},{"$f":"IFERROR(IF(Pinjaman_Belum_Dibayar*Nilai_Dimasukkan,Saldo_Akhir,\"\"), \"\")","v":""}]
[null,{"$f":"IFERROR(IF(Pinjaman_Belum_Dibayar*Nilai_Dimasukkan,Jumlah_Pembayaran1,\"\"), \"\")","v":""},{"$f":"IFERROR(IF(Pinjaman_Belum_Dibayar*Nilai_Dimasukkan,Tanggal_Pembayaran,\"\"), \"\")","v":""},{"$f":"IFERROR(IF(Pinjaman_Belum_Dibayar*Nilai_Dimasukkan,Saldo_Awal,\"\"), \"\")","v":""},{"$f":"IFERROR(IF(Pinjaman_Belum_Dibayar*Nilai_Dimasukkan,Pembayaran_Bulanan,\"\"), \"\")","v":""},{"$f":"IFERROR(IF(Pinjaman_Belum_Dibayar*Nilai_Dimasukkan,Pinjaman_Pokok,\"\"), \"\")","v":""},{"$f":"IFERROR(IF(Pinjaman_Belum_Dibayar*Nilai_Dimasukkan,Bunga,\"\"), \"\")","v":""},{"$f":"IFERROR(IF(Pinjaman_Belum_Dibayar*Nilai_Dimasukkan,Saldo_Akhir,\"\"), \"\")","v":""}]
[null,{"$f":"IFERROR(IF(Pinjaman_Belum_Dibayar*Nilai_Dimasukkan,Jumlah_Pembayaran1,\"\"), \"\")","v":""},{"$f":"IFERROR(IF(Pinjaman_Belum_Dibayar*Nilai_Dimasukkan,Tanggal_Pembayaran,\"\"), \"\")","v":""},{"$f":"IFERROR(IF(Pinjaman_Belum_Dibayar*Nilai_Dimasukkan,Saldo_Awal,\"\"), \"\")","v":""},{"$f":"IFERROR(IF(Pinjaman_Belum_Dibayar*Nilai_Dimasukkan,Pembayaran_Bulanan,\"\"), \"\")","v":""},{"$f":"IFERROR(IF(Pinjaman_Belum_Dibayar*Nilai_Dimasukkan,Pinjaman_Pokok,\"\"), \"\")","v":""},{"$f":"IFERROR(IF(Pinjaman_Belum_Dibayar*Nilai_Dimasukkan,Bunga,\"\"), \"\")","v":""},{"$f":"IFERROR(IF(Pinjaman_Belum_Dibayar*Nilai_Dimasukkan,Saldo_Akhir,\"\"), \"\")","v":""}]
[null,{"$f":"IFERROR(IF(Pinjaman_Belum_Dibayar*Nilai_Dimasukkan,Jumlah_Pembayaran1,\"\"), \"\")","v":""},{"$f":"IFERROR(IF(Pinjaman_Belum_Dibayar*Nilai_Dimasukkan,Tanggal_Pembayaran,\"\"), \"\")","v":""},{"$f":"IFERROR(IF(Pinjaman_Belum_Dibayar*Nilai_Dimasukkan,Saldo_Awal,\"\"), \"\")","v":""},{"$f":"IFERROR(IF(Pinjaman_Belum_Dibayar*Nilai_Dimasukkan,Pembayaran_Bulanan,\"\"), \"\")","v":""},{"$f":"IFERROR(IF(Pinjaman_Belum_Dibayar*Nilai_Dimasukkan,Pinjaman_Pokok,\"\"), \"\")","v":""},{"$f":"IFERROR(IF(Pinjaman_Belum_Dibayar*Nilai_Dimasukkan,Bunga,\"\"), \"\")","v":""},{"$f":"IFERROR(IF(Pinjaman_Belum_Dibayar*Nilai_Dimasukkan,Saldo_Akhir,\"\"), \"\")","v":""}]
[null,{"$f":"IFERROR(IF(Pinjaman_Belum_Dibayar*Nilai_Dimasukkan,Jumlah_Pembayaran1,\"\"), \"\")","v":""},{"$f":"IFERROR(IF(Pinjaman_Belum_Dibayar*Nilai_Dimasukkan,Tanggal_Pembayaran,\"\"), \"\")","v":""},{"$f":"IFERROR(IF(Pinjaman_Belum_Dibayar*Nilai_Dimasukkan,Saldo_Awal,\"\"), \"\")","v":""},{"$f":"IFERROR(IF(Pinjaman_Belum_Dibayar*Nilai_Dimasukkan,Pembayaran_Bulanan,\"\"), \"\")","v":""},{"$f":"IFERROR(IF(Pinjaman_Belum_Dibayar*Nilai_Dimasukkan,Pinjaman_Pokok,\"\"), \"\")","v":""},{"$f":"IFERROR(IF(Pinjaman_Belum_Dibayar*Nilai_Dimasukkan,Bunga,\"\"), \"\")","v":""},{"$f":"IFERROR(IF(Pinjaman_Belum_Dibayar*Nilai_Dimasukkan,Saldo_Akhir,\"\"), \"\")","v":""}]
[null,{"$f":"IFERROR(IF(Pinjaman_Belum_Dibayar*Nilai_Dimasukkan,Jumlah_Pembayaran1,\"\"), \"\")","v":""},{"$f":"IFERROR(IF(Pinjaman_Belum_Dibayar*Nilai_Dimasukkan,Tanggal_Pembayaran,\"\"), \"\")","v":""},{"$f":"IFERROR(IF(Pinjaman_Belum_Dibayar*Nilai_Dimasukkan,Saldo_Awal,\"\"), \"\")","v":""},{"$f":"IFERROR(IF(Pinjaman_Belum_Dibayar*Nilai_Dimasukkan,Pembayaran_Bulanan,\"\"), \"\")","v":""},{"$f":"IFERROR(IF(Pinjaman_Belum_Dibayar*Nilai_Dimasukkan,Pinjaman_Pokok,\"\"), \"\")","v":""},{"$f":"IFERROR(IF(Pinjaman_Belum_Dibayar*Nilai_Dimasukkan,Bunga,\"\"), \"\")","v":""},{"$f":"IFERROR(IF(Pinjaman_Belum_Dibayar*Nilai_Dimasukkan,Saldo_Akhir,\"\"), \"\")","v":""}]
[null,{"$f":"IFERROR(IF(Pinjaman_Belum_Dibayar*Nilai_Dimasukkan,Jumlah_Pembayaran1,\"\"), \"\")","v":""},{"$f":"IFERROR(IF(Pinjaman_Belum_Dibayar*Nilai_Dimasukkan,Tanggal_Pembayaran,\"\"), \"\")","v":""},{"$f":"IFERROR(IF(Pinjaman_Belum_Dibayar*Nilai_Dimasukkan,Saldo_Awal,\"\"), \"\")","v":""},{"$f":"IFERROR(IF(Pinjaman_Belum_Dibayar*Nilai_Dimasukkan,Pembayaran_Bulanan,\"\"), \"\")","v":""},{"$f":"IFERROR(IF(Pinjaman_Belum_Dibayar*Nilai_Dimasukkan,Pinjaman_Pokok,\"\"), \"\")","v":""},{"$f":"IFERROR(IF(Pinjaman_Belum_Dibayar*Nilai_Dimasukkan,Bunga,\"\"), \"\")","v":""},{"$f":"IFERROR(IF(Pinjaman_Belum_Dibayar*Nilai_Dimasukkan,Saldo_Akhir,\"\"), \"\")","v":""}]
[null,{"$f":"IFERROR(IF(Pinjaman_Belum_Dibayar*Nilai_Dimasukkan,Jumlah_Pembayaran1,\"\"), \"\")","v":""},{"$f":"IFERROR(IF(Pinjaman_Belum_Dibayar*Nilai_Dimasukkan,Tanggal_Pembayaran,\"\"), \"\")","v":""},{"$f":"IFERROR(IF(Pinjaman_Belum_Dibayar*Nilai_Dimasukkan,Saldo_Awal,\"\"), \"\")","v":""},{"$f":"IFERROR(IF(Pinjaman_Belum_Dibayar*Nilai_Dimasukkan,Pembayaran_Bulanan,\"\"), \"\")","v":""},{"$f":"IFERROR(IF(Pinjaman_Belum_Dibayar*Nilai_Dimasukkan,Pinjaman_Pokok,\"\"), \"\")","v":""},{"$f":"IFERROR(IF(Pinjaman_Belum_Dibayar*Nilai_Dimasukkan,Bunga,\"\"), \"\")","v":""},{"$f":"IFERROR(IF(Pinjaman_Belum_Dibayar*Nilai_Dimasukkan,Saldo_Akhir,\"\"), \"\")","v":""}]
[null,{"$f":"IFERROR(IF(Pinjaman_Belum_Dibayar*Nilai_Dimasukkan,Jumlah_Pembayaran1,\"\"), \"\")","v":""},{"$f":"IFERROR(IF(Pinjaman_Belum_Dibayar*Nilai_Dimasukkan,Tanggal_Pembayaran,\"\"), \"\")","v":""},{"$f":"IFERROR(IF(Pinjaman_Belum_Dibayar*Nilai_Dimasukkan,Saldo_Awal,\"\"), \"\")","v":""},{"$f":"IFERROR(IF(Pinjaman_Belum_Dibayar*Nilai_Dimasukkan,Pembayaran_Bulanan,\"\"), \"\")","v":""},{"$f":"IFERROR(IF(Pinjaman_Belum_Dibayar*Nilai_Dimasukkan,Pinjaman_Pokok,\"\"), \"\")","v":""},{"$f":"IFERROR(IF(Pinjaman_Belum_Dibayar*Nilai_Dimasukkan,Bunga,\"\"), \"\")","v":""},{"$f":"IFERROR(IF(Pinjaman_Belum_Dibayar*Nilai_Dimasukkan,Saldo_Akhir,\"\"), \"\")","v":""}]
[null,{"$f":"IFERROR(IF(Pinjaman_Belum_Dibayar*Nilai_Dimasukkan,Jumlah_Pembayaran1,\"\"), \"\")","v":""},{"$f":"IFERROR(IF(Pinjaman_Belum_Dibayar*Nilai_Dimasukkan,Tanggal_Pembayaran,\"\"), \"\")","v":""},{"$f":"IFERROR(IF(Pinjaman_Belum_Dibayar*Nilai_Dimasukkan,Saldo_Awal,\"\"), \"\")","v":""},{"$f":"IFERROR(IF(Pinjaman_Belum_Dibayar*Nilai_Dimasukkan,Pembayaran_Bulanan,\"\"), \"\")","v":""},{"$f":"IFERROR(IF(Pinjaman_Belum_Dibayar*Nilai_Dimasukkan,Pinjaman_Pokok,\"\"), \"\")","v":""},{"$f":"IFERROR(IF(Pinjaman_Belum_Dibayar*Nilai_Dimasukkan,Bunga,\"\"), \"\")","v":""},{"$f":"IFERROR(IF(Pinjaman_Belum_Dibayar*Nilai_Dimasukkan,Saldo_Akhir,\"\"), \"\")","v":""}]
[null,{"$f":"IFERROR(IF(Pinjaman_Belum_Dibayar*Nilai_Dimasukkan,Jumlah_Pembayaran1,\"\"), \"\")","v":""},{"$f":"IFERROR(IF(Pinjaman_Belum_Dibayar*Nilai_Dimasukkan,Tanggal_Pembayaran,\"\"), \"\")","v":""},{"$f":"IFERROR(IF(Pinjaman_Belum_Dibayar*Nilai_Dimasukkan,Saldo_Awal,\"\"), \"\")","v":""},{"$f":"IFERROR(IF(Pinjaman_Belum_Dibayar*Nilai_Dimasukkan,Pembayaran_Bulanan,\"\"), \"\")","v":""},{"$f":"IFERROR(IF(Pinjaman_Belum_Dibayar*Nilai_Dimasukkan,Pinjaman_Pokok,\"\"), \"\")","v":""},{"$f":"IFERROR(IF(Pinjaman_Belum_Dibayar*Nilai_Dimasukkan,Bunga,\"\"), \"\")","v":""},{"$f":"IFERROR(IF(Pinjaman_Belum_Dibayar*Nilai_Dimasukkan,Saldo_Akhir,\"\"), \"\")","v":""}]
[null,{"$f":"IFERROR(IF(Pinjaman_Belum_Dibayar*Nilai_Dimasukkan,Jumlah_Pembayaran1,\"\"), \"\")","v":""},{"$f":"IFERROR(IF(Pinjaman_Belum_Dibayar*Nilai_Dimasukkan,Tanggal_Pembayaran,\"\"), \"\")","v":""},{"$f":"IFERROR(IF(Pinjaman_Belum_Dibayar*Nilai_Dimasukkan,Saldo_Awal,\"\"), \"\")","v":""},{"$f":"IFERROR(IF(Pinjaman_Belum_Dibayar*Nilai_Dimasukkan,Pembayaran_Bulanan,\"\"), \"\")","v":""},{"$f":"IFERROR(IF(Pinjaman_Belum_Dibayar*Nilai_Dimasukkan,Pinjaman_Pokok,\"\"), \"\")","v":""},{"$f":"IFERROR(IF(Pinjaman_Belum_Dibayar*Nilai_Dimasukkan,Bunga,\"\"), \"\")","v":""},{"$f":"IFERROR(IF(Pinjaman_Belum_Dibayar*Nilai_Dimasukkan,Saldo_Akhir,\"\"), \"\")","v":""}]
[null,{"$f":"IFERROR(IF(Pinjaman_Belum_Dibayar*Nilai_Dimasukkan,Jumlah_Pembayaran1,\"\"), \"\")","v":""},{"$f":"IFERROR(IF(Pinjaman_Belum_Dibayar*Nilai_Dimasukkan,Tanggal_Pembayaran,\"\"), \"\")","v":""},{"$f":"IFERROR(IF(Pinjaman_Belum_Dibayar*Nilai_Dimasukkan,Saldo_Awal,\"\"), \"\")","v":""},{"$f":"IFERROR(IF(Pinjaman_Belum_Dibayar*Nilai_Dimasukkan,Pembayaran_Bulanan,\"\"), \"\")","v":""},{"$f":"IFERROR(IF(Pinjaman_Belum_Dibayar*Nilai_Dimasukkan,Pinjaman_Pokok,\"\"), \"\")","v":""},{"$f":"IFERROR(IF(Pinjaman_Belum_Dibayar*Nilai_Dimasukkan,Bunga,\"\"), \"\")","v":""},{"$f":"IFERROR(IF(Pinjaman_Belum_Dibayar*Nilai_Dimasukkan,Saldo_Akhir,\"\"), \"\")","v":""}]
[null,{"$f":"IFERROR(IF(Pinjaman_Belum_Dibayar*Nilai_Dimasukkan,Jumlah_Pembayaran1,\"\"), \"\")","v":""},{"$f":"IFERROR(IF(Pinjaman_Belum_Dibayar*Nilai_Dimasukkan,Tanggal_Pembayaran,\"\"), \"\")","v":""},{"$f":"IFERROR(IF(Pinjaman_Belum_Dibayar*Nilai_Dimasukkan,Saldo_Awal,\"\"), \"\")","v":""},{"$f":"IFERROR(IF(Pinjaman_Belum_Dibayar*Nilai_Dimasukkan,Pembayaran_Bulanan,\"\"), \"\")","v":""},{"$f":"IFERROR(IF(Pinjaman_Belum_Dibayar*Nilai_Dimasukkan,Pinjaman_Pokok,\"\"), \"\")","v":""},{"$f":"IFERROR(IF(Pinjaman_Belum_Dibayar*Nilai_Dimasukkan,Bunga,\"\"), \"\")","v":""},{"$f":"IFERROR(IF(Pinjaman_Belum_Dibayar*Nilai_Dimasukkan,Saldo_Akhir,\"\"), \"\")","v":""}]
[null,{"$f":"IFERROR(IF(Pinjaman_Belum_Dibayar*Nilai_Dimasukkan,Jumlah_Pembayaran1,\"\"), \"\")","v":""},{"$f":"IFERROR(IF(Pinjaman_Belum_Dibayar*Nilai_Dimasukkan,Tanggal_Pembayaran,\"\"), \"\")","v":""},{"$f":"IFERROR(IF(Pinjaman_Belum_Dibayar*Nilai_Dimasukkan,Saldo_Awal,\"\"), \"\")","v":""},{"$f":"IFERROR(IF(Pinjaman_Belum_Dibayar*Nilai_Dimasukkan,Pembayaran_Bulanan,\"\"), \"\")","v":""},{"$f":"IFERROR(IF(Pinjaman_Belum_Dibayar*Nilai_Dimasukkan,Pinjaman_Pokok,\"\"), \"\")","v":""},{"$f":"IFERROR(IF(Pinjaman_Belum_Dibayar*Nilai_Dimasukkan,Bunga,\"\"), \"\")","v":""},{"$f":"IFERROR(IF(Pinjaman_Belum_Dibayar*Nilai_Dimasukkan,Saldo_Akhir,\"\"), \"\")","v":""}]
[null,{"$f":"IFERROR(IF(Pinjaman_Belum_Dibayar*Nilai_Dimasukkan,Jumlah_Pembayaran1,\"\"), \"\")","v":""},{"$f":"IFERROR(IF(Pinjaman_Belum_Dibayar*Nilai_Dimasukkan,Tanggal_Pembayaran,\"\"), \"\")","v":""},{"$f":"IFERROR(IF(Pinjaman_Belum_Dibayar*Nilai_Dimasukkan,Saldo_Awal,\"\"), \"\")","v":""},{"$f":"IFERROR(IF(Pinjaman_Belum_Dibayar*Nilai_Dimasukkan,Pembayaran_Bulanan,\"\"), \"\")","v":""},{"$f":"IFERROR(IF(Pinjaman_Belum_Dibayar*Nilai_Dimasukkan,Pinjaman_Pokok,\"\"), \"\")","v":""},{"$f":"IFERROR(IF(Pinjaman_Belum_Dibayar*Nilai_Dimasukkan,Bunga,\"\"), \"\")","v":""},{"$f":"IFERROR(IF(Pinjaman_Belum_Dibayar*Nilai_Dimasukkan,Saldo_Akhir,\"\"), \"\")","v":""}]
[null,{"$f":"IFERROR(IF(Pinjaman_Belum_Dibayar*Nilai_Dimasukkan,Jumlah_Pembayaran1,\"\"), \"\")","v":""},{"$f":"IFERROR(IF(Pinjaman_Belum_Dibayar*Nilai_Dimasukkan,Tanggal_Pembayaran,\"\"), \"\")","v":""},{"$f":"IFERROR(IF(Pinjaman_Belum_Dibayar*Nilai_Dimasukkan,Saldo_Awal,\"\"), \"\")","v":""},{"$f":"IFERROR(IF(Pinjaman_Belum_Dibayar*Nilai_Dimasukkan,Pembayaran_Bulanan,\"\"), \"\")","v":""},{"$f":"IFERROR(IF(Pinjaman_Belum_Dibayar*Nilai_Dimasukkan,Pinjaman_Pokok,\"\"), \"\")","v":""},{"$f":"IFERROR(IF(Pinjaman_Belum_Dibayar*Nilai_Dimasukkan,Bunga,\"\"), \"\")","v":""},{"$f":"IFERROR(IF(Pinjaman_Belum_Dibayar*Nilai_Dimasukkan,Saldo_Akhir,\"\"), \"\")","v":""}]
[null,{"$f":"IFERROR(IF(Pinjaman_Belum_Dibayar*Nilai_Dimasukkan,Jumlah_Pembayaran1,\"\"), \"\")","v":""},{"$f":"IFERROR(IF(Pinjaman_Belum_Dibayar*Nilai_Dimasukkan,Tanggal_Pembayaran,\"\"), \"\")","v":""},{"$f":"IFERROR(IF(Pinjaman_Belum_Dibayar*Nilai_Dimasukkan,Saldo_Awal,\"\"), \"\")","v":""},{"$f":"IFERROR(IF(Pinjaman_Belum_Dibayar*Nilai_Dimasukkan,Pembayaran_Bulanan,\"\"), \"\")","v":""},{"$f":"IFERROR(IF(Pinjaman_Belum_Dibayar*Nilai_Dimasukkan,Pinjaman_Pokok,\"\"), \"\")","v":""},{"$f":"IFERROR(IF(Pinjaman_Belum_Dibayar*Nilai_Dimasukkan,Bunga,\"\"), \"\")","v":""},{"$f":"IFERROR(IF(Pinjaman_Belum_Dibayar*Nilai_Dimasukkan,Saldo_Akhir,\"\"), \"\")","v":""}]
[null,{"$f":"IFERROR(IF(Pinjaman_Belum_Dibayar*Nilai_Dimasukkan,Jumlah_Pembayaran1,\"\"), \"\")","v":""},{"$f":"IFERROR(IF(Pinjaman_Belum_Dibayar*Nilai_Dimasukkan,Tanggal_Pembayaran,\"\"), \"\")","v":""},{"$f":"IFERROR(IF(Pinjaman_Belum_Dibayar*Nilai_Dimasukkan,Saldo_Awal,\"\"), \"\")","v":""},{"$f":"IFERROR(IF(Pinjaman_Belum_Dibayar*Nilai_Dimasukkan,Pembayaran_Bulanan,\"\"), \"\")","v":""},{"$f":"IFERROR(IF(Pinjaman_Belum_Dibayar*Nilai_Dimasukkan,Pinjaman_Pokok,\"\"), \"\")","v":""},{"$f":"IFERROR(IF(Pinjaman_Belum_Dibayar*Nilai_Dimasukkan,Bunga,\"\"), \"\")","v":""},{"$f":"IFERROR(IF(Pinjaman_Belum_Dibayar*Nilai_Dimasukkan,Saldo_Akhir,\"\"), \"\")","v":""}]
[null,{"$f":"IFERROR(IF(Pinjaman_Belum_Dibayar*Nilai_Dimasukkan,Jumlah_Pembayaran1,\"\"), \"\")","v":""},{"$f":"IFERROR(IF(Pinjaman_Belum_Dibayar*Nilai_Dimasukkan,Tanggal_Pembayaran,\"\"), \"\")","v":""},{"$f":"IFERROR(IF(Pinjaman_Belum_Dibayar*Nilai_Dimasukkan,Saldo_Awal,\"\"), \"\")","v":""},{"$f":"IFERROR(IF(Pinjaman_Belum_Dibayar*Nilai_Dimasukkan,Pembayaran_Bulanan,\"\"), \"\")","v":""},{"$f":"IFERROR(IF(Pinjaman_Belum_Dibayar*Nilai_Dimasukkan,Pinjaman_Pokok,\"\"), \"\")","v":""},{"$f":"IFERROR(IF(Pinjaman_Belum_Dibayar*Nilai_Dimasukkan,Bunga,\"\"), \"\")","v":""},{"$f":"IFERROR(IF(Pinjaman_Belum_Dibayar*Nilai_Dimasukkan,Saldo_Akhir,\"\"), \"\")","v":""}]
[null,{"$f":"IFERROR(IF(Pinjaman_Belum_Dibayar*Nilai_Dimasukkan,Jumlah_Pembayaran1,\"\"), \"\")","v":""},{"$f":"IFERROR(IF(Pinjaman_Belum_Dibayar*Nilai_Dimasukkan,Tanggal_Pembayaran,\"\"), \"\")","v":""},{"$f":"IFERROR(IF(Pinjaman_Belum_Dibayar*Nilai_Dimasukkan,Saldo_Awal,\"\"), \"\")","v":""},{"$f":"IFERROR(IF(Pinjaman_Belum_Dibayar*Nilai_Dimasukkan,Pembayaran_Bulanan,\"\"), \"\")","v":""},{"$f":"IFERROR(IF(Pinjaman_Belum_Dibayar*Nilai_Dimasukkan,Pinjaman_Pokok,\"\"), \"\")","v":""},{"$f":"IFERROR(IF(Pinjaman_Belum_Dibayar*Nilai_Dimasukkan,Bunga,\"\"), \"\")","v":""},{"$f":"IFERROR(IF(Pinjaman_Belum_Dibayar*Nilai_Dimasukkan,Saldo_Akhir,\"\"), \"\")","v":""}]
[null,{"$f":"IFERROR(IF(Pinjaman_Belum_Dibayar*Nilai_Dimasukkan,Jumlah_Pembayaran1,\"\"), \"\")","v":""},{"$f":"IFERROR(IF(Pinjaman_Belum_Dibayar*Nilai_Dimasukkan,Tanggal_Pembayaran,\"\"), \"\")","v":""},{"$f":"IFERROR(IF(Pinjaman_Belum_Dibayar*Nilai_Dimasukkan,Saldo_Awal,\"\"), \"\")","v":""},{"$f":"IFERROR(IF(Pinjaman_Belum_Dibayar*Nilai_Dimasukkan,Pembayaran_Bulanan,\"\"), \"\")","v":""},{"$f":"IFERROR(IF(Pinjaman_Belum_Dibayar*Nilai_Dimasukkan,Pinjaman_Pokok,\"\"), \"\")","v":""},{"$f":"IFERROR(IF(Pinjaman_Belum_Dibayar*Nilai_Dimasukkan,Bunga,\"\"), \"\")","v":""},{"$f":"IFERROR(IF(Pinjaman_Belum_Dibayar*Nilai_Dimasukkan,Saldo_Akhir,\"\"), \"\")","v":""}]
[null,{"$f":"IFERROR(IF(Pinjaman_Belum_Dibayar*Nilai_Dimasukkan,Jumlah_Pembayaran1,\"\"), \"\")","v":""},{"$f":"IFERROR(IF(Pinjaman_Belum_Dibayar*Nilai_Dimasukkan,Tanggal_Pembayaran,\"\"), \"\")","v":""},{"$f":"IFERROR(IF(Pinjaman_Belum_Dibayar*Nilai_Dimasukkan,Saldo_Awal,\"\"), \"\")","v":""},{"$f":"IFERROR(IF(Pinjaman_Belum_Dibayar*Nilai_Dimasukkan,Pembayaran_Bulanan,\"\"), \"\")","v":""},{"$f":"IFERROR(IF(Pinjaman_Belum_Dibayar*Nilai_Dimasukkan,Pinjaman_Pokok,\"\"), \"\")","v":""},{"$f":"IFERROR(IF(Pinjaman_Belum_Dibayar*Nilai_Dimasukkan,Bunga,\"\"), \"\")","v":""},{"$f":"IFERROR(IF(Pinjaman_Belum_Dibayar*Nilai_Dimasukkan,Saldo_Akhir,\"\"), \"\")","v":""}]
[null,{"$f":"IFERROR(IF(Pinjaman_Belum_Dibayar*Nilai_Dimasukkan,Jumlah_Pembayaran1,\"\"), \"\")","v":""},{"$f":"IFERROR(IF(Pinjaman_Belum_Dibayar*Nilai_Dimasukkan,Tanggal_Pembayaran,\"\"), \"\")","v":""},{"$f":"IFERROR(IF(Pinjaman_Belum_Dibayar*Nilai_Dimasukkan,Saldo_Awal,\"\"), \"\")","v":""},{"$f":"IFERROR(IF(Pinjaman_Belum_Dibayar*Nilai_Dimasukkan,Pembayaran_Bulanan,\"\"), \"\")","v":""},{"$f":"IFERROR(IF(Pinjaman_Belum_Dibayar*Nilai_Dimasukkan,Pinjaman_Pokok,\"\"), \"\")","v":""},{"$f":"IFERROR(IF(Pinjaman_Belum_Dibayar*Nilai_Dimasukkan,Bunga,\"\"), \"\")","v":""},{"$f":"IFERROR(IF(Pinjaman_Belum_Dibayar*Nilai_Dimasukkan,Saldo_Akhir,\"\"), \"\")","v":""}]
[null,{"$f":"IFERROR(IF(Pinjaman_Belum_Dibayar*Nilai_Dimasukkan,Jumlah_Pembayaran1,\"\"), \"\")","v":""},{"$f":"IFERROR(IF(Pinjaman_Belum_Dibayar*Nilai_Dimasukkan,Tanggal_Pembayaran,\"\"), \"\")","v":""},{"$f":"IFERROR(IF(Pinjaman_Belum_Dibayar*Nilai_Dimasukkan,Saldo_Awal,\"\"), \"\")","v":""},{"$f":"IFERROR(IF(Pinjaman_Belum_Dibayar*Nilai_Dimasukkan,Pembayaran_Bulanan,\"\"), \"\")","v":""},{"$f":"IFERROR(IF(Pinjaman_Belum_Dibayar*Nilai_Dimasukkan,Pinjaman_Pokok,\"\"), \"\")","v":""},{"$f":"IFERROR(IF(Pinjaman_Belum_Dibayar*Nilai_Dimasukkan,Bunga,\"\"), \"\")","v":""},{"$f":"IFERROR(IF(Pinjaman_Belum_Dibayar*Nilai_Dimasukkan,Saldo_Akhir,\"\"), \"\")","v":""}]
[null,{"$f":"IFERROR(IF(Pinjaman_Belum_Dibayar*Nilai_Dimasukkan,Jumlah_Pembayaran1,\"\"), \"\")","v":""},{"$f":"IFERROR(IF(Pinjaman_Belum_Dibayar*Nilai_Dimasukkan,Tanggal_Pembayaran,\"\"), \"\")","v":""},{"$f":"IFERROR(IF(Pinjaman_Belum_Dibayar*Nilai_Dimasukkan,Saldo_Awal,\"\"), \"\")","v":""},{"$f":"IFERROR(IF(Pinjaman_Belum_Dibayar*Nilai_Dimasukkan,Pembayaran_Bulanan,\"\"), \"\")","v":""},{"$f":"IFERROR(IF(Pinjaman_Belum_Dibayar*Nilai_Dimasukkan,Pinjaman_Pokok,\"\"), \"\")","v":""},{"$f":"IFERROR(IF(Pinjaman_Belum_Dibayar*Nilai_Dimasukkan,Bunga,\"\"), \"\")","v":""},{"$f":"IFERROR(IF(Pinjaman_Belum_Dibayar*Nilai_Dimasukkan,Saldo_Akhir,\"\"), \"\")","v":""}]
[null,{"$f":"IFERROR(IF(Pinjaman_Belum_Dibayar*Nilai_Dimasukkan,Jumlah_Pembayaran1,\"\"), \"\")","v":""},{"$f":"IFERROR(IF(Pinjaman_Belum_Dibayar*Nilai_Dimasukkan,Tanggal_Pembayaran,\"\"), \"\")","v":""},{"$f":"IFERROR(IF(Pinjaman_Belum_Dibayar*Nilai_Dimasukkan,Saldo_Awal,\"\"), \"\")","v":""},{"$f":"IFERROR(IF(Pinjaman_Belum_Dibayar*Nilai_Dimasukkan,Pembayaran_Bulanan,\"\"), \"\")","v":""},{"$f":"IFERROR(IF(Pinjaman_Belum_Dibayar*Nilai_Dimasukkan,Pinjaman_Pokok,\"\"), \"\")","v":""},{"$f":"IFERROR(IF(Pinjaman_Belum_Dibayar*Nilai_Dimasukkan,Bunga,\"\"), \"\")","v":""},{"$f":"IFERROR(IF(Pinjaman_Belum_Dibayar*Nilai_Dimasukkan,Saldo_Akhir,\"\"), \"\")","v":""}]
[null,{"$f":"IFERROR(IF(Pinjaman_Belum_Dibayar*Nilai_Dimasukkan,Jumlah_Pembayaran1,\"\"), \"\")","v":""},{"$f":"IFERROR(IF(Pinjaman_Belum_Dibayar*Nilai_Dimasukkan,Tanggal_Pembayaran,\"\"), \"\")","v":""},{"$f":"IFERROR(IF(Pinjaman_Belum_Dibayar*Nilai_Dimasukkan,Saldo_Awal,\"\"), \"\")","v":""},{"$f":"IFERROR(IF(Pinjaman_Belum_Dibayar*Nilai_Dimasukkan,Pembayaran_Bulanan,\"\"), \"\")","v":""},{"$f":"IFERROR(IF(Pinjaman_Belum_Dibayar*Nilai_Dimasukkan,Pinjaman_Pokok,\"\"), \"\")","v":""},{"$f":"IFERROR(IF(Pinjaman_Belum_Dibayar*Nilai_Dimasukkan,Bunga,\"\"), \"\")","v":""},{"$f":"IFERROR(IF(Pinjaman_Belum_Dibayar*Nilai_Dimasukkan,Saldo_Akhir,\"\"), \"\")","v":""}]
[null,{"$f":"IFERROR(IF(Pinjaman_Belum_Dibayar*Nilai_Dimasukkan,Jumlah_Pembayaran1,\"\"), \"\")","v":""},{"$f":"IFERROR(IF(Pinjaman_Belum_Dibayar*Nilai_Dimasukkan,Tanggal_Pembayaran,\"\"), \"\")","v":""},{"$f":"IFERROR(IF(Pinjaman_Belum_Dibayar*Nilai_Dimasukkan,Saldo_Awal,\"\"), \"\")","v":""},{"$f":"IFERROR(IF(Pinjaman_Belum_Dibayar*Nilai_Dimasukkan,Pembayaran_Bulanan,\"\"), \"\")","v":""},{"$f":"IFERROR(IF(Pinjaman_Belum_Dibayar*Nilai_Dimasukkan,Pinjaman_Pokok,\"\"), \"\")","v":""},{"$f":"IFERROR(IF(Pinjaman_Belum_Dibayar*Nilai_Dimasukkan,Bunga,\"\"), \"\")","v":""},{"$f":"IFERROR(IF(Pinjaman_Belum_Dibayar*Nilai_Dimasukkan,Saldo_Akhir,\"\"), \"\")","v":""}]
[null,{"$f":"IFERROR(IF(Pinjaman_Belum_Dibayar*Nilai_Dimasukkan,Jumlah_Pembayaran1,\"\"), \"\")","v":""},{"$f":"IFERROR(IF(Pinjaman_Belum_Dibayar*Nilai_Dimasukkan,Tanggal_Pembayaran,\"\"), \"\")","v":""},{"$f":"IFERROR(IF(Pinjaman_Belum_Dibayar*Nilai_Dimasukkan,Saldo_Awal,\"\"), \"\")","v":""},{"$f":"IFERROR(IF(Pinjaman_Belum_Dibayar*Nilai_Dimasukkan,Pembayaran_Bulanan,\"\"), \"\")","v":""},{"$f":"IFERROR(IF(Pinjaman_Belum_Dibayar*Nilai_Dimasukkan,Pinjaman_Pokok,\"\"), \"\")","v":""},{"$f":"IFERROR(IF(Pinjaman_Belum_Dibayar*Nilai_Dimasukkan,Bunga,\"\"), \"\")","v":""},{"$f":"IFERROR(IF(Pinjaman_Belum_Dibayar*Nilai_Dimasukkan,Saldo_Akhir,\"\"), \"\")","v":""}]
[null,{"$f":"IFERROR(IF(Pinjaman_Belum_Dibayar*Nilai_Dimasukkan,Jumlah_Pembayaran1,\"\"), \"\")","v":""},{"$f":"IFERROR(IF(Pinjaman_Belum_Dibayar*Nilai_Dimasukkan,Tanggal_Pembayaran,\"\"), \"\")","v":""},{"$f":"IFERROR(IF(Pinjaman_Belum_Dibayar*Nilai_Dimasukkan,Saldo_Awal,\"\"), \"\")","v":""},{"$f":"IFERROR(IF(Pinjaman_Belum_Dibayar*Nilai_Dimasukkan,Pembayaran_Bulanan,\"\"), \"\")","v":""},{"$f":"IFERROR(IF(Pinjaman_Belum_Dibayar*Nilai_Dimasukkan,Pinjaman_Pokok,\"\"), \"\")","v":""},{"$f":"IFERROR(IF(Pinjaman_Belum_Dibayar*Nilai_Dimasukkan,Bunga,\"\"), \"\")","v":""},{"$f":"IFERROR(IF(Pinjaman_Belum_Dibayar*Nilai_Dimasukkan,Saldo_Akhir,\"\"), \"\")","v":""}]
[null,{"$f":"IFERROR(IF(Pinjaman_Belum_Dibayar*Nilai_Dimasukkan,Jumlah_Pembayaran1,\"\"), \"\")","v":""},{"$f":"IFERROR(IF(Pinjaman_Belum_Dibayar*Nilai_Dimasukkan,Tanggal_Pembayaran,\"\"), \"\")","v":""},{"$f":"IFERROR(IF(Pinjaman_Belum_Dibayar*Nilai_Dimasukkan,Saldo_Awal,\"\"), \"\")","v":""},{"$f":"IFERROR(IF(Pinjaman_Belum_Dibayar*Nilai_Dimasukkan,Pembayaran_Bulanan,\"\"), \"\")","v":""},{"$f":"IFERROR(IF(Pinjaman_Belum_Dibayar*Nilai_Dimasukkan,Pinjaman_Pokok,\"\"), \"\")","v":""},{"$f":"IFERROR(IF(Pinjaman_Belum_Dibayar*Nilai_Dimasukkan,Bunga,\"\"), \"\")","v":""},{"$f":"IFERROR(IF(Pinjaman_Belum_Dibayar*Nilai_Dimasukkan,Saldo_Akhir,\"\"), \"\")","v":""}]
[null,{"$f":"IFERROR(IF(Pinjaman_Belum_Dibayar*Nilai_Dimasukkan,Jumlah_Pembayaran1,\"\"), \"\")","v":""},{"$f":"IFERROR(IF(Pinjaman_Belum_Dibayar*Nilai_Dimasukkan,Tanggal_Pembayaran,\"\"), \"\")","v":""},{"$f":"IFERROR(IF(Pinjaman_Belum_Dibayar*Nilai_Dimasukkan,Saldo_Awal,\"\"), \"\")","v":""},{"$f":"IFERROR(IF(Pinjaman_Belum_Dibayar*Nilai_Dimasukkan,Pembayaran_Bulanan,\"\"), \"\")","v":""},{"$f":"IFERROR(IF(Pinjaman_Belum_Dibayar*Nilai_Dimasukkan,Pinjaman_Pokok,\"\"), \"\")","v":""},{"$f":"IFERROR(IF(Pinjaman_Belum_Dibayar*Nilai_Dimasukkan,Bunga,\"\"), \"\")","v":""},{"$f":"IFERROR(IF(Pinjaman_Belum_Dibayar*Nilai_Dimasukkan,Saldo_Akhir,\"\"), \"\")","v":""}]
[null,{"$f":"IFERROR(IF(Pinjaman_Belum_Dibayar*Nilai_Dimasukkan,Jumlah_Pembayaran1,\"\"), \"\")","v":""},{"$f":"IFERROR(IF(Pinjaman_Belum_Dibayar*Nilai_Dimasukkan,Tanggal_Pembayaran,\"\"), \"\")","v":""},{"$f":"IFERROR(IF(Pinjaman_Belum_Dibayar*Nilai_Dimasukkan,Saldo_Awal,\"\"), \"\")","v":""},{"$f":"IFERROR(IF(Pinjaman_Belum_Dibayar*Nilai_Dimasukkan,Pembayaran_Bulanan,\"\"), \"\")","v":""},{"$f":"IFERROR(IF(Pinjaman_Belum_Dibayar*Nilai_Dimasukkan,Pinjaman_Pokok,\"\"), \"\")","v":""},{"$f":"IFERROR(IF(Pinjaman_Belum_Dibayar*Nilai_Dimasukkan,Bunga,\"\"), \"\")","v":""},{"$f":"IFERROR(IF(Pinjaman_Belum_Dibayar*Nilai_Dimasukkan,Saldo_Akhir,\"\"), \"\")","v":""}]
[null,{"$f":"IFERROR(IF(Pinjaman_Belum_Dibayar*Nilai_Dimasukkan,Jumlah_Pembayaran1,\"\"), \"\")","v":""},{"$f":"IFERROR(IF(Pinjaman_Belum_Dibayar*Nilai_Dimasukkan,Tanggal_Pembayaran,\"\"), \"\")","v":""},{"$f":"IFERROR(IF(Pinjaman_Belum_Dibayar*Nilai_Dimasukkan,Saldo_Awal,\"\"), \"\")","v":""},{"$f":"IFERROR(IF(Pinjaman_Belum_Dibayar*Nilai_Dimasukkan,Pembayaran_Bulanan,\"\"), \"\")","v":""},{"$f":"IFERROR(IF(Pinjaman_Belum_Dibayar*Nilai_Dimasukkan,Pinjaman_Pokok,\"\"), \"\")","v":""},{"$f":"IFERROR(IF(Pinjaman_Belum_Dibayar*Nilai_Dimasukkan,Bunga,\"\"), \"\")","v":""},{"$f":"IFERROR(IF(Pinjaman_Belum_Dibayar*Nilai_Dimasukkan,Saldo_Akhir,\"\"), \"\")","v":""}]
[null,{"$f":"IFERROR(IF(Pinjaman_Belum_Dibayar*Nilai_Dimasukkan,Jumlah_Pembayaran1,\"\"), \"\")","v":""},{"$f":"IFERROR(IF(Pinjaman_Belum_Dibayar*Nilai_Dimasukkan,Tanggal_Pembayaran,\"\"), \"\")","v":""},{"$f":"IFERROR(IF(Pinjaman_Belum_Dibayar*Nilai_Dimasukkan,Saldo_Awal,\"\"), \"\")","v":""},{"$f":"IFERROR(IF(Pinjaman_Belum_Dibayar*Nilai_Dimasukkan,Pembayaran_Bulanan,\"\"), \"\")","v":""},{"$f":"IFERROR(IF(Pinjaman_Belum_Dibayar*Nilai_Dimasukkan,Pinjaman_Pokok,\"\"), \"\")","v":""},{"$f":"IFERROR(IF(Pinjaman_Belum_Dibayar*Nilai_Dimasukkan,Bunga,\"\"), \"\")","v":""},{"$f":"IFERROR(IF(Pinjaman_Belum_Dibayar*Nilai_Dimasukkan,Saldo_Akhir,\"\"), \"\")","v":""}]
[null,{"$f":"IFERROR(IF(Pinjaman_Belum_Dibayar*Nilai_Dimasukkan,Jumlah_Pembayaran1,\"\"), \"\")","v":""},{"$f":"IFERROR(IF(Pinjaman_Belum_Dibayar*Nilai_Dimasukkan,Tanggal_Pembayaran,\"\"), \"\")","v":""},{"$f":"IFERROR(IF(Pinjaman_Belum_Dibayar*Nilai_Dimasukkan,Saldo_Awal,\"\"), \"\")","v":""},{"$f":"IFERROR(IF(Pinjaman_Belum_Dibayar*Nilai_Dimasukkan,Pembayaran_Bulanan,\"\"), \"\")","v":""},{"$f":"IFERROR(IF(Pinjaman_Belum_Dibayar*Nilai_Dimasukkan,Pinjaman_Pokok,\"\"), \"\")","v":""},{"$f":"IFERROR(IF(Pinjaman_Belum_Dibayar*Nilai_Dimasukkan,Bunga,\"\"), \"\")","v":""},{"$f":"IFERROR(IF(Pinjaman_Belum_Dibayar*Nilai_Dimasukkan,Saldo_Akhir,\"\"), \"\")","v":""}]
[null,{"$f":"IFERROR(IF(Pinjaman_Belum_Dibayar*Nilai_Dimasukkan,Jumlah_Pembayaran1,\"\"), \"\")","v":""},{"$f":"IFERROR(IF(Pinjaman_Belum_Dibayar*Nilai_Dimasukkan,Tanggal_Pembayaran,\"\"), \"\")","v":""},{"$f":"IFERROR(IF(Pinjaman_Belum_Dibayar*Nilai_Dimasukkan,Saldo_Awal,\"\"), \"\")","v":""},{"$f":"IFERROR(IF(Pinjaman_Belum_Dibayar*Nilai_Dimasukkan,Pembayaran_Bulanan,\"\"), \"\")","v":""},{"$f":"IFERROR(IF(Pinjaman_Belum_Dibayar*Nilai_Dimasukkan,Pinjaman_Pokok,\"\"), \"\")","v":""},{"$f":"IFERROR(IF(Pinjaman_Belum_Dibayar*Nilai_Dimasukkan,Bunga,\"\"), \"\")","v":""},{"$f":"IFERROR(IF(Pinjaman_Belum_Dibayar*Nilai_Dimasukkan,Saldo_Akhir,\"\"), \"\")","v":""}]
[null,{"$f":"IFERROR(IF(Pinjaman_Belum_Dibayar*Nilai_Dimasukkan,Jumlah_Pembayaran1,\"\"), \"\")","v":""},{"$f":"IFERROR(IF(Pinjaman_Belum_Dibayar*Nilai_Dimasukkan,Tanggal_Pembayaran,\"\"), \"\")","v":""},{"$f":"IFERROR(IF(Pinjaman_Belum_Dibayar*Nilai_Dimasukkan,Saldo_Awal,\"\"), \"\")","v":""},{"$f":"IFERROR(IF(Pinjaman_Belum_Dibayar*Nilai_Dimasukkan,Pembayaran_Bulanan,\"\"), \"\")","v":""},{"$f":"IFERROR(IF(Pinjaman_Belum_Dibayar*Nilai_Dimasukkan,Pinjaman_Pokok,\"\"), \"\")","v":""},{"$f":"IFERROR(IF(Pinjaman_Belum_Dibayar*Nilai_Dimasukkan,Bunga,\"\"), \"\")","v":""},{"$f":"IFERROR(IF(Pinjaman_Belum_Dibayar*Nilai_Dimasukkan,Saldo_Akhir,\"\"), \"\")","v":""}]
[null,{"$f":"IFERROR(IF(Pinjaman_Belum_Dibayar*Nilai_Dimasukkan,Jumlah_Pembayaran1,\"\"), \"\")","v":""},{"$f":"IFERROR(IF(Pinjaman_Belum_Dibayar*Nilai_Dimasukkan,Tanggal_Pembayaran,\"\"), \"\")","v":""},{"$f":"IFERROR(IF(Pinjaman_Belum_Dibayar*Nilai_Dimasukkan,Saldo_Awal,\"\"), \"\")","v":""},{"$f":"IFERROR(IF(Pinjaman_Belum_Dibayar*Nilai_Dimasukkan,Pembayaran_Bulanan,\"\"), \"\")","v":""},{"$f":"IFERROR(IF(Pinjaman_Belum_Dibayar*Nilai_Dimasukkan,Pinjaman_Pokok,\"\"), \"\")","v":""},{"$f":"IFERROR(IF(Pinjaman_Belum_Dibayar*Nilai_Dimasukkan,Bunga,\"\"), \"\")","v":""},{"$f":"IFERROR(IF(Pinjaman_Belum_Dibayar*Nilai_Dimasukkan,Saldo_Akhir,\"\"), \"\")","v":""}]
[null,{"$f":"IFERROR(IF(Pinjaman_Belum_Dibayar*Nilai_Dimasukkan,Jumlah_Pembayaran1,\"\"), \"\")","v":""},{"$f":"IFERROR(IF(Pinjaman_Belum_Dibayar*Nilai_Dimasukkan,Tanggal_Pembayaran,\"\"), \"\")","v":""},{"$f":"IFERROR(IF(Pinjaman_Belum_Dibayar*Nilai_Dimasukkan,Saldo_Awal,\"\"), \"\")","v":""},{"$f":"IFERROR(IF(Pinjaman_Belum_Dibayar*Nilai_Dimasukkan,Pembayaran_Bulanan,\"\"), \"\")","v":""},{"$f":"IFERROR(IF(Pinjaman_Belum_Dibayar*Nilai_Dimasukkan,Pinjaman_Pokok,\"\"), \"\")","v":""},{"$f":"IFERROR(IF(Pinjaman_Belum_Dibayar*Nilai_Dimasukkan,Bunga,\"\"), \"\")","v":""},{"$f":"IFERROR(IF(Pinjaman_Belum_Dibayar*Nilai_Dimasukkan,Saldo_Akhir,\"\"), \"\")","v":""}]
[null,{"$f":"IFERROR(IF(Pinjaman_Belum_Dibayar*Nilai_Dimasukkan,Jumlah_Pembayaran1,\"\"), \"\")","v":""},{"$f":"IFERROR(IF(Pinjaman_Belum_Dibayar*Nilai_Dimasukkan,Tanggal_Pembayaran,\"\"), \"\")","v":""},{"$f":"IFERROR(IF(Pinjaman_Belum_Dibayar*Nilai_Dimasukkan,Saldo_Awal,\"\"), \"\")","v":""},{"$f":"IFERROR(IF(Pinjaman_Belum_Dibayar*Nilai_Dimasukkan,Pembayaran_Bulanan,\"\"), \"\")","v":""},{"$f":"IFERROR(IF(Pinjaman_Belum_Dibayar*Nilai_Dimasukkan,Pinjaman_Pokok,\"\"), \"\")","v":""},{"$f":"IFERROR(IF(Pinjaman_Belum_Dibayar*Nilai_Dimasukkan,Bunga,\"\"), \"\")","v":""},{"$f":"IFERROR(IF(Pinjaman_Belum_Dibayar*Nilai_Dimasukkan,Saldo_Akhir,\"\"), \"\")","v":""}]
[null,{"$f":"IFERROR(IF(Pinjaman_Belum_Dibayar*Nilai_Dimasukkan,Jumlah_Pembayaran1,\"\"), \"\")","v":""},{"$f":"IFERROR(IF(Pinjaman_Belum_Dibayar*Nilai_Dimasukkan,Tanggal_Pembayaran,\"\"), \"\")","v":""},{"$f":"IFERROR(IF(Pinjaman_Belum_Dibayar*Nilai_Dimasukkan,Saldo_Awal,\"\"), \"\")","v":""},{"$f":"IFERROR(IF(Pinjaman_Belum_Dibayar*Nilai_Dimasukkan,Pembayaran_Bulanan,\"\"), \"\")","v":""},{"$f":"IFERROR(IF(Pinjaman_Belum_Dibayar*Nilai_Dimasukkan,Pinjaman_Pokok,\"\"), \"\")","v":""},{"$f":"IFERROR(IF(Pinjaman_Belum_Dibayar*Nilai_Dimasukkan,Bunga,\"\"), \"\")","v":""},{"$f":"IFERROR(IF(Pinjaman_Belum_Dibayar*Nilai_Dimasukkan,Saldo_Akhir,\"\"), \"\")","v":""}]
[null,{"$f":"IFERROR(IF(Pinjaman_Belum_Dibayar*Nilai_Dimasukkan,Jumlah_Pembayaran1,\"\"), \"\")","v":""},{"$f":"IFERROR(IF(Pinjaman_Belum_Dibayar*Nilai_Dimasukkan,Tanggal_Pembayaran,\"\"), \"\")","v":""},{"$f":"IFERROR(IF(Pinjaman_Belum_Dibayar*Nilai_Dimasukkan,Saldo_Awal,\"\"), \"\")","v":""},{"$f":"IFERROR(IF(Pinjaman_Belum_Dibayar*Nilai_Dimasukkan,Pembayaran_Bulanan,\"\"), \"\")","v":""},{"$f":"IFERROR(IF(Pinjaman_Belum_Dibayar*Nilai_Dimasukkan,Pinjaman_Pokok,\"\"), \"\")","v":""},{"$f":"IFERROR(IF(Pinjaman_Belum_Dibayar*Nilai_Dimasukkan,Bunga,\"\"), \"\")","v":""},{"$f":"IFERROR(IF(Pinjaman_Belum_Dibayar*Nilai_Dimasukkan,Saldo_Akhir,\"\"), \"\")","v":""}]
[null,{"$f":"IFERROR(IF(Pinjaman_Belum_Dibayar*Nilai_Dimasukkan,Jumlah_Pembayaran1,\"\"), \"\")","v":""},{"$f":"IFERROR(IF(Pinjaman_Belum_Dibayar*Nilai_Dimasukkan,Tanggal_Pembayaran,\"\"), \"\")","v":""},{"$f":"IFERROR(IF(Pinjaman_Belum_Dibayar*Nilai_Dimasukkan,Saldo_Awal,\"\"), \"\")","v":""},{"$f":"IFERROR(IF(Pinjaman_Belum_Dibayar*Nilai_Dimasukkan,Pembayaran_Bulanan,\"\"), \"\")","v":""},{"$f":"IFERROR(IF(Pinjaman_Belum_Dibayar*Nilai_Dimasukkan,Pinjaman_Pokok,\"\"), \"\")","v":""},{"$f":"IFERROR(IF(Pinjaman_Belum_Dibayar*Nilai_Dimasukkan,Bunga,\"\"), \"\")","v":""},{"$f":"IFERROR(IF(Pinjaman_Belum_Dibayar*Nilai_Dimasukkan,Saldo_Akhir,\"\"), \"\")","v":""}]
[null,{"$f":"IFERROR(IF(Pinjaman_Belum_Dibayar*Nilai_Dimasukkan,Jumlah_Pembayaran1,\"\"), \"\")","v":""},{"$f":"IFERROR(IF(Pinjaman_Belum_Dibayar*Nilai_Dimasukkan,Tanggal_Pembayaran,\"\"), \"\")","v":""},{"$f":"IFERROR(IF(Pinjaman_Belum_Dibayar*Nilai_Dimasukkan,Saldo_Awal,\"\"), \"\")","v":""},{"$f":"IFERROR(IF(Pinjaman_Belum_Dibayar*Nilai_Dimasukkan,Pembayaran_Bulanan,\"\"), \"\")","v":""},{"$f":"IFERROR(IF(Pinjaman_Belum_Dibayar*Nilai_Dimasukkan,Pinjaman_Pokok,\"\"), \"\")","v":""},{"$f":"IFERROR(IF(Pinjaman_Belum_Dibayar*Nilai_Dimasukkan,Bunga,\"\"), \"\")","v":""},{"$f":"IFERROR(IF(Pinjaman_Belum_Dibayar*Nilai_Dimasukkan,Saldo_Akhir,\"\"), \"\")","v":""}]
[null,{"$f":"IFERROR(IF(Pinjaman_Belum_Dibayar*Nilai_Dimasukkan,Jumlah_Pembayaran1,\"\"), \"\")","v":""},{"$f":"IFERROR(IF(Pinjaman_Belum_Dibayar*Nilai_Dimasukkan,Tanggal_Pembayaran,\"\"), \"\")","v":""},{"$f":"IFERROR(IF(Pinjaman_Belum_Dibayar*Nilai_Dimasukkan,Saldo_Awal,\"\"), \"\")","v":""},{"$f":"IFERROR(IF(Pinjaman_Belum_Dibayar*Nilai_Dimasukkan,Pembayaran_Bulanan,\"\"), \"\")","v":""},{"$f":"IFERROR(IF(Pinjaman_Belum_Dibayar*Nilai_Dimasukkan,Pinjaman_Pokok,\"\"), \"\")","v":""},{"$f":"IFERROR(IF(Pinjaman_Belum_Dibayar*Nilai_Dimasukkan,Bunga,\"\"), \"\")","v":""},{"$f":"IFERROR(IF(Pinjaman_Belum_Dibayar*Nilai_Dimasukkan,Saldo_Akhir,\"\"), \"\")","v":""}]
[null,{"$f":"IFERROR(IF(Pinjaman_Belum_Dibayar*Nilai_Dimasukkan,Jumlah_Pembayaran1,\"\"), \"\")","v":""},{"$f":"IFERROR(IF(Pinjaman_Belum_Dibayar*Nilai_Dimasukkan,Tanggal_Pembayaran,\"\"), \"\")","v":""},{"$f":"IFERROR(IF(Pinjaman_Belum_Dibayar*Nilai_Dimasukkan,Saldo_Awal,\"\"), \"\")","v":""},{"$f":"IFERROR(IF(Pinjaman_Belum_Dibayar*Nilai_Dimasukkan,Pembayaran_Bulanan,\"\"), \"\")","v":""},{"$f":"IFERROR(IF(Pinjaman_Belum_Dibayar*Nilai_Dimasukkan,Pinjaman_Pokok,\"\"), \"\")","v":""},{"$f":"IFERROR(IF(Pinjaman_Belum_Dibayar*Nilai_Dimasukkan,Bunga,\"\"), \"\")","v":""},{"$f":"IFERROR(IF(Pinjaman_Belum_Dibayar*Nilai_Dimasukkan,Saldo_Akhir,\"\"), \"\")","v":""}]
[null,{"$f":"IFERROR(IF(Pinjaman_Belum_Dibayar*Nilai_Dimasukkan,Jumlah_Pembayaran1,\"\"), \"\")","v":""},{"$f":"IFERROR(IF(Pinjaman_Belum_Dibayar*Nilai_Dimasukkan,Tanggal_Pembayaran,\"\"), \"\")","v":""},{"$f":"IFERROR(IF(Pinjaman_Belum_Dibayar*Nilai_Dimasukkan,Saldo_Awal,\"\"), \"\")","v":""},{"$f":"IFERROR(IF(Pinjaman_Belum_Dibayar*Nilai_Dimasukkan,Pembayaran_Bulanan,\"\"), \"\")","v":""},{"$f":"IFERROR(IF(Pinjaman_Belum_Dibayar*Nilai_Dimasukkan,Pinjaman_Pokok,\"\"), \"\")","v":""},{"$f":"IFERROR(IF(Pinjaman_Belum_Dibayar*Nilai_Dimasukkan,Bunga,\"\"), \"\")","v":""},{"$f":"IFERROR(IF(Pinjaman_Belum_Dibayar*Nilai_Dimasukkan,Saldo_Akhir,\"\"), \"\")","v":""}]
[null,{"$f":"IFERROR(IF(Pinjaman_Belum_Dibayar*Nilai_Dimasukkan,Jumlah_Pembayaran1,\"\"), \"\")","v":""},{"$f":"IFERROR(IF(Pinjaman_Belum_Dibayar*Nilai_Dimasukkan,Tanggal_Pembayaran,\"\"), \"\")","v":""},{"$f":"IFERROR(IF(Pinjaman_Belum_Dibayar*Nilai_Dimasukkan,Saldo_Awal,\"\"), \"\")","v":""},{"$f":"IFERROR(IF(Pinjaman_Belum_Dibayar*Nilai_Dimasukkan,Pembayaran_Bulanan,\"\"), \"\")","v":""},{"$f":"IFERROR(IF(Pinjaman_Belum_Dibayar*Nilai_Dimasukkan,Pinjaman_Pokok,\"\"), \"\")","v":""},{"$f":"IFERROR(IF(Pinjaman_Belum_Dibayar*Nilai_Dimasukkan,Bunga,\"\"), \"\")","v":""},{"$f":"IFERROR(IF(Pinjaman_Belum_Dibayar*Nilai_Dimasukkan,Saldo_Akhir,\"\"), \"\")","v":""}]
[null,{"$f":"IFERROR(IF(Pinjaman_Belum_Dibayar*Nilai_Dimasukkan,Jumlah_Pembayaran1,\"\"), \"\")","v":""},{"$f":"IFERROR(IF(Pinjaman_Belum_Dibayar*Nilai_Dimasukkan,Tanggal_Pembayaran,\"\"), \"\")","v":""},{"$f":"IFERROR(IF(Pinjaman_Belum_Dibayar*Nilai_Dimasukkan,Saldo_Awal,\"\"), \"\")","v":""},{"$f":"IFERROR(IF(Pinjaman_Belum_Dibayar*Nilai_Dimasukkan,Pembayaran_Bulanan,\"\"), \"\")","v":""},{"$f":"IFERROR(IF(Pinjaman_Belum_Dibayar*Nilai_Dimasukkan,Pinjaman_Pokok,\"\"), \"\")","v":""},{"$f":"IFERROR(IF(Pinjaman_Belum_Dibayar*Nilai_Dimasukkan,Bunga,\"\"), \"\")","v":""},{"$f":"IFERROR(IF(Pinjaman_Belum_Dibayar*Nilai_Dimasukkan,Saldo_Akhir,\"\"), \"\")","v":""}]
[null,{"$f":"IFERROR(IF(Pinjaman_Belum_Dibayar*Nilai_Dimasukkan,Jumlah_Pembayaran1,\"\"), \"\")","v":""},{"$f":"IFERROR(IF(Pinjaman_Belum_Dibayar*Nilai_Dimasukkan,Tanggal_Pembayaran,\"\"), \"\")","v":""},{"$f":"IFERROR(IF(Pinjaman_Belum_Dibayar*Nilai_Dimasukkan,Saldo_Awal,\"\"), \"\")","v":""},{"$f":"IFERROR(IF(Pinjaman_Belum_Dibayar*Nilai_Dimasukkan,Pembayaran_Bulanan,\"\"), \"\")","v":""},{"$f":"IFERROR(IF(Pinjaman_Belum_Dibayar*Nilai_Dimasukkan,Pinjaman_Pokok,\"\"), \"\")","v":""},{"$f":"IFERROR(IF(Pinjaman_Belum_Dibayar*Nilai_Dimasukkan,Bunga,\"\"), \"\")","v":""},{"$f":"IFERROR(IF(Pinjaman_Belum_Dibayar*Nilai_Dimasukkan,Saldo_Akhir,\"\"), \"\")","v":""}]
[null,{"$f":"IFERROR(IF(Pinjaman_Belum_Dibayar*Nilai_Dimasukkan,Jumlah_Pembayaran1,\"\"), \"\")","v":""},{"$f":"IFERROR(IF(Pinjaman_Belum_Dibayar*Nilai_Dimasukkan,Tanggal_Pembayaran,\"\"), \"\")","v":""},{"$f":"IFERROR(IF(Pinjaman_Belum_Dibayar*Nilai_Dimasukkan,Saldo_Awal,\"\"), \"\")","v":""},{"$f":"IFERROR(IF(Pinjaman_Belum_Dibayar*Nilai_Dimasukkan,Pembayaran_Bulanan,\"\"), \"\")","v":""},{"$f":"IFERROR(IF(Pinjaman_Belum_Dibayar*Nilai_Dimasukkan,Pinjaman_Pokok,\"\"), \"\")","v":""},{"$f":"IFERROR(IF(Pinjaman_Belum_Dibayar*Nilai_Dimasukkan,Bunga,\"\"), \"\")","v":""},{"$f":"IFERROR(IF(Pinjaman_Belum_Dibayar*Nilai_Dimasukkan,Saldo_Akhir,\"\"), \"\")","v":""}]
[null,{"$f":"IFERROR(IF(Pinjaman_Belum_Dibayar*Nilai_Dimasukkan,Jumlah_Pembayaran1,\"\"), \"\")","v":""},{"$f":"IFERROR(IF(Pinjaman_Belum_Dibayar*Nilai_Dimasukkan,Tanggal_Pembayaran,\"\"), \"\")","v":""},{"$f":"IFERROR(IF(Pinjaman_Belum_Dibayar*Nilai_Dimasukkan,Saldo_Awal,\"\"), \"\")","v":""},{"$f":"IFERROR(IF(Pinjaman_Belum_Dibayar*Nilai_Dimasukkan,Pembayaran_Bulanan,\"\"), \"\")","v":""},{"$f":"IFERROR(IF(Pinjaman_Belum_Dibayar*Nilai_Dimasukkan,Pinjaman_Pokok,\"\"), \"\")","v":""},{"$f":"IFERROR(IF(Pinjaman_Belum_Dibayar*Nilai_Dimasukkan,Bunga,\"\"), \"\")","v":""},{"$f":"IFERROR(IF(Pinjaman_Belum_Dibayar*Nilai_Dimasukkan,Saldo_Akhir,\"\"), \"\")","v":""}]
[null,{"$f":"IFERROR(IF(Pinjaman_Belum_Dibayar*Nilai_Dimasukkan,Jumlah_Pembayaran1,\"\"), \"\")","v":""},{"$f":"IFERROR(IF(Pinjaman_Belum_Dibayar*Nilai_Dimasukkan,Tanggal_Pembayaran,\"\"), \"\")","v":""},{"$f":"IFERROR(IF(Pinjaman_Belum_Dibayar*Nilai_Dimasukkan,Saldo_Awal,\"\"), \"\")","v":""},{"$f":"IFERROR(IF(Pinjaman_Belum_Dibayar*Nilai_Dimasukkan,Pembayaran_Bulanan,\"\"), \"\")","v":""},{"$f":"IFERROR(IF(Pinjaman_Belum_Dibayar*Nilai_Dimasukkan,Pinjaman_Pokok,\"\"), \"\")","v":""},{"$f":"IFERROR(IF(Pinjaman_Belum_Dibayar*Nilai_Dimasukkan,Bunga,\"\"), \"\")","v":""},{"$f":"IFERROR(IF(Pinjaman_Belum_Dibayar*Nilai_Dimasukkan,Saldo_Akhir,\"\"), \"\")","v":""}]
[null,{"$f":"IFERROR(IF(Pinjaman_Belum_Dibayar*Nilai_Dimasukkan,Jumlah_Pembayaran1,\"\"), \"\")","v":""},{"$f":"IFERROR(IF(Pinjaman_Belum_Dibayar*Nilai_Dimasukkan,Tanggal_Pembayaran,\"\"), \"\")","v":""},{"$f":"IFERROR(IF(Pinjaman_Belum_Dibayar*Nilai_Dimasukkan,Saldo_Awal,\"\"), \"\")","v":""},{"$f":"IFERROR(IF(Pinjaman_Belum_Dibayar*Nilai_Dimasukkan,Pembayaran_Bulanan,\"\"), \"\")","v":""},{"$f":"IFERROR(IF(Pinjaman_Belum_Dibayar*Nilai_Dimasukkan,Pinjaman_Pokok,\"\"), \"\")","v":""},{"$f":"IFERROR(IF(Pinjaman_Belum_Dibayar*Nilai_Dimasukkan,Bunga,\"\"), \"\")","v":""},{"$f":"IFERROR(IF(Pinjaman_Belum_Dibayar*Nilai_Dimasukkan,Saldo_Akhir,\"\"), \"\")","v":""}]
[null,{"$f":"IFERROR(IF(Pinjaman_Belum_Dibayar*Nilai_Dimasukkan,Jumlah_Pembayaran1,\"\"), \"\")","v":""},{"$f":"IFERROR(IF(Pinjaman_Belum_Dibayar*Nilai_Dimasukkan,Tanggal_Pembayaran,\"\"), \"\")","v":""},{"$f":"IFERROR(IF(Pinjaman_Belum_Dibayar*Nilai_Dimasukkan,Saldo_Awal,\"\"), \"\")","v":""},{"$f":"IFERROR(IF(Pinjaman_Belum_Dibayar*Nilai_Dimasukkan,Pembayaran_Bulanan,\"\"), \"\")","v":""},{"$f":"IFERROR(IF(Pinjaman_Belum_Dibayar*Nilai_Dimasukkan,Pinjaman_Pokok,\"\"), \"\")","v":""},{"$f":"IFERROR(IF(Pinjaman_Belum_Dibayar*Nilai_Dimasukkan,Bunga,\"\"), \"\")","v":""},{"$f":"IFERROR(IF(Pinjaman_Belum_Dibayar*Nilai_Dimasukkan,Saldo_Akhir,\"\"), \"\")","v":""}]
[null,{"$f":"IFERROR(IF(Pinjaman_Belum_Dibayar*Nilai_Dimasukkan,Jumlah_Pembayaran1,\"\"), \"\")","v":""},{"$f":"IFERROR(IF(Pinjaman_Belum_Dibayar*Nilai_Dimasukkan,Tanggal_Pembayaran,\"\"), \"\")","v":""},{"$f":"IFERROR(IF(Pinjaman_Belum_Dibayar*Nilai_Dimasukkan,Saldo_Awal,\"\"), \"\")","v":""},{"$f":"IFERROR(IF(Pinjaman_Belum_Dibayar*Nilai_Dimasukkan,Pembayaran_Bulanan,\"\"), \"\")","v":""},{"$f":"IFERROR(IF(Pinjaman_Belum_Dibayar*Nilai_Dimasukkan,Pinjaman_Pokok,\"\"), \"\")","v":""},{"$f":"IFERROR(IF(Pinjaman_Belum_Dibayar*Nilai_Dimasukkan,Bunga,\"\"), \"\")","v":""},{"$f":"IFERROR(IF(Pinjaman_Belum_Dibayar*Nilai_Dimasukkan,Saldo_Akhir,\"\"), \"\")","v":""}]
[null,{"$f":"IFERROR(IF(Pinjaman_Belum_Dibayar*Nilai_Dimasukkan,Jumlah_Pembayaran1,\"\"), \"\")","v":""},{"$f":"IFERROR(IF(Pinjaman_Belum_Dibayar*Nilai_Dimasukkan,Tanggal_Pembayaran,\"\"), \"\")","v":""},{"$f":"IFERROR(IF(Pinjaman_Belum_Dibayar*Nilai_Dimasukkan,Saldo_Awal,\"\"), \"\")","v":""},{"$f":"IFERROR(IF(Pinjaman_Belum_Dibayar*Nilai_Dimasukkan,Pembayaran_Bulanan,\"\"), \"\")","v":""},{"$f":"IFERROR(IF(Pinjaman_Belum_Dibayar*Nilai_Dimasukkan,Pinjaman_Pokok,\"\"), \"\")","v":""},{"$f":"IFERROR(IF(Pinjaman_Belum_Dibayar*Nilai_Dimasukkan,Bunga,\"\"), \"\")","v":""},{"$f":"IFERROR(IF(Pinjaman_Belum_Dibayar*Nilai_Dimasukkan,Saldo_Akhir,\"\"), \"\")","v":""}]
[null,{"$f":"IFERROR(IF(Pinjaman_Belum_Dibayar*Nilai_Dimasukkan,Jumlah_Pembayaran1,\"\"), \"\")","v":""},{"$f":"IFERROR(IF(Pinjaman_Belum_Dibayar*Nilai_Dimasukkan,Tanggal_Pembayaran,\"\"), \"\")","v":""},{"$f":"IFERROR(IF(Pinjaman_Belum_Dibayar*Nilai_Dimasukkan,Saldo_Awal,\"\"), \"\")","v":""},{"$f":"IFERROR(IF(Pinjaman_Belum_Dibayar*Nilai_Dimasukkan,Pembayaran_Bulanan,\"\"), \"\")","v":""},{"$f":"IFERROR(IF(Pinjaman_Belum_Dibayar*Nilai_Dimasukkan,Pinjaman_Pokok,\"\"), \"\")","v":""},{"$f":"IFERROR(IF(Pinjaman_Belum_Dibayar*Nilai_Dimasukkan,Bunga,\"\"), \"\")","v":""},{"$f":"IFERROR(IF(Pinjaman_Belum_Dibayar*Nilai_Dimasukkan,Saldo_Akhir,\"\"), \"\")","v":""}]
[null,{"$f":"IFERROR(IF(Pinjaman_Belum_Dibayar*Nilai_Dimasukkan,Jumlah_Pembayaran1,\"\"), \"\")","v":""},{"$f":"IFERROR(IF(Pinjaman_Belum_Dibayar*Nilai_Dimasukkan,Tanggal_Pembayaran,\"\"), \"\")","v":""},{"$f":"IFERROR(IF(Pinjaman_Belum_Dibayar*Nilai_Dimasukkan,Saldo_Awal,\"\"), \"\")","v":""},{"$f":"IFERROR(IF(Pinjaman_Belum_Dibayar*Nilai_Dimasukkan,Pembayaran_Bulanan,\"\"), \"\")","v":""},{"$f":"IFERROR(IF(Pinjaman_Belum_Dibayar*Nilai_Dimasukkan,Pinjaman_Pokok,\"\"), \"\")","v":""},{"$f":"IFERROR(IF(Pinjaman_Belum_Dibayar*Nilai_Dimasukkan,Bunga,\"\"), \"\")","v":""},{"$f":"IFERROR(IF(Pinjaman_Belum_Dibayar*Nilai_Dimasukkan,Saldo_Akhir,\"\"), \"\")","v":""}]
[null,{"$f":"IFERROR(IF(Pinjaman_Belum_Dibayar*Nilai_Dimasukkan,Jumlah_Pembayaran1,\"\"), \"\")","v":""},{"$f":"IFERROR(IF(Pinjaman_Belum_Dibayar*Nilai_Dimasukkan,Tanggal_Pembayaran,\"\"), \"\")","v":""},{"$f":"IFERROR(IF(Pinjaman_Belum_Dibayar*Nilai_Dimasukkan,Saldo_Awal,\"\"), \"\")","v":""},{"$f":"IFERROR(IF(Pinjaman_Belum_Dibayar*Nilai_Dimasukkan,Pembayaran_Bulanan,\"\"), \"\")","v":""},{"$f":"IFERROR(IF(Pinjaman_Belum_Dibayar*Nilai_Dimasukkan,Pinjaman_Pokok,\"\"), \"\")","v":""},{"$f":"IFERROR(IF(Pinjaman_Belum_Dibayar*Nilai_Dimasukkan,Bunga,\"\"), \"\")","v":""},{"$f":"IFERROR(IF(Pinjaman_Belum_Dibayar*Nilai_Dimasukkan,Saldo_Akhir,\"\"), \"\")","v":""}]
[null,{"$f":"IFERROR(IF(Pinjaman_Belum_Dibayar*Nilai_Dimasukkan,Jumlah_Pembayaran1,\"\"), \"\")","v":""},{"$f":"IFERROR(IF(Pinjaman_Belum_Dibayar*Nilai_Dimasukkan,Tanggal_Pembayaran,\"\"), \"\")","v":""},{"$f":"IFERROR(IF(Pinjaman_Belum_Dibayar*Nilai_Dimasukkan,Saldo_Awal,\"\"), \"\")","v":""},{"$f":"IFERROR(IF(Pinjaman_Belum_Dibayar*Nilai_Dimasukkan,Pembayaran_Bulanan,\"\"), \"\")","v":""},{"$f":"IFERROR(IF(Pinjaman_Belum_Dibayar*Nilai_Dimasukkan,Pinjaman_Pokok,\"\"), \"\")","v":""},{"$f":"IFERROR(IF(Pinjaman_Belum_Dibayar*Nilai_Dimasukkan,Bunga,\"\"), \"\")","v":""},{"$f":"IFERROR(IF(Pinjaman_Belum_Dibayar*Nilai_Dimasukkan,Saldo_Akhir,\"\"), \"\")","v":""}]
[null,{"$f":"IFERROR(IF(Pinjaman_Belum_Dibayar*Nilai_Dimasukkan,Jumlah_Pembayaran1,\"\"), \"\")","v":""},{"$f":"IFERROR(IF(Pinjaman_Belum_Dibayar*Nilai_Dimasukkan,Tanggal_Pembayaran,\"\"), \"\")","v":""},{"$f":"IFERROR(IF(Pinjaman_Belum_Dibayar*Nilai_Dimasukkan,Saldo_Awal,\"\"), \"\")","v":""},{"$f":"IFERROR(IF(Pinjaman_Belum_Dibayar*Nilai_Dimasukkan,Pembayaran_Bulanan,\"\"), \"\")","v":""},{"$f":"IFERROR(IF(Pinjaman_Belum_Dibayar*Nilai_Dimasukkan,Pinjaman_Pokok,\"\"), \"\")","v":""},{"$f":"IFERROR(IF(Pinjaman_Belum_Dibayar*Nilai_Dimasukkan,Bunga,\"\"), \"\")","v":""},{"$f":"IFERROR(IF(Pinjaman_Belum_Dibayar*Nilai_Dimasukkan,Saldo_Akhir,\"\"), \"\")","v":""}]
[null,{"$f":"IFERROR(IF(Pinjaman_Belum_Dibayar*Nilai_Dimasukkan,Jumlah_Pembayaran1,\"\"), \"\")","v":""},{"$f":"IFERROR(IF(Pinjaman_Belum_Dibayar*Nilai_Dimasukkan,Tanggal_Pembayaran,\"\"), \"\")","v":""},{"$f":"IFERROR(IF(Pinjaman_Belum_Dibayar*Nilai_Dimasukkan,Saldo_Awal,\"\"), \"\")","v":""},{"$f":"IFERROR(IF(Pinjaman_Belum_Dibayar*Nilai_Dimasukkan,Pembayaran_Bulanan,\"\"), \"\")","v":""},{"$f":"IFERROR(IF(Pinjaman_Belum_Dibayar*Nilai_Dimasukkan,Pinjaman_Pokok,\"\"), \"\")","v":""},{"$f":"IFERROR(IF(Pinjaman_Belum_Dibayar*Nilai_Dimasukkan,Bunga,\"\"), \"\")","v":""},{"$f":"IFERROR(IF(Pinjaman_Belum_Dibayar*Nilai_Dimasukkan,Saldo_Akhir,\"\"), \"\")","v":""}]
[null,{"$f":"IFERROR(IF(Pinjaman_Belum_Dibayar*Nilai_Dimasukkan,Jumlah_Pembayaran1,\"\"), \"\")","v":""},{"$f":"IFERROR(IF(Pinjaman_Belum_Dibayar*Nilai_Dimasukkan,Tanggal_Pembayaran,\"\"), \"\")","v":""},{"$f":"IFERROR(IF(Pinjaman_Belum_Dibayar*Nilai_Dimasukkan,Saldo_Awal,\"\"), \"\")","v":""},{"$f":"IFERROR(IF(Pinjaman_Belum_Dibayar*Nilai_Dimasukkan,Pembayaran_Bulanan,\"\"), \"\")","v":""},{"$f":"IFERROR(IF(Pinjaman_Belum_Dibayar*Nilai_Dimasukkan,Pinjaman_Pokok,\"\"), \"\")","v":""},{"$f":"IFERROR(IF(Pinjaman_Belum_Dibayar*Nilai_Dimasukkan,Bunga,\"\"), \"\")","v":""},{"$f":"IFERROR(IF(Pinjaman_Belum_Dibayar*Nilai_Dimasukkan,Saldo_Akhir,\"\"), \"\")","v":""}]
[null,{"$f":"IFERROR(IF(Pinjaman_Belum_Dibayar*Nilai_Dimasukkan,Jumlah_Pembayaran1,\"\"), \"\")","v":""},{"$f":"IFERROR(IF(Pinjaman_Belum_Dibayar*Nilai_Dimasukkan,Tanggal_Pembayaran,\"\"), \"\")","v":""},{"$f":"IFERROR(IF(Pinjaman_Belum_Dibayar*Nilai_Dimasukkan,Saldo_Awal,\"\"), \"\")","v":""},{"$f":"IFERROR(IF(Pinjaman_Belum_Dibayar*Nilai_Dimasukkan,Pembayaran_Bulanan,\"\"), \"\")","v":""},{"$f":"IFERROR(IF(Pinjaman_Belum_Dibayar*Nilai_Dimasukkan,Pinjaman_Pokok,\"\"), \"\")","v":""},{"$f":"IFERROR(IF(Pinjaman_Belum_Dibayar*Nilai_Dimasukkan,Bunga,\"\"), \"\")","v":""},{"$f":"IFERROR(IF(Pinjaman_Belum_Dibayar*Nilai_Dimasukkan,Saldo_Akhir,\"\"), \"\")","v":""}]
[null,{"$f":"IFERROR(IF(Pinjaman_Belum_Dibayar*Nilai_Dimasukkan,Jumlah_Pembayaran1,\"\"), \"\")","v":""},{"$f":"IFERROR(IF(Pinjaman_Belum_Dibayar*Nilai_Dimasukkan,Tanggal_Pembayaran,\"\"), \"\")","v":""},{"$f":"IFERROR(IF(Pinjaman_Belum_Dibayar*Nilai_Dimasukkan,Saldo_Awal,\"\"), \"\")","v":""},{"$f":"IFERROR(IF(Pinjaman_Belum_Dibayar*Nilai_Dimasukkan,Pembayaran_Bulanan,\"\"), \"\")","v":""},{"$f":"IFERROR(IF(Pinjaman_Belum_Dibayar*Nilai_Dimasukkan,Pinjaman_Pokok,\"\"), \"\")","v":""},{"$f":"IFERROR(IF(Pinjaman_Belum_Dibayar*Nilai_Dimasukkan,Bunga,\"\"), \"\")","v":""},{"$f":"IFERROR(IF(Pinjaman_Belum_Dibayar*Nilai_Dimasukkan,Saldo_Akhir,\"\"), \"\")","v":""}]
[null,{"$f":"IFERROR(IF(Pinjaman_Belum_Dibayar*Nilai_Dimasukkan,Jumlah_Pembayaran1,\"\"), \"\")","v":""},{"$f":"IFERROR(IF(Pinjaman_Belum_Dibayar*Nilai_Dimasukkan,Tanggal_Pembayaran,\"\"), \"\")","v":""},{"$f":"IFERROR(IF(Pinjaman_Belum_Dibayar*Nilai_Dimasukkan,Saldo_Awal,\"\"), \"\")","v":""},{"$f":"IFERROR(IF(Pinjaman_Belum_Dibayar*Nilai_Dimasukkan,Pembayaran_Bulanan,\"\"), \"\")","v":""},{"$f":"IFERROR(IF(Pinjaman_Belum_Dibayar*Nilai_Dimasukkan,Pinjaman_Pokok,\"\"), \"\")","v":""},{"$f":"IFERROR(IF(Pinjaman_Belum_Dibayar*Nilai_Dimasukkan,Bunga,\"\"), \"\")","v":""},{"$f":"IFERROR(IF(Pinjaman_Belum_Dibayar*Nilai_Dimasukkan,Saldo_Akhir,\"\"), \"\")","v":""}]
[null,{"$f":"IFERROR(IF(Pinjaman_Belum_Dibayar*Nilai_Dimasukkan,Jumlah_Pembayaran1,\"\"), \"\")","v":""},{"$f":"IFERROR(IF(Pinjaman_Belum_Dibayar*Nilai_Dimasukkan,Tanggal_Pembayaran,\"\"), \"\")","v":""},{"$f":"IFERROR(IF(Pinjaman_Belum_Dibayar*Nilai_Dimasukkan,Saldo_Awal,\"\"), \"\")","v":""},{"$f":"IFERROR(IF(Pinjaman_Belum_Dibayar*Nilai_Dimasukkan,Pembayaran_Bulanan,\"\"), \"\")","v":""},{"$f":"IFERROR(IF(Pinjaman_Belum_Dibayar*Nilai_Dimasukkan,Pinjaman_Pokok,\"\"), \"\")","v":""},{"$f":"IFERROR(IF(Pinjaman_Belum_Dibayar*Nilai_Dimasukkan,Bunga,\"\"), \"\")","v":""},{"$f":"IFERROR(IF(Pinjaman_Belum_Dibayar*Nilai_Dimasukkan,Saldo_Akhir,\"\"), \"\")","v":""}]
[null,{"$f":"IFERROR(IF(Pinjaman_Belum_Dibayar*Nilai_Dimasukkan,Jumlah_Pembayaran1,\"\"), \"\")","v":""},{"$f":"IFERROR(IF(Pinjaman_Belum_Dibayar*Nilai_Dimasukkan,Tanggal_Pembayaran,\"\"), \"\")","v":""},{"$f":"IFERROR(IF(Pinjaman_Belum_Dibayar*Nilai_Dimasukkan,Saldo_Awal,\"\"), \"\")","v":""},{"$f":"IFERROR(IF(Pinjaman_Belum_Dibayar*Nilai_Dimasukkan,Pembayaran_Bulanan,\"\"), \"\")","v":""},{"$f":"IFERROR(IF(Pinjaman_Belum_Dibayar*Nilai_Dimasukkan,Pinjaman_Pokok,\"\"), \"\")","v":""},{"$f":"IFERROR(IF(Pinjaman_Belum_Dibayar*Nilai_Dimasukkan,Bunga,\"\"), \"\")","v":""},{"$f":"IFERROR(IF(Pinjaman_Belum_Dibayar*Nilai_Dimasukkan,Saldo_Akhir,\"\"), \"\")","v":""}]
[null,{"$f":"IFERROR(IF(Pinjaman_Belum_Dibayar*Nilai_Dimasukkan,Jumlah_Pembayaran1,\"\"), \"\")","v":""},{"$f":"IFERROR(IF(Pinjaman_Belum_Dibayar*Nilai_Dimasukkan,Tanggal_Pembayaran,\"\"), \"\")","v":""},{"$f":"IFERROR(IF(Pinjaman_Belum_Dibayar*Nilai_Dimasukkan,Saldo_Awal,\"\"), \"\")","v":""},{"$f":"IFERROR(IF(Pinjaman_Belum_Dibayar*Nilai_Dimasukkan,Pembayaran_Bulanan,\"\"), \"\")","v":""},{"$f":"IFERROR(IF(Pinjaman_Belum_Dibayar*Nilai_Dimasukkan,Pinjaman_Pokok,\"\"), \"\")","v":""},{"$f":"IFERROR(IF(Pinjaman_Belum_Dibayar*Nilai_Dimasukkan,Bunga,\"\"), \"\")","v":""},{"$f":"IFERROR(IF(Pinjaman_Belum_Dibayar*Nilai_Dimasukkan,Saldo_Akhir,\"\"), \"\")","v":""}]
[null,{"$f":"IFERROR(IF(Pinjaman_Belum_Dibayar*Nilai_Dimasukkan,Jumlah_Pembayaran1,\"\"), \"\")","v":""},{"$f":"IFERROR(IF(Pinjaman_Belum_Dibayar*Nilai_Dimasukkan,Tanggal_Pembayaran,\"\"), \"\")","v":""},{"$f":"IFERROR(IF(Pinjaman_Belum_Dibayar*Nilai_Dimasukkan,Saldo_Awal,\"\"), \"\")","v":""},{"$f":"IFERROR(IF(Pinjaman_Belum_Dibayar*Nilai_Dimasukkan,Pembayaran_Bulanan,\"\"), \"\")","v":""},{"$f":"IFERROR(IF(Pinjaman_Belum_Dibayar*Nilai_Dimasukkan,Pinjaman_Pokok,\"\"), \"\")","v":""},{"$f":"IFERROR(IF(Pinjaman_Belum_Dibayar*Nilai_Dimasukkan,Bunga,\"\"), \"\")","v":""},{"$f":"IFERROR(IF(Pinjaman_Belum_Dibayar*Nilai_Dimasukkan,Saldo_Akhir,\"\"), \"\")","v":""}]
[null,{"$f":"IFERROR(IF(Pinjaman_Belum_Dibayar*Nilai_Dimasukkan,Jumlah_Pembayaran1,\"\"), \"\")","v":""},{"$f":"IFERROR(IF(Pinjaman_Belum_Dibayar*Nilai_Dimasukkan,Tanggal_Pembayaran,\"\"), \"\")","v":""},{"$f":"IFERROR(IF(Pinjaman_Belum_Dibayar*Nilai_Dimasukkan,Saldo_Awal,\"\"), \"\")","v":""},{"$f":"IFERROR(IF(Pinjaman_Belum_Dibayar*Nilai_Dimasukkan,Pembayaran_Bulanan,\"\"), \"\")","v":""},{"$f":"IFERROR(IF(Pinjaman_Belum_Dibayar*Nilai_Dimasukkan,Pinjaman_Pokok,\"\"), \"\")","v":""},{"$f":"IFERROR(IF(Pinjaman_Belum_Dibayar*Nilai_Dimasukkan,Bunga,\"\"), \"\")","v":""},{"$f":"IFERROR(IF(Pinjaman_Belum_Dibayar*Nilai_Dimasukkan,Saldo_Akhir,\"\"), \"\")","v":""}]
[null,{"$f":"IFERROR(IF(Pinjaman_Belum_Dibayar*Nilai_Dimasukkan,Jumlah_Pembayaran1,\"\"), \"\")","v":""},{"$f":"IFERROR(IF(Pinjaman_Belum_Dibayar*Nilai_Dimasukkan,Tanggal_Pembayaran,\"\"), \"\")","v":""},{"$f":"IFERROR(IF(Pinjaman_Belum_Dibayar*Nilai_Dimasukkan,Saldo_Awal,\"\"), \"\")","v":""},{"$f":"IFERROR(IF(Pinjaman_Belum_Dibayar*Nilai_Dimasukkan,Pembayaran_Bulanan,\"\"), \"\")","v":""},{"$f":"IFERROR(IF(Pinjaman_Belum_Dibayar*Nilai_Dimasukkan,Pinjaman_Pokok,\"\"), \"\")","v":""},{"$f":"IFERROR(IF(Pinjaman_Belum_Dibayar*Nilai_Dimasukkan,Bunga,\"\"), \"\")","v":""},{"$f":"IFERROR(IF(Pinjaman_Belum_Dibayar*Nilai_Dimasukkan,Saldo_Akhir,\"\"), \"\")","v":""}]
[null,{"$f":"IFERROR(IF(Pinjaman_Belum_Dibayar*Nilai_Dimasukkan,Jumlah_Pembayaran1,\"\"), \"\")","v":""},{"$f":"IFERROR(IF(Pinjaman_Belum_Dibayar*Nilai_Dimasukkan,Tanggal_Pembayaran,\"\"), \"\")","v":""},{"$f":"IFERROR(IF(Pinjaman_Belum_Dibayar*Nilai_Dimasukkan,Saldo_Awal,\"\"), \"\")","v":""},{"$f":"IFERROR(IF(Pinjaman_Belum_Dibayar*Nilai_Dimasukkan,Pembayaran_Bulanan,\"\"), \"\")","v":""},{"$f":"IFERROR(IF(Pinjaman_Belum_Dibayar*Nilai_Dimasukkan,Pinjaman_Pokok,\"\"), \"\")","v":""},{"$f":"IFERROR(IF(Pinjaman_Belum_Dibayar*Nilai_Dimasukkan,Bunga,\"\"), \"\")","v":""},{"$f":"IFERROR(IF(Pinjaman_Belum_Dibayar*Nilai_Dimasukkan,Saldo_Akhir,\"\"), \"\")","v":""}]
[null,{"$f":"IFERROR(IF(Pinjaman_Belum_Dibayar*Nilai_Dimasukkan,Jumlah_Pembayaran1,\"\"), \"\")","v":""},{"$f":"IFERROR(IF(Pinjaman_Belum_Dibayar*Nilai_Dimasukkan,Tanggal_Pembayaran,\"\"), \"\")","v":""},{"$f":"IFERROR(IF(Pinjaman_Belum_Dibayar*Nilai_Dimasukkan,Saldo_Awal,\"\"), \"\")","v":""},{"$f":"IFERROR(IF(Pinjaman_Belum_Dibayar*Nilai_Dimasukkan,Pembayaran_Bulanan,\"\"), \"\")","v":""},{"$f":"IFERROR(IF(Pinjaman_Belum_Dibayar*Nilai_Dimasukkan,Pinjaman_Pokok,\"\"), \"\")","v":""},{"$f":"IFERROR(IF(Pinjaman_Belum_Dibayar*Nilai_Dimasukkan,Bunga,\"\"), \"\")","v":""},{"$f":"IFERROR(IF(Pinjaman_Belum_Dibayar*Nilai_Dimasukkan,Saldo_Akhir,\"\"), \"\")","v":""}]
[null,{"$f":"IFERROR(IF(Pinjaman_Belum_Dibayar*Nilai_Dimasukkan,Jumlah_Pembayaran1,\"\"), \"\")","v":""},{"$f":"IFERROR(IF(Pinjaman_Belum_Dibayar*Nilai_Dimasukkan,Tanggal_Pembayaran,\"\"), \"\")","v":""},{"$f":"IFERROR(IF(Pinjaman_Belum_Dibayar*Nilai_Dimasukkan,Saldo_Awal,\"\"), \"\")","v":""},{"$f":"IFERROR(IF(Pinjaman_Belum_Dibayar*Nilai_Dimasukkan,Pembayaran_Bulanan,\"\"), \"\")","v":""},{"$f":"IFERROR(IF(Pinjaman_Belum_Dibayar*Nilai_Dimasukkan,Pinjaman_Pokok,\"\"), \"\")","v":""},{"$f":"IFERROR(IF(Pinjaman_Belum_Dibayar*Nilai_Dimasukkan,Bunga,\"\"), \"\")","v":""},{"$f":"IFERROR(IF(Pinjaman_Belum_Dibayar*Nilai_Dimasukkan,Saldo_Akhir,\"\"), \"\")","v":""}]
[null,{"$f":"IFERROR(IF(Pinjaman_Belum_Dibayar*Nilai_Dimasukkan,Jumlah_Pembayaran1,\"\"), \"\")","v":""},{"$f":"IFERROR(IF(Pinjaman_Belum_Dibayar*Nilai_Dimasukkan,Tanggal_Pembayaran,\"\"), \"\")","v":""},{"$f":"IFERROR(IF(Pinjaman_Belum_Dibayar*Nilai_Dimasukkan,Saldo_Awal,\"\"), \"\")","v":""},{"$f":"IFERROR(IF(Pinjaman_Belum_Dibayar*Nilai_Dimasukkan,Pembayaran_Bulanan,\"\"), \"\")","v":""},{"$f":"IFERROR(IF(Pinjaman_Belum_Dibayar*Nilai_Dimasukkan,Pinjaman_Pokok,\"\"), \"\")","v":""},{"$f":"IFERROR(IF(Pinjaman_Belum_Dibayar*Nilai_Dimasukkan,Bunga,\"\"), \"\")","v":""},{"$f":"IFERROR(IF(Pinjaman_Belum_Dibayar*Nilai_Dimasukkan,Saldo_Akhir,\"\"), \"\")","v":""}]
[null,{"$f":"IFERROR(IF(Pinjaman_Belum_Dibayar*Nilai_Dimasukkan,Jumlah_Pembayaran1,\"\"), \"\")","v":""},{"$f":"IFERROR(IF(Pinjaman_Belum_Dibayar*Nilai_Dimasukkan,Tanggal_Pembayaran,\"\"), \"\")","v":""},{"$f":"IFERROR(IF(Pinjaman_Belum_Dibayar*Nilai_Dimasukkan,Saldo_Awal,\"\"), \"\")","v":""},{"$f":"IFERROR(IF(Pinjaman_Belum_Dibayar*Nilai_Dimasukkan,Pembayaran_Bulanan,\"\"), \"\")","v":""},{"$f":"IFERROR(IF(Pinjaman_Belum_Dibayar*Nilai_Dimasukkan,Pinjaman_Pokok,\"\"), \"\")","v":""},{"$f":"IFERROR(IF(Pinjaman_Belum_Dibayar*Nilai_Dimasukkan,Bunga,\"\"), \"\")","v":""},{"$f":"IFERROR(IF(Pinjaman_Belum_Dibayar*Nilai_Dimasukkan,Saldo_Akhir,\"\"), \"\")","v":""}]
[null,{"$f":"IFERROR(IF(Pinjaman_Belum_Dibayar*Nilai_Dimasukkan,Jumlah_Pembayaran1,\"\"), \"\")","v":""},{"$f":"IFERROR(IF(Pinjaman_Belum_Dibayar*Nilai_Dimasukkan,Tanggal_Pembayaran,\"\"), \"\")","v":""},{"$f":"IFERROR(IF(Pinjaman_Belum_Dibayar*Nilai_Dimasukkan,Saldo_Awal,\"\"), \"\")","v":""},{"$f":"IFERROR(IF(Pinjaman_Belum_Dibayar*Nilai_Dimasukkan,Pembayaran_Bulanan,\"\"), \"\")","v":""},{"$f":"IFERROR(IF(Pinjaman_Belum_Dibayar*Nilai_Dimasukkan,Pinjaman_Pokok,\"\"), \"\")","v":""},{"$f":"IFERROR(IF(Pinjaman_Belum_Dibayar*Nilai_Dimasukkan,Bunga,\"\"), \"\")","v":""},{"$f":"IFERROR(IF(Pinjaman_Belum_Dibayar*Nilai_Dimasukkan,Saldo_Akhir,\"\"), \"\")","v":""}]
[null,{"$f":"IFERROR(IF(Pinjaman_Belum_Dibayar*Nilai_Dimasukkan,Jumlah_Pembayaran1,\"\"), \"\")","v":""},{"$f":"IFERROR(IF(Pinjaman_Belum_Dibayar*Nilai_Dimasukkan,Tanggal_Pembayaran,\"\"), \"\")","v":""},{"$f":"IFERROR(IF(Pinjaman_Belum_Dibayar*Nilai_Dimasukkan,Saldo_Awal,\"\"), \"\")","v":""},{"$f":"IFERROR(IF(Pinjaman_Belum_Dibayar*Nilai_Dimasukkan,Pembayaran_Bulanan,\"\"), \"\")","v":""},{"$f":"IFERROR(IF(Pinjaman_Belum_Dibayar*Nilai_Dimasukkan,Pinjaman_Pokok,\"\"), \"\")","v":""},{"$f":"IFERROR(IF(Pinjaman_Belum_Dibayar*Nilai_Dimasukkan,Bunga,\"\"), \"\")","v":""},{"$f":"IFERROR(IF(Pinjaman_Belum_Dibayar*Nilai_Dimasukkan,Saldo_Akhir,\"\"), \"\")","v":""}]
[null,{"$f":"IFERROR(IF(Pinjaman_Belum_Dibayar*Nilai_Dimasukkan,Jumlah_Pembayaran1,\"\"), \"\")","v":""},{"$f":"IFERROR(IF(Pinjaman_Belum_Dibayar*Nilai_Dimasukkan,Tanggal_Pembayaran,\"\"), \"\")","v":""},{"$f":"IFERROR(IF(Pinjaman_Belum_Dibayar*Nilai_Dimasukkan,Saldo_Awal,\"\"), \"\")","v":""},{"$f":"IFERROR(IF(Pinjaman_Belum_Dibayar*Nilai_Dimasukkan,Pembayaran_Bulanan,\"\"), \"\")","v":""},{"$f":"IFERROR(IF(Pinjaman_Belum_Dibayar*Nilai_Dimasukkan,Pinjaman_Pokok,\"\"), \"\")","v":""},{"$f":"IFERROR(IF(Pinjaman_Belum_Dibayar*Nilai_Dimasukkan,Bunga,\"\"), \"\")","v":""},{"$f":"IFERROR(IF(Pinjaman_Belum_Dibayar*Nilai_Dimasukkan,Saldo_Akhir,\"\"), \"\")","v":""}]
[null,{"$f":"IFERROR(IF(Pinjaman_Belum_Dibayar*Nilai_Dimasukkan,Jumlah_Pembayaran1,\"\"), \"\")","v":""},{"$f":"IFERROR(IF(Pinjaman_Belum_Dibayar*Nilai_Dimasukkan,Tanggal_Pembayaran,\"\"), \"\")","v":""},{"$f":"IFERROR(IF(Pinjaman_Belum_Dibayar*Nilai_Dimasukkan,Saldo_Awal,\"\"), \"\")","v":""},{"$f":"IFERROR(IF(Pinjaman_Belum_Dibayar*Nilai_Dimasukkan,Pembayaran_Bulanan,\"\"), \"\")","v":""},{"$f":"IFERROR(IF(Pinjaman_Belum_Dibayar*Nilai_Dimasukkan,Pinjaman_Pokok,\"\"), \"\")","v":""},{"$f":"IFERROR(IF(Pinjaman_Belum_Dibayar*Nilai_Dimasukkan,Bunga,\"\"), \"\")","v":""},{"$f":"IFERROR(IF(Pinjaman_Belum_Dibayar*Nilai_Dimasukkan,Saldo_Akhir,\"\"), \"\")","v":""}]
[null,{"$f":"IFERROR(IF(Pinjaman_Belum_Dibayar*Nilai_Dimasukkan,Jumlah_Pembayaran1,\"\"), \"\")","v":""},{"$f":"IFERROR(IF(Pinjaman_Belum_Dibayar*Nilai_Dimasukkan,Tanggal_Pembayaran,\"\"), \"\")","v":""},{"$f":"IFERROR(IF(Pinjaman_Belum_Dibayar*Nilai_Dimasukkan,Saldo_Awal,\"\"), \"\")","v":""},{"$f":"IFERROR(IF(Pinjaman_Belum_Dibayar*Nilai_Dimasukkan,Pembayaran_Bulanan,\"\"), \"\")","v":""},{"$f":"IFERROR(IF(Pinjaman_Belum_Dibayar*Nilai_Dimasukkan,Pinjaman_Pokok,\"\"), \"\")","v":""},{"$f":"IFERROR(IF(Pinjaman_Belum_Dibayar*Nilai_Dimasukkan,Bunga,\"\"), \"\")","v":""},{"$f":"IFERROR(IF(Pinjaman_Belum_Dibayar*Nilai_Dimasukkan,Saldo_Akhir,\"\"), \"\")","v":""}]
[null,{"$f":"IFERROR(IF(Pinjaman_Belum_Dibayar*Nilai_Dimasukkan,Jumlah_Pembayaran1,\"\"), \"\")","v":""},{"$f":"IFERROR(IF(Pinjaman_Belum_Dibayar*Nilai_Dimasukkan,Tanggal_Pembayaran,\"\"), \"\")","v":""},{"$f":"IFERROR(IF(Pinjaman_Belum_Dibayar*Nilai_Dimasukkan,Saldo_Awal,\"\"), \"\")","v":""},{"$f":"IFERROR(IF(Pinjaman_Belum_Dibayar*Nilai_Dimasukkan,Pembayaran_Bulanan,\"\"), \"\")","v":""},{"$f":"IFERROR(IF(Pinjaman_Belum_Dibayar*Nilai_Dimasukkan,Pinjaman_Pokok,\"\"), \"\")","v":""},{"$f":"IFERROR(IF(Pinjaman_Belum_Dibayar*Nilai_Dimasukkan,Bunga,\"\"), \"\")","v":""},{"$f":"IFERROR(IF(Pinjaman_Belum_Dibayar*Nilai_Dimasukkan,Saldo_Akhir,\"\"), \"\")","v":""}]
[null,{"$f":"IFERROR(IF(Pinjaman_Belum_Dibayar*Nilai_Dimasukkan,Jumlah_Pembayaran1,\"\"), \"\")","v":""},{"$f":"IFERROR(IF(Pinjaman_Belum_Dibayar*Nilai_Dimasukkan,Tanggal_Pembayaran,\"\"), \"\")","v":""},{"$f":"IFERROR(IF(Pinjaman_Belum_Dibayar*Nilai_Dimasukkan,Saldo_Awal,\"\"), \"\")","v":""},{"$f":"IFERROR(IF(Pinjaman_Belum_Dibayar*Nilai_Dimasukkan,Pembayaran_Bulanan,\"\"), \"\")","v":""},{"$f":"IFERROR(IF(Pinjaman_Belum_Dibayar*Nilai_Dimasukkan,Pinjaman_Pokok,\"\"), \"\")","v":""},{"$f":"IFERROR(IF(Pinjaman_Belum_Dibayar*Nilai_Dimasukkan,Bunga,\"\"), \"\")","v":""},{"$f":"IFERROR(IF(Pinjaman_Belum_Dibayar*Nilai_Dimasukkan,Saldo_Akhir,\"\"), \"\")","v":""}]
[null,{"$f":"IFERROR(IF(Pinjaman_Belum_Dibayar*Nilai_Dimasukkan,Jumlah_Pembayaran1,\"\"), \"\")","v":""},{"$f":"IFERROR(IF(Pinjaman_Belum_Dibayar*Nilai_Dimasukkan,Tanggal_Pembayaran,\"\"), \"\")","v":""},{"$f":"IFERROR(IF(Pinjaman_Belum_Dibayar*Nilai_Dimasukkan,Saldo_Awal,\"\"), \"\")","v":""},{"$f":"IFERROR(IF(Pinjaman_Belum_Dibayar*Nilai_Dimasukkan,Pembayaran_Bulanan,\"\"), \"\")","v":""},{"$f":"IFERROR(IF(Pinjaman_Belum_Dibayar*Nilai_Dimasukkan,Pinjaman_Pokok,\"\"), \"\")","v":""},{"$f":"IFERROR(IF(Pinjaman_Belum_Dibayar*Nilai_Dimasukkan,Bunga,\"\"), \"\")","v":""},{"$f":"IFERROR(IF(Pinjaman_Belum_Dibayar*Nilai_Dimasukkan,Saldo_Akhir,\"\"), \"\")","v":""}]
[null,{"$f":"IFERROR(IF(Pinjaman_Belum_Dibayar*Nilai_Dimasukkan,Jumlah_Pembayaran1,\"\"), \"\")","v":""},{"$f":"IFERROR(IF(Pinjaman_Belum_Dibayar*Nilai_Dimasukkan,Tanggal_Pembayaran,\"\"), \"\")","v":""},{"$f":"IFERROR(IF(Pinjaman_Belum_Dibayar*Nilai_Dimasukkan,Saldo_Awal,\"\"), \"\")","v":""},{"$f":"IFERROR(IF(Pinjaman_Belum_Dibayar*Nilai_Dimasukkan,Pembayaran_Bulanan,\"\"), \"\")","v":""},{"$f":"IFERROR(IF(Pinjaman_Belum_Dibayar*Nilai_Dimasukkan,Pinjaman_Pokok,\"\"), \"\")","v":""},{"$f":"IFERROR(IF(Pinjaman_Belum_Dibayar*Nilai_Dimasukkan,Bunga,\"\"), \"\")","v":""},{"$f":"IFERROR(IF(Pinjaman_Belum_Dibayar*Nilai_Dimasukkan,Saldo_Akhir,\"\"), \"\")","v":""}]
[null,{"$f":"IFERROR(IF(Pinjaman_Belum_Dibayar*Nilai_Dimasukkan,Jumlah_Pembayaran1,\"\"), \"\")","v":""},{"$f":"IFERROR(IF(Pinjaman_Belum_Dibayar*Nilai_Dimasukkan,Tanggal_Pembayaran,\"\"), \"\")","v":""},{"$f":"IFERROR(IF(Pinjaman_Belum_Dibayar*Nilai_Dimasukkan,Saldo_Awal,\"\"), \"\")","v":""},{"$f":"IFERROR(IF(Pinjaman_Belum_Dibayar*Nilai_Dimasukkan,Pembayaran_Bulanan,\"\"), \"\")","v":""},{"$f":"IFERROR(IF(Pinjaman_Belum_Dibayar*Nilai_Dimasukkan,Pinjaman_Pokok,\"\"), \"\")","v":""},{"$f":"IFERROR(IF(Pinjaman_Belum_Dibayar*Nilai_Dimasukkan,Bunga,\"\"), \"\")","v":""},{"$f":"IFERROR(IF(Pinjaman_Belum_Dibayar*Nilai_Dimasukkan,Saldo_Akhir,\"\"), \"\")","v":""}]
[null,{"$f":"IFERROR(IF(Pinjaman_Belum_Dibayar*Nilai_Dimasukkan,Jumlah_Pembayaran1,\"\"), \"\")","v":""},{"$f":"IFERROR(IF(Pinjaman_Belum_Dibayar*Nilai_Dimasukkan,Tanggal_Pembayaran,\"\"), \"\")","v":""},{"$f":"IFERROR(IF(Pinjaman_Belum_Dibayar*Nilai_Dimasukkan,Saldo_Awal,\"\"), \"\")","v":""},{"$f":"IFERROR(IF(Pinjaman_Belum_Dibayar*Nilai_Dimasukkan,Pembayaran_Bulanan,\"\"), \"\")","v":""},{"$f":"IFERROR(IF(Pinjaman_Belum_Dibayar*Nilai_Dimasukkan,Pinjaman_Pokok,\"\"), \"\")","v":""},{"$f":"IFERROR(IF(Pinjaman_Belum_Dibayar*Nilai_Dimasukkan,Bunga,\"\"), \"\")","v":""},{"$f":"IFERROR(IF(Pinjaman_Belum_Dibayar*Nilai_Dimasukkan,Saldo_Akhir,\"\"), \"\")","v":""}]
[null,{"$f":"IFERROR(IF(Pinjaman_Belum_Dibayar*Nilai_Dimasukkan,Jumlah_Pembayaran1,\"\"), \"\")","v":""},{"$f":"IFERROR(IF(Pinjaman_Belum_Dibayar*Nilai_Dimasukkan,Tanggal_Pembayaran,\"\"), \"\")","v":""},{"$f":"IFERROR(IF(Pinjaman_Belum_Dibayar*Nilai_Dimasukkan,Saldo_Awal,\"\"), \"\")","v":""},{"$f":"IFERROR(IF(Pinjaman_Belum_Dibayar*Nilai_Dimasukkan,Pembayaran_Bulanan,\"\"), \"\")","v":""},{"$f":"IFERROR(IF(Pinjaman_Belum_Dibayar*Nilai_Dimasukkan,Pinjaman_Pokok,\"\"), \"\")","v":""},{"$f":"IFERROR(IF(Pinjaman_Belum_Dibayar*Nilai_Dimasukkan,Bunga,\"\"), \"\")","v":""},{"$f":"IFERROR(IF(Pinjaman_Belum_Dibayar*Nilai_Dimasukkan,Saldo_Akhir,\"\"), \"\")","v":""}]
[null,{"$f":"IFERROR(IF(Pinjaman_Belum_Dibayar*Nilai_Dimasukkan,Jumlah_Pembayaran1,\"\"), \"\")","v":""},{"$f":"IFERROR(IF(Pinjaman_Belum_Dibayar*Nilai_Dimasukkan,Tanggal_Pembayaran,\"\"), \"\")","v":""},{"$f":"IFERROR(IF(Pinjaman_Belum_Dibayar*Nilai_Dimasukkan,Saldo_Awal,\"\"), \"\")","v":""},{"$f":"IFERROR(IF(Pinjaman_Belum_Dibayar*Nilai_Dimasukkan,Pembayaran_Bulanan,\"\"), \"\")","v":""},{"$f":"IFERROR(IF(Pinjaman_Belum_Dibayar*Nilai_Dimasukkan,Pinjaman_Pokok,\"\"), \"\")","v":""},{"$f":"IFERROR(IF(Pinjaman_Belum_Dibayar*Nilai_Dimasukkan,Bunga,\"\"), \"\")","v":""},{"$f":"IFERROR(IF(Pinjaman_Belum_Dibayar*Nilai_Dimasukkan,Saldo_Akhir,\"\"), \"\")","v":""}]
[null,{"$f":"IFERROR(IF(Pinjaman_Belum_Dibayar*Nilai_Dimasukkan,Jumlah_Pembayaran1,\"\"), \"\")","v":""},{"$f":"IFERROR(IF(Pinjaman_Belum_Dibayar*Nilai_Dimasukkan,Tanggal_Pembayaran,\"\"), \"\")","v":""},{"$f":"IFERROR(IF(Pinjaman_Belum_Dibayar*Nilai_Dimasukkan,Saldo_Awal,\"\"), \"\")","v":""},{"$f":"IFERROR(IF(Pinjaman_Belum_Dibayar*Nilai_Dimasukkan,Pembayaran_Bulanan,\"\"), \"\")","v":""},{"$f":"IFERROR(IF(Pinjaman_Belum_Dibayar*Nilai_Dimasukkan,Pinjaman_Pokok,\"\"), \"\")","v":""},{"$f":"IFERROR(IF(Pinjaman_Belum_Dibayar*Nilai_Dimasukkan,Bunga,\"\"), \"\")","v":""},{"$f":"IFERROR(IF(Pinjaman_Belum_Dibayar*Nilai_Dimasukkan,Saldo_Akhir,\"\"), \"\")","v":""}]
[null,{"$f":"IFERROR(IF(Pinjaman_Belum_Dibayar*Nilai_Dimasukkan,Jumlah_Pembayaran1,\"\"), \"\")","v":""},{"$f":"IFERROR(IF(Pinjaman_Belum_Dibayar*Nilai_Dimasukkan,Tanggal_Pembayaran,\"\"), \"\")","v":""},{"$f":"IFERROR(IF(Pinjaman_Belum_Dibayar*Nilai_Dimasukkan,Saldo_Awal,\"\"), \"\")","v":""},{"$f":"IFERROR(IF(Pinjaman_Belum_Dibayar*Nilai_Dimasukkan,Pembayaran_Bulanan,\"\"), \"\")","v":""},{"$f":"IFERROR(IF(Pinjaman_Belum_Dibayar*Nilai_Dimasukkan,Pinjaman_Pokok,\"\"), \"\")","v":""},{"$f":"IFERROR(IF(Pinjaman_Belum_Dibayar*Nilai_Dimasukkan,Bunga,\"\"), \"\")","v":""},{"$f":"IFERROR(IF(Pinjaman_Belum_Dibayar*Nilai_Dimasukkan,Saldo_Akhir,\"\"), \"\")","v":""}]
[null,{"$f":"IFERROR(IF(Pinjaman_Belum_Dibayar*Nilai_Dimasukkan,Jumlah_Pembayaran1,\"\"), \"\")","v":""},{"$f":"IFERROR(IF(Pinjaman_Belum_Dibayar*Nilai_Dimasukkan,Tanggal_Pembayaran,\"\"), \"\")","v":""},{"$f":"IFERROR(IF(Pinjaman_Belum_Dibayar*Nilai_Dimasukkan,Saldo_Awal,\"\"), \"\")","v":""},{"$f":"IFERROR(IF(Pinjaman_Belum_Dibayar*Nilai_Dimasukkan,Pembayaran_Bulanan,\"\"), \"\")","v":""},{"$f":"IFERROR(IF(Pinjaman_Belum_Dibayar*Nilai_Dimasukkan,Pinjaman_Pokok,\"\"), \"\")","v":""},{"$f":"IFERROR(IF(Pinjaman_Belum_Dibayar*Nilai_Dimasukkan,Bunga,\"\"), \"\")","v":""},{"$f":"IFERROR(IF(Pinjaman_Belum_Dibayar*Nilai_Dimasukkan,Saldo_Akhir,\"\"), \"\")","v":""}]
[null,{"$f":"IFERROR(IF(Pinjaman_Belum_Dibayar*Nilai_Dimasukkan,Jumlah_Pembayaran1,\"\"), \"\")","v":""},{"$f":"IFERROR(IF(Pinjaman_Belum_Dibayar*Nilai_Dimasukkan,Tanggal_Pembayaran,\"\"), \"\")","v":""},{"$f":"IFERROR(IF(Pinjaman_Belum_Dibayar*Nilai_Dimasukkan,Saldo_Awal,\"\"), \"\")","v":""},{"$f":"IFERROR(IF(Pinjaman_Belum_Dibayar*Nilai_Dimasukkan,Pembayaran_Bulanan,\"\"), \"\")","v":""},{"$f":"IFERROR(IF(Pinjaman_Belum_Dibayar*Nilai_Dimasukkan,Pinjaman_Pokok,\"\"), \"\")","v":""},{"$f":"IFERROR(IF(Pinjaman_Belum_Dibayar*Nilai_Dimasukkan,Bunga,\"\"), \"\")","v":""},{"$f":"IFERROR(IF(Pinjaman_Belum_Dibayar*Nilai_Dimasukkan,Saldo_Akhir,\"\"), \"\")","v":""}]
[null,{"$f":"IFERROR(IF(Pinjaman_Belum_Dibayar*Nilai_Dimasukkan,Jumlah_Pembayaran1,\"\"), \"\")","v":""},{"$f":"IFERROR(IF(Pinjaman_Belum_Dibayar*Nilai_Dimasukkan,Tanggal_Pembayaran,\"\"), \"\")","v":""},{"$f":"IFERROR(IF(Pinjaman_Belum_Dibayar*Nilai_Dimasukkan,Saldo_Awal,\"\"), \"\")","v":""},{"$f":"IFERROR(IF(Pinjaman_Belum_Dibayar*Nilai_Dimasukkan,Pembayaran_Bulanan,\"\"), \"\")","v":""},{"$f":"IFERROR(IF(Pinjaman_Belum_Dibayar*Nilai_Dimasukkan,Pinjaman_Pokok,\"\"), \"\")","v":""},{"$f":"IFERROR(IF(Pinjaman_Belum_Dibayar*Nilai_Dimasukkan,Bunga,\"\"), \"\")","v":""},{"$f":"IFERROR(IF(Pinjaman_Belum_Dibayar*Nilai_Dimasukkan,Saldo_Akhir,\"\"), \"\")","v":""}]
[null,{"$f":"IFERROR(IF(Pinjaman_Belum_Dibayar*Nilai_Dimasukkan,Jumlah_Pembayaran1,\"\"), \"\")","v":""},{"$f":"IFERROR(IF(Pinjaman_Belum_Dibayar*Nilai_Dimasukkan,Tanggal_Pembayaran,\"\"), \"\")","v":""},{"$f":"IFERROR(IF(Pinjaman_Belum_Dibayar*Nilai_Dimasukkan,Saldo_Awal,\"\"), \"\")","v":""},{"$f":"IFERROR(IF(Pinjaman_Belum_Dibayar*Nilai_Dimasukkan,Pembayaran_Bulanan,\"\"), \"\")","v":""},{"$f":"IFERROR(IF(Pinjaman_Belum_Dibayar*Nilai_Dimasukkan,Pinjaman_Pokok,\"\"), \"\")","v":""},{"$f":"IFERROR(IF(Pinjaman_Belum_Dibayar*Nilai_Dimasukkan,Bunga,\"\"), \"\")","v":""},{"$f":"IFERROR(IF(Pinjaman_Belum_Dibayar*Nilai_Dimasukkan,Saldo_Akhir,\"\"), \"\")","v":""}]
[null,{"$f":"IFERROR(IF(Pinjaman_Belum_Dibayar*Nilai_Dimasukkan,Jumlah_Pembayaran1,\"\"), \"\")","v":""},{"$f":"IFERROR(IF(Pinjaman_Belum_Dibayar*Nilai_Dimasukkan,Tanggal_Pembayaran,\"\"), \"\")","v":""},{"$f":"IFERROR(IF(Pinjaman_Belum_Dibayar*Nilai_Dimasukkan,Saldo_Awal,\"\"), \"\")","v":""},{"$f":"IFERROR(IF(Pinjaman_Belum_Dibayar*Nilai_Dimasukkan,Pembayaran_Bulanan,\"\"), \"\")","v":""},{"$f":"IFERROR(IF(Pinjaman_Belum_Dibayar*Nilai_Dimasukkan,Pinjaman_Pokok,\"\"), \"\")","v":""},{"$f":"IFERROR(IF(Pinjaman_Belum_Dibayar*Nilai_Dimasukkan,Bunga,\"\"), \"\")","v":""},{"$f":"IFERROR(IF(Pinjaman_Belum_Dibayar*Nilai_Dimasukkan,Saldo_Akhir,\"\"), \"\")","v":""}]
[null,{"$f":"IFERROR(IF(Pinjaman_Belum_Dibayar*Nilai_Dimasukkan,Jumlah_Pembayaran1,\"\"), \"\")","v":""},{"$f":"IFERROR(IF(Pinjaman_Belum_Dibayar*Nilai_Dimasukkan,Tanggal_Pembayaran,\"\"), \"\")","v":""},{"$f":"IFERROR(IF(Pinjaman_Belum_Dibayar*Nilai_Dimasukkan,Saldo_Awal,\"\"), \"\")","v":""},{"$f":"IFERROR(IF(Pinjaman_Belum_Dibayar*Nilai_Dimasukkan,Pembayaran_Bulanan,\"\"), \"\")","v":""},{"$f":"IFERROR(IF(Pinjaman_Belum_Dibayar*Nilai_Dimasukkan,Pinjaman_Pokok,\"\"), \"\")","v":""},{"$f":"IFERROR(IF(Pinjaman_Belum_Dibayar*Nilai_Dimasukkan,Bunga,\"\"), \"\")","v":""},{"$f":"IFERROR(IF(Pinjaman_Belum_Dibayar*Nilai_Dimasukkan,Saldo_Akhir,\"\"), \"\")","v":""}]
[null,{"$f":"IFERROR(IF(Pinjaman_Belum_Dibayar*Nilai_Dimasukkan,Jumlah_Pembayaran1,\"\"), \"\")","v":""},{"$f":"IFERROR(IF(Pinjaman_Belum_Dibayar*Nilai_Dimasukkan,Tanggal_Pembayaran,\"\"), \"\")","v":""},{"$f":"IFERROR(IF(Pinjaman_Belum_Dibayar*Nilai_Dimasukkan,Saldo_Awal,\"\"), \"\")","v":""},{"$f":"IFERROR(IF(Pinjaman_Belum_Dibayar*Nilai_Dimasukkan,Pembayaran_Bulanan,\"\"), \"\")","v":""},{"$f":"IFERROR(IF(Pinjaman_Belum_Dibayar*Nilai_Dimasukkan,Pinjaman_Pokok,\"\"), \"\")","v":""},{"$f":"IFERROR(IF(Pinjaman_Belum_Dibayar*Nilai_Dimasukkan,Bunga,\"\"), \"\")","v":""},{"$f":"IFERROR(IF(Pinjaman_Belum_Dibayar*Nilai_Dimasukkan,Saldo_Akhir,\"\"), \"\")","v":""}]
[null,{"$f":"IFERROR(IF(Pinjaman_Belum_Dibayar*Nilai_Dimasukkan,Jumlah_Pembayaran1,\"\"), \"\")","v":""},{"$f":"IFERROR(IF(Pinjaman_Belum_Dibayar*Nilai_Dimasukkan,Tanggal_Pembayaran,\"\"), \"\")","v":""},{"$f":"IFERROR(IF(Pinjaman_Belum_Dibayar*Nilai_Dimasukkan,Saldo_Awal,\"\"), \"\")","v":""},{"$f":"IFERROR(IF(Pinjaman_Belum_Dibayar*Nilai_Dimasukkan,Pembayaran_Bulanan,\"\"), \"\")","v":""},{"$f":"IFERROR(IF(Pinjaman_Belum_Dibayar*Nilai_Dimasukkan,Pinjaman_Pokok,\"\"), \"\")","v":""},{"$f":"IFERROR(IF(Pinjaman_Belum_Dibayar*Nilai_Dimasukkan,Bunga,\"\"), \"\")","v":""},{"$f":"IFERROR(IF(Pinjaman_Belum_Dibayar*Nilai_Dimasukkan,Saldo_Akhir,\"\"), \"\")","v":""}]
[null,{"$f":"IFERROR(IF(Pinjaman_Belum_Dibayar*Nilai_Dimasukkan,Jumlah_Pembayaran1,\"\"), \"\")","v":""},{"$f":"IFERROR(IF(Pinjaman_Belum_Dibayar*Nilai_Dimasukkan,Tanggal_Pembayaran,\"\"), \"\")","v":""},{"$f":"IFERROR(IF(Pinjaman_Belum_Dibayar*Nilai_Dimasukkan,Saldo_Awal,\"\"), \"\")","v":""},{"$f":"IFERROR(IF(Pinjaman_Belum_Dibayar*Nilai_Dimasukkan,Pembayaran_Bulanan,\"\"), \"\")","v":""},{"$f":"IFERROR(IF(Pinjaman_Belum_Dibayar*Nilai_Dimasukkan,Pinjaman_Pokok,\"\"), \"\")","v":""},{"$f":"IFERROR(IF(Pinjaman_Belum_Dibayar*Nilai_Dimasukkan,Bunga,\"\"), \"\")","v":""},{"$f":"IFERROR(IF(Pinjaman_Belum_Dibayar*Nilai_Dimasukkan,Saldo_Akhir,\"\"), \"\")","v":""}]
[null,{"$f":"IFERROR(IF(Pinjaman_Belum_Dibayar*Nilai_Dimasukkan,Jumlah_Pembayaran1,\"\"), \"\")","v":""},{"$f":"IFERROR(IF(Pinjaman_Belum_Dibayar*Nilai_Dimasukkan,Tanggal_Pembayaran,\"\"), \"\")","v":""},{"$f":"IFERROR(IF(Pinjaman_Belum_Dibayar*Nilai_Dimasukkan,Saldo_Awal,\"\"), \"\")","v":""},{"$f":"IFERROR(IF(Pinjaman_Belum_Dibayar*Nilai_Dimasukkan,Pembayaran_Bulanan,\"\"), \"\")","v":""},{"$f":"IFERROR(IF(Pinjaman_Belum_Dibayar*Nilai_Dimasukkan,Pinjaman_Pokok,\"\"), \"\")","v":""},{"$f":"IFERROR(IF(Pinjaman_Belum_Dibayar*Nilai_Dimasukkan,Bunga,\"\"), \"\")","v":""},{"$f":"IFERROR(IF(Pinjaman_Belum_Dibayar*Nilai_Dimasukkan,Saldo_Akhir,\"\"), \"\")","v":""}]
[null,{"$f":"IFERROR(IF(Pinjaman_Belum_Dibayar*Nilai_Dimasukkan,Jumlah_Pembayaran1,\"\"), \"\")","v":""},{"$f":"IFERROR(IF(Pinjaman_Belum_Dibayar*Nilai_Dimasukkan,Tanggal_Pembayaran,\"\"), \"\")","v":""},{"$f":"IFERROR(IF(Pinjaman_Belum_Dibayar*Nilai_Dimasukkan,Saldo_Awal,\"\"), \"\")","v":""},{"$f":"IFERROR(IF(Pinjaman_Belum_Dibayar*Nilai_Dimasukkan,Pembayaran_Bulanan,\"\"), \"\")","v":""},{"$f":"IFERROR(IF(Pinjaman_Belum_Dibayar*Nilai_Dimasukkan,Pinjaman_Pokok,\"\"), \"\")","v":""},{"$f":"IFERROR(IF(Pinjaman_Belum_Dibayar*Nilai_Dimasukkan,Bunga,\"\"), \"\")","v":""},{"$f":"IFERROR(IF(Pinjaman_Belum_Dibayar*Nilai_Dimasukkan,Saldo_Akhir,\"\"), \"\")","v":""}]
[null,{"$f":"IFERROR(IF(Pinjaman_Belum_Dibayar*Nilai_Dimasukkan,Jumlah_Pembayaran1,\"\"), \"\")","v":""},{"$f":"IFERROR(IF(Pinjaman_Belum_Dibayar*Nilai_Dimasukkan,Tanggal_Pembayaran,\"\"), \"\")","v":""},{"$f":"IFERROR(IF(Pinjaman_Belum_Dibayar*Nilai_Dimasukkan,Saldo_Awal,\"\"), \"\")","v":""},{"$f":"IFERROR(IF(Pinjaman_Belum_Dibayar*Nilai_Dimasukkan,Pembayaran_Bulanan,\"\"), \"\")","v":""},{"$f":"IFERROR(IF(Pinjaman_Belum_Dibayar*Nilai_Dimasukkan,Pinjaman_Pokok,\"\"), \"\")","v":""},{"$f":"IFERROR(IF(Pinjaman_Belum_Dibayar*Nilai_Dimasukkan,Bunga,\"\"), \"\")","v":""},{"$f":"IFERROR(IF(Pinjaman_Belum_Dibayar*Nilai_Dimasukkan,Saldo_Akhir,\"\"), \"\")","v":""}]
[null,{"$f":"IFERROR(IF(Pinjaman_Belum_Dibayar*Nilai_Dimasukkan,Jumlah_Pembayaran1,\"\"), \"\")","v":""},{"$f":"IFERROR(IF(Pinjaman_Belum_Dibayar*Nilai_Dimasukkan,Tanggal_Pembayaran,\"\"), \"\")","v":""},{"$f":"IFERROR(IF(Pinjaman_Belum_Dibayar*Nilai_Dimasukkan,Saldo_Awal,\"\"), \"\")","v":""},{"$f":"IFERROR(IF(Pinjaman_Belum_Dibayar*Nilai_Dimasukkan,Pembayaran_Bulanan,\"\"), \"\")","v":""},{"$f":"IFERROR(IF(Pinjaman_Belum_Dibayar*Nilai_Dimasukkan,Pinjaman_Pokok,\"\"), \"\")","v":""},{"$f":"IFERROR(IF(Pinjaman_Belum_Dibayar*Nilai_Dimasukkan,Bunga,\"\"), \"\")","v":""},{"$f":"IFERROR(IF(Pinjaman_Belum_Dibayar*Nilai_Dimasukkan,Saldo_Akhir,\"\"), \"\")","v":""}]
[null,{"$f":"IFERROR(IF(Pinjaman_Belum_Dibayar*Nilai_Dimasukkan,Jumlah_Pembayaran1,\"\"), \"\")","v":""},{"$f":"IFERROR(IF(Pinjaman_Belum_Dibayar*Nilai_Dimasukkan,Tanggal_Pembayaran,\"\"), \"\")","v":""},{"$f":"IFERROR(IF(Pinjaman_Belum_Dibayar*Nilai_Dimasukkan,Saldo_Awal,\"\"), \"\")","v":""},{"$f":"IFERROR(IF(Pinjaman_Belum_Dibayar*Nilai_Dimasukkan,Pembayaran_Bulanan,\"\"), \"\")","v":""},{"$f":"IFERROR(IF(Pinjaman_Belum_Dibayar*Nilai_Dimasukkan,Pinjaman_Pokok,\"\"), \"\")","v":""},{"$f":"IFERROR(IF(Pinjaman_Belum_Dibayar*Nilai_Dimasukkan,Bunga,\"\"), \"\")","v":""},{"$f":"IFERROR(IF(Pinjaman_Belum_Dibayar*Nilai_Dimasukkan,Saldo_Akhir,\"\"), \"\")","v":""}]
[null,{"$f":"IFERROR(IF(Pinjaman_Belum_Dibayar*Nilai_Dimasukkan,Jumlah_Pembayaran1,\"\"), \"\")","v":""},{"$f":"IFERROR(IF(Pinjaman_Belum_Dibayar*Nilai_Dimasukkan,Tanggal_Pembayaran,\"\"), \"\")","v":""},{"$f":"IFERROR(IF(Pinjaman_Belum_Dibayar*Nilai_Dimasukkan,Saldo_Awal,\"\"), \"\")","v":""},{"$f":"IFERROR(IF(Pinjaman_Belum_Dibayar*Nilai_Dimasukkan,Pembayaran_Bulanan,\"\"), \"\")","v":""},{"$f":"IFERROR(IF(Pinjaman_Belum_Dibayar*Nilai_Dimasukkan,Pinjaman_Pokok,\"\"), \"\")","v":""},{"$f":"IFERROR(IF(Pinjaman_Belum_Dibayar*Nilai_Dimasukkan,Bunga,\"\"), \"\")","v":""},{"$f":"IFERROR(IF(Pinjaman_Belum_Dibayar*Nilai_Dimasukkan,Saldo_Akhir,\"\"), \"\")","v":""}]
[null,{"$f":"IFERROR(IF(Pinjaman_Belum_Dibayar*Nilai_Dimasukkan,Jumlah_Pembayaran1,\"\"), \"\")","v":""},{"$f":"IFERROR(IF(Pinjaman_Belum_Dibayar*Nilai_Dimasukkan,Tanggal_Pembayaran,\"\"), \"\")","v":""},{"$f":"IFERROR(IF(Pinjaman_Belum_Dibayar*Nilai_Dimasukkan,Saldo_Awal,\"\"), \"\")","v":""},{"$f":"IFERROR(IF(Pinjaman_Belum_Dibayar*Nilai_Dimasukkan,Pembayaran_Bulanan,\"\"), \"\")","v":""},{"$f":"IFERROR(IF(Pinjaman_Belum_Dibayar*Nilai_Dimasukkan,Pinjaman_Pokok,\"\"), \"\")","v":""},{"$f":"IFERROR(IF(Pinjaman_Belum_Dibayar*Nilai_Dimasukkan,Bunga,\"\"), \"\")","v":""},{"$f":"IFERROR(IF(Pinjaman_Belum_Dibayar*Nilai_Dimasukkan,Saldo_Akhir,\"\"), \"\")","v":""}]
[null,{"$f":"IFERROR(IF(Pinjaman_Belum_Dibayar*Nilai_Dimasukkan,Jumlah_Pembayaran1,\"\"), \"\")","v":""},{"$f":"IFERROR(IF(Pinjaman_Belum_Dibayar*Nilai_Dimasukkan,Tanggal_Pembayaran,\"\"), \"\")","v":""},{"$f":"IFERROR(IF(Pinjaman_Belum_Dibayar*Nilai_Dimasukkan,Saldo_Awal,\"\"), \"\")","v":""},{"$f":"IFERROR(IF(Pinjaman_Belum_Dibayar*Nilai_Dimasukkan,Pembayaran_Bulanan,\"\"), \"\")","v":""},{"$f":"IFERROR(IF(Pinjaman_Belum_Dibayar*Nilai_Dimasukkan,Pinjaman_Pokok,\"\"), \"\")","v":""},{"$f":"IFERROR(IF(Pinjaman_Belum_Dibayar*Nilai_Dimasukkan,Bunga,\"\"), \"\")","v":""},{"$f":"IFERROR(IF(Pinjaman_Belum_Dibayar*Nilai_Dimasukkan,Saldo_Akhir,\"\"), \"\")","v":""}]
[null,{"$f":"IFERROR(IF(Pinjaman_Belum_Dibayar*Nilai_Dimasukkan,Jumlah_Pembayaran1,\"\"), \"\")","v":""},{"$f":"IFERROR(IF(Pinjaman_Belum_Dibayar*Nilai_Dimasukkan,Tanggal_Pembayaran,\"\"), \"\")","v":""},{"$f":"IFERROR(IF(Pinjaman_Belum_Dibayar*Nilai_Dimasukkan,Saldo_Awal,\"\"), \"\")","v":""},{"$f":"IFERROR(IF(Pinjaman_Belum_Dibayar*Nilai_Dimasukkan,Pembayaran_Bulanan,\"\"), \"\")","v":""},{"$f":"IFERROR(IF(Pinjaman_Belum_Dibayar*Nilai_Dimasukkan,Pinjaman_Pokok,\"\"), \"\")","v":""},{"$f":"IFERROR(IF(Pinjaman_Belum_Dibayar*Nilai_Dimasukkan,Bunga,\"\"), \"\")","v":""},{"$f":"IFERROR(IF(Pinjaman_Belum_Dibayar*Nilai_Dimasukkan,Saldo_Akhir,\"\"), \"\")","v":""}]
[null,{"$f":"IFERROR(IF(Pinjaman_Belum_Dibayar*Nilai_Dimasukkan,Jumlah_Pembayaran1,\"\"), \"\")","v":""},{"$f":"IFERROR(IF(Pinjaman_Belum_Dibayar*Nilai_Dimasukkan,Tanggal_Pembayaran,\"\"), \"\")","v":""},{"$f":"IFERROR(IF(Pinjaman_Belum_Dibayar*Nilai_Dimasukkan,Saldo_Awal,\"\"), \"\")","v":""},{"$f":"IFERROR(IF(Pinjaman_Belum_Dibayar*Nilai_Dimasukkan,Pembayaran_Bulanan,\"\"), \"\")","v":""},{"$f":"IFERROR(IF(Pinjaman_Belum_Dibayar*Nilai_Dimasukkan,Pinjaman_Pokok,\"\"), \"\")","v":""},{"$f":"IFERROR(IF(Pinjaman_Belum_Dibayar*Nilai_Dimasukkan,Bunga,\"\"), \"\")","v":""},{"$f":"IFERROR(IF(Pinjaman_Belum_Dibayar*Nilai_Dimasukkan,Saldo_Akhir,\"\"), \"\")","v":""}]
[null,{"$f":"IFERROR(IF(Pinjaman_Belum_Dibayar*Nilai_Dimasukkan,Jumlah_Pembayaran1,\"\"), \"\")","v":""},{"$f":"IFERROR(IF(Pinjaman_Belum_Dibayar*Nilai_Dimasukkan,Tanggal_Pembayaran,\"\"), \"\")","v":""},{"$f":"IFERROR(IF(Pinjaman_Belum_Dibayar*Nilai_Dimasukkan,Saldo_Awal,\"\"), \"\")","v":""},{"$f":"IFERROR(IF(Pinjaman_Belum_Dibayar*Nilai_Dimasukkan,Pembayaran_Bulanan,\"\"), \"\")","v":""},{"$f":"IFERROR(IF(Pinjaman_Belum_Dibayar*Nilai_Dimasukkan,Pinjaman_Pokok,\"\"), \"\")","v":""},{"$f":"IFERROR(IF(Pinjaman_Belum_Dibayar*Nilai_Dimasukkan,Bunga,\"\"), \"\")","v":""},{"$f":"IFERROR(IF(Pinjaman_Belum_Dibayar*Nilai_Dimasukkan,Saldo_Akhir,\"\"), \"\")","v":""}]
[null,{"$f":"IFERROR(IF(Pinjaman_Belum_Dibayar*Nilai_Dimasukkan,Jumlah_Pembayaran1,\"\"), \"\")","v":""},{"$f":"IFERROR(IF(Pinjaman_Belum_Dibayar*Nilai_Dimasukkan,Tanggal_Pembayaran,\"\"), \"\")","v":""},{"$f":"IFERROR(IF(Pinjaman_Belum_Dibayar*Nilai_Dimasukkan,Saldo_Awal,\"\"), \"\")","v":""},{"$f":"IFERROR(IF(Pinjaman_Belum_Dibayar*Nilai_Dimasukkan,Pembayaran_Bulanan,\"\"), \"\")","v":""},{"$f":"IFERROR(IF(Pinjaman_Belum_Dibayar*Nilai_Dimasukkan,Pinjaman_Pokok,\"\"), \"\")","v":""},{"$f":"IFERROR(IF(Pinjaman_Belum_Dibayar*Nilai_Dimasukkan,Bunga,\"\"), \"\")","v":""},{"$f":"IFERROR(IF(Pinjaman_Belum_Dibayar*Nilai_Dimasukkan,Saldo_Akhir,\"\"), \"\")","v":""}]
[null,{"$f":"IFERROR(IF(Pinjaman_Belum_Dibayar*Nilai_Dimasukkan,Jumlah_Pembayaran1,\"\"), \"\")","v":""},{"$f":"IFERROR(IF(Pinjaman_Belum_Dibayar*Nilai_Dimasukkan,Tanggal_Pembayaran,\"\"), \"\")","v":""},{"$f":"IFERROR(IF(Pinjaman_Belum_Dibayar*Nilai_Dimasukkan,Saldo_Awal,\"\"), \"\")","v":""},{"$f":"IFERROR(IF(Pinjaman_Belum_Dibayar*Nilai_Dimasukkan,Pembayaran_Bulanan,\"\"), \"\")","v":""},{"$f":"IFERROR(IF(Pinjaman_Belum_Dibayar*Nilai_Dimasukkan,Pinjaman_Pokok,\"\"), \"\")","v":""},{"$f":"IFERROR(IF(Pinjaman_Belum_Dibayar*Nilai_Dimasukkan,Bunga,\"\"), \"\")","v":""},{"$f":"IFERROR(IF(Pinjaman_Belum_Dibayar*Nilai_Dimasukkan,Saldo_Akhir,\"\"), \"\")","v":""}]
[null,{"$f":"IFERROR(IF(Pinjaman_Belum_Dibayar*Nilai_Dimasukkan,Jumlah_Pembayaran1,\"\"), \"\")","v":""},{"$f":"IFERROR(IF(Pinjaman_Belum_Dibayar*Nilai_Dimasukkan,Tanggal_Pembayaran,\"\"), \"\")","v":""},{"$f":"IFERROR(IF(Pinjaman_Belum_Dibayar*Nilai_Dimasukkan,Saldo_Awal,\"\"), \"\")","v":""},{"$f":"IFERROR(IF(Pinjaman_Belum_Dibayar*Nilai_Dimasukkan,Pembayaran_Bulanan,\"\"), \"\")","v":""},{"$f":"IFERROR(IF(Pinjaman_Belum_Dibayar*Nilai_Dimasukkan,Pinjaman_Pokok,\"\"), \"\")","v":""},{"$f":"IFERROR(IF(Pinjaman_Belum_Dibayar*Nilai_Dimasukkan,Bunga,\"\"), \"\")","v":""},{"$f":"IFERROR(IF(Pinjaman_Belum_Dibayar*Nilai_Dimasukkan,Saldo_Akhir,\"\"), \"\")","v":""}]
[null,{"$f":"IFERROR(IF(Pinjaman_Belum_Dibayar*Nilai_Dimasukkan,Jumlah_Pembayaran1,\"\"), \"\")","v":""},{"$f":"IFERROR(IF(Pinjaman_Belum_Dibayar*Nilai_Dimasukkan,Tanggal_Pembayaran,\"\"), \"\")","v":""},{"$f":"IFERROR(IF(Pinjaman_Belum_Dibayar*Nilai_Dimasukkan,Saldo_Awal,\"\"), \"\")","v":""},{"$f":"IFERROR(IF(Pinjaman_Belum_Dibayar*Nilai_Dimasukkan,Pembayaran_Bulanan,\"\"), \"\")","v":""},{"$f":"IFERROR(IF(Pinjaman_Belum_Dibayar*Nilai_Dimasukkan,Pinjaman_Pokok,\"\"), \"\")","v":""},{"$f":"IFERROR(IF(Pinjaman_Belum_Dibayar*Nilai_Dimasukkan,Bunga,\"\"), \"\")","v":""},{"$f":"IFERROR(IF(Pinjaman_Belum_Dibayar*Nilai_Dimasukkan,Saldo_Akhir,\"\"), \"\")","v":""}]
[null,{"$f":"IFERROR(IF(Pinjaman_Belum_Dibayar*Nilai_Dimasukkan,Jumlah_Pembayaran1,\"\"), \"\")","v":""},{"$f":"IFERROR(IF(Pinjaman_Belum_Dibayar*Nilai_Dimasukkan,Tanggal_Pembayaran,\"\"), \"\")","v":""},{"$f":"IFERROR(IF(Pinjaman_Belum_Dibayar*Nilai_Dimasukkan,Saldo_Awal,\"\"), \"\")","v":""},{"$f":"IFERROR(IF(Pinjaman_Belum_Dibayar*Nilai_Dimasukkan,Pembayaran_Bulanan,\"\"), \"\")","v":""},{"$f":"IFERROR(IF(Pinjaman_Belum_Dibayar*Nilai_Dimasukkan,Pinjaman_Pokok,\"\"), \"\")","v":""},{"$f":"IFERROR(IF(Pinjaman_Belum_Dibayar*Nilai_Dimasukkan,Bunga,\"\"), \"\")","v":""},{"$f":"IFERROR(IF(Pinjaman_Belum_Dibayar*Nilai_Dimasukkan,Saldo_Akhir,\"\"), \"\")","v":""}]
[null,{"$f":"IFERROR(IF(Pinjaman_Belum_Dibayar*Nilai_Dimasukkan,Jumlah_Pembayaran1,\"\"), \"\")","v":""},{"$f":"IFERROR(IF(Pinjaman_Belum_Dibayar*Nilai_Dimasukkan,Tanggal_Pembayaran,\"\"), \"\")","v":""},{"$f":"IFERROR(IF(Pinjaman_Belum_Dibayar*Nilai_Dimasukkan,Saldo_Awal,\"\"), \"\")","v":""},{"$f":"IFERROR(IF(Pinjaman_Belum_Dibayar*Nilai_Dimasukkan,Pembayaran_Bulanan,\"\"), \"\")","v":""},{"$f":"IFERROR(IF(Pinjaman_Belum_Dibayar*Nilai_Dimasukkan,Pinjaman_Pokok,\"\"), \"\")","v":""},{"$f":"IFERROR(IF(Pinjaman_Belum_Dibayar*Nilai_Dimasukkan,Bunga,\"\"), \"\")","v":""},{"$f":"IFERROR(IF(Pinjaman_Belum_Dibayar*Nilai_Dimasukkan,Saldo_Akhir,\"\"), \"\")","v":""}]
[null,{"$f":"IFERROR(IF(Pinjaman_Belum_Dibayar*Nilai_Dimasukkan,Jumlah_Pembayaran1,\"\"), \"\")","v":""},{"$f":"IFERROR(IF(Pinjaman_Belum_Dibayar*Nilai_Dimasukkan,Tanggal_Pembayaran,\"\"), \"\")","v":""},{"$f":"IFERROR(IF(Pinjaman_Belum_Dibayar*Nilai_Dimasukkan,Saldo_Awal,\"\"), \"\")","v":""},{"$f":"IFERROR(IF(Pinjaman_Belum_Dibayar*Nilai_Dimasukkan,Pembayaran_Bulanan,\"\"), \"\")","v":""},{"$f":"IFERROR(IF(Pinjaman_Belum_Dibayar*Nilai_Dimasukkan,Pinjaman_Pokok,\"\"), \"\")","v":""},{"$f":"IFERROR(IF(Pinjaman_Belum_Dibayar*Nilai_Dimasukkan,Bunga,\"\"), \"\")","v":""},{"$f":"IFERROR(IF(Pinjaman_Belum_Dibayar*Nilai_Dimasukkan,Saldo_Akhir,\"\"), \"\")","v":""}]
[null,{"$f":"IFERROR(IF(Pinjaman_Belum_Dibayar*Nilai_Dimasukkan,Jumlah_Pembayaran1,\"\"), \"\")","v":""},{"$f":"IFERROR(IF(Pinjaman_Belum_Dibayar*Nilai_Dimasukkan,Tanggal_Pembayaran,\"\"), \"\")","v":""},{"$f":"IFERROR(IF(Pinjaman_Belum_Dibayar*Nilai_Dimasukkan,Saldo_Awal,\"\"), \"\")","v":""},{"$f":"IFERROR(IF(Pinjaman_Belum_Dibayar*Nilai_Dimasukkan,Pembayaran_Bulanan,\"\"), \"\")","v":""},{"$f":"IFERROR(IF(Pinjaman_Belum_Dibayar*Nilai_Dimasukkan,Pinjaman_Pokok,\"\"), \"\")","v":""},{"$f":"IFERROR(IF(Pinjaman_Belum_Dibayar*Nilai_Dimasukkan,Bunga,\"\"), \"\")","v":""},{"$f":"IFERROR(IF(Pinjaman_Belum_Dibayar*Nilai_Dimasukkan,Saldo_Akhir,\"\"), \"\")","v":""}]
[null,{"$f":"IFERROR(IF(Pinjaman_Belum_Dibayar*Nilai_Dimasukkan,Jumlah_Pembayaran1,\"\"), \"\")","v":""},{"$f":"IFERROR(IF(Pinjaman_Belum_Dibayar*Nilai_Dimasukkan,Tanggal_Pembayaran,\"\"), \"\")","v":""},{"$f":"IFERROR(IF(Pinjaman_Belum_Dibayar*Nilai_Dimasukkan,Saldo_Awal,\"\"), \"\")","v":""},{"$f":"IFERROR(IF(Pinjaman_Belum_Dibayar*Nilai_Dimasukkan,Pembayaran_Bulanan,\"\"), \"\")","v":""},{"$f":"IFERROR(IF(Pinjaman_Belum_Dibayar*Nilai_Dimasukkan,Pinjaman_Pokok,\"\"), \"\")","v":""},{"$f":"IFERROR(IF(Pinjaman_Belum_Dibayar*Nilai_Dimasukkan,Bunga,\"\"), \"\")","v":""},{"$f":"IFERROR(IF(Pinjaman_Belum_Dibayar*Nilai_Dimasukkan,Saldo_Akhir,\"\"), \"\")","v":""}]
[null,{"$f":"IFERROR(IF(Pinjaman_Belum_Dibayar*Nilai_Dimasukkan,Jumlah_Pembayaran1,\"\"), \"\")","v":""},{"$f":"IFERROR(IF(Pinjaman_Belum_Dibayar*Nilai_Dimasukkan,Tanggal_Pembayaran,\"\"), \"\")","v":""},{"$f":"IFERROR(IF(Pinjaman_Belum_Dibayar*Nilai_Dimasukkan,Saldo_Awal,\"\"), \"\")","v":""},{"$f":"IFERROR(IF(Pinjaman_Belum_Dibayar*Nilai_Dimasukkan,Pembayaran_Bulanan,\"\"), \"\")","v":""},{"$f":"IFERROR(IF(Pinjaman_Belum_Dibayar*Nilai_Dimasukkan,Pinjaman_Pokok,\"\"), \"\")","v":""},{"$f":"IFERROR(IF(Pinjaman_Belum_Dibayar*Nilai_Dimasukkan,Bunga,\"\"), \"\")","v":""},{"$f":"IFERROR(IF(Pinjaman_Belum_Dibayar*Nilai_Dimasukkan,Saldo_Akhir,\"\"), \"\")","v":""}]
[null,{"$f":"IFERROR(IF(Pinjaman_Belum_Dibayar*Nilai_Dimasukkan,Jumlah_Pembayaran1,\"\"), \"\")","v":""},{"$f":"IFERROR(IF(Pinjaman_Belum_Dibayar*Nilai_Dimasukkan,Tanggal_Pembayaran,\"\"), \"\")","v":""},{"$f":"IFERROR(IF(Pinjaman_Belum_Dibayar*Nilai_Dimasukkan,Saldo_Awal,\"\"), \"\")","v":""},{"$f":"IFERROR(IF(Pinjaman_Belum_Dibayar*Nilai_Dimasukkan,Pembayaran_Bulanan,\"\"), \"\")","v":""},{"$f":"IFERROR(IF(Pinjaman_Belum_Dibayar*Nilai_Dimasukkan,Pinjaman_Pokok,\"\"), \"\")","v":""},{"$f":"IFERROR(IF(Pinjaman_Belum_Dibayar*Nilai_Dimasukkan,Bunga,\"\"), \"\")","v":""},{"$f":"IFERROR(IF(Pinjaman_Belum_Dibayar*Nilai_Dimasukkan,Saldo_Akhir,\"\"), \"\")","v":""}]
[null,{"$f":"IFERROR(IF(Pinjaman_Belum_Dibayar*Nilai_Dimasukkan,Jumlah_Pembayaran1,\"\"), \"\")","v":""},{"$f":"IFERROR(IF(Pinjaman_Belum_Dibayar*Nilai_Dimasukkan,Tanggal_Pembayaran,\"\"), \"\")","v":""},{"$f":"IFERROR(IF(Pinjaman_Belum_Dibayar*Nilai_Dimasukkan,Saldo_Awal,\"\"), \"\")","v":""},{"$f":"IFERROR(IF(Pinjaman_Belum_Dibayar*Nilai_Dimasukkan,Pembayaran_Bulanan,\"\"), \"\")","v":""},{"$f":"IFERROR(IF(Pinjaman_Belum_Dibayar*Nilai_Dimasukkan,Pinjaman_Pokok,\"\"), \"\")","v":""},{"$f":"IFERROR(IF(Pinjaman_Belum_Dibayar*Nilai_Dimasukkan,Bunga,\"\"), \"\")","v":""},{"$f":"IFERROR(IF(Pinjaman_Belum_Dibayar*Nilai_Dimasukkan,Saldo_Akhir,\"\"), \"\")","v":""}]
[null,{"$f":"IFERROR(IF(Pinjaman_Belum_Dibayar*Nilai_Dimasukkan,Jumlah_Pembayaran1,\"\"), \"\")","v":""},{"$f":"IFERROR(IF(Pinjaman_Belum_Dibayar*Nilai_Dimasukkan,Tanggal_Pembayaran,\"\"), \"\")","v":""},{"$f":"IFERROR(IF(Pinjaman_Belum_Dibayar*Nilai_Dimasukkan,Saldo_Awal,\"\"), \"\")","v":""},{"$f":"IFERROR(IF(Pinjaman_Belum_Dibayar*Nilai_Dimasukkan,Pembayaran_Bulanan,\"\"), \"\")","v":""},{"$f":"IFERROR(IF(Pinjaman_Belum_Dibayar*Nilai_Dimasukkan,Pinjaman_Pokok,\"\"), \"\")","v":""},{"$f":"IFERROR(IF(Pinjaman_Belum_Dibayar*Nilai_Dimasukkan,Bunga,\"\"), \"\")","v":""},{"$f":"IFERROR(IF(Pinjaman_Belum_Dibayar*Nilai_Dimasukkan,Saldo_Akhir,\"\"), \"\")","v":""}]
[null,{"$f":"IFERROR(IF(Pinjaman_Belum_Dibayar*Nilai_Dimasukkan,Jumlah_Pembayaran1,\"\"), \"\")","v":""},{"$f":"IFERROR(IF(Pinjaman_Belum_Dibayar*Nilai_Dimasukkan,Tanggal_Pembayaran,\"\"), \"\")","v":""},{"$f":"IFERROR(IF(Pinjaman_Belum_Dibayar*Nilai_Dimasukkan,Saldo_Awal,\"\"), \"\")","v":""},{"$f":"IFERROR(IF(Pinjaman_Belum_Dibayar*Nilai_Dimasukkan,Pembayaran_Bulanan,\"\"), \"\")","v":""},{"$f":"IFERROR(IF(Pinjaman_Belum_Dibayar*Nilai_Dimasukkan,Pinjaman_Pokok,\"\"), \"\")","v":""},{"$f":"IFERROR(IF(Pinjaman_Belum_Dibayar*Nilai_Dimasukkan,Bunga,\"\"), \"\")","v":""},{"$f":"IFERROR(IF(Pinjaman_Belum_Dibayar*Nilai_Dimasukkan,Saldo_Akhir,\"\"), \"\")","v":""}]
[null,{"$f":"IFERROR(IF(Pinjaman_Belum_Dibayar*Nilai_Dimasukkan,Jumlah_Pembayaran1,\"\"), \"\")","v":""},{"$f":"IFERROR(IF(Pinjaman_Belum_Dibayar*Nilai_Dimasukkan,Tanggal_Pembayaran,\"\"), \"\")","v":""},{"$f":"IFERROR(IF(Pinjaman_Belum_Dibayar*Nilai_Dimasukkan,Saldo_Awal,\"\"), \"\")","v":""},{"$f":"IFERROR(IF(Pinjaman_Belum_Dibayar*Nilai_Dimasukkan,Pembayaran_Bulanan,\"\"), \"\")","v":""},{"$f":"IFERROR(IF(Pinjaman_Belum_Dibayar*Nilai_Dimasukkan,Pinjaman_Pokok,\"\"), \"\")","v":""},{"$f":"IFERROR(IF(Pinjaman_Belum_Dibayar*Nilai_Dimasukkan,Bunga,\"\"), \"\")","v":""},{"$f":"IFERROR(IF(Pinjaman_Belum_Dibayar*Nilai_Dimasukkan,Saldo_Akhir,\"\"), \"\")","v":""}]
[null,{"$f":"IFERROR(IF(Pinjaman_Belum_Dibayar*Nilai_Dimasukkan,Jumlah_Pembayaran1,\"\"), \"\")","v":""},{"$f":"IFERROR(IF(Pinjaman_Belum_Dibayar*Nilai_Dimasukkan,Tanggal_Pembayaran,\"\"), \"\")","v":""},{"$f":"IFERROR(IF(Pinjaman_Belum_Dibayar*Nilai_Dimasukkan,Saldo_Awal,\"\"), \"\")","v":""},{"$f":"IFERROR(IF(Pinjaman_Belum_Dibayar*Nilai_Dimasukkan,Pembayaran_Bulanan,\"\"), \"\")","v":""},{"$f":"IFERROR(IF(Pinjaman_Belum_Dibayar*Nilai_Dimasukkan,Pinjaman_Pokok,\"\"), \"\")","v":""},{"$f":"IFERROR(IF(Pinjaman_Belum_Dibayar*Nilai_Dimasukkan,Bunga,\"\"), \"\")","v":""},{"$f":"IFERROR(IF(Pinjaman_Belum_Dibayar*Nilai_Dimasukkan,Saldo_Akhir,\"\"), \"\")","v":""}]
[null,{"$f":"IFERROR(IF(Pinjaman_Belum_Dibayar*Nilai_Dimasukkan,Jumlah_Pembayaran1,\"\"), \"\")","v":""},{"$f":"IFERROR(IF(Pinjaman_Belum_Dibayar*Nilai_Dimasukkan,Tanggal_Pembayaran,\"\"), \"\")","v":""},{"$f":"IFERROR(IF(Pinjaman_Belum_Dibayar*Nilai_Dimasukkan,Saldo_Awal,\"\"), \"\")","v":""},{"$f":"IFERROR(IF(Pinjaman_Belum_Dibayar*Nilai_Dimasukkan,Pembayaran_Bulanan,\"\"), \"\")","v":""},{"$f":"IFERROR(IF(Pinjaman_Belum_Dibayar*Nilai_Dimasukkan,Pinjaman_Pokok,\"\"), \"\")","v":""},{"$f":"IFERROR(IF(Pinjaman_Belum_Dibayar*Nilai_Dimasukkan,Bunga,\"\"), \"\")","v":""},{"$f":"IFERROR(IF(Pinjaman_Belum_Dibayar*Nilai_Dimasukkan,Saldo_Akhir,\"\"), \"\")","v":""}]
[null,{"$f":"IFERROR(IF(Pinjaman_Belum_Dibayar*Nilai_Dimasukkan,Jumlah_Pembayaran1,\"\"), \"\")","v":""},{"$f":"IFERROR(IF(Pinjaman_Belum_Dibayar*Nilai_Dimasukkan,Tanggal_Pembayaran,\"\"), \"\")","v":""},{"$f":"IFERROR(IF(Pinjaman_Belum_Dibayar*Nilai_Dimasukkan,Saldo_Awal,\"\"), \"\")","v":""},{"$f":"IFERROR(IF(Pinjaman_Belum_Dibayar*Nilai_Dimasukkan,Pembayaran_Bulanan,\"\"), \"\")","v":""},{"$f":"IFERROR(IF(Pinjaman_Belum_Dibayar*Nilai_Dimasukkan,Pinjaman_Pokok,\"\"), \"\")","v":""},{"$f":"IFERROR(IF(Pinjaman_Belum_Dibayar*Nilai_Dimasukkan,Bunga,\"\"), \"\")","v":""},{"$f":"IFERROR(IF(Pinjaman_Belum_Dibayar*Nilai_Dimasukkan,Saldo_Akhir,\"\"), \"\")","v":""}]
[null,{"$f":"IFERROR(IF(Pinjaman_Belum_Dibayar*Nilai_Dimasukkan,Jumlah_Pembayaran1,\"\"), \"\")","v":""},{"$f":"IFERROR(IF(Pinjaman_Belum_Dibayar*Nilai_Dimasukkan,Tanggal_Pembayaran,\"\"), \"\")","v":""},{"$f":"IFERROR(IF(Pinjaman_Belum_Dibayar*Nilai_Dimasukkan,Saldo_Awal,\"\"), \"\")","v":""},{"$f":"IFERROR(IF(Pinjaman_Belum_Dibayar*Nilai_Dimasukkan,Pembayaran_Bulanan,\"\"), \"\")","v":""},{"$f":"IFERROR(IF(Pinjaman_Belum_Dibayar*Nilai_Dimasukkan,Pinjaman_Pokok,\"\"), \"\")","v":""},{"$f":"IFERROR(IF(Pinjaman_Belum_Dibayar*Nilai_Dimasukkan,Bunga,\"\"), \"\")","v":""},{"$f":"IFERROR(IF(Pinjaman_Belum_Dibayar*Nilai_Dimasukkan,Saldo_Akhir,\"\"), \"\")","v":""}]
[null,{"$f":"IFERROR(IF(Pinjaman_Belum_Dibayar*Nilai_Dimasukkan,Jumlah_Pembayaran1,\"\"), \"\")","v":""},{"$f":"IFERROR(IF(Pinjaman_Belum_Dibayar*Nilai_Dimasukkan,Tanggal_Pembayaran,\"\"), \"\")","v":""},{"$f":"IFERROR(IF(Pinjaman_Belum_Dibayar*Nilai_Dimasukkan,Saldo_Awal,\"\"), \"\")","v":""},{"$f":"IFERROR(IF(Pinjaman_Belum_Dibayar*Nilai_Dimasukkan,Pembayaran_Bulanan,\"\"), \"\")","v":""},{"$f":"IFERROR(IF(Pinjaman_Belum_Dibayar*Nilai_Dimasukkan,Pinjaman_Pokok,\"\"), \"\")","v":""},{"$f":"IFERROR(IF(Pinjaman_Belum_Dibayar*Nilai_Dimasukkan,Bunga,\"\"), \"\")","v":""},{"$f":"IFERROR(IF(Pinjaman_Belum_Dibayar*Nilai_Dimasukkan,Saldo_Akhir,\"\"), \"\")","v":""}]
[null,{"$f":"IFERROR(IF(Pinjaman_Belum_Dibayar*Nilai_Dimasukkan,Jumlah_Pembayaran1,\"\"), \"\")","v":""},{"$f":"IFERROR(IF(Pinjaman_Belum_Dibayar*Nilai_Dimasukkan,Tanggal_Pembayaran,\"\"), \"\")","v":""},{"$f":"IFERROR(IF(Pinjaman_Belum_Dibayar*Nilai_Dimasukkan,Saldo_Awal,\"\"), \"\")","v":""},{"$f":"IFERROR(IF(Pinjaman_Belum_Dibayar*Nilai_Dimasukkan,Pembayaran_Bulanan,\"\"), \"\")","v":""},{"$f":"IFERROR(IF(Pinjaman_Belum_Dibayar*Nilai_Dimasukkan,Pinjaman_Pokok,\"\"), \"\")","v":""},{"$f":"IFERROR(IF(Pinjaman_Belum_Dibayar*Nilai_Dimasukkan,Bunga,\"\"), \"\")","v":""},{"$f":"IFERROR(IF(Pinjaman_Belum_Dibayar*Nilai_Dimasukkan,Saldo_Akhir,\"\"), \"\")","v":""}]
[null,{"$f":"IFERROR(IF(Pinjaman_Belum_Dibayar*Nilai_Dimasukkan,Jumlah_Pembayaran1,\"\"), \"\")","v":""},{"$f":"IFERROR(IF(Pinjaman_Belum_Dibayar*Nilai_Dimasukkan,Tanggal_Pembayaran,\"\"), \"\")","v":""},{"$f":"IFERROR(IF(Pinjaman_Belum_Dibayar*Nilai_Dimasukkan,Saldo_Awal,\"\"), \"\")","v":""},{"$f":"IFERROR(IF(Pinjaman_Belum_Dibayar*Nilai_Dimasukkan,Pembayaran_Bulanan,\"\"), \"\")","v":""},{"$f":"IFERROR(IF(Pinjaman_Belum_Dibayar*Nilai_Dimasukkan,Pinjaman_Pokok,\"\"), \"\")","v":""},{"$f":"IFERROR(IF(Pinjaman_Belum_Dibayar*Nilai_Dimasukkan,Bunga,\"\"), \"\")","v":""},{"$f":"IFERROR(IF(Pinjaman_Belum_Dibayar*Nilai_Dimasukkan,Saldo_Akhir,\"\"), \"\")","v":""}]
[null,{"$f":"IFERROR(IF(Pinjaman_Belum_Dibayar*Nilai_Dimasukkan,Jumlah_Pembayaran1,\"\"), \"\")","v":""},{"$f":"IFERROR(IF(Pinjaman_Belum_Dibayar*Nilai_Dimasukkan,Tanggal_Pembayaran,\"\"), \"\")","v":""},{"$f":"IFERROR(IF(Pinjaman_Belum_Dibayar*Nilai_Dimasukkan,Saldo_Awal,\"\"), \"\")","v":""},{"$f":"IFERROR(IF(Pinjaman_Belum_Dibayar*Nilai_Dimasukkan,Pembayaran_Bulanan,\"\"), \"\")","v":""},{"$f":"IFERROR(IF(Pinjaman_Belum_Dibayar*Nilai_Dimasukkan,Pinjaman_Pokok,\"\"), \"\")","v":""},{"$f":"IFERROR(IF(Pinjaman_Belum_Dibayar*Nilai_Dimasukkan,Bunga,\"\"), \"\")","v":""},{"$f":"IFERROR(IF(Pinjaman_Belum_Dibayar*Nilai_Dimasukkan,Saldo_Akhir,\"\"), \"\")","v":""}]
[null,{"$f":"IFERROR(IF(Pinjaman_Belum_Dibayar*Nilai_Dimasukkan,Jumlah_Pembayaran1,\"\"), \"\")","v":""},{"$f":"IFERROR(IF(Pinjaman_Belum_Dibayar*Nilai_Dimasukkan,Tanggal_Pembayaran,\"\"), \"\")","v":""},{"$f":"IFERROR(IF(Pinjaman_Belum_Dibayar*Nilai_Dimasukkan,Saldo_Awal,\"\"), \"\")","v":""},{"$f":"IFERROR(IF(Pinjaman_Belum_Dibayar*Nilai_Dimasukkan,Pembayaran_Bulanan,\"\"), \"\")","v":""},{"$f":"IFERROR(IF(Pinjaman_Belum_Dibayar*Nilai_Dimasukkan,Pinjaman_Pokok,\"\"), \"\")","v":""},{"$f":"IFERROR(IF(Pinjaman_Belum_Dibayar*Nilai_Dimasukkan,Bunga,\"\"), \"\")","v":""},{"$f":"IFERROR(IF(Pinjaman_Belum_Dibayar*Nilai_Dimasukkan,Saldo_Akhir,\"\"), \"\")","v":""}]
[null,{"$f":"IFERROR(IF(Pinjaman_Belum_Dibayar*Nilai_Dimasukkan,Jumlah_Pembayaran1,\"\"), \"\")","v":""},{"$f":"IFERROR(IF(Pinjaman_Belum_Dibayar*Nilai_Dimasukkan,Tanggal_Pembayaran,\"\"), \"\")","v":""},{"$f":"IFERROR(IF(Pinjaman_Belum_Dibayar*Nilai_Dimasukkan,Saldo_Awal,\"\"), \"\")","v":""},{"$f":"IFERROR(IF(Pinjaman_Belum_Dibayar*Nilai_Dimasukkan,Pembayaran_Bulanan,\"\"), \"\")","v":""},{"$f":"IFERROR(IF(Pinjaman_Belum_Dibayar*Nilai_Dimasukkan,Pinjaman_Pokok,\"\"), \"\")","v":""},{"$f":"IFERROR(IF(Pinjaman_Belum_Dibayar*Nilai_Dimasukkan,Bunga,\"\"), \"\")","v":""},{"$f":"IFERROR(IF(Pinjaman_Belum_Dibayar*Nilai_Dimasukkan,Saldo_Akhir,\"\"), \"\")","v":""}]
[null,{"$f":"IFERROR(IF(Pinjaman_Belum_Dibayar*Nilai_Dimasukkan,Jumlah_Pembayaran1,\"\"), \"\")","v":""},{"$f":"IFERROR(IF(Pinjaman_Belum_Dibayar*Nilai_Dimasukkan,Tanggal_Pembayaran,\"\"), \"\")","v":""},{"$f":"IFERROR(IF(Pinjaman_Belum_Dibayar*Nilai_Dimasukkan,Saldo_Awal,\"\"), \"\")","v":""},{"$f":"IFERROR(IF(Pinjaman_Belum_Dibayar*Nilai_Dimasukkan,Pembayaran_Bulanan,\"\"), \"\")","v":""},{"$f":"IFERROR(IF(Pinjaman_Belum_Dibayar*Nilai_Dimasukkan,Pinjaman_Pokok,\"\"), \"\")","v":""},{"$f":"IFERROR(IF(Pinjaman_Belum_Dibayar*Nilai_Dimasukkan,Bunga,\"\"), \"\")","v":""},{"$f":"IFERROR(IF(Pinjaman_Belum_Dibayar*Nilai_Dimasukkan,Saldo_Akhir,\"\"), \"\")","v":""}]
[null,{"$f":"IFERROR(IF(Pinjaman_Belum_Dibayar*Nilai_Dimasukkan,Jumlah_Pembayaran1,\"\"), \"\")","v":""},{"$f":"IFERROR(IF(Pinjaman_Belum_Dibayar*Nilai_Dimasukkan,Tanggal_Pembayaran,\"\"), \"\")","v":""},{"$f":"IFERROR(IF(Pinjaman_Belum_Dibayar*Nilai_Dimasukkan,Saldo_Awal,\"\"), \"\")","v":""},{"$f":"IFERROR(IF(Pinjaman_Belum_Dibayar*Nilai_Dimasukkan,Pembayaran_Bulanan,\"\"), \"\")","v":""},{"$f":"IFERROR(IF(Pinjaman_Belum_Dibayar*Nilai_Dimasukkan,Pinjaman_Pokok,\"\"), \"\")","v":""},{"$f":"IFERROR(IF(Pinjaman_Belum_Dibayar*Nilai_Dimasukkan,Bunga,\"\"), \"\")","v":""},{"$f":"IFERROR(IF(Pinjaman_Belum_Dibayar*Nilai_Dimasukkan,Saldo_Akhir,\"\"), \"\")","v":""}]
[null,{"$f":"IFERROR(IF(Pinjaman_Belum_Dibayar*Nilai_Dimasukkan,Jumlah_Pembayaran1,\"\"), \"\")","v":""},{"$f":"IFERROR(IF(Pinjaman_Belum_Dibayar*Nilai_Dimasukkan,Tanggal_Pembayaran,\"\"), \"\")","v":""},{"$f":"IFERROR(IF(Pinjaman_Belum_Dibayar*Nilai_Dimasukkan,Saldo_Awal,\"\"), \"\")","v":""},{"$f":"IFERROR(IF(Pinjaman_Belum_Dibayar*Nilai_Dimasukkan,Pembayaran_Bulanan,\"\"), \"\")","v":""},{"$f":"IFERROR(IF(Pinjaman_Belum_Dibayar*Nilai_Dimasukkan,Pinjaman_Pokok,\"\"), \"\")","v":""},{"$f":"IFERROR(IF(Pinjaman_Belum_Dibayar*Nilai_Dimasukkan,Bunga,\"\"), \"\")","v":""},{"$f":"IFERROR(IF(Pinjaman_Belum_Dibayar*Nilai_Dimasukkan,Saldo_Akhir,\"\"), \"\")","v":""}]
[null,{"$f":"IFERROR(IF(Pinjaman_Belum_Dibayar*Nilai_Dimasukkan,Jumlah_Pembayaran1,\"\"), \"\")","v":""},{"$f":"IFERROR(IF(Pinjaman_Belum_Dibayar*Nilai_Dimasukkan,Tanggal_Pembayaran,\"\"), \"\")","v":""},{"$f":"IFERROR(IF(Pinjaman_Belum_Dibayar*Nilai_Dimasukkan,Saldo_Awal,\"\"), \"\")","v":""},{"$f":"IFERROR(IF(Pinjaman_Belum_Dibayar*Nilai_Dimasukkan,Pembayaran_Bulanan,\"\"), \"\")","v":""},{"$f":"IFERROR(IF(Pinjaman_Belum_Dibayar*Nilai_Dimasukkan,Pinjaman_Pokok,\"\"), \"\")","v":""},{"$f":"IFERROR(IF(Pinjaman_Belum_Dibayar*Nilai_Dimasukkan,Bunga,\"\"), \"\")","v":""},{"$f":"IFERROR(IF(Pinjaman_Belum_Dibayar*Nilai_Dimasukkan,Saldo_Akhir,\"\"), \"\")","v":""}]
[null,{"$f":"IFERROR(IF(Pinjaman_Belum_Dibayar*Nilai_Dimasukkan,Jumlah_Pembayaran1,\"\"), \"\")","v":""},{"$f":"IFERROR(IF(Pinjaman_Belum_Dibayar*Nilai_Dimasukkan,Tanggal_Pembayaran,\"\"), \"\")","v":""},{"$f":"IFERROR(IF(Pinjaman_Belum_Dibayar*Nilai_Dimasukkan,Saldo_Awal,\"\"), \"\")","v":""},{"$f":"IFERROR(IF(Pinjaman_Belum_Dibayar*Nilai_Dimasukkan,Pembayaran_Bulanan,\"\"), \"\")","v":""},{"$f":"IFERROR(IF(Pinjaman_Belum_Dibayar*Nilai_Dimasukkan,Pinjaman_Pokok,\"\"), \"\")","v":""},{"$f":"IFERROR(IF(Pinjaman_Belum_Dibayar*Nilai_Dimasukkan,Bunga,\"\"), \"\")","v":""},{"$f":"IFERROR(IF(Pinjaman_Belum_Dibayar*Nilai_Dimasukkan,Saldo_Akhir,\"\"), \"\")","v":""}]
[null,{"$f":"IFERROR(IF(Pinjaman_Belum_Dibayar*Nilai_Dimasukkan,Jumlah_Pembayaran1,\"\"), \"\")","v":""},{"$f":"IFERROR(IF(Pinjaman_Belum_Dibayar*Nilai_Dimasukkan,Tanggal_Pembayaran,\"\"), \"\")","v":""},{"$f":"IFERROR(IF(Pinjaman_Belum_Dibayar*Nilai_Dimasukkan,Saldo_Awal,\"\"), \"\")","v":""},{"$f":"IFERROR(IF(Pinjaman_Belum_Dibayar*Nilai_Dimasukkan,Pembayaran_Bulanan,\"\"), \"\")","v":""},{"$f":"IFERROR(IF(Pinjaman_Belum_Dibayar*Nilai_Dimasukkan,Pinjaman_Pokok,\"\"), \"\")","v":""},{"$f":"IFERROR(IF(Pinjaman_Belum_Dibayar*Nilai_Dimasukkan,Bunga,\"\"), \"\")","v":""},{"$f":"IFERROR(IF(Pinjaman_Belum_Dibayar*Nilai_Dimasukkan,Saldo_Akhir,\"\"), \"\")","v":""}]
[null,{"$f":"IFERROR(IF(Pinjaman_Belum_Dibayar*Nilai_Dimasukkan,Jumlah_Pembayaran1,\"\"), \"\")","v":""},{"$f":"IFERROR(IF(Pinjaman_Belum_Dibayar*Nilai_Dimasukkan,Tanggal_Pembayaran,\"\"), \"\")","v":""},{"$f":"IFERROR(IF(Pinjaman_Belum_Dibayar*Nilai_Dimasukkan,Saldo_Awal,\"\"), \"\")","v":""},{"$f":"IFERROR(IF(Pinjaman_Belum_Dibayar*Nilai_Dimasukkan,Pembayaran_Bulanan,\"\"), \"\")","v":""},{"$f":"IFERROR(IF(Pinjaman_Belum_Dibayar*Nilai_Dimasukkan,Pinjaman_Pokok,\"\"), \"\")","v":""},{"$f":"IFERROR(IF(Pinjaman_Belum_Dibayar*Nilai_Dimasukkan,Bunga,\"\"), \"\")","v":""},{"$f":"IFERROR(IF(Pinjaman_Belum_Dibayar*Nilai_Dimasukkan,Saldo_Akhir,\"\"), \"\")","v":""}]
[null,{"$f":"IFERROR(IF(Pinjaman_Belum_Dibayar*Nilai_Dimasukkan,Jumlah_Pembayaran1,\"\"), \"\")","v":""},{"$f":"IFERROR(IF(Pinjaman_Belum_Dibayar*Nilai_Dimasukkan,Tanggal_Pembayaran,\"\"), \"\")","v":""},{"$f":"IFERROR(IF(Pinjaman_Belum_Dibayar*Nilai_Dimasukkan,Saldo_Awal,\"\"), \"\")","v":""},{"$f":"IFERROR(IF(Pinjaman_Belum_Dibayar*Nilai_Dimasukkan,Pembayaran_Bulanan,\"\"), \"\")","v":""},{"$f":"IFERROR(IF(Pinjaman_Belum_Dibayar*Nilai_Dimasukkan,Pinjaman_Pokok,\"\"), \"\")","v":""},{"$f":"IFERROR(IF(Pinjaman_Belum_Dibayar*Nilai_Dimasukkan,Bunga,\"\"), \"\")","v":""},{"$f":"IFERROR(IF(Pinjaman_Belum_Dibayar*Nilai_Dimasukkan,Saldo_Akhir,\"\"), \"\")","v":""}]
[null,{"$f":"IFERROR(IF(Pinjaman_Belum_Dibayar*Nilai_Dimasukkan,Jumlah_Pembayaran1,\"\"), \"\")","v":""},{"$f":"IFERROR(IF(Pinjaman_Belum_Dibayar*Nilai_Dimasukkan,Tanggal_Pembayaran,\"\"), \"\")","v":""},{"$f":"IFERROR(IF(Pinjaman_Belum_Dibayar*Nilai_Dimasukkan,Saldo_Awal,\"\"), \"\")","v":""},{"$f":"IFERROR(IF(Pinjaman_Belum_Dibayar*Nilai_Dimasukkan,Pembayaran_Bulanan,\"\"), \"\")","v":""},{"$f":"IFERROR(IF(Pinjaman_Belum_Dibayar*Nilai_Dimasukkan,Pinjaman_Pokok,\"\"), \"\")","v":""},{"$f":"IFERROR(IF(Pinjaman_Belum_Dibayar*Nilai_Dimasukkan,Bunga,\"\"), \"\")","v":""},{"$f":"IFERROR(IF(Pinjaman_Belum_Dibayar*Nilai_Dimasukkan,Saldo_Akhir,\"\"), \"\")","v":""}]
[null,{"$f":"IFERROR(IF(Pinjaman_Belum_Dibayar*Nilai_Dimasukkan,Jumlah_Pembayaran1,\"\"), \"\")","v":""},{"$f":"IFERROR(IF(Pinjaman_Belum_Dibayar*Nilai_Dimasukkan,Tanggal_Pembayaran,\"\"), \"\")","v":""},{"$f":"IFERROR(IF(Pinjaman_Belum_Dibayar*Nilai_Dimasukkan,Saldo_Awal,\"\"), \"\")","v":""},{"$f":"IFERROR(IF(Pinjaman_Belum_Dibayar*Nilai_Dimasukkan,Pembayaran_Bulanan,\"\"), \"\")","v":""},{"$f":"IFERROR(IF(Pinjaman_Belum_Dibayar*Nilai_Dimasukkan,Pinjaman_Pokok,\"\"), \"\")","v":""},{"$f":"IFERROR(IF(Pinjaman_Belum_Dibayar*Nilai_Dimasukkan,Bunga,\"\"), \"\")","v":""},{"$f":"IFERROR(IF(Pinjaman_Belum_Dibayar*Nilai_Dimasukkan,Saldo_Akhir,\"\"), \"\")","v":""}]
[null,{"$f":"IFERROR(IF(Pinjaman_Belum_Dibayar*Nilai_Dimasukkan,Jumlah_Pembayaran1,\"\"), \"\")","v":""},{"$f":"IFERROR(IF(Pinjaman_Belum_Dibayar*Nilai_Dimasukkan,Tanggal_Pembayaran,\"\"), \"\")","v":""},{"$f":"IFERROR(IF(Pinjaman_Belum_Dibayar*Nilai_Dimasukkan,Saldo_Awal,\"\"), \"\")","v":""},{"$f":"IFERROR(IF(Pinjaman_Belum_Dibayar*Nilai_Dimasukkan,Pembayaran_Bulanan,\"\"), \"\")","v":""},{"$f":"IFERROR(IF(Pinjaman_Belum_Dibayar*Nilai_Dimasukkan,Pinjaman_Pokok,\"\"), \"\")","v":""},{"$f":"IFERROR(IF(Pinjaman_Belum_Dibayar*Nilai_Dimasukkan,Bunga,\"\"), \"\")","v":""},{"$f":"IFERROR(IF(Pinjaman_Belum_Dibayar*Nilai_Dimasukkan,Saldo_Akhir,\"\"), \"\")","v":""}]
[null,{"$f":"IFERROR(IF(Pinjaman_Belum_Dibayar*Nilai_Dimasukkan,Jumlah_Pembayaran1,\"\"), \"\")","v":""},{"$f":"IFERROR(IF(Pinjaman_Belum_Dibayar*Nilai_Dimasukkan,Tanggal_Pembayaran,\"\"), \"\")","v":""},{"$f":"IFERROR(IF(Pinjaman_Belum_Dibayar*Nilai_Dimasukkan,Saldo_Awal,\"\"), \"\")","v":""},{"$f":"IFERROR(IF(Pinjaman_Belum_Dibayar*Nilai_Dimasukkan,Pembayaran_Bulanan,\"\"), \"\")","v":""},{"$f":"IFERROR(IF(Pinjaman_Belum_Dibayar*Nilai_Dimasukkan,Pinjaman_Pokok,\"\"), \"\")","v":""},{"$f":"IFERROR(IF(Pinjaman_Belum_Dibayar*Nilai_Dimasukkan,Bunga,\"\"), \"\")","v":""},{"$f":"IFERROR(IF(Pinjaman_Belum_Dibayar*Nilai_Dimasukkan,Saldo_Akhir,\"\"), \"\")","v":""}]
[null,{"$f":"IFERROR(IF(Pinjaman_Belum_Dibayar*Nilai_Dimasukkan,Jumlah_Pembayaran1,\"\"), \"\")","v":""},{"$f":"IFERROR(IF(Pinjaman_Belum_Dibayar*Nilai_Dimasukkan,Tanggal_Pembayaran,\"\"), \"\")","v":""},{"$f":"IFERROR(IF(Pinjaman_Belum_Dibayar*Nilai_Dimasukkan,Saldo_Awal,\"\"), \"\")","v":""},{"$f":"IFERROR(IF(Pinjaman_Belum_Dibayar*Nilai_Dimasukkan,Pembayaran_Bulanan,\"\"), \"\")","v":""},{"$f":"IFERROR(IF(Pinjaman_Belum_Dibayar*Nilai_Dimasukkan,Pinjaman_Pokok,\"\"), \"\")","v":""},{"$f":"IFERROR(IF(Pinjaman_Belum_Dibayar*Nilai_Dimasukkan,Bunga,\"\"), \"\")","v":""},{"$f":"IFERROR(IF(Pinjaman_Belum_Dibayar*Nilai_Dimasukkan,Saldo_Akhir,\"\"), \"\")","v":""}]
[null,{"$f":"IFERROR(IF(Pinjaman_Belum_Dibayar*Nilai_Dimasukkan,Jumlah_Pembayaran1,\"\"), \"\")","v":""},{"$f":"IFERROR(IF(Pinjaman_Belum_Dibayar*Nilai_Dimasukkan,Tanggal_Pembayaran,\"\"), \"\")","v":""},{"$f":"IFERROR(IF(Pinjaman_Belum_Dibayar*Nilai_Dimasukkan,Saldo_Awal,\"\"), \"\")","v":""},{"$f":"IFERROR(IF(Pinjaman_Belum_Dibayar*Nilai_Dimasukkan,Pembayaran_Bulanan,\"\"), \"\")","v":""},{"$f":"IFERROR(IF(Pinjaman_Belum_Dibayar*Nilai_Dimasukkan,Pinjaman_Pokok,\"\"), \"\")","v":""},{"$f":"IFERROR(IF(Pinjaman_Belum_Dibayar*Nilai_Dimasukkan,Bunga,\"\"), \"\")","v":""},{"$f":"IFERROR(IF(Pinjaman_Belum_Dibayar*Nilai_Dimasukkan,Saldo_Akhir,\"\"), \"\")","v":""}]
[null,{"$f":"IFERROR(IF(Pinjaman_Belum_Dibayar*Nilai_Dimasukkan,Jumlah_Pembayaran1,\"\"), \"\")","v":""},{"$f":"IFERROR(IF(Pinjaman_Belum_Dibayar*Nilai_Dimasukkan,Tanggal_Pembayaran,\"\"), \"\")","v":""},{"$f":"IFERROR(IF(Pinjaman_Belum_Dibayar*Nilai_Dimasukkan,Saldo_Awal,\"\"), \"\")","v":""},{"$f":"IFERROR(IF(Pinjaman_Belum_Dibayar*Nilai_Dimasukkan,Pembayaran_Bulanan,\"\"), \"\")","v":""},{"$f":"IFERROR(IF(Pinjaman_Belum_Dibayar*Nilai_Dimasukkan,Pinjaman_Pokok,\"\"), \"\")","v":""},{"$f":"IFERROR(IF(Pinjaman_Belum_Dibayar*Nilai_Dimasukkan,Bunga,\"\"), \"\")","v":""},{"$f":"IFERROR(IF(Pinjaman_Belum_Dibayar*Nilai_Dimasukkan,Saldo_Akhir,\"\"), \"\")","v":""}]
[null,{"$f":"IFERROR(IF(Pinjaman_Belum_Dibayar*Nilai_Dimasukkan,Jumlah_Pembayaran1,\"\"), \"\")","v":""},{"$f":"IFERROR(IF(Pinjaman_Belum_Dibayar*Nilai_Dimasukkan,Tanggal_Pembayaran,\"\"), \"\")","v":""},{"$f":"IFERROR(IF(Pinjaman_Belum_Dibayar*Nilai_Dimasukkan,Saldo_Awal,\"\"), \"\")","v":""},{"$f":"IFERROR(IF(Pinjaman_Belum_Dibayar*Nilai_Dimasukkan,Pembayaran_Bulanan,\"\"), \"\")","v":""},{"$f":"IFERROR(IF(Pinjaman_Belum_Dibayar*Nilai_Dimasukkan,Pinjaman_Pokok,\"\"), \"\")","v":""},{"$f":"IFERROR(IF(Pinjaman_Belum_Dibayar*Nilai_Dimasukkan,Bunga,\"\"), \"\")","v":""},{"$f":"IFERROR(IF(Pinjaman_Belum_Dibayar*Nilai_Dimasukkan,Saldo_Akhir,\"\"), \"\")","v":""}]
[null,{"$f":"IFERROR(IF(Pinjaman_Belum_Dibayar*Nilai_Dimasukkan,Jumlah_Pembayaran1,\"\"), \"\")","v":""},{"$f":"IFERROR(IF(Pinjaman_Belum_Dibayar*Nilai_Dimasukkan,Tanggal_Pembayaran,\"\"), \"\")","v":""},{"$f":"IFERROR(IF(Pinjaman_Belum_Dibayar*Nilai_Dimasukkan,Saldo_Awal,\"\"), \"\")","v":""},{"$f":"IFERROR(IF(Pinjaman_Belum_Dibayar*Nilai_Dimasukkan,Pembayaran_Bulanan,\"\"), \"\")","v":""},{"$f":"IFERROR(IF(Pinjaman_Belum_Dibayar*Nilai_Dimasukkan,Pinjaman_Pokok,\"\"), \"\")","v":""},{"$f":"IFERROR(IF(Pinjaman_Belum_Dibayar*Nilai_Dimasukkan,Bunga,\"\"), \"\")","v":""},{"$f":"IFERROR(IF(Pinjaman_Belum_Dibayar*Nilai_Dimasukkan,Saldo_Akhir,\"\"), \"\")","v":""}]
[null,{"$f":"IFERROR(IF(Pinjaman_Belum_Dibayar*Nilai_Dimasukkan,Jumlah_Pembayaran1,\"\"), \"\")","v":""},{"$f":"IFERROR(IF(Pinjaman_Belum_Dibayar*Nilai_Dimasukkan,Tanggal_Pembayaran,\"\"), \"\")","v":""},{"$f":"IFERROR(IF(Pinjaman_Belum_Dibayar*Nilai_Dimasukkan,Saldo_Awal,\"\"), \"\")","v":""},{"$f":"IFERROR(IF(Pinjaman_Belum_Dibayar*Nilai_Dimasukkan,Pembayaran_Bulanan,\"\"), \"\")","v":""},{"$f":"IFERROR(IF(Pinjaman_Belum_Dibayar*Nilai_Dimasukkan,Pinjaman_Pokok,\"\"), \"\")","v":""},{"$f":"IFERROR(IF(Pinjaman_Belum_Dibayar*Nilai_Dimasukkan,Bunga,\"\"), \"\")","v":""},{"$f":"IFERROR(IF(Pinjaman_Belum_Dibayar*Nilai_Dimasukkan,Saldo_Akhir,\"\"), \"\")","v":""}]
[null,{"$f":"IFERROR(IF(Pinjaman_Belum_Dibayar*Nilai_Dimasukkan,Jumlah_Pembayaran1,\"\"), \"\")","v":""},{"$f":"IFERROR(IF(Pinjaman_Belum_Dibayar*Nilai_Dimasukkan,Tanggal_Pembayaran,\"\"), \"\")","v":""},{"$f":"IFERROR(IF(Pinjaman_Belum_Dibayar*Nilai_Dimasukkan,Saldo_Awal,\"\"), \"\")","v":""},{"$f":"IFERROR(IF(Pinjaman_Belum_Dibayar*Nilai_Dimasukkan,Pembayaran_Bulanan,\"\"), \"\")","v":""},{"$f":"IFERROR(IF(Pinjaman_Belum_Dibayar*Nilai_Dimasukkan,Pinjaman_Pokok,\"\"), \"\")","v":""},{"$f":"IFERROR(IF(Pinjaman_Belum_Dibayar*Nilai_Dimasukkan,Bunga,\"\"), \"\")","v":""},{"$f":"IFERROR(IF(Pinjaman_Belum_Dibayar*Nilai_Dimasukkan,Saldo_Akhir,\"\"), \"\")","v":""}]
[null,{"$f":"IFERROR(IF(Pinjaman_Belum_Dibayar*Nilai_Dimasukkan,Jumlah_Pembayaran1,\"\"), \"\")","v":""},{"$f":"IFERROR(IF(Pinjaman_Belum_Dibayar*Nilai_Dimasukkan,Tanggal_Pembayaran,\"\"), \"\")","v":""},{"$f":"IFERROR(IF(Pinjaman_Belum_Dibayar*Nilai_Dimasukkan,Saldo_Awal,\"\"), \"\")","v":""},{"$f":"IFERROR(IF(Pinjaman_Belum_Dibayar*Nilai_Dimasukkan,Pembayaran_Bulanan,\"\"), \"\")","v":""},{"$f":"IFERROR(IF(Pinjaman_Belum_Dibayar*Nilai_Dimasukkan,Pinjaman_Pokok,\"\"), \"\")","v":""},{"$f":"IFERROR(IF(Pinjaman_Belum_Dibayar*Nilai_Dimasukkan,Bunga,\"\"), \"\")","v":""},{"$f":"IFERROR(IF(Pinjaman_Belum_Dibayar*Nilai_Dimasukkan,Saldo_Akhir,\"\"), \"\")","v":""}]
[null,{"$f":"IFERROR(IF(Pinjaman_Belum_Dibayar*Nilai_Dimasukkan,Jumlah_Pembayaran1,\"\"), \"\")","v":""},{"$f":"IFERROR(IF(Pinjaman_Belum_Dibayar*Nilai_Dimasukkan,Tanggal_Pembayaran,\"\"), \"\")","v":""},{"$f":"IFERROR(IF(Pinjaman_Belum_Dibayar*Nilai_Dimasukkan,Saldo_Awal,\"\"), \"\")","v":""},{"$f":"IFERROR(IF(Pinjaman_Belum_Dibayar*Nilai_Dimasukkan,Pembayaran_Bulanan,\"\"), \"\")","v":""},{"$f":"IFERROR(IF(Pinjaman_Belum_Dibayar*Nilai_Dimasukkan,Pinjaman_Pokok,\"\"), \"\")","v":""},{"$f":"IFERROR(IF(Pinjaman_Belum_Dibayar*Nilai_Dimasukkan,Bunga,\"\"), \"\")","v":""},{"$f":"IFERROR(IF(Pinjaman_Belum_Dibayar*Nilai_Dimasukkan,Saldo_Akhir,\"\"), \"\")","v":""}]
[null,{"$f":"IFERROR(IF(Pinjaman_Belum_Dibayar*Nilai_Dimasukkan,Jumlah_Pembayaran1,\"\"), \"\")","v":""},{"$f":"IFERROR(IF(Pinjaman_Belum_Dibayar*Nilai_Dimasukkan,Tanggal_Pembayaran,\"\"), \"\")","v":""},{"$f":"IFERROR(IF(Pinjaman_Belum_Dibayar*Nilai_Dimasukkan,Saldo_Awal,\"\"), \"\")","v":""},{"$f":"IFERROR(IF(Pinjaman_Belum_Dibayar*Nilai_Dimasukkan,Pembayaran_Bulanan,\"\"), \"\")","v":""},{"$f":"IFERROR(IF(Pinjaman_Belum_Dibayar*Nilai_Dimasukkan,Pinjaman_Pokok,\"\"), \"\")","v":""},{"$f":"IFERROR(IF(Pinjaman_Belum_Dibayar*Nilai_Dimasukkan,Bunga,\"\"), \"\")","v":""},{"$f":"IFERROR(IF(Pinjaman_Belum_Dibayar*Nilai_Dimasukkan,Saldo_Akhir,\"\"), \"\")","v":""}]
[null,{"$f":"IFERROR(IF(Pinjaman_Belum_Dibayar*Nilai_Dimasukkan,Jumlah_Pembayaran1,\"\"), \"\")","v":""},{"$f":"IFERROR(IF(Pinjaman_Belum_Dibayar*Nilai_Dimasukkan,Tanggal_Pembayaran,\"\"), \"\")","v":""},{"$f":"IFERROR(IF(Pinjaman_Belum_Dibayar*Nilai_Dimasukkan,Saldo_Awal,\"\"), \"\")","v":""},{"$f":"IFERROR(IF(Pinjaman_Belum_Dibayar*Nilai_Dimasukkan,Pembayaran_Bulanan,\"\"), \"\")","v":""},{"$f":"IFERROR(IF(Pinjaman_Belum_Dibayar*Nilai_Dimasukkan,Pinjaman_Pokok,\"\"), \"\")","v":""},{"$f":"IFERROR(IF(Pinjaman_Belum_Dibayar*Nilai_Dimasukkan,Bunga,\"\"), \"\")","v":""},{"$f":"IFERROR(IF(Pinjaman_Belum_Dibayar*Nilai_Dimasukkan,Saldo_Akhir,\"\"), \"\")","v":""}]
[null,{"$f":"IFERROR(IF(Pinjaman_Belum_Dibayar*Nilai_Dimasukkan,Jumlah_Pembayaran1,\"\"), \"\")","v":""},{"$f":"IFERROR(IF(Pinjaman_Belum_Dibayar*Nilai_Dimasukkan,Tanggal_Pembayaran,\"\"), \"\")","v":""},{"$f":"IFERROR(IF(Pinjaman_Belum_Dibayar*Nilai_Dimasukkan,Saldo_Awal,\"\"), \"\")","v":""},{"$f":"IFERROR(IF(Pinjaman_Belum_Dibayar*Nilai_Dimasukkan,Pembayaran_Bulanan,\"\"), \"\")","v":""},{"$f":"IFERROR(IF(Pinjaman_Belum_Dibayar*Nilai_Dimasukkan,Pinjaman_Pokok,\"\"), \"\")","v":""},{"$f":"IFERROR(IF(Pinjaman_Belum_Dibayar*Nilai_Dimasukkan,Bunga,\"\"), \"\")","v":""},{"$f":"IFERROR(IF(Pinjaman_Belum_Dibayar*Nilai_Dimasukkan,Saldo_Akhir,\"\"), \"\")","v":""}]
[null,{"$f":"IFERROR(IF(Pinjaman_Belum_Dibayar*Nilai_Dimasukkan,Jumlah_Pembayaran1,\"\"), \"\")","v":""},{"$f":"IFERROR(IF(Pinjaman_Belum_Dibayar*Nilai_Dimasukkan,Tanggal_Pembayaran,\"\"), \"\")","v":""},{"$f":"IFERROR(IF(Pinjaman_Belum_Dibayar*Nilai_Dimasukkan,Saldo_Awal,\"\"), \"\")","v":""},{"$f":"IFERROR(IF(Pinjaman_Belum_Dibayar*Nilai_Dimasukkan,Pembayaran_Bulanan,\"\"), \"\")","v":""},{"$f":"IFERROR(IF(Pinjaman_Belum_Dibayar*Nilai_Dimasukkan,Pinjaman_Pokok,\"\"), \"\")","v":""},{"$f":"IFERROR(IF(Pinjaman_Belum_Dibayar*Nilai_Dimasukkan,Bunga,\"\"), \"\")","v":""},{"$f":"IFERROR(IF(Pinjaman_Belum_Dibayar*Nilai_Dimasukkan,Saldo_Akhir,\"\"), \"\")","v":""}]
[null,{"$f":"IFERROR(IF(Pinjaman_Belum_Dibayar*Nilai_Dimasukkan,Jumlah_Pembayaran1,\"\"), \"\")","v":""},{"$f":"IFERROR(IF(Pinjaman_Belum_Dibayar*Nilai_Dimasukkan,Tanggal_Pembayaran,\"\"), \"\")","v":""},{"$f":"IFERROR(IF(Pinjaman_Belum_Dibayar*Nilai_Dimasukkan,Saldo_Awal,\"\"), \"\")","v":""},{"$f":"IFERROR(IF(Pinjaman_Belum_Dibayar*Nilai_Dimasukkan,Pembayaran_Bulanan,\"\"), \"\")","v":""},{"$f":"IFERROR(IF(Pinjaman_Belum_Dibayar*Nilai_Dimasukkan,Pinjaman_Pokok,\"\"), \"\")","v":""},{"$f":"IFERROR(IF(Pinjaman_Belum_Dibayar*Nilai_Dimasukkan,Bunga,\"\"), \"\")","v":""},{"$f":"IFERROR(IF(Pinjaman_Belum_Dibayar*Nilai_Dimasukkan,Saldo_Akhir,\"\"), \"\")","v":""}]
[null,{"$f":"IFERROR(IF(Pinjaman_Belum_Dibayar*Nilai_Dimasukkan,Jumlah_Pembayaran1,\"\"), \"\")","v":""},{"$f":"IFERROR(IF(Pinjaman_Belum_Dibayar*Nilai_Dimasukkan,Tanggal_Pembayaran,\"\"), \"\")","v":""},{"$f":"IFERROR(IF(Pinjaman_Belum_Dibayar*Nilai_Dimasukkan,Saldo_Awal,\"\"), \"\")","v":""},{"$f":"IFERROR(IF(Pinjaman_Belum_Dibayar*Nilai_Dimasukkan,Pembayaran_Bulanan,\"\"), \"\")","v":""},{"$f":"IFERROR(IF(Pinjaman_Belum_Dibayar*Nilai_Dimasukkan,Pinjaman_Pokok,\"\"), \"\")","v":""},{"$f":"IFERROR(IF(Pinjaman_Belum_Dibayar*Nilai_Dimasukkan,Bunga,\"\"), \"\")","v":""},{"$f":"IFERROR(IF(Pinjaman_Belum_Dibayar*Nilai_Dimasukkan,Saldo_Akhir,\"\"), \"\")","v":""}]
[null,{"$f":"IFERROR(IF(Pinjaman_Belum_Dibayar*Nilai_Dimasukkan,Jumlah_Pembayaran1,\"\"), \"\")","v":""},{"$f":"IFERROR(IF(Pinjaman_Belum_Dibayar*Nilai_Dimasukkan,Tanggal_Pembayaran,\"\"), \"\")","v":""},{"$f":"IFERROR(IF(Pinjaman_Belum_Dibayar*Nilai_Dimasukkan,Saldo_Awal,\"\"), \"\")","v":""},{"$f":"IFERROR(IF(Pinjaman_Belum_Dibayar*Nilai_Dimasukkan,Pembayaran_Bulanan,\"\"), \"\")","v":""},{"$f":"IFERROR(IF(Pinjaman_Belum_Dibayar*Nilai_Dimasukkan,Pinjaman_Pokok,\"\"), \"\")","v":""},{"$f":"IFERROR(IF(Pinjaman_Belum_Dibayar*Nilai_Dimasukkan,Bunga,\"\"), \"\")","v":""},{"$f":"IFERROR(IF(Pinjaman_Belum_Dibayar*Nilai_Dimasukkan,Saldo_Akhir,\"\"), \"\")","v":""}]
[null,{"$f":"IFERROR(IF(Pinjaman_Belum_Dibayar*Nilai_Dimasukkan,Jumlah_Pembayaran1,\"\"), \"\")","v":""},{"$f":"IFERROR(IF(Pinjaman_Belum_Dibayar*Nilai_Dimasukkan,Tanggal_Pembayaran,\"\"), \"\")","v":""},{"$f":"IFERROR(IF(Pinjaman_Belum_Dibayar*Nilai_Dimasukkan,Saldo_Awal,\"\"), \"\")","v":""},{"$f":"IFERROR(IF(Pinjaman_Belum_Dibayar*Nilai_Dimasukkan,Pembayaran_Bulanan,\"\"), \"\")","v":""},{"$f":"IFERROR(IF(Pinjaman_Belum_Dibayar*Nilai_Dimasukkan,Pinjaman_Pokok,\"\"), \"\")","v":""},{"$f":"IFERROR(IF(Pinjaman_Belum_Dibayar*Nilai_Dimasukkan,Bunga,\"\"), \"\")","v":""},{"$f":"IFERROR(IF(Pinjaman_Belum_Dibayar*Nilai_Dimasukkan,Saldo_Akhir,\"\"), \"\")","v":""}]
[null,{"$f":"IFERROR(IF(Pinjaman_Belum_Dibayar*Nilai_Dimasukkan,Jumlah_Pembayaran1,\"\"), \"\")","v":""},{"$f":"IFERROR(IF(Pinjaman_Belum_Dibayar*Nilai_Dimasukkan,Tanggal_Pembayaran,\"\"), \"\")","v":""},{"$f":"IFERROR(IF(Pinjaman_Belum_Dibayar*Nilai_Dimasukkan,Saldo_Awal,\"\"), \"\")","v":""},{"$f":"IFERROR(IF(Pinjaman_Belum_Dibayar*Nilai_Dimasukkan,Pembayaran_Bulanan,\"\"), \"\")","v":""},{"$f":"IFERROR(IF(Pinjaman_Belum_Dibayar*Nilai_Dimasukkan,Pinjaman_Pokok,\"\"), \"\")","v":""},{"$f":"IFERROR(IF(Pinjaman_Belum_Dibayar*Nilai_Dimasukkan,Bunga,\"\"), \"\")","v":""},{"$f":"IFERROR(IF(Pinjaman_Belum_Dibayar*Nilai_Dimasukkan,Saldo_Akhir,\"\"), \"\")","v":""}]
[null,{"$f":"IFERROR(IF(Pinjaman_Belum_Dibayar*Nilai_Dimasukkan,Jumlah_Pembayaran1,\"\"), \"\")","v":""},{"$f":"IFERROR(IF(Pinjaman_Belum_Dibayar*Nilai_Dimasukkan,Tanggal_Pembayaran,\"\"), \"\")","v":""},{"$f":"IFERROR(IF(Pinjaman_Belum_Dibayar*Nilai_Dimasukkan,Saldo_Awal,\"\"), \"\")","v":""},{"$f":"IFERROR(IF(Pinjaman_Belum_Dibayar*Nilai_Dimasukkan,Pembayaran_Bulanan,\"\"), \"\")","v":""},{"$f":"IFERROR(IF(Pinjaman_Belum_Dibayar*Nilai_Dimasukkan,Pinjaman_Pokok,\"\"), \"\")","v":""},{"$f":"IFERROR(IF(Pinjaman_Belum_Dibayar*Nilai_Dimasukkan,Bunga,\"\"), \"\")","v":""},{"$f":"IFERROR(IF(Pinjaman_Belum_Dibayar*Nilai_Dimasukkan,Saldo_Akhir,\"\"), \"\")","v":""}]
[null,{"$f":"IFERROR(IF(Pinjaman_Belum_Dibayar*Nilai_Dimasukkan,Jumlah_Pembayaran1,\"\"), \"\")","v":""},{"$f":"IFERROR(IF(Pinjaman_Belum_Dibayar*Nilai_Dimasukkan,Tanggal_Pembayaran,\"\"), \"\")","v":""},{"$f":"IFERROR(IF(Pinjaman_Belum_Dibayar*Nilai_Dimasukkan,Saldo_Awal,\"\"), \"\")","v":""},{"$f":"IFERROR(IF(Pinjaman_Belum_Dibayar*Nilai_Dimasukkan,Pembayaran_Bulanan,\"\"), \"\")","v":""},{"$f":"IFERROR(IF(Pinjaman_Belum_Dibayar*Nilai_Dimasukkan,Pinjaman_Pokok,\"\"), \"\")","v":""},{"$f":"IFERROR(IF(Pinjaman_Belum_Dibayar*Nilai_Dimasukkan,Bunga,\"\"), \"\")","v":""},{"$f":"IFERROR(IF(Pinjaman_Belum_Dibayar*Nilai_Dimasukkan,Saldo_Akhir,\"\"), \"\")","v":""}]
[null,{"$f":"IFERROR(IF(Pinjaman_Belum_Dibayar*Nilai_Dimasukkan,Jumlah_Pembayaran1,\"\"), \"\")","v":""},{"$f":"IFERROR(IF(Pinjaman_Belum_Dibayar*Nilai_Dimasukkan,Tanggal_Pembayaran,\"\"), \"\")","v":""},{"$f":"IFERROR(IF(Pinjaman_Belum_Dibayar*Nilai_Dimasukkan,Saldo_Awal,\"\"), \"\")","v":""},{"$f":"IFERROR(IF(Pinjaman_Belum_Dibayar*Nilai_Dimasukkan,Pembayaran_Bulanan,\"\"), \"\")","v":""},{"$f":"IFERROR(IF(Pinjaman_Belum_Dibayar*Nilai_Dimasukkan,Pinjaman_Pokok,\"\"), \"\")","v":""},{"$f":"IFERROR(IF(Pinjaman_Belum_Dibayar*Nilai_Dimasukkan,Bunga,\"\"), \"\")","v":""},{"$f":"IFERROR(IF(Pinjaman_Belum_Dibayar*Nilai_Dimasukkan,Saldo_Akhir,\"\"), \"\")","v":""}]
[null,{"$f":"IFERROR(IF(Pinjaman_Belum_Dibayar*Nilai_Dimasukkan,Jumlah_Pembayaran1,\"\"), \"\")","v":""},{"$f":"IFERROR(IF(Pinjaman_Belum_Dibayar*Nilai_Dimasukkan,Tanggal_Pembayaran,\"\"), \"\")","v":""},{"$f":"IFERROR(IF(Pinjaman_Belum_Dibayar*Nilai_Dimasukkan,Saldo_Awal,\"\"), \"\")","v":""},{"$f":"IFERROR(IF(Pinjaman_Belum_Dibayar*Nilai_Dimasukkan,Pembayaran_Bulanan,\"\"), \"\")","v":""},{"$f":"IFERROR(IF(Pinjaman_Belum_Dibayar*Nilai_Dimasukkan,Pinjaman_Pokok,\"\"), \"\")","v":""},{"$f":"IFERROR(IF(Pinjaman_Belum_Dibayar*Nilai_Dimasukkan,Bunga,\"\"), \"\")","v":""},{"$f":"IFERROR(IF(Pinjaman_Belum_Dibayar*Nilai_Dimasukkan,Saldo_Akhir,\"\"), \"\")","v":""}]
[null,{"$f":"IFERROR(IF(Pinjaman_Belum_Dibayar*Nilai_Dimasukkan,Jumlah_Pembayaran1,\"\"), \"\")","v":""},{"$f":"IFERROR(IF(Pinjaman_Belum_Dibayar*Nilai_Dimasukkan,Tanggal_Pembayaran,\"\"), \"\")","v":""},{"$f":"IFERROR(IF(Pinjaman_Belum_Dibayar*Nilai_Dimasukkan,Saldo_Awal,\"\"), \"\")","v":""},{"$f":"IFERROR(IF(Pinjaman_Belum_Dibayar*Nilai_Dimasukkan,Pembayaran_Bulanan,\"\"), \"\")","v":""},{"$f":"IFERROR(IF(Pinjaman_Belum_Dibayar*Nilai_Dimasukkan,Pinjaman_Pokok,\"\"), \"\")","v":""},{"$f":"IFERROR(IF(Pinjaman_Belum_Dibayar*Nilai_Dimasukkan,Bunga,\"\"), \"\")","v":""},{"$f":"IFERROR(IF(Pinjaman_Belum_Dibayar*Nilai_Dimasukkan,Saldo_Akhir,\"\"), \"\")","v":""}]
[null,{"$f":"IFERROR(IF(Pinjaman_Belum_Dibayar*Nilai_Dimasukkan,Jumlah_Pembayaran1,\"\"), \"\")","v":""},{"$f":"IFERROR(IF(Pinjaman_Belum_Dibayar*Nilai_Dimasukkan,Tanggal_Pembayaran,\"\"), \"\")","v":""},{"$f":"IFERROR(IF(Pinjaman_Belum_Dibayar*Nilai_Dimasukkan,Saldo_Awal,\"\"), \"\")","v":""},{"$f":"IFERROR(IF(Pinjaman_Belum_Dibayar*Nilai_Dimasukkan,Pembayaran_Bulanan,\"\"), \"\")","v":""},{"$f":"IFERROR(IF(Pinjaman_Belum_Dibayar*Nilai_Dimasukkan,Pinjaman_Pokok,\"\"), \"\")","v":""},{"$f":"IFERROR(IF(Pinjaman_Belum_Dibayar*Nilai_Dimasukkan,Bunga,\"\"), \"\")","v":""},{"$f":"IFERROR(IF(Pinjaman_Belum_Dibayar*Nilai_Dimasukkan,Saldo_Akhir,\"\"), \"\")","v":""}]
[null,{"$f":"IFERROR(IF(Pinjaman_Belum_Dibayar*Nilai_Dimasukkan,Jumlah_Pembayaran1,\"\"), \"\")","v":""},{"$f":"IFERROR(IF(Pinjaman_Belum_Dibayar*Nilai_Dimasukkan,Tanggal_Pembayaran,\"\"), \"\")","v":""},{"$f":"IFERROR(IF(Pinjaman_Belum_Dibayar*Nilai_Dimasukkan,Saldo_Awal,\"\"), \"\")","v":""},{"$f":"IFERROR(IF(Pinjaman_Belum_Dibayar*Nilai_Dimasukkan,Pembayaran_Bulanan,\"\"), \"\")","v":""},{"$f":"IFERROR(IF(Pinjaman_Belum_Dibayar*Nilai_Dimasukkan,Pinjaman_Pokok,\"\"), \"\")","v":""},{"$f":"IFERROR(IF(Pinjaman_Belum_Dibayar*Nilai_Dimasukkan,Bunga,\"\"), \"\")","v":""},{"$f":"IFERROR(IF(Pinjaman_Belum_Dibayar*Nilai_Dimasukkan,Saldo_Akhir,\"\"), \"\")","v":""}]
[null,{"$f":"IFERROR(IF(Pinjaman_Belum_Dibayar*Nilai_Dimasukkan,Jumlah_Pembayaran1,\"\"), \"\")","v":""},{"$f":"IFERROR(IF(Pinjaman_Belum_Dibayar*Nilai_Dimasukkan,Tanggal_Pembayaran,\"\"), \"\")","v":""},{"$f":"IFERROR(IF(Pinjaman_Belum_Dibayar*Nilai_Dimasukkan,Saldo_Awal,\"\"), \"\")","v":""},{"$f":"IFERROR(IF(Pinjaman_Belum_Dibayar*Nilai_Dimasukkan,Pembayaran_Bulanan,\"\"), \"\")","v":""},{"$f":"IFERROR(IF(Pinjaman_Belum_Dibayar*Nilai_Dimasukkan,Pinjaman_Pokok,\"\"), \"\")","v":""},{"$f":"IFERROR(IF(Pinjaman_Belum_Dibayar*Nilai_Dimasukkan,Bunga,\"\"), \"\")","v":""},{"$f":"IFERROR(IF(Pinjaman_Belum_Dibayar*Nilai_Dimasukkan,Saldo_Akhir,\"\"), \"\")","v":""}]
[null,{"$f":"IFERROR(IF(Pinjaman_Belum_Dibayar*Nilai_Dimasukkan,Jumlah_Pembayaran1,\"\"), \"\")","v":""},{"$f":"IFERROR(IF(Pinjaman_Belum_Dibayar*Nilai_Dimasukkan,Tanggal_Pembayaran,\"\"), \"\")","v":""},{"$f":"IFERROR(IF(Pinjaman_Belum_Dibayar*Nilai_Dimasukkan,Saldo_Awal,\"\"), \"\")","v":""},{"$f":"IFERROR(IF(Pinjaman_Belum_Dibayar*Nilai_Dimasukkan,Pembayaran_Bulanan,\"\"), \"\")","v":""},{"$f":"IFERROR(IF(Pinjaman_Belum_Dibayar*Nilai_Dimasukkan,Pinjaman_Pokok,\"\"), \"\")","v":""},{"$f":"IFERROR(IF(Pinjaman_Belum_Dibayar*Nilai_Dimasukkan,Bunga,\"\"), \"\")","v":""},{"$f":"IFERROR(IF(Pinjaman_Belum_Dibayar*Nilai_Dimasukkan,Saldo_Akhir,\"\"), \"\")","v":""}]
[null,{"$f":"IFERROR(IF(Pinjaman_Belum_Dibayar*Nilai_Dimasukkan,Jumlah_Pembayaran1,\"\"), \"\")","v":""},{"$f":"IFERROR(IF(Pinjaman_Belum_Dibayar*Nilai_Dimasukkan,Tanggal_Pembayaran,\"\"), \"\")","v":""},{"$f":"IFERROR(IF(Pinjaman_Belum_Dibayar*Nilai_Dimasukkan,Saldo_Awal,\"\"), \"\")","v":""},{"$f":"IFERROR(IF(Pinjaman_Belum_Dibayar*Nilai_Dimasukkan,Pembayaran_Bulanan,\"\"), \"\")","v":""},{"$f":"IFERROR(IF(Pinjaman_Belum_Dibayar*Nilai_Dimasukkan,Pinjaman_Pokok,\"\"), \"\")","v":""},{"$f":"IFERROR(IF(Pinjaman_Belum_Dibayar*Nilai_Dimasukkan,Bunga,\"\"), \"\")","v":""},{"$f":"IFERROR(IF(Pinjaman_Belum_Dibayar*Nilai_Dimasukkan,Saldo_Akhir,\"\"), \"\")","v":""}]
[null,{"$f":"IFERROR(IF(Pinjaman_Belum_Dibayar*Nilai_Dimasukkan,Jumlah_Pembayaran1,\"\"), \"\")","v":""},{"$f":"IFERROR(IF(Pinjaman_Belum_Dibayar*Nilai_Dimasukkan,Tanggal_Pembayaran,\"\"), \"\")","v":""},{"$f":"IFERROR(IF(Pinjaman_Belum_Dibayar*Nilai_Dimasukkan,Saldo_Awal,\"\"), \"\")","v":""},{"$f":"IFERROR(IF(Pinjaman_Belum_Dibayar*Nilai_Dimasukkan,Pembayaran_Bulanan,\"\"), \"\")","v":""},{"$f":"IFERROR(IF(Pinjaman_Belum_Dibayar*Nilai_Dimasukkan,Pinjaman_Pokok,\"\"), \"\")","v":""},{"$f":"IFERROR(IF(Pinjaman_Belum_Dibayar*Nilai_Dimasukkan,Bunga,\"\"), \"\")","v":""},{"$f":"IFERROR(IF(Pinjaman_Belum_Dibayar*Nilai_Dimasukkan,Saldo_Akhir,\"\"), \"\")","v":""}]
[null,{"$f":"IFERROR(IF(Pinjaman_Belum_Dibayar*Nilai_Dimasukkan,Jumlah_Pembayaran1,\"\"), \"\")","v":""},{"$f":"IFERROR(IF(Pinjaman_Belum_Dibayar*Nilai_Dimasukkan,Tanggal_Pembayaran,\"\"), \"\")","v":""},{"$f":"IFERROR(IF(Pinjaman_Belum_Dibayar*Nilai_Dimasukkan,Saldo_Awal,\"\"), \"\")","v":""},{"$f":"IFERROR(IF(Pinjaman_Belum_Dibayar*Nilai_Dimasukkan,Pembayaran_Bulanan,\"\"), \"\")","v":""},{"$f":"IFERROR(IF(Pinjaman_Belum_Dibayar*Nilai_Dimasukkan,Pinjaman_Pokok,\"\"), \"\")","v":""},{"$f":"IFERROR(IF(Pinjaman_Belum_Dibayar*Nilai_Dimasukkan,Bunga,\"\"), \"\")","v":""},{"$f":"IFERROR(IF(Pinjaman_Belum_Dibayar*Nilai_Dimasukkan,Saldo_Akhir,\"\"), \"\")","v":""}]
[null,{"$f":"IFERROR(IF(Pinjaman_Belum_Dibayar*Nilai_Dimasukkan,Jumlah_Pembayaran1,\"\"), \"\")","v":""},{"$f":"IFERROR(IF(Pinjaman_Belum_Dibayar*Nilai_Dimasukkan,Tanggal_Pembayaran,\"\"), \"\")","v":""},{"$f":"IFERROR(IF(Pinjaman_Belum_Dibayar*Nilai_Dimasukkan,Saldo_Awal,\"\"), \"\")","v":""},{"$f":"IFERROR(IF(Pinjaman_Belum_Dibayar*Nilai_Dimasukkan,Pembayaran_Bulanan,\"\"), \"\")","v":""},{"$f":"IFERROR(IF(Pinjaman_Belum_Dibayar*Nilai_Dimasukkan,Pinjaman_Pokok,\"\"), \"\")","v":""},{"$f":"IFERROR(IF(Pinjaman_Belum_Dibayar*Nilai_Dimasukkan,Bunga,\"\"), \"\")","v":""},{"$f":"IFERROR(IF(Pinjaman_Belum_Dibayar*Nilai_Dimasukkan,Saldo_Akhir,\"\"), \"\")","v":""}]
[null,{"$f":"IFERROR(IF(Pinjaman_Belum_Dibayar*Nilai_Dimasukkan,Jumlah_Pembayaran1,\"\"), \"\")","v":""},{"$f":"IFERROR(IF(Pinjaman_Belum_Dibayar*Nilai_Dimasukkan,Tanggal_Pembayaran,\"\"), \"\")","v":""},{"$f":"IFERROR(IF(Pinjaman_Belum_Dibayar*Nilai_Dimasukkan,Saldo_Awal,\"\"), \"\")","v":""},{"$f":"IFERROR(IF(Pinjaman_Belum_Dibayar*Nilai_Dimasukkan,Pembayaran_Bulanan,\"\"), \"\")","v":""},{"$f":"IFERROR(IF(Pinjaman_Belum_Dibayar*Nilai_Dimasukkan,Pinjaman_Pokok,\"\"), \"\")","v":""},{"$f":"IFERROR(IF(Pinjaman_Belum_Dibayar*Nilai_Dimasukkan,Bunga,\"\"), \"\")","v":""},{"$f":"IFERROR(IF(Pinjaman_Belum_Dibayar*Nilai_Dimasukkan,Saldo_Akhir,\"\"), \"\")","v":""}]
[null,{"$f":"IFERROR(IF(Pinjaman_Belum_Dibayar*Nilai_Dimasukkan,Jumlah_Pembayaran1,\"\"), \"\")","v":""},{"$f":"IFERROR(IF(Pinjaman_Belum_Dibayar*Nilai_Dimasukkan,Tanggal_Pembayaran,\"\"), \"\")","v":""},{"$f":"IFERROR(IF(Pinjaman_Belum_Dibayar*Nilai_Dimasukkan,Saldo_Awal,\"\"), \"\")","v":""},{"$f":"IFERROR(IF(Pinjaman_Belum_Dibayar*Nilai_Dimasukkan,Pembayaran_Bulanan,\"\"), \"\")","v":""},{"$f":"IFERROR(IF(Pinjaman_Belum_Dibayar*Nilai_Dimasukkan,Pinjaman_Pokok,\"\"), \"\")","v":""},{"$f":"IFERROR(IF(Pinjaman_Belum_Dibayar*Nilai_Dimasukkan,Bunga,\"\"), \"\")","v":""},{"$f":"IFERROR(IF(Pinjaman_Belum_Dibayar*Nilai_Dimasukkan,Saldo_Akhir,\"\"), \"\")","v":""}]
[null,{"$f":"IFERROR(IF(Pinjaman_Belum_Dibayar*Nilai_Dimasukkan,Jumlah_Pembayaran1,\"\"), \"\")","v":""},{"$f":"IFERROR(IF(Pinjaman_Belum_Dibayar*Nilai_Dimasukkan,Tanggal_Pembayaran,\"\"), \"\")","v":""},{"$f":"IFERROR(IF(Pinjaman_Belum_Dibayar*Nilai_Dimasukkan,Saldo_Awal,\"\"), \"\")","v":""},{"$f":"IFERROR(IF(Pinjaman_Belum_Dibayar*Nilai_Dimasukkan,Pembayaran_Bulanan,\"\"), \"\")","v":""},{"$f":"IFERROR(IF(Pinjaman_Belum_Dibayar*Nilai_Dimasukkan,Pinjaman_Pokok,\"\"), \"\")","v":""},{"$f":"IFERROR(IF(Pinjaman_Belum_Dibayar*Nilai_Dimasukkan,Bunga,\"\"), \"\")","v":""},{"$f":"IFERROR(IF(Pinjaman_Belum_Dibayar*Nilai_Dimasukkan,Saldo_Akhir,\"\"), \"\")","v":""}]
[null,{"$f":"IFERROR(IF(Pinjaman_Belum_Dibayar*Nilai_Dimasukkan,Jumlah_Pembayaran1,\"\"), \"\")","v":""},{"$f":"IFERROR(IF(Pinjaman_Belum_Dibayar*Nilai_Dimasukkan,Tanggal_Pembayaran,\"\"), \"\")","v":""},{"$f":"IFERROR(IF(Pinjaman_Belum_Dibayar*Nilai_Dimasukkan,Saldo_Awal,\"\"), \"\")","v":""},{"$f":"IFERROR(IF(Pinjaman_Belum_Dibayar*Nilai_Dimasukkan,Pembayaran_Bulanan,\"\"), \"\")","v":""},{"$f":"IFERROR(IF(Pinjaman_Belum_Dibayar*Nilai_Dimasukkan,Pinjaman_Pokok,\"\"), \"\")","v":""},{"$f":"IFERROR(IF(Pinjaman_Belum_Dibayar*Nilai_Dimasukkan,Bunga,\"\"), \"\")","v":""},{"$f":"IFERROR(IF(Pinjaman_Belum_Dibayar*Nilai_Dimasukkan,Saldo_Akhir,\"\"), \"\")","v":""}]
[null,{"$f":"IFERROR(IF(Pinjaman_Belum_Dibayar*Nilai_Dimasukkan,Jumlah_Pembayaran1,\"\"), \"\")","v":""},{"$f":"IFERROR(IF(Pinjaman_Belum_Dibayar*Nilai_Dimasukkan,Tanggal_Pembayaran,\"\"), \"\")","v":""},{"$f":"IFERROR(IF(Pinjaman_Belum_Dibayar*Nilai_Dimasukkan,Saldo_Awal,\"\"), \"\")","v":""},{"$f":"IFERROR(IF(Pinjaman_Belum_Dibayar*Nilai_Dimasukkan,Pembayaran_Bulanan,\"\"), \"\")","v":""},{"$f":"IFERROR(IF(Pinjaman_Belum_Dibayar*Nilai_Dimasukkan,Pinjaman_Pokok,\"\"), \"\")","v":""},{"$f":"IFERROR(IF(Pinjaman_Belum_Dibayar*Nilai_Dimasukkan,Bunga,\"\"), \"\")","v":""},{"$f":"IFERROR(IF(Pinjaman_Belum_Dibayar*Nilai_Dimasukkan,Saldo_Akhir,\"\"), \"\")","v":""}]
[null,{"$f":"IFERROR(IF(Pinjaman_Belum_Dibayar*Nilai_Dimasukkan,Jumlah_Pembayaran1,\"\"), \"\")","v":""},{"$f":"IFERROR(IF(Pinjaman_Belum_Dibayar*Nilai_Dimasukkan,Tanggal_Pembayaran,\"\"), \"\")","v":""},{"$f":"IFERROR(IF(Pinjaman_Belum_Dibayar*Nilai_Dimasukkan,Saldo_Awal,\"\"), \"\")","v":""},{"$f":"IFERROR(IF(Pinjaman_Belum_Dibayar*Nilai_Dimasukkan,Pembayaran_Bulanan,\"\"), \"\")","v":""},{"$f":"IFERROR(IF(Pinjaman_Belum_Dibayar*Nilai_Dimasukkan,Pinjaman_Pokok,\"\"), \"\")","v":""},{"$f":"IFERROR(IF(Pinjaman_Belum_Dibayar*Nilai_Dimasukkan,Bunga,\"\"), \"\")","v":""},{"$f":"IFERROR(IF(Pinjaman_Belum_Dibayar*Nilai_Dimasukkan,Saldo_Akhir,\"\"), \"\")","v":""}]
[null,{"$f":"IFERROR(IF(Pinjaman_Belum_Dibayar*Nilai_Dimasukkan,Jumlah_Pembayaran1,\"\"), \"\")","v":""},{"$f":"IFERROR(IF(Pinjaman_Belum_Dibayar*Nilai_Dimasukkan,Tanggal_Pembayaran,\"\"), \"\")","v":""},{"$f":"IFERROR(IF(Pinjaman_Belum_Dibayar*Nilai_Dimasukkan,Saldo_Awal,\"\"), \"\")","v":""},{"$f":"IFERROR(IF(Pinjaman_Belum_Dibayar*Nilai_Dimasukkan,Pembayaran_Bulanan,\"\"), \"\")","v":""},{"$f":"IFERROR(IF(Pinjaman_Belum_Dibayar*Nilai_Dimasukkan,Pinjaman_Pokok,\"\"), \"\")","v":""},{"$f":"IFERROR(IF(Pinjaman_Belum_Dibayar*Nilai_Dimasukkan,Bunga,\"\"), \"\")","v":""},{"$f":"IFERROR(IF(Pinjaman_Belum_Dibayar*Nilai_Dimasukkan,Saldo_Akhir,\"\"), \"\")","v":""}]
[null,{"$f":"IFERROR(IF(Pinjaman_Belum_Dibayar*Nilai_Dimasukkan,Jumlah_Pembayaran1,\"\"), \"\")","v":""},{"$f":"IFERROR(IF(Pinjaman_Belum_Dibayar*Nilai_Dimasukkan,Tanggal_Pembayaran,\"\"), \"\")","v":""},{"$f":"IFERROR(IF(Pinjaman_Belum_Dibayar*Nilai_Dimasukkan,Saldo_Awal,\"\"), \"\")","v":""},{"$f":"IFERROR(IF(Pinjaman_Belum_Dibayar*Nilai_Dimasukkan,Pembayaran_Bulanan,\"\"), \"\")","v":""},{"$f":"IFERROR(IF(Pinjaman_Belum_Dibayar*Nilai_Dimasukkan,Pinjaman_Pokok,\"\"), \"\")","v":""},{"$f":"IFERROR(IF(Pinjaman_Belum_Dibayar*Nilai_Dimasukkan,Bunga,\"\"), \"\")","v":""},{"$f":"IFERROR(IF(Pinjaman_Belum_Dibayar*Nilai_Dimasukkan,Saldo_Akhir,\"\"), \"\")","v":""}]
[null,{"$f":"IFERROR(IF(Pinjaman_Belum_Dibayar*Nilai_Dimasukkan,Jumlah_Pembayaran1,\"\"), \"\")","v":""},{"$f":"IFERROR(IF(Pinjaman_Belum_Dibayar*Nilai_Dimasukkan,Tanggal_Pembayaran,\"\"), \"\")","v":""},{"$f":"IFERROR(IF(Pinjaman_Belum_Dibayar*Nilai_Dimasukkan,Saldo_Awal,\"\"), \"\")","v":""},{"$f":"IFERROR(IF(Pinjaman_Belum_Dibayar*Nilai_Dimasukkan,Pembayaran_Bulanan,\"\"), \"\")","v":""},{"$f":"IFERROR(IF(Pinjaman_Belum_Dibayar*Nilai_Dimasukkan,Pinjaman_Pokok,\"\"), \"\")","v":""},{"$f":"IFERROR(IF(Pinjaman_Belum_Dibayar*Nilai_Dimasukkan,Bunga,\"\"), \"\")","v":""},{"$f":"IFERROR(IF(Pinjaman_Belum_Dibayar*Nilai_Dimasukkan,Saldo_Akhir,\"\"), \"\")","v":""}]
[null,{"$f":"IFERROR(IF(Pinjaman_Belum_Dibayar*Nilai_Dimasukkan,Jumlah_Pembayaran1,\"\"), \"\")","v":""},{"$f":"IFERROR(IF(Pinjaman_Belum_Dibayar*Nilai_Dimasukkan,Tanggal_Pembayaran,\"\"), \"\")","v":""},{"$f":"IFERROR(IF(Pinjaman_Belum_Dibayar*Nilai_Dimasukkan,Saldo_Awal,\"\"), \"\")","v":""},{"$f":"IFERROR(IF(Pinjaman_Belum_Dibayar*Nilai_Dimasukkan,Pembayaran_Bulanan,\"\"), \"\")","v":""},{"$f":"IFERROR(IF(Pinjaman_Belum_Dibayar*Nilai_Dimasukkan,Pinjaman_Pokok,\"\"), \"\")","v":""},{"$f":"IFERROR(IF(Pinjaman_Belum_Dibayar*Nilai_Dimasukkan,Bunga,\"\"), \"\")","v":""},{"$f":"IFERROR(IF(Pinjaman_Belum_Dibayar*Nilai_Dimasukkan,Saldo_Akhir,\"\"), \"\")","v":""}]
[null,{"$f":"IFERROR(IF(Pinjaman_Belum_Dibayar*Nilai_Dimasukkan,Jumlah_Pembayaran1,\"\"), \"\")","v":""},{"$f":"IFERROR(IF(Pinjaman_Belum_Dibayar*Nilai_Dimasukkan,Tanggal_Pembayaran,\"\"), \"\")","v":""},{"$f":"IFERROR(IF(Pinjaman_Belum_Dibayar*Nilai_Dimasukkan,Saldo_Awal,\"\"), \"\")","v":""},{"$f":"IFERROR(IF(Pinjaman_Belum_Dibayar*Nilai_Dimasukkan,Pembayaran_Bulanan,\"\"), \"\")","v":""},{"$f":"IFERROR(IF(Pinjaman_Belum_Dibayar*Nilai_Dimasukkan,Pinjaman_Pokok,\"\"), \"\")","v":""},{"$f":"IFERROR(IF(Pinjaman_Belum_Dibayar*Nilai_Dimasukkan,Bunga,\"\"), \"\")","v":""},{"$f":"IFERROR(IF(Pinjaman_Belum_Dibayar*Nilai_Dimasukkan,Saldo_Akhir,\"\"), \"\")","v":""}]
[null,{"$f":"IFERROR(IF(Pinjaman_Belum_Dibayar*Nilai_Dimasukkan,Jumlah_Pembayaran1,\"\"), \"\")","v":""},{"$f":"IFERROR(IF(Pinjaman_Belum_Dibayar*Nilai_Dimasukkan,Tanggal_Pembayaran,\"\"), \"\")","v":""},{"$f":"IFERROR(IF(Pinjaman_Belum_Dibayar*Nilai_Dimasukkan,Saldo_Awal,\"\"), \"\")","v":""},{"$f":"IFERROR(IF(Pinjaman_Belum_Dibayar*Nilai_Dimasukkan,Pembayaran_Bulanan,\"\"), \"\")","v":""},{"$f":"IFERROR(IF(Pinjaman_Belum_Dibayar*Nilai_Dimasukkan,Pinjaman_Pokok,\"\"), \"\")","v":""},{"$f":"IFERROR(IF(Pinjaman_Belum_Dibayar*Nilai_Dimasukkan,Bunga,\"\"), \"\")","v":""},{"$f":"IFERROR(IF(Pinjaman_Belum_Dibayar*Nilai_Dimasukkan,Saldo_Akhir,\"\"), \"\")","v":""}]
[null,{"$f":"IFERROR(IF(Pinjaman_Belum_Dibayar*Nilai_Dimasukkan,Jumlah_Pembayaran1,\"\"), \"\")","v":""},{"$f":"IFERROR(IF(Pinjaman_Belum_Dibayar*Nilai_Dimasukkan,Tanggal_Pembayaran,\"\"), \"\")","v":""},{"$f":"IFERROR(IF(Pinjaman_Belum_Dibayar*Nilai_Dimasukkan,Saldo_Awal,\"\"), \"\")","v":""},{"$f":"IFERROR(IF(Pinjaman_Belum_Dibayar*Nilai_Dimasukkan,Pembayaran_Bulanan,\"\"), \"\")","v":""},{"$f":"IFERROR(IF(Pinjaman_Belum_Dibayar*Nilai_Dimasukkan,Pinjaman_Pokok,\"\"), \"\")","v":""},{"$f":"IFERROR(IF(Pinjaman_Belum_Dibayar*Nilai_Dimasukkan,Bunga,\"\"), \"\")","v":""},{"$f":"IFERROR(IF(Pinjaman_Belum_Dibayar*Nilai_Dimasukkan,Saldo_Akhir,\"\"), \"\")","v":""}]
[null,{"$f":"IFERROR(IF(Pinjaman_Belum_Dibayar*Nilai_Dimasukkan,Jumlah_Pembayaran1,\"\"), \"\")","v":""},{"$f":"IFERROR(IF(Pinjaman_Belum_Dibayar*Nilai_Dimasukkan,Tanggal_Pembayaran,\"\"), \"\")","v":""},{"$f":"IFERROR(IF(Pinjaman_Belum_Dibayar*Nilai_Dimasukkan,Saldo_Awal,\"\"), \"\")","v":""},{"$f":"IFERROR(IF(Pinjaman_Belum_Dibayar*Nilai_Dimasukkan,Pembayaran_Bulanan,\"\"), \"\")","v":""},{"$f":"IFERROR(IF(Pinjaman_Belum_Dibayar*Nilai_Dimasukkan,Pinjaman_Pokok,\"\"), \"\")","v":""},{"$f":"IFERROR(IF(Pinjaman_Belum_Dibayar*Nilai_Dimasukkan,Bunga,\"\"), \"\")","v":""},{"$f":"IFERROR(IF(Pinjaman_Belum_Dibayar*Nilai_Dimasukkan,Saldo_Akhir,\"\"), \"\")","v":""}]
[null,{"$f":"IFERROR(IF(Pinjaman_Belum_Dibayar*Nilai_Dimasukkan,Jumlah_Pembayaran1,\"\"), \"\")","v":""},{"$f":"IFERROR(IF(Pinjaman_Belum_Dibayar*Nilai_Dimasukkan,Tanggal_Pembayaran,\"\"), \"\")","v":""},{"$f":"IFERROR(IF(Pinjaman_Belum_Dibayar*Nilai_Dimasukkan,Saldo_Awal,\"\"), \"\")","v":""},{"$f":"IFERROR(IF(Pinjaman_Belum_Dibayar*Nilai_Dimasukkan,Pembayaran_Bulanan,\"\"), \"\")","v":""},{"$f":"IFERROR(IF(Pinjaman_Belum_Dibayar*Nilai_Dimasukkan,Pinjaman_Pokok,\"\"), \"\")","v":""},{"$f":"IFERROR(IF(Pinjaman_Belum_Dibayar*Nilai_Dimasukkan,Bunga,\"\"), \"\")","v":""},{"$f":"IFERROR(IF(Pinjaman_Belum_Dibayar*Nilai_Dimasukkan,Saldo_Akhir,\"\"), \"\")","v":""}]
[null,{"$f":"IFERROR(IF(Pinjaman_Belum_Dibayar*Nilai_Dimasukkan,Jumlah_Pembayaran1,\"\"), \"\")","v":""},{"$f":"IFERROR(IF(Pinjaman_Belum_Dibayar*Nilai_Dimasukkan,Tanggal_Pembayaran,\"\"), \"\")","v":""},{"$f":"IFERROR(IF(Pinjaman_Belum_Dibayar*Nilai_Dimasukkan,Saldo_Awal,\"\"), \"\")","v":""},{"$f":"IFERROR(IF(Pinjaman_Belum_Dibayar*Nilai_Dimasukkan,Pembayaran_Bulanan,\"\"), \"\")","v":""},{"$f":"IFERROR(IF(Pinjaman_Belum_Dibayar*Nilai_Dimasukkan,Pinjaman_Pokok,\"\"), \"\")","v":""},{"$f":"IFERROR(IF(Pinjaman_Belum_Dibayar*Nilai_Dimasukkan,Bunga,\"\"), \"\")","v":""},{"$f":"IFERROR(IF(Pinjaman_Belum_Dibayar*Nilai_Dimasukkan,Saldo_Akhir,\"\"), \"\")","v":""}]
[null,{"$f":"IFERROR(IF(Pinjaman_Belum_Dibayar*Nilai_Dimasukkan,Jumlah_Pembayaran1,\"\"), \"\")","v":""},{"$f":"IFERROR(IF(Pinjaman_Belum_Dibayar*Nilai_Dimasukkan,Tanggal_Pembayaran,\"\"), \"\")","v":""},{"$f":"IFERROR(IF(Pinjaman_Belum_Dibayar*Nilai_Dimasukkan,Saldo_Awal,\"\"), \"\")","v":""},{"$f":"IFERROR(IF(Pinjaman_Belum_Dibayar*Nilai_Dimasukkan,Pembayaran_Bulanan,\"\"), \"\")","v":""},{"$f":"IFERROR(IF(Pinjaman_Belum_Dibayar*Nilai_Dimasukkan,Pinjaman_Pokok,\"\"), \"\")","v":""},{"$f":"IFERROR(IF(Pinjaman_Belum_Dibayar*Nilai_Dimasukkan,Bunga,\"\"), \"\")","v":""},{"$f":"IFERROR(IF(Pinjaman_Belum_Dibayar*Nilai_Dimasukkan,Saldo_Akhir,\"\"), \"\")","v":""}]
[null,{"$f":"IFERROR(IF(Pinjaman_Belum_Dibayar*Nilai_Dimasukkan,Jumlah_Pembayaran1,\"\"), \"\")","v":""},{"$f":"IFERROR(IF(Pinjaman_Belum_Dibayar*Nilai_Dimasukkan,Tanggal_Pembayaran,\"\"), \"\")","v":""},{"$f":"IFERROR(IF(Pinjaman_Belum_Dibayar*Nilai_Dimasukkan,Saldo_Awal,\"\"), \"\")","v":""},{"$f":"IFERROR(IF(Pinjaman_Belum_Dibayar*Nilai_Dimasukkan,Pembayaran_Bulanan,\"\"), \"\")","v":""},{"$f":"IFERROR(IF(Pinjaman_Belum_Dibayar*Nilai_Dimasukkan,Pinjaman_Pokok,\"\"), \"\")","v":""},{"$f":"IFERROR(IF(Pinjaman_Belum_Dibayar*Nilai_Dimasukkan,Bunga,\"\"), \"\")","v":""},{"$f":"IFERROR(IF(Pinjaman_Belum_Dibayar*Nilai_Dimasukkan,Saldo_Akhir,\"\"), \"\")","v":""}]
[null,{"$f":"IFERROR(IF(Pinjaman_Belum_Dibayar*Nilai_Dimasukkan,Jumlah_Pembayaran1,\"\"), \"\")","v":""},{"$f":"IFERROR(IF(Pinjaman_Belum_Dibayar*Nilai_Dimasukkan,Tanggal_Pembayaran,\"\"), \"\")","v":""},{"$f":"IFERROR(IF(Pinjaman_Belum_Dibayar*Nilai_Dimasukkan,Saldo_Awal,\"\"), \"\")","v":""},{"$f":"IFERROR(IF(Pinjaman_Belum_Dibayar*Nilai_Dimasukkan,Pembayaran_Bulanan,\"\"), \"\")","v":""},{"$f":"IFERROR(IF(Pinjaman_Belum_Dibayar*Nilai_Dimasukkan,Pinjaman_Pokok,\"\"), \"\")","v":""},{"$f":"IFERROR(IF(Pinjaman_Belum_Dibayar*Nilai_Dimasukkan,Bunga,\"\"), \"\")","v":""},{"$f":"IFERROR(IF(Pinjaman_Belum_Dibayar*Nilai_Dimasukkan,Saldo_Akhir,\"\"), \"\")","v":""}]
[null,{"$f":"IFERROR(IF(Pinjaman_Belum_Dibayar*Nilai_Dimasukkan,Jumlah_Pembayaran1,\"\"), \"\")","v":""},{"$f":"IFERROR(IF(Pinjaman_Belum_Dibayar*Nilai_Dimasukkan,Tanggal_Pembayaran,\"\"), \"\")","v":""},{"$f":"IFERROR(IF(Pinjaman_Belum_Dibayar*Nilai_Dimasukkan,Saldo_Awal,\"\"), \"\")","v":""},{"$f":"IFERROR(IF(Pinjaman_Belum_Dibayar*Nilai_Dimasukkan,Pembayaran_Bulanan,\"\"), \"\")","v":""},{"$f":"IFERROR(IF(Pinjaman_Belum_Dibayar*Nilai_Dimasukkan,Pinjaman_Pokok,\"\"), \"\")","v":""},{"$f":"IFERROR(IF(Pinjaman_Belum_Dibayar*Nilai_Dimasukkan,Bunga,\"\"), \"\")","v":""},{"$f":"IFERROR(IF(Pinjaman_Belum_Dibayar*Nilai_Dimasukkan,Saldo_Akhir,\"\"), \"\")","v":""}]
[null,{"$f":"IFERROR(IF(Pinjaman_Belum_Dibayar*Nilai_Dimasukkan,Jumlah_Pembayaran1,\"\"), \"\")","v":""},{"$f":"IFERROR(IF(Pinjaman_Belum_Dibayar*Nilai_Dimasukkan,Tanggal_Pembayaran,\"\"), \"\")","v":""},{"$f":"IFERROR(IF(Pinjaman_Belum_Dibayar*Nilai_Dimasukkan,Saldo_Awal,\"\"), \"\")","v":""},{"$f":"IFERROR(IF(Pinjaman_Belum_Dibayar*Nilai_Dimasukkan,Pembayaran_Bulanan,\"\"), \"\")","v":""},{"$f":"IFERROR(IF(Pinjaman_Belum_Dibayar*Nilai_Dimasukkan,Pinjaman_Pokok,\"\"), \"\")","v":""},{"$f":"IFERROR(IF(Pinjaman_Belum_Dibayar*Nilai_Dimasukkan,Bunga,\"\"), \"\")","v":""},{"$f":"IFERROR(IF(Pinjaman_Belum_Dibayar*Nilai_Dimasukkan,Saldo_Akhir,\"\"), \"\")","v":""}]
[null,{"$f":"IFERROR(IF(Pinjaman_Belum_Dibayar*Nilai_Dimasukkan,Jumlah_Pembayaran1,\"\"), \"\")","v":""},{"$f":"IFERROR(IF(Pinjaman_Belum_Dibayar*Nilai_Dimasukkan,Tanggal_Pembayaran,\"\"), \"\")","v":""},{"$f":"IFERROR(IF(Pinjaman_Belum_Dibayar*Nilai_Dimasukkan,Saldo_Awal,\"\"), \"\")","v":""},{"$f":"IFERROR(IF(Pinjaman_Belum_Dibayar*Nilai_Dimasukkan,Pembayaran_Bulanan,\"\"), \"\")","v":""},{"$f":"IFERROR(IF(Pinjaman_Belum_Dibayar*Nilai_Dimasukkan,Pinjaman_Pokok,\"\"), \"\")","v":""},{"$f":"IFERROR(IF(Pinjaman_Belum_Dibayar*Nilai_Dimasukkan,Bunga,\"\"), \"\")","v":""},{"$f":"IFERROR(IF(Pinjaman_Belum_Dibayar*Nilai_Dimasukkan,Saldo_Akhir,\"\"), \"\")","v":""}]
[null,{"$f":"IFERROR(IF(Pinjaman_Belum_Dibayar*Nilai_Dimasukkan,Jumlah_Pembayaran1,\"\"), \"\")","v":""},{"$f":"IFERROR(IF(Pinjaman_Belum_Dibayar*Nilai_Dimasukkan,Tanggal_Pembayaran,\"\"), \"\")","v":""},{"$f":"IFERROR(IF(Pinjaman_Belum_Dibayar*Nilai_Dimasukkan,Saldo_Awal,\"\"), \"\")","v":""},{"$f":"IFERROR(IF(Pinjaman_Belum_Dibayar*Nilai_Dimasukkan,Pembayaran_Bulanan,\"\"), \"\")","v":""},{"$f":"IFERROR(IF(Pinjaman_Belum_Dibayar*Nilai_Dimasukkan,Pinjaman_Pokok,\"\"), \"\")","v":""},{"$f":"IFERROR(IF(Pinjaman_Belum_Dibayar*Nilai_Dimasukkan,Bunga,\"\"), \"\")","v":""},{"$f":"IFERROR(IF(Pinjaman_Belum_Dibayar*Nilai_Dimasukkan,Saldo_Akhir,\"\"), \"\")","v":""}]
[null,{"$f":"IFERROR(IF(Pinjaman_Belum_Dibayar*Nilai_Dimasukkan,Jumlah_Pembayaran1,\"\"), \"\")","v":""},{"$f":"IFERROR(IF(Pinjaman_Belum_Dibayar*Nilai_Dimasukkan,Tanggal_Pembayaran,\"\"), \"\")","v":""},{"$f":"IFERROR(IF(Pinjaman_Belum_Dibayar*Nilai_Dimasukkan,Saldo_Awal,\"\"), \"\")","v":""},{"$f":"IFERROR(IF(Pinjaman_Belum_Dibayar*Nilai_Dimasukkan,Pembayaran_Bulanan,\"\"), \"\")","v":""},{"$f":"IFERROR(IF(Pinjaman_Belum_Dibayar*Nilai_Dimasukkan,Pinjaman_Pokok,\"\"), \"\")","v":""},{"$f":"IFERROR(IF(Pinjaman_Belum_Dibayar*Nilai_Dimasukkan,Bunga,\"\"), \"\")","v":""},{"$f":"IFERROR(IF(Pinjaman_Belum_Dibayar*Nilai_Dimasukkan,Saldo_Akhir,\"\"), \"\")","v":""}]
[null,{"$f":"IFERROR(IF(Pinjaman_Belum_Dibayar*Nilai_Dimasukkan,Jumlah_Pembayaran1,\"\"), \"\")","v":""},{"$f":"IFERROR(IF(Pinjaman_Belum_Dibayar*Nilai_Dimasukkan,Tanggal_Pembayaran,\"\"), \"\")","v":""},{"$f":"IFERROR(IF(Pinjaman_Belum_Dibayar*Nilai_Dimasukkan,Saldo_Awal,\"\"), \"\")","v":""},{"$f":"IFERROR(IF(Pinjaman_Belum_Dibayar*Nilai_Dimasukkan,Pembayaran_Bulanan,\"\"), \"\")","v":""},{"$f":"IFERROR(IF(Pinjaman_Belum_Dibayar*Nilai_Dimasukkan,Pinjaman_Pokok,\"\"), \"\")","v":""},{"$f":"IFERROR(IF(Pinjaman_Belum_Dibayar*Nilai_Dimasukkan,Bunga,\"\"), \"\")","v":""},{"$f":"IFERROR(IF(Pinjaman_Belum_Dibayar*Nilai_Dimasukkan,Saldo_Akhir,\"\"), \"\")","v":""}]
[null,{"$f":"IFERROR(IF(Pinjaman_Belum_Dibayar*Nilai_Dimasukkan,Jumlah_Pembayaran1,\"\"), \"\")","v":""},{"$f":"IFERROR(IF(Pinjaman_Belum_Dibayar*Nilai_Dimasukkan,Tanggal_Pembayaran,\"\"), \"\")","v":""},{"$f":"IFERROR(IF(Pinjaman_Belum_Dibayar*Nilai_Dimasukkan,Saldo_Awal,\"\"), \"\")","v":""},{"$f":"IFERROR(IF(Pinjaman_Belum_Dibayar*Nilai_Dimasukkan,Pembayaran_Bulanan,\"\"), \"\")","v":""},{"$f":"IFERROR(IF(Pinjaman_Belum_Dibayar*Nilai_Dimasukkan,Pinjaman_Pokok,\"\"), \"\")","v":""},{"$f":"IFERROR(IF(Pinjaman_Belum_Dibayar*Nilai_Dimasukkan,Bunga,\"\"), \"\")","v":""},{"$f":"IFERROR(IF(Pinjaman_Belum_Dibayar*Nilai_Dimasukkan,Saldo_Akhir,\"\"), \"\")","v":""}]
[null,{"$f":"IFERROR(IF(Pinjaman_Belum_Dibayar*Nilai_Dimasukkan,Jumlah_Pembayaran1,\"\"), \"\")","v":""},{"$f":"IFERROR(IF(Pinjaman_Belum_Dibayar*Nilai_Dimasukkan,Tanggal_Pembayaran,\"\"), \"\")","v":""},{"$f":"IFERROR(IF(Pinjaman_Belum_Dibayar*Nilai_Dimasukkan,Saldo_Awal,\"\"), \"\")","v":""},{"$f":"IFERROR(IF(Pinjaman_Belum_Dibayar*Nilai_Dimasukkan,Pembayaran_Bulanan,\"\"), \"\")","v":""},{"$f":"IFERROR(IF(Pinjaman_Belum_Dibayar*Nilai_Dimasukkan,Pinjaman_Pokok,\"\"), \"\")","v":""},{"$f":"IFERROR(IF(Pinjaman_Belum_Dibayar*Nilai_Dimasukkan,Bunga,\"\"), \"\")","v":""},{"$f":"IFERROR(IF(Pinjaman_Belum_Dibayar*Nilai_Dimasukkan,Saldo_Akhir,\"\"), \"\")","v":""}]
[null,{"$f":"IFERROR(IF(Pinjaman_Belum_Dibayar*Nilai_Dimasukkan,Jumlah_Pembayaran1,\"\"), \"\")","v":""},{"$f":"IFERROR(IF(Pinjaman_Belum_Dibayar*Nilai_Dimasukkan,Tanggal_Pembayaran,\"\"), \"\")","v":""},{"$f":"IFERROR(IF(Pinjaman_Belum_Dibayar*Nilai_Dimasukkan,Saldo_Awal,\"\"), \"\")","v":""},{"$f":"IFERROR(IF(Pinjaman_Belum_Dibayar*Nilai_Dimasukkan,Pembayaran_Bulanan,\"\"), \"\")","v":""},{"$f":"IFERROR(IF(Pinjaman_Belum_Dibayar*Nilai_Dimasukkan,Pinjaman_Pokok,\"\"), \"\")","v":""},{"$f":"IFERROR(IF(Pinjaman_Belum_Dibayar*Nilai_Dimasukkan,Bunga,\"\"), \"\")","v":""},{"$f":"IFERROR(IF(Pinjaman_Belum_Dibayar*Nilai_Dimasukkan,Saldo_Akhir,\"\"), \"\")","v":""}]
[null,{"$f":"IFERROR(IF(Pinjaman_Belum_Dibayar*Nilai_Dimasukkan,Jumlah_Pembayaran1,\"\"), \"\")","v":""},{"$f":"IFERROR(IF(Pinjaman_Belum_Dibayar*Nilai_Dimasukkan,Tanggal_Pembayaran,\"\"), \"\")","v":""},{"$f":"IFERROR(IF(Pinjaman_Belum_Dibayar*Nilai_Dimasukkan,Saldo_Awal,\"\"), \"\")","v":""},{"$f":"IFERROR(IF(Pinjaman_Belum_Dibayar*Nilai_Dimasukkan,Pembayaran_Bulanan,\"\"), \"\")","v":""},{"$f":"IFERROR(IF(Pinjaman_Belum_Dibayar*Nilai_Dimasukkan,Pinjaman_Pokok,\"\"), \"\")","v":""},{"$f":"IFERROR(IF(Pinjaman_Belum_Dibayar*Nilai_Dimasukkan,Bunga,\"\"), \"\")","v":""},{"$f":"IFERROR(IF(Pinjaman_Belum_Dibayar*Nilai_Dimasukkan,Saldo_Akhir,\"\"), \"\")","v":""}]
[null,{"$f":"IFERROR(IF(Pinjaman_Belum_Dibayar*Nilai_Dimasukkan,Jumlah_Pembayaran1,\"\"), \"\")","v":""},{"$f":"IFERROR(IF(Pinjaman_Belum_Dibayar*Nilai_Dimasukkan,Tanggal_Pembayaran,\"\"), \"\")","v":""},{"$f":"IFERROR(IF(Pinjaman_Belum_Dibayar*Nilai_Dimasukkan,Saldo_Awal,\"\"), \"\")","v":""},{"$f":"IFERROR(IF(Pinjaman_Belum_Dibayar*Nilai_Dimasukkan,Pembayaran_Bulanan,\"\"), \"\")","v":""},{"$f":"IFERROR(IF(Pinjaman_Belum_Dibayar*Nilai_Dimasukkan,Pinjaman_Pokok,\"\"), \"\")","v":""},{"$f":"IFERROR(IF(Pinjaman_Belum_Dibayar*Nilai_Dimasukkan,Bunga,\"\"), \"\")","v":""},{"$f":"IFERROR(IF(Pinjaman_Belum_Dibayar*Nilai_Dimasukkan,Saldo_Akhir,\"\"), \"\")","v":""}]
[null,{"$f":"IFERROR(IF(Pinjaman_Belum_Dibayar*Nilai_Dimasukkan,Jumlah_Pembayaran1,\"\"), \"\")","v":""},{"$f":"IFERROR(IF(Pinjaman_Belum_Dibayar*Nilai_Dimasukkan,Tanggal_Pembayaran,\"\"), \"\")","v":""},{"$f":"IFERROR(IF(Pinjaman_Belum_Dibayar*Nilai_Dimasukkan,Saldo_Awal,\"\"), \"\")","v":""},{"$f":"IFERROR(IF(Pinjaman_Belum_Dibayar*Nilai_Dimasukkan,Pembayaran_Bulanan,\"\"), \"\")","v":""},{"$f":"IFERROR(IF(Pinjaman_Belum_Dibayar*Nilai_Dimasukkan,Pinjaman_Pokok,\"\"), \"\")","v":""},{"$f":"IFERROR(IF(Pinjaman_Belum_Dibayar*Nilai_Dimasukkan,Bunga,\"\"), \"\")","v":""},{"$f":"IFERROR(IF(Pinjaman_Belum_Dibayar*Nilai_Dimasukkan,Saldo_Akhir,\"\"), \"\")","v":""}]
[null,{"$f":"IFERROR(IF(Pinjaman_Belum_Dibayar*Nilai_Dimasukkan,Jumlah_Pembayaran1,\"\"), \"\")","v":""},{"$f":"IFERROR(IF(Pinjaman_Belum_Dibayar*Nilai_Dimasukkan,Tanggal_Pembayaran,\"\"), \"\")","v":""},{"$f":"IFERROR(IF(Pinjaman_Belum_Dibayar*Nilai_Dimasukkan,Saldo_Awal,\"\"), \"\")","v":""},{"$f":"IFERROR(IF(Pinjaman_Belum_Dibayar*Nilai_Dimasukkan,Pembayaran_Bulanan,\"\"), \"\")","v":""},{"$f":"IFERROR(IF(Pinjaman_Belum_Dibayar*Nilai_Dimasukkan,Pinjaman_Pokok,\"\"), \"\")","v":""},{"$f":"IFERROR(IF(Pinjaman_Belum_Dibayar*Nilai_Dimasukkan,Bunga,\"\"), \"\")","v":""},{"$f":"IFERROR(IF(Pinjaman_Belum_Dibayar*Nilai_Dimasukkan,Saldo_Akhir,\"\"), \"\")","v":""}]
[null,{"$f":"IFERROR(IF(Pinjaman_Belum_Dibayar*Nilai_Dimasukkan,Jumlah_Pembayaran1,\"\"), \"\")","v":""},{"$f":"IFERROR(IF(Pinjaman_Belum_Dibayar*Nilai_Dimasukkan,Tanggal_Pembayaran,\"\"), \"\")","v":""},{"$f":"IFERROR(IF(Pinjaman_Belum_Dibayar*Nilai_Dimasukkan,Saldo_Awal,\"\"), \"\")","v":""},{"$f":"IFERROR(IF(Pinjaman_Belum_Dibayar*Nilai_Dimasukkan,Pembayaran_Bulanan,\"\"), \"\")","v":""},{"$f":"IFERROR(IF(Pinjaman_Belum_Dibayar*Nilai_Dimasukkan,Pinjaman_Pokok,\"\"), \"\")","v":""},{"$f":"IFERROR(IF(Pinjaman_Belum_Dibayar*Nilai_Dimasukkan,Bunga,\"\"), \"\")","v":""},{"$f":"IFERROR(IF(Pinjaman_Belum_Dibayar*Nilai_Dimasukkan,Saldo_Akhir,\"\"), \"\")","v":""}]
[null,{"$f":"IFERROR(IF(Pinjaman_Belum_Dibayar*Nilai_Dimasukkan,Jumlah_Pembayaran1,\"\"), \"\")","v":""},{"$f":"IFERROR(IF(Pinjaman_Belum_Dibayar*Nilai_Dimasukkan,Tanggal_Pembayaran,\"\"), \"\")","v":""},{"$f":"IFERROR(IF(Pinjaman_Belum_Dibayar*Nilai_Dimasukkan,Saldo_Awal,\"\"), \"\")","v":""},{"$f":"IFERROR(IF(Pinjaman_Belum_Dibayar*Nilai_Dimasukkan,Pembayaran_Bulanan,\"\"), \"\")","v":""},{"$f":"IFERROR(IF(Pinjaman_Belum_Dibayar*Nilai_Dimasukkan,Pinjaman_Pokok,\"\"), \"\")","v":""},{"$f":"IFERROR(IF(Pinjaman_Belum_Dibayar*Nilai_Dimasukkan,Bunga,\"\"), \"\")","v":""},{"$f":"IFERROR(IF(Pinjaman_Belum_Dibayar*Nilai_Dimasukkan,Saldo_Akhir,\"\"), \"\")","v":""}]
[null,{"$f":"IFERROR(IF(Pinjaman_Belum_Dibayar*Nilai_Dimasukkan,Jumlah_Pembayaran1,\"\"), \"\")","v":""},{"$f":"IFERROR(IF(Pinjaman_Belum_Dibayar*Nilai_Dimasukkan,Tanggal_Pembayaran,\"\"), \"\")","v":""},{"$f":"IFERROR(IF(Pinjaman_Belum_Dibayar*Nilai_Dimasukkan,Saldo_Awal,\"\"), \"\")","v":""},{"$f":"IFERROR(IF(Pinjaman_Belum_Dibayar*Nilai_Dimasukkan,Pembayaran_Bulanan,\"\"), \"\")","v":""},{"$f":"IFERROR(IF(Pinjaman_Belum_Dibayar*Nilai_Dimasukkan,Pinjaman_Pokok,\"\"), \"\")","v":""},{"$f":"IFERROR(IF(Pinjaman_Belum_Dibayar*Nilai_Dimasukkan,Bunga,\"\"), \"\")","v":""},{"$f":"IFERROR(IF(Pinjaman_Belum_Dibayar*Nilai_Dimasukkan,Saldo_Akhir,\"\"), \"\")","v":""}]
[null,{"$f":"IFERROR(IF(Pinjaman_Belum_Dibayar*Nilai_Dimasukkan,Jumlah_Pembayaran1,\"\"), \"\")","v":""},{"$f":"IFERROR(IF(Pinjaman_Belum_Dibayar*Nilai_Dimasukkan,Tanggal_Pembayaran,\"\"), \"\")","v":""},{"$f":"IFERROR(IF(Pinjaman_Belum_Dibayar*Nilai_Dimasukkan,Saldo_Awal,\"\"), \"\")","v":""},{"$f":"IFERROR(IF(Pinjaman_Belum_Dibayar*Nilai_Dimasukkan,Pembayaran_Bulanan,\"\"), \"\")","v":""},{"$f":"IFERROR(IF(Pinjaman_Belum_Dibayar*Nilai_Dimasukkan,Pinjaman_Pokok,\"\"), \"\")","v":""},{"$f":"IFERROR(IF(Pinjaman_Belum_Dibayar*Nilai_Dimasukkan,Bunga,\"\"), \"\")","v":""},{"$f":"IFERROR(IF(Pinjaman_Belum_Dibayar*Nilai_Dimasukkan,Saldo_Akhir,\"\"), \"\")","v":""}]
[null,{"$f":"IFERROR(IF(Pinjaman_Belum_Dibayar*Nilai_Dimasukkan,Jumlah_Pembayaran1,\"\"), \"\")","v":""},{"$f":"IFERROR(IF(Pinjaman_Belum_Dibayar*Nilai_Dimasukkan,Tanggal_Pembayaran,\"\"), \"\")","v":""},{"$f":"IFERROR(IF(Pinjaman_Belum_Dibayar*Nilai_Dimasukkan,Saldo_Awal,\"\"), \"\")","v":""},{"$f":"IFERROR(IF(Pinjaman_Belum_Dibayar*Nilai_Dimasukkan,Pembayaran_Bulanan,\"\"), \"\")","v":""},{"$f":"IFERROR(IF(Pinjaman_Belum_Dibayar*Nilai_Dimasukkan,Pinjaman_Pokok,\"\"), \"\")","v":""},{"$f":"IFERROR(IF(Pinjaman_Belum_Dibayar*Nilai_Dimasukkan,Bunga,\"\"), \"\")","v":""},{"$f":"IFERROR(IF(Pinjaman_Belum_Dibayar*Nilai_Dimasukkan,Saldo_Akhir,\"\"), \"\")","v":""}]
[null,{"$f":"IFERROR(IF(Pinjaman_Belum_Dibayar*Nilai_Dimasukkan,Jumlah_Pembayaran1,\"\"), \"\")","v":""},{"$f":"IFERROR(IF(Pinjaman_Belum_Dibayar*Nilai_Dimasukkan,Tanggal_Pembayaran,\"\"), \"\")","v":""},{"$f":"IFERROR(IF(Pinjaman_Belum_Dibayar*Nilai_Dimasukkan,Saldo_Awal,\"\"), \"\")","v":""},{"$f":"IFERROR(IF(Pinjaman_Belum_Dibayar*Nilai_Dimasukkan,Pembayaran_Bulanan,\"\"), \"\")","v":""},{"$f":"IFERROR(IF(Pinjaman_Belum_Dibayar*Nilai_Dimasukkan,Pinjaman_Pokok,\"\"), \"\")","v":""},{"$f":"IFERROR(IF(Pinjaman_Belum_Dibayar*Nilai_Dimasukkan,Bunga,\"\"), \"\")","v":""},{"$f":"IFERROR(IF(Pinjaman_Belum_Dibayar*Nilai_Dimasukkan,Saldo_Akhir,\"\"), \"\")","v":""}]
[null,{"$f":"IFERROR(IF(Pinjaman_Belum_Dibayar*Nilai_Dimasukkan,Jumlah_Pembayaran1,\"\"), \"\")","v":""},{"$f":"IFERROR(IF(Pinjaman_Belum_Dibayar*Nilai_Dimasukkan,Tanggal_Pembayaran,\"\"), \"\")","v":""},{"$f":"IFERROR(IF(Pinjaman_Belum_Dibayar*Nilai_Dimasukkan,Saldo_Awal,\"\"), \"\")","v":""},{"$f":"IFERROR(IF(Pinjaman_Belum_Dibayar*Nilai_Dimasukkan,Pembayaran_Bulanan,\"\"), \"\")","v":""},{"$f":"IFERROR(IF(Pinjaman_Belum_Dibayar*Nilai_Dimasukkan,Pinjaman_Pokok,\"\"), \"\")","v":""},{"$f":"IFERROR(IF(Pinjaman_Belum_Dibayar*Nilai_Dimasukkan,Bunga,\"\"), \"\")","v":""},{"$f":"IFERROR(IF(Pinjaman_Belum_Dibayar*Nilai_Dimasukkan,Saldo_Akhir,\"\"), \"\")","v":""}]
[null,{"$f":"IFERROR(IF(Pinjaman_Belum_Dibayar*Nilai_Dimasukkan,Jumlah_Pembayaran1,\"\"), \"\")","v":""},{"$f":"IFERROR(IF(Pinjaman_Belum_Dibayar*Nilai_Dimasukkan,Tanggal_Pembayaran,\"\"), \"\")","v":""},{"$f":"IFERROR(IF(Pinjaman_Belum_Dibayar*Nilai_Dimasukkan,Saldo_Awal,\"\"), \"\")","v":""},{"$f":"IFERROR(IF(Pinjaman_Belum_Dibayar*Nilai_Dimasukkan,Pembayaran_Bulanan,\"\"), \"\")","v":""},{"$f":"IFERROR(IF(Pinjaman_Belum_Dibayar*Nilai_Dimasukkan,Pinjaman_Pokok,\"\"), \"\")","v":""},{"$f":"IFERROR(IF(Pinjaman_Belum_Dibayar*Nilai_Dimasukkan,Bunga,\"\"), \"\")","v":""},{"$f":"IFERROR(IF(Pinjaman_Belum_Dibayar*Nilai_Dimasukkan,Saldo_Akhir,\"\"), \"\")","v":""}]
[null,{"$f":"IFERROR(IF(Pinjaman_Belum_Dibayar*Nilai_Dimasukkan,Jumlah_Pembayaran1,\"\"), \"\")","v":""},{"$f":"IFERROR(IF(Pinjaman_Belum_Dibayar*Nilai_Dimasukkan,Tanggal_Pembayaran,\"\"), \"\")","v":""},{"$f":"IFERROR(IF(Pinjaman_Belum_Dibayar*Nilai_Dimasukkan,Saldo_Awal,\"\"), \"\")","v":""},{"$f":"IFERROR(IF(Pinjaman_Belum_Dibayar*Nilai_Dimasukkan,Pembayaran_Bulanan,\"\"), \"\")","v":""},{"$f":"IFERROR(IF(Pinjaman_Belum_Dibayar*Nilai_Dimasukkan,Pinjaman_Pokok,\"\"), \"\")","v":""},{"$f":"IFERROR(IF(Pinjaman_Belum_Dibayar*Nilai_Dimasukkan,Bunga,\"\"), \"\")","v":""},{"$f":"IFERROR(IF(Pinjaman_Belum_Dibayar*Nilai_Dimasukkan,Saldo_Akhir,\"\"), \"\")","v":""}]
[null,{"$f":"IFERROR(IF(Pinjaman_Belum_Dibayar*Nilai_Dimasukkan,Jumlah_Pembayaran1,\"\"), \"\")","v":""},{"$f":"IFERROR(IF(Pinjaman_Belum_Dibayar*Nilai_Dimasukkan,Tanggal_Pembayaran,\"\"), \"\")","v":""},{"$f":"IFERROR(IF(Pinjaman_Belum_Dibayar*Nilai_Dimasukkan,Saldo_Awal,\"\"), \"\")","v":""},{"$f":"IFERROR(IF(Pinjaman_Belum_Dibayar*Nilai_Dimasukkan,Pembayaran_Bulanan,\"\"), \"\")","v":""},{"$f":"IFERROR(IF(Pinjaman_Belum_Dibayar*Nilai_Dimasukkan,Pinjaman_Pokok,\"\"), \"\")","v":""},{"$f":"IFERROR(IF(Pinjaman_Belum_Dibayar*Nilai_Dimasukkan,Bunga,\"\"), \"\")","v":""},{"$f":"IFERROR(IF(Pinjaman_Belum_Dibayar*Nilai_Dimasukkan,Saldo_Akhir,\"\"), \"\")","v":""}]
[null,{"$f":"IFERROR(IF(Pinjaman_Belum_Dibayar*Nilai_Dimasukkan,Jumlah_Pembayaran1,\"\"), \"\")","v":""},{"$f":"IFERROR(IF(Pinjaman_Belum_Dibayar*Nilai_Dimasukkan,Tanggal_Pembayaran,\"\"), \"\")","v":""},{"$f":"IFERROR(IF(Pinjaman_Belum_Dibayar*Nilai_Dimasukkan,Saldo_Awal,\"\"), \"\")","v":""},{"$f":"IFERROR(IF(Pinjaman_Belum_Dibayar*Nilai_Dimasukkan,Pembayaran_Bulanan,\"\"), \"\")","v":""},{"$f":"IFERROR(IF(Pinjaman_Belum_Dibayar*Nilai_Dimasukkan,Pinjaman_Pokok,\"\"), \"\")","v":""},{"$f":"IFERROR(IF(Pinjaman_Belum_Dibayar*Nilai_Dimasukkan,Bunga,\"\"), \"\")","v":""},{"$f":"IFERROR(IF(Pinjaman_Belum_Dibayar*Nilai_Dimasukkan,Saldo_Akhir,\"\"), \"\")","v":""}]
[null,{"$f":"IFERROR(IF(Pinjaman_Belum_Dibayar*Nilai_Dimasukkan,Jumlah_Pembayaran1,\"\"), \"\")","v":""},{"$f":"IFERROR(IF(Pinjaman_Belum_Dibayar*Nilai_Dimasukkan,Tanggal_Pembayaran,\"\"), \"\")","v":""},{"$f":"IFERROR(IF(Pinjaman_Belum_Dibayar*Nilai_Dimasukkan,Saldo_Awal,\"\"), \"\")","v":""},{"$f":"IFERROR(IF(Pinjaman_Belum_Dibayar*Nilai_Dimasukkan,Pembayaran_Bulanan,\"\"), \"\")","v":""},{"$f":"IFERROR(IF(Pinjaman_Belum_Dibayar*Nilai_Dimasukkan,Pinjaman_Pokok,\"\"), \"\")","v":""},{"$f":"IFERROR(IF(Pinjaman_Belum_Dibayar*Nilai_Dimasukkan,Bunga,\"\"), \"\")","v":""},{"$f":"IFERROR(IF(Pinjaman_Belum_Dibayar*Nilai_Dimasukkan,Saldo_Akhir,\"\"), \"\")","v":""}]
[null,{"$f":"IFERROR(IF(Pinjaman_Belum_Dibayar*Nilai_Dimasukkan,Jumlah_Pembayaran1,\"\"), \"\")","v":""},{"$f":"IFERROR(IF(Pinjaman_Belum_Dibayar*Nilai_Dimasukkan,Tanggal_Pembayaran,\"\"), \"\")","v":""},{"$f":"IFERROR(IF(Pinjaman_Belum_Dibayar*Nilai_Dimasukkan,Saldo_Awal,\"\"), \"\")","v":""},{"$f":"IFERROR(IF(Pinjaman_Belum_Dibayar*Nilai_Dimasukkan,Pembayaran_Bulanan,\"\"), \"\")","v":""},{"$f":"IFERROR(IF(Pinjaman_Belum_Dibayar*Nilai_Dimasukkan,Pinjaman_Pokok,\"\"), \"\")","v":""},{"$f":"IFERROR(IF(Pinjaman_Belum_Dibayar*Nilai_Dimasukkan,Bunga,\"\"), \"\")","v":""},{"$f":"IFERROR(IF(Pinjaman_Belum_Dibayar*Nilai_Dimasukkan,Saldo_Akhir,\"\"), \"\")","v":""}]
[null,{"$f":"IFERROR(IF(Pinjaman_Belum_Dibayar*Nilai_Dimasukkan,Jumlah_Pembayaran1,\"\"), \"\")","v":""},{"$f":"IFERROR(IF(Pinjaman_Belum_Dibayar*Nilai_Dimasukkan,Tanggal_Pembayaran,\"\"), \"\")","v":""},{"$f":"IFERROR(IF(Pinjaman_Belum_Dibayar*Nilai_Dimasukkan,Saldo_Awal,\"\"), \"\")","v":""},{"$f":"IFERROR(IF(Pinjaman_Belum_Dibayar*Nilai_Dimasukkan,Pembayaran_Bulanan,\"\"), \"\")","v":""},{"$f":"IFERROR(IF(Pinjaman_Belum_Dibayar*Nilai_Dimasukkan,Pinjaman_Pokok,\"\"), \"\")","v":""},{"$f":"IFERROR(IF(Pinjaman_Belum_Dibayar*Nilai_Dimasukkan,Bunga,\"\"), \"\")","v":""},{"$f":"IFERROR(IF(Pinjaman_Belum_Dibayar*Nilai_Dimasukkan,Saldo_Akhir,\"\"), \"\")","v":""}]
[null,{"$f":"IFERROR(IF(Pinjaman_Belum_Dibayar*Nilai_Dimasukkan,Jumlah_Pembayaran1,\"\"), \"\")","v":""},{"$f":"IFERROR(IF(Pinjaman_Belum_Dibayar*Nilai_Dimasukkan,Tanggal_Pembayaran,\"\"), \"\")","v":""},{"$f":"IFERROR(IF(Pinjaman_Belum_Dibayar*Nilai_Dimasukkan,Saldo_Awal,\"\"), \"\")","v":""},{"$f":"IFERROR(IF(Pinjaman_Belum_Dibayar*Nilai_Dimasukkan,Pembayaran_Bulanan,\"\"), \"\")","v":""},{"$f":"IFERROR(IF(Pinjaman_Belum_Dibayar*Nilai_Dimasukkan,Pinjaman_Pokok,\"\"), \"\")","v":""},{"$f":"IFERROR(IF(Pinjaman_Belum_Dibayar*Nilai_Dimasukkan,Bunga,\"\"), \"\")","v":""},{"$f":"IFERROR(IF(Pinjaman_Belum_Dibayar*Nilai_Dimasukkan,Saldo_Akhir,\"\"), \"\")","v":""}]
[null,{"$f":"IFERROR(IF(Pinjaman_Belum_Dibayar*Nilai_Dimasukkan,Jumlah_Pembayaran1,\"\"), \"\")","v":""},{"$f":"IFERROR(IF(Pinjaman_Belum_Dibayar*Nilai_Dimasukkan,Tanggal_Pembayaran,\"\"), \"\")","v":""},{"$f":"IFERROR(IF(Pinjaman_Belum_Dibayar*Nilai_Dimasukkan,Saldo_Awal,\"\"), \"\")","v":""},{"$f":"IFERROR(IF(Pinjaman_Belum_Dibayar*Nilai_Dimasukkan,Pembayaran_Bulanan,\"\"), \"\")","v":""},{"$f":"IFERROR(IF(Pinjaman_Belum_Dibayar*Nilai_Dimasukkan,Pinjaman_Pokok,\"\"), \"\")","v":""},{"$f":"IFERROR(IF(Pinjaman_Belum_Dibayar*Nilai_Dimasukkan,Bunga,\"\"), \"\")","v":""},{"$f":"IFERROR(IF(Pinjaman_Belum_Dibayar*Nilai_Dimasukkan,Saldo_Akhir,\"\"), \"\")","v":""}]
[null,{"$f":"IFERROR(IF(Pinjaman_Belum_Dibayar*Nilai_Dimasukkan,Jumlah_Pembayaran1,\"\"), \"\")","v":""},{"$f":"IFERROR(IF(Pinjaman_Belum_Dibayar*Nilai_Dimasukkan,Tanggal_Pembayaran,\"\"), \"\")","v":""},{"$f":"IFERROR(IF(Pinjaman_Belum_Dibayar*Nilai_Dimasukkan,Saldo_Awal,\"\"), \"\")","v":""},{"$f":"IFERROR(IF(Pinjaman_Belum_Dibayar*Nilai_Dimasukkan,Pembayaran_Bulanan,\"\"), \"\")","v":""},{"$f":"IFERROR(IF(Pinjaman_Belum_Dibayar*Nilai_Dimasukkan,Pinjaman_Pokok,\"\"), \"\")","v":""},{"$f":"IFERROR(IF(Pinjaman_Belum_Dibayar*Nilai_Dimasukkan,Bunga,\"\"), \"\")","v":""},{"$f":"IFERROR(IF(Pinjaman_Belum_Dibayar*Nilai_Dimasukkan,Saldo_Akhir,\"\"), \"\")","v":""}]
[null,{"$f":"IFERROR(IF(Pinjaman_Belum_Dibayar*Nilai_Dimasukkan,Jumlah_Pembayaran1,\"\"), \"\")","v":""},{"$f":"IFERROR(IF(Pinjaman_Belum_Dibayar*Nilai_Dimasukkan,Tanggal_Pembayaran,\"\"), \"\")","v":""},{"$f":"IFERROR(IF(Pinjaman_Belum_Dibayar*Nilai_Dimasukkan,Saldo_Awal,\"\"), \"\")","v":""},{"$f":"IFERROR(IF(Pinjaman_Belum_Dibayar*Nilai_Dimasukkan,Pembayaran_Bulanan,\"\"), \"\")","v":""},{"$f":"IFERROR(IF(Pinjaman_Belum_Dibayar*Nilai_Dimasukkan,Pinjaman_Pokok,\"\"), \"\")","v":""},{"$f":"IFERROR(IF(Pinjaman_Belum_Dibayar*Nilai_Dimasukkan,Bunga,\"\"), \"\")","v":""},{"$f":"IFERROR(IF(Pinjaman_Belum_Dibayar*Nilai_Dimasukkan,Saldo_Akhir,\"\"), \"\")","v":""}]
[null,{"$f":"IFERROR(IF(Pinjaman_Belum_Dibayar*Nilai_Dimasukkan,Jumlah_Pembayaran1,\"\"), \"\")","v":""},{"$f":"IFERROR(IF(Pinjaman_Belum_Dibayar*Nilai_Dimasukkan,Tanggal_Pembayaran,\"\"), \"\")","v":""},{"$f":"IFERROR(IF(Pinjaman_Belum_Dibayar*Nilai_Dimasukkan,Saldo_Awal,\"\"), \"\")","v":""},{"$f":"IFERROR(IF(Pinjaman_Belum_Dibayar*Nilai_Dimasukkan,Pembayaran_Bulanan,\"\"), \"\")","v":""},{"$f":"IFERROR(IF(Pinjaman_Belum_Dibayar*Nilai_Dimasukkan,Pinjaman_Pokok,\"\"), \"\")","v":""},{"$f":"IFERROR(IF(Pinjaman_Belum_Dibayar*Nilai_Dimasukkan,Bunga,\"\"), \"\")","v":""},{"$f":"IFERROR(IF(Pinjaman_Belum_Dibayar*Nilai_Dimasukkan,Saldo_Akhir,\"\"), \"\")","v":""}]
[null,{"$f":"IFERROR(IF(Pinjaman_Belum_Dibayar*Nilai_Dimasukkan,Jumlah_Pembayaran1,\"\"), \"\")","v":""},{"$f":"IFERROR(IF(Pinjaman_Belum_Dibayar*Nilai_Dimasukkan,Tanggal_Pembayaran,\"\"), \"\")","v":""},{"$f":"IFERROR(IF(Pinjaman_Belum_Dibayar*Nilai_Dimasukkan,Saldo_Awal,\"\"), \"\")","v":""},{"$f":"IFERROR(IF(Pinjaman_Belum_Dibayar*Nilai_Dimasukkan,Pembayaran_Bulanan,\"\"), \"\")","v":""},{"$f":"IFERROR(IF(Pinjaman_Belum_Dibayar*Nilai_Dimasukkan,Pinjaman_Pokok,\"\"), \"\")","v":""},{"$f":"IFERROR(IF(Pinjaman_Belum_Dibayar*Nilai_Dimasukkan,Bunga,\"\"), \"\")","v":""},{"$f":"IFERROR(IF(Pinjaman_Belum_Dibayar*Nilai_Dimasukkan,Saldo_Akhir,\"\"), \"\")","v":""}]
[null,{"$f":"IFERROR(IF(Pinjaman_Belum_Dibayar*Nilai_Dimasukkan,Jumlah_Pembayaran1,\"\"), \"\")","v":""},{"$f":"IFERROR(IF(Pinjaman_Belum_Dibayar*Nilai_Dimasukkan,Tanggal_Pembayaran,\"\"), \"\")","v":""},{"$f":"IFERROR(IF(Pinjaman_Belum_Dibayar*Nilai_Dimasukkan,Saldo_Awal,\"\"), \"\")","v":""},{"$f":"IFERROR(IF(Pinjaman_Belum_Dibayar*Nilai_Dimasukkan,Pembayaran_Bulanan,\"\"), \"\")","v":""},{"$f":"IFERROR(IF(Pinjaman_Belum_Dibayar*Nilai_Dimasukkan,Pinjaman_Pokok,\"\"), \"\")","v":""},{"$f":"IFERROR(IF(Pinjaman_Belum_Dibayar*Nilai_Dimasukkan,Bunga,\"\"), \"\")","v":""},{"$f":"IFERROR(IF(Pinjaman_Belum_Dibayar*Nilai_Dimasukkan,Saldo_Akhir,\"\"), \"\")","v":""}]
[null,{"$f":"IFERROR(IF(Pinjaman_Belum_Dibayar*Nilai_Dimasukkan,Jumlah_Pembayaran1,\"\"), \"\")","v":""},{"$f":"IFERROR(IF(Pinjaman_Belum_Dibayar*Nilai_Dimasukkan,Tanggal_Pembayaran,\"\"), \"\")","v":""},{"$f":"IFERROR(IF(Pinjaman_Belum_Dibayar*Nilai_Dimasukkan,Saldo_Awal,\"\"), \"\")","v":""},{"$f":"IFERROR(IF(Pinjaman_Belum_Dibayar*Nilai_Dimasukkan,Pembayaran_Bulanan,\"\"), \"\")","v":""},{"$f":"IFERROR(IF(Pinjaman_Belum_Dibayar*Nilai_Dimasukkan,Pinjaman_Pokok,\"\"), \"\")","v":""},{"$f":"IFERROR(IF(Pinjaman_Belum_Dibayar*Nilai_Dimasukkan,Bunga,\"\"), \"\")","v":""},{"$f":"IFERROR(IF(Pinjaman_Belum_Dibayar*Nilai_Dimasukkan,Saldo_Akhir,\"\"), \"\")","v":""}]
[null,{"$f":"IFERROR(IF(Pinjaman_Belum_Dibayar*Nilai_Dimasukkan,Jumlah_Pembayaran1,\"\"), \"\")","v":""},{"$f":"IFERROR(IF(Pinjaman_Belum_Dibayar*Nilai_Dimasukkan,Tanggal_Pembayaran,\"\"), \"\")","v":""},{"$f":"IFERROR(IF(Pinjaman_Belum_Dibayar*Nilai_Dimasukkan,Saldo_Awal,\"\"), \"\")","v":""},{"$f":"IFERROR(IF(Pinjaman_Belum_Dibayar*Nilai_Dimasukkan,Pembayaran_Bulanan,\"\"), \"\")","v":""},{"$f":"IFERROR(IF(Pinjaman_Belum_Dibayar*Nilai_Dimasukkan,Pinjaman_Pokok,\"\"), \"\")","v":""},{"$f":"IFERROR(IF(Pinjaman_Belum_Dibayar*Nilai_Dimasukkan,Bunga,\"\"), \"\")","v":""},{"$f":"IFERROR(IF(Pinjaman_Belum_Dibayar*Nilai_Dimasukkan,Saldo_Akhir,\"\"), \"\")","v":""}]
[null,{"$f":"IFERROR(IF(Pinjaman_Belum_Dibayar*Nilai_Dimasukkan,Jumlah_Pembayaran1,\"\"), \"\")","v":""},{"$f":"IFERROR(IF(Pinjaman_Belum_Dibayar*Nilai_Dimasukkan,Tanggal_Pembayaran,\"\"), \"\")","v":""},{"$f":"IFERROR(IF(Pinjaman_Belum_Dibayar*Nilai_Dimasukkan,Saldo_Awal,\"\"), \"\")","v":""},{"$f":"IFERROR(IF(Pinjaman_Belum_Dibayar*Nilai_Dimasukkan,Pembayaran_Bulanan,\"\"), \"\")","v":""},{"$f":"IFERROR(IF(Pinjaman_Belum_Dibayar*Nilai_Dimasukkan,Pinjaman_Pokok,\"\"), \"\")","v":""},{"$f":"IFERROR(IF(Pinjaman_Belum_Dibayar*Nilai_Dimasukkan,Bunga,\"\"), \"\")","v":""},{"$f":"IFERROR(IF(Pinjaman_Belum_Dibayar*Nilai_Dimasukkan,Saldo_Akhir,\"\"), \"\")","v":""}]
[null,{"$f":"IFERROR(IF(Pinjaman_Belum_Dibayar*Nilai_Dimasukkan,Jumlah_Pembayaran1,\"\"), \"\")","v":""},{"$f":"IFERROR(IF(Pinjaman_Belum_Dibayar*Nilai_Dimasukkan,Tanggal_Pembayaran,\"\"), \"\")","v":""},{"$f":"IFERROR(IF(Pinjaman_Belum_Dibayar*Nilai_Dimasukkan,Saldo_Awal,\"\"), \"\")","v":""},{"$f":"IFERROR(IF(Pinjaman_Belum_Dibayar*Nilai_Dimasukkan,Pembayaran_Bulanan,\"\"), \"\")","v":""},{"$f":"IFERROR(IF(Pinjaman_Belum_Dibayar*Nilai_Dimasukkan,Pinjaman_Pokok,\"\"), \"\")","v":""},{"$f":"IFERROR(IF(Pinjaman_Belum_Dibayar*Nilai_Dimasukkan,Bunga,\"\"), \"\")","v":""},{"$f":"IFERROR(IF(Pinjaman_Belum_Dibayar*Nilai_Dimasukkan,Saldo_Akhir,\"\"), \"\")","v":""}]
[null,{"$f":"IFERROR(IF(Pinjaman_Belum_Dibayar*Nilai_Dimasukkan,Jumlah_Pembayaran1,\"\"), \"\")","v":""},{"$f":"IFERROR(IF(Pinjaman_Belum_Dibayar*Nilai_Dimasukkan,Tanggal_Pembayaran,\"\"), \"\")","v":""},{"$f":"IFERROR(IF(Pinjaman_Belum_Dibayar*Nilai_Dimasukkan,Saldo_Awal,\"\"), \"\")","v":""},{"$f":"IFERROR(IF(Pinjaman_Belum_Dibayar*Nilai_Dimasukkan,Pembayaran_Bulanan,\"\"), \"\")","v":""},{"$f":"IFERROR(IF(Pinjaman_Belum_Dibayar*Nilai_Dimasukkan,Pinjaman_Pokok,\"\"), \"\")","v":""},{"$f":"IFERROR(IF(Pinjaman_Belum_Dibayar*Nilai_Dimasukkan,Bunga,\"\"), \"\")","v":""},{"$f":"IFERROR(IF(Pinjaman_Belum_Dibayar*Nilai_Dimasukkan,Saldo_Akhir,\"\"), \"\")","v":""}]
[null,{"$f":"IFERROR(IF(Pinjaman_Belum_Dibayar*Nilai_Dimasukkan,Jumlah_Pembayaran1,\"\"), \"\")","v":""},{"$f":"IFERROR(IF(Pinjaman_Belum_Dibayar*Nilai_Dimasukkan,Tanggal_Pembayaran,\"\"), \"\")","v":""},{"$f":"IFERROR(IF(Pinjaman_Belum_Dibayar*Nilai_Dimasukkan,Saldo_Awal,\"\"), \"\")","v":""},{"$f":"IFERROR(IF(Pinjaman_Belum_Dibayar*Nilai_Dimasukkan,Pembayaran_Bulanan,\"\"), \"\")","v":""},{"$f":"IFERROR(IF(Pinjaman_Belum_Dibayar*Nilai_Dimasukkan,Pinjaman_Pokok,\"\"), \"\")","v":""},{"$f":"IFERROR(IF(Pinjaman_Belum_Dibayar*Nilai_Dimasukkan,Bunga,\"\"), \"\")","v":""},{"$f":"IFERROR(IF(Pinjaman_Belum_Dibayar*Nilai_Dimasukkan,Saldo_Akhir,\"\"), \"\")","v":""}]
[null,{"$f":"IFERROR(IF(Pinjaman_Belum_Dibayar*Nilai_Dimasukkan,Jumlah_Pembayaran1,\"\"), \"\")","v":""},{"$f":"IFERROR(IF(Pinjaman_Belum_Dibayar*Nilai_Dimasukkan,Tanggal_Pembayaran,\"\"), \"\")","v":""},{"$f":"IFERROR(IF(Pinjaman_Belum_Dibayar*Nilai_Dimasukkan,Saldo_Awal,\"\"), \"\")","v":""},{"$f":"IFERROR(IF(Pinjaman_Belum_Dibayar*Nilai_Dimasukkan,Pembayaran_Bulanan,\"\"), \"\")","v":""},{"$f":"IFERROR(IF(Pinjaman_Belum_Dibayar*Nilai_Dimasukkan,Pinjaman_Pokok,\"\"), \"\")","v":""},{"$f":"IFERROR(IF(Pinjaman_Belum_Dibayar*Nilai_Dimasukkan,Bunga,\"\"), \"\")","v":""},{"$f":"IFERROR(IF(Pinjaman_Belum_Dibayar*Nilai_Dimasukkan,Saldo_Akhir,\"\"), \"\")","v":""}]
[null,{"$f":"IFERROR(IF(Pinjaman_Belum_Dibayar*Nilai_Dimasukkan,Jumlah_Pembayaran1,\"\"), \"\")","v":""},{"$f":"IFERROR(IF(Pinjaman_Belum_Dibayar*Nilai_Dimasukkan,Tanggal_Pembayaran,\"\"), \"\")","v":""},{"$f":"IFERROR(IF(Pinjaman_Belum_Dibayar*Nilai_Dimasukkan,Saldo_Awal,\"\"), \"\")","v":""},{"$f":"IFERROR(IF(Pinjaman_Belum_Dibayar*Nilai_Dimasukkan,Pembayaran_Bulanan,\"\"), \"\")","v":""},{"$f":"IFERROR(IF(Pinjaman_Belum_Dibayar*Nilai_Dimasukkan,Pinjaman_Pokok,\"\"), \"\")","v":""},{"$f":"IFERROR(IF(Pinjaman_Belum_Dibayar*Nilai_Dimasukkan,Bunga,\"\"), \"\")","v":""},{"$f":"IFERROR(IF(Pinjaman_Belum_Dibayar*Nilai_Dimasukkan,Saldo_Akhir,\"\"), \"\")","v":""}]
[null,{"$f":"IFERROR(IF(Pinjaman_Belum_Dibayar*Nilai_Dimasukkan,Jumlah_Pembayaran1,\"\"), \"\")","v":""},{"$f":"IFERROR(IF(Pinjaman_Belum_Dibayar*Nilai_Dimasukkan,Tanggal_Pembayaran,\"\"), \"\")","v":""},{"$f":"IFERROR(IF(Pinjaman_Belum_Dibayar*Nilai_Dimasukkan,Saldo_Awal,\"\"), \"\")","v":""},{"$f":"IFERROR(IF(Pinjaman_Belum_Dibayar*Nilai_Dimasukkan,Pembayaran_Bulanan,\"\"), \"\")","v":""},{"$f":"IFERROR(IF(Pinjaman_Belum_Dibayar*Nilai_Dimasukkan,Pinjaman_Pokok,\"\"), \"\")","v":""},{"$f":"IFERROR(IF(Pinjaman_Belum_Dibayar*Nilai_Dimasukkan,Bunga,\"\"), \"\")","v":""},{"$f":"IFERROR(IF(Pinjaman_Belum_Dibayar*Nilai_Dimasukkan,Saldo_Akhir,\"\"), \"\")","v":""}]
[null,{"$f":"IFERROR(IF(Pinjaman_Belum_Dibayar*Nilai_Dimasukkan,Jumlah_Pembayaran1,\"\"), \"\")","v":""},{"$f":"IFERROR(IF(Pinjaman_Belum_Dibayar*Nilai_Dimasukkan,Tanggal_Pembayaran,\"\"), \"\")","v":""},{"$f":"IFERROR(IF(Pinjaman_Belum_Dibayar*Nilai_Dimasukkan,Saldo_Awal,\"\"), \"\")","v":""},{"$f":"IFERROR(IF(Pinjaman_Belum_Dibayar*Nilai_Dimasukkan,Pembayaran_Bulanan,\"\"), \"\")","v":""},{"$f":"IFERROR(IF(Pinjaman_Belum_Dibayar*Nilai_Dimasukkan,Pinjaman_Pokok,\"\"), \"\")","v":""},{"$f":"IFERROR(IF(Pinjaman_Belum_Dibayar*Nilai_Dimasukkan,Bunga,\"\"), \"\")","v":""},{"$f":"IFERROR(IF(Pinjaman_Belum_Dibayar*Nilai_Dimasukkan,Saldo_Akhir,\"\"), \"\")","v":""}]
[null,{"$f":"IFERROR(IF(Pinjaman_Belum_Dibayar*Nilai_Dimasukkan,Jumlah_Pembayaran1,\"\"), \"\")","v":""},{"$f":"IFERROR(IF(Pinjaman_Belum_Dibayar*Nilai_Dimasukkan,Tanggal_Pembayaran,\"\"), \"\")","v":""},{"$f":"IFERROR(IF(Pinjaman_Belum_Dibayar*Nilai_Dimasukkan,Saldo_Awal,\"\"), \"\")","v":""},{"$f":"IFERROR(IF(Pinjaman_Belum_Dibayar*Nilai_Dimasukkan,Pembayaran_Bulanan,\"\"), \"\")","v":""},{"$f":"IFERROR(IF(Pinjaman_Belum_Dibayar*Nilai_Dimasukkan,Pinjaman_Pokok,\"\"), \"\")","v":""},{"$f":"IFERROR(IF(Pinjaman_Belum_Dibayar*Nilai_Dimasukkan,Bunga,\"\"), \"\")","v":""},{"$f":"IFERROR(IF(Pinjaman_Belum_Dibayar*Nilai_Dimasukkan,Saldo_Akhir,\"\"), \"\")","v":""}]
[null,{"$f":"IFERROR(IF(Pinjaman_Belum_Dibayar*Nilai_Dimasukkan,Jumlah_Pembayaran1,\"\"), \"\")","v":""},{"$f":"IFERROR(IF(Pinjaman_Belum_Dibayar*Nilai_Dimasukkan,Tanggal_Pembayaran,\"\"), \"\")","v":""},{"$f":"IFERROR(IF(Pinjaman_Belum_Dibayar*Nilai_Dimasukkan,Saldo_Awal,\"\"), \"\")","v":""},{"$f":"IFERROR(IF(Pinjaman_Belum_Dibayar*Nilai_Dimasukkan,Pembayaran_Bulanan,\"\"), \"\")","v":""},{"$f":"IFERROR(IF(Pinjaman_Belum_Dibayar*Nilai_Dimasukkan,Pinjaman_Pokok,\"\"), \"\")","v":""},{"$f":"IFERROR(IF(Pinjaman_Belum_Dibayar*Nilai_Dimasukkan,Bunga,\"\"), \"\")","v":""},{"$f":"IFERROR(IF(Pinjaman_Belum_Dibayar*Nilai_Dimasukkan,Saldo_Akhir,\"\"), \"\")","v":""}]
[null,{"$f":"IFERROR(IF(Pinjaman_Belum_Dibayar*Nilai_Dimasukkan,Jumlah_Pembayaran1,\"\"), \"\")","v":""},{"$f":"IFERROR(IF(Pinjaman_Belum_Dibayar*Nilai_Dimasukkan,Tanggal_Pembayaran,\"\"), \"\")","v":""},{"$f":"IFERROR(IF(Pinjaman_Belum_Dibayar*Nilai_Dimasukkan,Saldo_Awal,\"\"), \"\")","v":""},{"$f":"IFERROR(IF(Pinjaman_Belum_Dibayar*Nilai_Dimasukkan,Pembayaran_Bulanan,\"\"), \"\")","v":""},{"$f":"IFERROR(IF(Pinjaman_Belum_Dibayar*Nilai_Dimasukkan,Pinjaman_Pokok,\"\"), \"\")","v":""},{"$f":"IFERROR(IF(Pinjaman_Belum_Dibayar*Nilai_Dimasukkan,Bunga,\"\"), \"\")","v":""},{"$f":"IFERROR(IF(Pinjaman_Belum_Dibayar*Nilai_Dimasukkan,Saldo_Akhir,\"\"), \"\")","v":""}]
[null,{"$f":"IFERROR(IF(Pinjaman_Belum_Dibayar*Nilai_Dimasukkan,Jumlah_Pembayaran1,\"\"), \"\")","v":""},{"$f":"IFERROR(IF(Pinjaman_Belum_Dibayar*Nilai_Dimasukkan,Tanggal_Pembayaran,\"\"), \"\")","v":""},{"$f":"IFERROR(IF(Pinjaman_Belum_Dibayar*Nilai_Dimasukkan,Saldo_Awal,\"\"), \"\")","v":""},{"$f":"IFERROR(IF(Pinjaman_Belum_Dibayar*Nilai_Dimasukkan,Pembayaran_Bulanan,\"\"), \"\")","v":""},{"$f":"IFERROR(IF(Pinjaman_Belum_Dibayar*Nilai_Dimasukkan,Pinjaman_Pokok,\"\"), \"\")","v":""},{"$f":"IFERROR(IF(Pinjaman_Belum_Dibayar*Nilai_Dimasukkan,Bunga,\"\"), \"\")","v":""},{"$f":"IFERROR(IF(Pinjaman_Belum_Dibayar*Nilai_Dimasukkan,Saldo_Akhir,\"\"), \"\")","v":""}]
[null,{"$f":"IFERROR(IF(Pinjaman_Belum_Dibayar*Nilai_Dimasukkan,Jumlah_Pembayaran1,\"\"), \"\")","v":""},{"$f":"IFERROR(IF(Pinjaman_Belum_Dibayar*Nilai_Dimasukkan,Tanggal_Pembayaran,\"\"), \"\")","v":""},{"$f":"IFERROR(IF(Pinjaman_Belum_Dibayar*Nilai_Dimasukkan,Saldo_Awal,\"\"), \"\")","v":""},{"$f":"IFERROR(IF(Pinjaman_Belum_Dibayar*Nilai_Dimasukkan,Pembayaran_Bulanan,\"\"), \"\")","v":""},{"$f":"IFERROR(IF(Pinjaman_Belum_Dibayar*Nilai_Dimasukkan,Pinjaman_Pokok,\"\"), \"\")","v":""},{"$f":"IFERROR(IF(Pinjaman_Belum_Dibayar*Nilai_Dimasukkan,Bunga,\"\"), \"\")","v":""},{"$f":"IFERROR(IF(Pinjaman_Belum_Dibayar*Nilai_Dimasukkan,Saldo_Akhir,\"\"), \"\")","v":""}]
[null,{"$f":"IFERROR(IF(Pinjaman_Belum_Dibayar*Nilai_Dimasukkan,Jumlah_Pembayaran1,\"\"), \"\")","v":""},{"$f":"IFERROR(IF(Pinjaman_Belum_Dibayar*Nilai_Dimasukkan,Tanggal_Pembayaran,\"\"), \"\")","v":""},{"$f":"IFERROR(IF(Pinjaman_Belum_Dibayar*Nilai_Dimasukkan,Saldo_Awal,\"\"), \"\")","v":""},{"$f":"IFERROR(IF(Pinjaman_Belum_Dibayar*Nilai_Dimasukkan,Pembayaran_Bulanan,\"\"), \"\")","v":""},{"$f":"IFERROR(IF(Pinjaman_Belum_Dibayar*Nilai_Dimasukkan,Pinjaman_Pokok,\"\"), \"\")","v":""},{"$f":"IFERROR(IF(Pinjaman_Belum_Dibayar*Nilai_Dimasukkan,Bunga,\"\"), \"\")","v":""},{"$f":"IFERROR(IF(Pinjaman_Belum_Dibayar*Nilai_Dimasukkan,Saldo_Akhir,\"\"), \"\")","v":""}]
[null,{"$f":"IFERROR(IF(Pinjaman_Belum_Dibayar*Nilai_Dimasukkan,Jumlah_Pembayaran1,\"\"), \"\")","v":""},{"$f":"IFERROR(IF(Pinjaman_Belum_Dibayar*Nilai_Dimasukkan,Tanggal_Pembayaran,\"\"), \"\")","v":""},{"$f":"IFERROR(IF(Pinjaman_Belum_Dibayar*Nilai_Dimasukkan,Saldo_Awal,\"\"), \"\")","v":""},{"$f":"IFERROR(IF(Pinjaman_Belum_Dibayar*Nilai_Dimasukkan,Pembayaran_Bulanan,\"\"), \"\")","v":""},{"$f":"IFERROR(IF(Pinjaman_Belum_Dibayar*Nilai_Dimasukkan,Pinjaman_Pokok,\"\"), \"\")","v":""},{"$f":"IFERROR(IF(Pinjaman_Belum_Dibayar*Nilai_Dimasukkan,Bunga,\"\"), \"\")","v":""},{"$f":"IFERROR(IF(Pinjaman_Belum_Dibayar*Nilai_Dimasukkan,Saldo_Akhir,\"\"), \"\")","v":""}]
[null,{"$f":"IFERROR(IF(Pinjaman_Belum_Dibayar*Nilai_Dimasukkan,Jumlah_Pembayaran1,\"\"), \"\")","v":""},{"$f":"IFERROR(IF(Pinjaman_Belum_Dibayar*Nilai_Dimasukkan,Tanggal_Pembayaran,\"\"), \"\")","v":""},{"$f":"IFERROR(IF(Pinjaman_Belum_Dibayar*Nilai_Dimasukkan,Saldo_Awal,\"\"), \"\")","v":""},{"$f":"IFERROR(IF(Pinjaman_Belum_Dibayar*Nilai_Dimasukkan,Pembayaran_Bulanan,\"\"), \"\")","v":""},{"$f":"IFERROR(IF(Pinjaman_Belum_Dibayar*Nilai_Dimasukkan,Pinjaman_Pokok,\"\"), \"\")","v":""},{"$f":"IFERROR(IF(Pinjaman_Belum_Dibayar*Nilai_Dimasukkan,Bunga,\"\"), \"\")","v":""},{"$f":"IFERROR(IF(Pinjaman_Belum_Dibayar*Nilai_Dimasukkan,Saldo_Akhir,\"\"), \"\")","v":""}]
[null,{"$f":"IFERROR(IF(Pinjaman_Belum_Dibayar*Nilai_Dimasukkan,Jumlah_Pembayaran1,\"\"), \"\")","v":""},{"$f":"IFERROR(IF(Pinjaman_Belum_Dibayar*Nilai_Dimasukkan,Tanggal_Pembayaran,\"\"), \"\")","v":""},{"$f":"IFERROR(IF(Pinjaman_Belum_Dibayar*Nilai_Dimasukkan,Saldo_Awal,\"\"), \"\")","v":""},{"$f":"IFERROR(IF(Pinjaman_Belum_Dibayar*Nilai_Dimasukkan,Pembayaran_Bulanan,\"\"), \"\")","v":""},{"$f":"IFERROR(IF(Pinjaman_Belum_Dibayar*Nilai_Dimasukkan,Pinjaman_Pokok,\"\"), \"\")","v":""},{"$f":"IFERROR(IF(Pinjaman_Belum_Dibayar*Nilai_Dimasukkan,Bunga,\"\"), \"\")","v":""},{"$f":"IFERROR(IF(Pinjaman_Belum_Dibayar*Nilai_Dimasukkan,Saldo_Akhir,\"\"), \"\")","v":""}]
[null,{"$f":"IFERROR(IF(Pinjaman_Belum_Dibayar*Nilai_Dimasukkan,Jumlah_Pembayaran1,\"\"), \"\")","v":""},{"$f":"IFERROR(IF(Pinjaman_Belum_Dibayar*Nilai_Dimasukkan,Tanggal_Pembayaran,\"\"), \"\")","v":""},{"$f":"IFERROR(IF(Pinjaman_Belum_Dibayar*Nilai_Dimasukkan,Saldo_Awal,\"\"), \"\")","v":""},{"$f":"IFERROR(IF(Pinjaman_Belum_Dibayar*Nilai_Dimasukkan,Pembayaran_Bulanan,\"\"), \"\")","v":""},{"$f":"IFERROR(IF(Pinjaman_Belum_Dibayar*Nilai_Dimasukkan,Pinjaman_Pokok,\"\"), \"\")","v":""},{"$f":"IFERROR(IF(Pinjaman_Belum_Dibayar*Nilai_Dimasukkan,Bunga,\"\"), \"\")","v":""},{"$f":"IFERROR(IF(Pinjaman_Belum_Dibayar*Nilai_Dimasukkan,Saldo_Akhir,\"\"), \"\")","v":""}]
[null,{"$f":"IFERROR(IF(Pinjaman_Belum_Dibayar*Nilai_Dimasukkan,Jumlah_Pembayaran1,\"\"), \"\")","v":""},{"$f":"IFERROR(IF(Pinjaman_Belum_Dibayar*Nilai_Dimasukkan,Tanggal_Pembayaran,\"\"), \"\")","v":""},{"$f":"IFERROR(IF(Pinjaman_Belum_Dibayar*Nilai_Dimasukkan,Saldo_Awal,\"\"), \"\")","v":""},{"$f":"IFERROR(IF(Pinjaman_Belum_Dibayar*Nilai_Dimasukkan,Pembayaran_Bulanan,\"\"), \"\")","v":""},{"$f":"IFERROR(IF(Pinjaman_Belum_Dibayar*Nilai_Dimasukkan,Pinjaman_Pokok,\"\"), \"\")","v":""},{"$f":"IFERROR(IF(Pinjaman_Belum_Dibayar*Nilai_Dimasukkan,Bunga,\"\"), \"\")","v":""},{"$f":"IFERROR(IF(Pinjaman_Belum_Dibayar*Nilai_Dimasukkan,Saldo_Akhir,\"\"), \"\")","v":""}]
[null,{"$f":"IFERROR(IF(Pinjaman_Belum_Dibayar*Nilai_Dimasukkan,Jumlah_Pembayaran1,\"\"), \"\")","v":""},{"$f":"IFERROR(IF(Pinjaman_Belum_Dibayar*Nilai_Dimasukkan,Tanggal_Pembayaran,\"\"), \"\")","v":""},{"$f":"IFERROR(IF(Pinjaman_Belum_Dibayar*Nilai_Dimasukkan,Saldo_Awal,\"\"), \"\")","v":""},{"$f":"IFERROR(IF(Pinjaman_Belum_Dibayar*Nilai_Dimasukkan,Pembayaran_Bulanan,\"\"), \"\")","v":""},{"$f":"IFERROR(IF(Pinjaman_Belum_Dibayar*Nilai_Dimasukkan,Pinjaman_Pokok,\"\"), \"\")","v":""},{"$f":"IFERROR(IF(Pinjaman_Belum_Dibayar*Nilai_Dimasukkan,Bunga,\"\"), \"\")","v":""},{"$f":"IFERROR(IF(Pinjaman_Belum_Dibayar*Nilai_Dimasukkan,Saldo_Akhir,\"\"), \"\")","v":""}]
[null,{"$f":"IFERROR(IF(Pinjaman_Belum_Dibayar*Nilai_Dimasukkan,Jumlah_Pembayaran1,\"\"), \"\")","v":""},{"$f":"IFERROR(IF(Pinjaman_Belum_Dibayar*Nilai_Dimasukkan,Tanggal_Pembayaran,\"\"), \"\")","v":""},{"$f":"IFERROR(IF(Pinjaman_Belum_Dibayar*Nilai_Dimasukkan,Saldo_Awal,\"\"), \"\")","v":""},{"$f":"IFERROR(IF(Pinjaman_Belum_Dibayar*Nilai_Dimasukkan,Pembayaran_Bulanan,\"\"), \"\")","v":""},{"$f":"IFERROR(IF(Pinjaman_Belum_Dibayar*Nilai_Dimasukkan,Pinjaman_Pokok,\"\"), \"\")","v":""},{"$f":"IFERROR(IF(Pinjaman_Belum_Dibayar*Nilai_Dimasukkan,Bunga,\"\"), \"\")","v":""},{"$f":"IFERROR(IF(Pinjaman_Belum_Dibayar*Nilai_Dimasukkan,Saldo_Akhir,\"\"), \"\")","v":""}]
[null,{"$f":"IFERROR(IF(Pinjaman_Belum_Dibayar*Nilai_Dimasukkan,Jumlah_Pembayaran1,\"\"), \"\")","v":""},{"$f":"IFERROR(IF(Pinjaman_Belum_Dibayar*Nilai_Dimasukkan,Tanggal_Pembayaran,\"\"), \"\")","v":""},{"$f":"IFERROR(IF(Pinjaman_Belum_Dibayar*Nilai_Dimasukkan,Saldo_Awal,\"\"), \"\")","v":""},{"$f":"IFERROR(IF(Pinjaman_Belum_Dibayar*Nilai_Dimasukkan,Pembayaran_Bulanan,\"\"), \"\")","v":""},{"$f":"IFERROR(IF(Pinjaman_Belum_Dibayar*Nilai_Dimasukkan,Pinjaman_Pokok,\"\"), \"\")","v":""},{"$f":"IFERROR(IF(Pinjaman_Belum_Dibayar*Nilai_Dimasukkan,Bunga,\"\"), \"\")","v":""},{"$f":"IFERROR(IF(Pinjaman_Belum_Dibayar*Nilai_Dimasukkan,Saldo_Akhir,\"\"), \"\")","v":""}]
[null,{"$f":"IFERROR(IF(Pinjaman_Belum_Dibayar*Nilai_Dimasukkan,Jumlah_Pembayaran1,\"\"), \"\")","v":""},{"$f":"IFERROR(IF(Pinjaman_Belum_Dibayar*Nilai_Dimasukkan,Tanggal_Pembayaran,\"\"), \"\")","v":""},{"$f":"IFERROR(IF(Pinjaman_Belum_Dibayar*Nilai_Dimasukkan,Saldo_Awal,\"\"), \"\")","v":""},{"$f":"IFERROR(IF(Pinjaman_Belum_Dibayar*Nilai_Dimasukkan,Pembayaran_Bulanan,\"\"), \"\")","v":""},{"$f":"IFERROR(IF(Pinjaman_Belum_Dibayar*Nilai_Dimasukkan,Pinjaman_Pokok,\"\"), \"\")","v":""},{"$f":"IFERROR(IF(Pinjaman_Belum_Dibayar*Nilai_Dimasukkan,Bunga,\"\"), \"\")","v":""},{"$f":"IFERROR(IF(Pinjaman_Belum_Dibayar*Nilai_Dimasukkan,Saldo_Akhir,\"\"), \"\")","v":""}]
[null,{"$f":"IFERROR(IF(Pinjaman_Belum_Dibayar*Nilai_Dimasukkan,Jumlah_Pembayaran1,\"\"), \"\")","v":""},{"$f":"IFERROR(IF(Pinjaman_Belum_Dibayar*Nilai_Dimasukkan,Tanggal_Pembayaran,\"\"), \"\")","v":""},{"$f":"IFERROR(IF(Pinjaman_Belum_Dibayar*Nilai_Dimasukkan,Saldo_Awal,\"\"), \"\")","v":""},{"$f":"IFERROR(IF(Pinjaman_Belum_Dibayar*Nilai_Dimasukkan,Pembayaran_Bulanan,\"\"), \"\")","v":""},{"$f":"IFERROR(IF(Pinjaman_Belum_Dibayar*Nilai_Dimasukkan,Pinjaman_Pokok,\"\"), \"\")","v":""},{"$f":"IFERROR(IF(Pinjaman_Belum_Dibayar*Nilai_Dimasukkan,Bunga,\"\"), \"\")","v":""},{"$f":"IFERROR(IF(Pinjaman_Belum_Dibayar*Nilai_Dimasukkan,Saldo_Akhir,\"\"), \"\")","v":""}]
[null,{"$f":"IFERROR(IF(Pinjaman_Belum_Dibayar*Nilai_Dimasukkan,Jumlah_Pembayaran1,\"\"), \"\")","v":""},{"$f":"IFERROR(IF(Pinjaman_Belum_Dibayar*Nilai_Dimasukkan,Tanggal_Pembayaran,\"\"), \"\")","v":""},{"$f":"IFERROR(IF(Pinjaman_Belum_Dibayar*Nilai_Dimasukkan,Saldo_Awal,\"\"), \"\")","v":""},{"$f":"IFERROR(IF(Pinjaman_Belum_Dibayar*Nilai_Dimasukkan,Pembayaran_Bulanan,\"\"), \"\")","v":""},{"$f":"IFERROR(IF(Pinjaman_Belum_Dibayar*Nilai_Dimasukkan,Pinjaman_Pokok,\"\"), \"\")","v":""},{"$f":"IFERROR(IF(Pinjaman_Belum_Dibayar*Nilai_Dimasukkan,Bunga,\"\"), \"\")","v":""},{"$f":"IFERROR(IF(Pinjaman_Belum_Dibayar*Nilai_Dimasukkan,Saldo_Akhir,\"\"), \"\")","v":""}]
[null,{"$f":"IFERROR(IF(Pinjaman_Belum_Dibayar*Nilai_Dimasukkan,Jumlah_Pembayaran1,\"\"), \"\")","v":""},{"$f":"IFERROR(IF(Pinjaman_Belum_Dibayar*Nilai_Dimasukkan,Tanggal_Pembayaran,\"\"), \"\")","v":""},{"$f":"IFERROR(IF(Pinjaman_Belum_Dibayar*Nilai_Dimasukkan,Saldo_Awal,\"\"), \"\")","v":""},{"$f":"IFERROR(IF(Pinjaman_Belum_Dibayar*Nilai_Dimasukkan,Pembayaran_Bulanan,\"\"), \"\")","v":""},{"$f":"IFERROR(IF(Pinjaman_Belum_Dibayar*Nilai_Dimasukkan,Pinjaman_Pokok,\"\"), \"\")","v":""},{"$f":"IFERROR(IF(Pinjaman_Belum_Dibayar*Nilai_Dimasukkan,Bunga,\"\"), \"\")","v":""},{"$f":"IFERROR(IF(Pinjaman_Belum_Dibayar*Nilai_Dimasukkan,Saldo_Akhir,\"\"), \"\")","v":""}]
[null,{"$f":"IFERROR(IF(Pinjaman_Belum_Dibayar*Nilai_Dimasukkan,Jumlah_Pembayaran1,\"\"), \"\")","v":""},{"$f":"IFERROR(IF(Pinjaman_Belum_Dibayar*Nilai_Dimasukkan,Tanggal_Pembayaran,\"\"), \"\")","v":""},{"$f":"IFERROR(IF(Pinjaman_Belum_Dibayar*Nilai_Dimasukkan,Saldo_Awal,\"\"), \"\")","v":""},{"$f":"IFERROR(IF(Pinjaman_Belum_Dibayar*Nilai_Dimasukkan,Pembayaran_Bulanan,\"\"), \"\")","v":""},{"$f":"IFERROR(IF(Pinjaman_Belum_Dibayar*Nilai_Dimasukkan,Pinjaman_Pokok,\"\"), \"\")","v":""},{"$f":"IFERROR(IF(Pinjaman_Belum_Dibayar*Nilai_Dimasukkan,Bunga,\"\"), \"\")","v":""},{"$f":"IFERROR(IF(Pinjaman_Belum_Dibayar*Nilai_Dimasukkan,Saldo_Akhir,\"\"), \"\")","v":""}]
[null,{"$f":"IFERROR(IF(Pinjaman_Belum_Dibayar*Nilai_Dimasukkan,Jumlah_Pembayaran1,\"\"), \"\")","v":""},{"$f":"IFERROR(IF(Pinjaman_Belum_Dibayar*Nilai_Dimasukkan,Tanggal_Pembayaran,\"\"), \"\")","v":""},{"$f":"IFERROR(IF(Pinjaman_Belum_Dibayar*Nilai_Dimasukkan,Saldo_Awal,\"\"), \"\")","v":""},{"$f":"IFERROR(IF(Pinjaman_Belum_Dibayar*Nilai_Dimasukkan,Pembayaran_Bulanan,\"\"), \"\")","v":""},{"$f":"IFERROR(IF(Pinjaman_Belum_Dibayar*Nilai_Dimasukkan,Pinjaman_Pokok,\"\"), \"\")","v":""},{"$f":"IFERROR(IF(Pinjaman_Belum_Dibayar*Nilai_Dimasukkan,Bunga,\"\"), \"\")","v":""},{"$f":"IFERROR(IF(Pinjaman_Belum_Dibayar*Nilai_Dimasukkan,Saldo_Akhir,\"\"), \"\")","v":""}]
[null,{"$f":"IFERROR(IF(Pinjaman_Belum_Dibayar*Nilai_Dimasukkan,Jumlah_Pembayaran1,\"\"), \"\")","v":""},{"$f":"IFERROR(IF(Pinjaman_Belum_Dibayar*Nilai_Dimasukkan,Tanggal_Pembayaran,\"\"), \"\")","v":""},{"$f":"IFERROR(IF(Pinjaman_Belum_Dibayar*Nilai_Dimasukkan,Saldo_Awal,\"\"), \"\")","v":""},{"$f":"IFERROR(IF(Pinjaman_Belum_Dibayar*Nilai_Dimasukkan,Pembayaran_Bulanan,\"\"), \"\")","v":""},{"$f":"IFERROR(IF(Pinjaman_Belum_Dibayar*Nilai_Dimasukkan,Pinjaman_Pokok,\"\"), \"\")","v":""},{"$f":"IFERROR(IF(Pinjaman_Belum_Dibayar*Nilai_Dimasukkan,Bunga,\"\"), \"\")","v":""},{"$f":"IFERROR(IF(Pinjaman_Belum_Dibayar*Nilai_Dimasukkan,Saldo_Akhir,\"\"), \"\")","v":""}]
[null,{"$f":"IFERROR(IF(Pinjaman_Belum_Dibayar*Nilai_Dimasukkan,Jumlah_Pembayaran1,\"\"), \"\")","v":""},{"$f":"IFERROR(IF(Pinjaman_Belum_Dibayar*Nilai_Dimasukkan,Tanggal_Pembayaran,\"\"), \"\")","v":""},{"$f":"IFERROR(IF(Pinjaman_Belum_Dibayar*Nilai_Dimasukkan,Saldo_Awal,\"\"), \"\")","v":""},{"$f":"IFERROR(IF(Pinjaman_Belum_Dibayar*Nilai_Dimasukkan,Pembayaran_Bulanan,\"\"), \"\")","v":""},{"$f":"IFERROR(IF(Pinjaman_Belum_Dibayar*Nilai_Dimasukkan,Pinjaman_Pokok,\"\"), \"\")","v":""},{"$f":"IFERROR(IF(Pinjaman_Belum_Dibayar*Nilai_Dimasukkan,Bunga,\"\"), \"\")","v":""},{"$f":"IFERROR(IF(Pinjaman_Belum_Dibayar*Nilai_Dimasukkan,Saldo_Akhir,\"\"), \"\")","v":""}]
[null,{"$f":"IFERROR(IF(Pinjaman_Belum_Dibayar*Nilai_Dimasukkan,Jumlah_Pembayaran1,\"\"), \"\")","v":""},{"$f":"IFERROR(IF(Pinjaman_Belum_Dibayar*Nilai_Dimasukkan,Tanggal_Pembayaran,\"\"), \"\")","v":""},{"$f":"IFERROR(IF(Pinjaman_Belum_Dibayar*Nilai_Dimasukkan,Saldo_Awal,\"\"), \"\")","v":""},{"$f":"IFERROR(IF(Pinjaman_Belum_Dibayar*Nilai_Dimasukkan,Pembayaran_Bulanan,\"\"), \"\")","v":""},{"$f":"IFERROR(IF(Pinjaman_Belum_Dibayar*Nilai_Dimasukkan,Pinjaman_Pokok,\"\"), \"\")","v":""},{"$f":"IFERROR(IF(Pinjaman_Belum_Dibayar*Nilai_Dimasukkan,Bunga,\"\"), \"\")","v":""},{"$f":"IFERROR(IF(Pinjaman_Belum_Dibayar*Nilai_Dimasukkan,Saldo_Akhir,\"\"), \"\")","v":""}]
[null,{"$f":"IFERROR(IF(Pinjaman_Belum_Dibayar*Nilai_Dimasukkan,Jumlah_Pembayaran1,\"\"), \"\")","v":""},{"$f":"IFERROR(IF(Pinjaman_Belum_Dibayar*Nilai_Dimasukkan,Tanggal_Pembayaran,\"\"), \"\")","v":""},{"$f":"IFERROR(IF(Pinjaman_Belum_Dibayar*Nilai_Dimasukkan,Saldo_Awal,\"\"), \"\")","v":""},{"$f":"IFERROR(IF(Pinjaman_Belum_Dibayar*Nilai_Dimasukkan,Pembayaran_Bulanan,\"\"), \"\")","v":""},{"$f":"IFERROR(IF(Pinjaman_Belum_Dibayar*Nilai_Dimasukkan,Pinjaman_Pokok,\"\"), \"\")","v":""},{"$f":"IFERROR(IF(Pinjaman_Belum_Dibayar*Nilai_Dimasukkan,Bunga,\"\"), \"\")","v":""},{"$f":"IFERROR(IF(Pinjaman_Belum_Dibayar*Nilai_Dimasukkan,Saldo_Akhir,\"\"), \"\")","v":""}]
[null,{"$f":"IFERROR(IF(Pinjaman_Belum_Dibayar*Nilai_Dimasukkan,Jumlah_Pembayaran1,\"\"), \"\")","v":""},{"$f":"IFERROR(IF(Pinjaman_Belum_Dibayar*Nilai_Dimasukkan,Tanggal_Pembayaran,\"\"), \"\")","v":""},{"$f":"IFERROR(IF(Pinjaman_Belum_Dibayar*Nilai_Dimasukkan,Saldo_Awal,\"\"), \"\")","v":""},{"$f":"IFERROR(IF(Pinjaman_Belum_Dibayar*Nilai_Dimasukkan,Pembayaran_Bulanan,\"\"), \"\")","v":""},{"$f":"IFERROR(IF(Pinjaman_Belum_Dibayar*Nilai_Dimasukkan,Pinjaman_Pokok,\"\"), \"\")","v":""},{"$f":"IFERROR(IF(Pinjaman_Belum_Dibayar*Nilai_Dimasukkan,Bunga,\"\"), \"\")","v":""},{"$f":"IFERROR(IF(Pinjaman_Belum_Dibayar*Nilai_Dimasukkan,Saldo_Akhir,\"\"), \"\")","v":""}]
[null,{"$f":"IFERROR(IF(Pinjaman_Belum_Dibayar*Nilai_Dimasukkan,Jumlah_Pembayaran1,\"\"), \"\")","v":""},{"$f":"IFERROR(IF(Pinjaman_Belum_Dibayar*Nilai_Dimasukkan,Tanggal_Pembayaran,\"\"), \"\")","v":""},{"$f":"IFERROR(IF(Pinjaman_Belum_Dibayar*Nilai_Dimasukkan,Saldo_Awal,\"\"), \"\")","v":""},{"$f":"IFERROR(IF(Pinjaman_Belum_Dibayar*Nilai_Dimasukkan,Pembayaran_Bulanan,\"\"), \"\")","v":""},{"$f":"IFERROR(IF(Pinjaman_Belum_Dibayar*Nilai_Dimasukkan,Pinjaman_Pokok,\"\"), \"\")","v":""},{"$f":"IFERROR(IF(Pinjaman_Belum_Dibayar*Nilai_Dimasukkan,Bunga,\"\"), \"\")","v":""},{"$f":"IFERROR(IF(Pinjaman_Belum_Dibayar*Nilai_Dimasukkan,Saldo_Akhir,\"\"), \"\")","v":""}]
[null,{"$f":"IFERROR(IF(Pinjaman_Belum_Dibayar*Nilai_Dimasukkan,Jumlah_Pembayaran1,\"\"), \"\")","v":""},{"$f":"IFERROR(IF(Pinjaman_Belum_Dibayar*Nilai_Dimasukkan,Tanggal_Pembayaran,\"\"), \"\")","v":""},{"$f":"IFERROR(IF(Pinjaman_Belum_Dibayar*Nilai_Dimasukkan,Saldo_Awal,\"\"), \"\")","v":""},{"$f":"IFERROR(IF(Pinjaman_Belum_Dibayar*Nilai_Dimasukkan,Pembayaran_Bulanan,\"\"), \"\")","v":""},{"$f":"IFERROR(IF(Pinjaman_Belum_Dibayar*Nilai_Dimasukkan,Pinjaman_Pokok,\"\"), \"\")","v":""},{"$f":"IFERROR(IF(Pinjaman_Belum_Dibayar*Nilai_Dimasukkan,Bunga,\"\"), \"\")","v":""},{"$f":"IFERROR(IF(Pinjaman_Belum_Dibayar*Nilai_Dimasukkan,Saldo_Akhir,\"\"), \"\")","v":""}]
[null,{"$f":"IFERROR(IF(Pinjaman_Belum_Dibayar*Nilai_Dimasukkan,Jumlah_Pembayaran1,\"\"), \"\")","v":""},{"$f":"IFERROR(IF(Pinjaman_Belum_Dibayar*Nilai_Dimasukkan,Tanggal_Pembayaran,\"\"), \"\")","v":""},{"$f":"IFERROR(IF(Pinjaman_Belum_Dibayar*Nilai_Dimasukkan,Saldo_Awal,\"\"), \"\")","v":""},{"$f":"IFERROR(IF(Pinjaman_Belum_Dibayar*Nilai_Dimasukkan,Pembayaran_Bulanan,\"\"), \"\")","v":""},{"$f":"IFERROR(IF(Pinjaman_Belum_Dibayar*Nilai_Dimasukkan,Pinjaman_Pokok,\"\"), \"\")","v":""},{"$f":"IFERROR(IF(Pinjaman_Belum_Dibayar*Nilai_Dimasukkan,Bunga,\"\"), \"\")","v":""},{"$f":"IFERROR(IF(Pinjaman_Belum_Dibayar*Nilai_Dimasukkan,Saldo_Akhir,\"\"), \"\")","v":""}]
[null,{"$f":"IFERROR(IF(Pinjaman_Belum_Dibayar*Nilai_Dimasukkan,Jumlah_Pembayaran1,\"\"), \"\")","v":""},{"$f":"IFERROR(IF(Pinjaman_Belum_Dibayar*Nilai_Dimasukkan,Tanggal_Pembayaran,\"\"), \"\")","v":""},{"$f":"IFERROR(IF(Pinjaman_Belum_Dibayar*Nilai_Dimasukkan,Saldo_Awal,\"\"), \"\")","v":""},{"$f":"IFERROR(IF(Pinjaman_Belum_Dibayar*Nilai_Dimasukkan,Pembayaran_Bulanan,\"\"), \"\")","v":""},{"$f":"IFERROR(IF(Pinjaman_Belum_Dibayar*Nilai_Dimasukkan,Pinjaman_Pokok,\"\"), \"\")","v":""},{"$f":"IFERROR(IF(Pinjaman_Belum_Dibayar*Nilai_Dimasukkan,Bunga,\"\"), \"\")","v":""},{"$f":"IFERROR(IF(Pinjaman_Belum_Dibayar*Nilai_Dimasukkan,Saldo_Akhir,\"\"), \"\")","v":""}]
[null,{"$f":"IFERROR(IF(Pinjaman_Belum_Dibayar*Nilai_Dimasukkan,Jumlah_Pembayaran1,\"\"), \"\")","v":""},{"$f":"IFERROR(IF(Pinjaman_Belum_Dibayar*Nilai_Dimasukkan,Tanggal_Pembayaran,\"\"), \"\")","v":""},{"$f":"IFERROR(IF(Pinjaman_Belum_Dibayar*Nilai_Dimasukkan,Saldo_Awal,\"\"), \"\")","v":""},{"$f":"IFERROR(IF(Pinjaman_Belum_Dibayar*Nilai_Dimasukkan,Pembayaran_Bulanan,\"\"), \"\")","v":""},{"$f":"IFERROR(IF(Pinjaman_Belum_Dibayar*Nilai_Dimasukkan,Pinjaman_Pokok,\"\"), \"\")","v":""},{"$f":"IFERROR(IF(Pinjaman_Belum_Dibayar*Nilai_Dimasukkan,Bunga,\"\"), \"\")","v":""},{"$f":"IFERROR(IF(Pinjaman_Belum_Dibayar*Nilai_Dimasukkan,Saldo_Akhir,\"\"), \"\")","v":""}]
[null,{"$f":"IFERROR(IF(Pinjaman_Belum_Dibayar*Nilai_Dimasukkan,Jumlah_Pembayaran1,\"\"), \"\")","v":""},{"$f":"IFERROR(IF(Pinjaman_Belum_Dibayar*Nilai_Dimasukkan,Tanggal_Pembayaran,\"\"), \"\")","v":""},{"$f":"IFERROR(IF(Pinjaman_Belum_Dibayar*Nilai_Dimasukkan,Saldo_Awal,\"\"), \"\")","v":""},{"$f":"IFERROR(IF(Pinjaman_Belum_Dibayar*Nilai_Dimasukkan,Pembayaran_Bulanan,\"\"), \"\")","v":""},{"$f":"IFERROR(IF(Pinjaman_Belum_Dibayar*Nilai_Dimasukkan,Pinjaman_Pokok,\"\"), \"\")","v":""},{"$f":"IFERROR(IF(Pinjaman_Belum_Dibayar*Nilai_Dimasukkan,Bunga,\"\"), \"\")","v":""},{"$f":"IFERROR(IF(Pinjaman_Belum_Dibayar*Nilai_Dimasukkan,Saldo_Akhir,\"\"), \"\")","v":""}]
[null,{"$f":"IFERROR(IF(Pinjaman_Belum_Dibayar*Nilai_Dimasukkan,Jumlah_Pembayaran1,\"\"), \"\")","v":""},{"$f":"IFERROR(IF(Pinjaman_Belum_Dibayar*Nilai_Dimasukkan,Tanggal_Pembayaran,\"\"), \"\")","v":""},{"$f":"IFERROR(IF(Pinjaman_Belum_Dibayar*Nilai_Dimasukkan,Saldo_Awal,\"\"), \"\")","v":""},{"$f":"IFERROR(IF(Pinjaman_Belum_Dibayar*Nilai_Dimasukkan,Pembayaran_Bulanan,\"\"), \"\")","v":""},{"$f":"IFERROR(IF(Pinjaman_Belum_Dibayar*Nilai_Dimasukkan,Pinjaman_Pokok,\"\"), \"\")","v":""},{"$f":"IFERROR(IF(Pinjaman_Belum_Dibayar*Nilai_Dimasukkan,Bunga,\"\"), \"\")","v":""},{"$f":"IFERROR(IF(Pinjaman_Belum_Dibayar*Nilai_Dimasukkan,Saldo_Akhir,\"\"), \"\")","v":""}]
[null,{"$f":"IFERROR(IF(Pinjaman_Belum_Dibayar*Nilai_Dimasukkan,Jumlah_Pembayaran1,\"\"), \"\")","v":""},{"$f":"IFERROR(IF(Pinjaman_Belum_Dibayar*Nilai_Dimasukkan,Tanggal_Pembayaran,\"\"), \"\")","v":""},{"$f":"IFERROR(IF(Pinjaman_Belum_Dibayar*Nilai_Dimasukkan,Saldo_Awal,\"\"), \"\")","v":""},{"$f":"IFERROR(IF(Pinjaman_Belum_Dibayar*Nilai_Dimasukkan,Pembayaran_Bulanan,\"\"), \"\")","v":""},{"$f":"IFERROR(IF(Pinjaman_Belum_Dibayar*Nilai_Dimasukkan,Pinjaman_Pokok,\"\"), \"\")","v":""},{"$f":"IFERROR(IF(Pinjaman_Belum_Dibayar*Nilai_Dimasukkan,Bunga,\"\"), \"\")","v":""},{"$f":"IFERROR(IF(Pinjaman_Belum_Dibayar*Nilai_Dimasukkan,Saldo_Akhir,\"\"), \"\")","v":""}]
[null,{"$f":"IFERROR(IF(Pinjaman_Belum_Dibayar*Nilai_Dimasukkan,Jumlah_Pembayaran1,\"\"), \"\")","v":""},{"$f":"IFERROR(IF(Pinjaman_Belum_Dibayar*Nilai_Dimasukkan,Tanggal_Pembayaran,\"\"), \"\")","v":""},{"$f":"IFERROR(IF(Pinjaman_Belum_Dibayar*Nilai_Dimasukkan,Saldo_Awal,\"\"), \"\")","v":""},{"$f":"IFERROR(IF(Pinjaman_Belum_Dibayar*Nilai_Dimasukkan,Pembayaran_Bulanan,\"\"), \"\")","v":""},{"$f":"IFERROR(IF(Pinjaman_Belum_Dibayar*Nilai_Dimasukkan,Pinjaman_Pokok,\"\"), \"\")","v":""},{"$f":"IFERROR(IF(Pinjaman_Belum_Dibayar*Nilai_Dimasukkan,Bunga,\"\"), \"\")","v":""},{"$f":"IFERROR(IF(Pinjaman_Belum_Dibayar*Nilai_Dimasukkan,Saldo_Akhir,\"\"), \"\")","v":""}]
[null,{"$f":"IFERROR(IF(Pinjaman_Belum_Dibayar*Nilai_Dimasukkan,Jumlah_Pembayaran1,\"\"), \"\")","v":""},{"$f":"IFERROR(IF(Pinjaman_Belum_Dibayar*Nilai_Dimasukkan,Tanggal_Pembayaran,\"\"), \"\")","v":""},{"$f":"IFERROR(IF(Pinjaman_Belum_Dibayar*Nilai_Dimasukkan,Saldo_Awal,\"\"), \"\")","v":""},{"$f":"IFERROR(IF(Pinjaman_Belum_Dibayar*Nilai_Dimasukkan,Pembayaran_Bulanan,\"\"), \"\")","v":""},{"$f":"IFERROR(IF(Pinjaman_Belum_Dibayar*Nilai_Dimasukkan,Pinjaman_Pokok,\"\"), \"\")","v":""},{"$f":"IFERROR(IF(Pinjaman_Belum_Dibayar*Nilai_Dimasukkan,Bunga,\"\"), \"\")","v":""},{"$f":"IFERROR(IF(Pinjaman_Belum_Dibayar*Nilai_Dimasukkan,Saldo_Akhir,\"\"), \"\")","v":""}]
[null,{"$f":"IFERROR(IF(Pinjaman_Belum_Dibayar*Nilai_Dimasukkan,Jumlah_Pembayaran1,\"\"), \"\")","v":""},{"$f":"IFERROR(IF(Pinjaman_Belum_Dibayar*Nilai_Dimasukkan,Tanggal_Pembayaran,\"\"), \"\")","v":""},{"$f":"IFERROR(IF(Pinjaman_Belum_Dibayar*Nilai_Dimasukkan,Saldo_Awal,\"\"), \"\")","v":""},{"$f":"IFERROR(IF(Pinjaman_Belum_Dibayar*Nilai_Dimasukkan,Pembayaran_Bulanan,\"\"), \"\")","v":""},{"$f":"IFERROR(IF(Pinjaman_Belum_Dibayar*Nilai_Dimasukkan,Pinjaman_Pokok,\"\"), \"\")","v":""},{"$f":"IFERROR(IF(Pinjaman_Belum_Dibayar*Nilai_Dimasukkan,Bunga,\"\"), \"\")","v":""},{"$f":"IFERROR(IF(Pinjaman_Belum_Dibayar*Nilai_Dimasukkan,Saldo_Akhir,\"\"), \"\")","v":""}]